Workbook

Sheet Kold
B2: Bruger: | C2: =HD9 -> Bruger skal registreres | K2: RUND SØJLE, ver. 1.0 | N2: Betonelement-Foreningen november 2012
B3: Sagsnavn: | C3: Betonelementhuset | H3: Sag nr.: | I3: 23 - 4545 | L3: =AU17&AU18&AU19&AU20&AU21&AU22&AU23&AU24&AU25&AU26&AU27&AU28&AU29&AU30 -> For ny bruger: Klik på knappen 'angiv nyt brugernavn' for ibrugtagning.
B4: Bygningsdel: | C4: Søjle i modul D/12, stueetage | H4: Dato: | I4: 2007-01-02
B5: Emne: | C5: Normale lastkombinationer | H5: Init: | I5: JFJ | AN5: Aktivt ark: | AO5: 1 | AP5: -1
K7: Materialer | M7: fck | N7: 40 | O7: Regningsmæssige parametre
M8: fyk | N8: 550 | P8: fcd | Q8: =N7/(N9) -> 28.57142857
M9: gc | N9: 1.4 | P9: fyd | Q9: =N8/MAX(1,N10) -> 458.3333333 | AN9: 1 | AO9: =AW10*1000+0.001 -> 0.0009999928888 | AP9: =AX10*1000 -> 138.8674253 | AS9: Forskydningscheck | AW9: N | AX9: M | BD9: Lastpunkt | BE9: 1 | BF9: 2 | BG9: 3 | BH9: 4 | BI9: A | HA9: =IF(HE9=1,0,1000000) -> 0 | HB9: 1 | HD9: Bruger skal registreres | HE9: 1
M10: gs | N10: 1.2 | P10: Ecd | Q10: =1000*22*((N7+8)/10)^0.3/N9 -> 25157.47306 | AN10: 2 | AO10: =AW11*1000 -> 683.9801149 | AP10: =AX11*1000 -> 206.5394356 | AS10: f_ctd | AT10: =SQRT(N7/10)/N9 -> 1.428571429 | AU10: MPa | AW10: =IF($AO$5=1,Data!D36,0)*$AY$38/1000 -> -7.111200517e-12 | AX10: =IF($AO$5=1,Data!E36,0)*$AY$38/1000 -> 0.1388674253 | BD10: Indeks | BE10: 5 | BF10: 8 | BG10: 9 | BH10: 9 | BI10: B
K11: Søjlelængde | O11: Krybetal | AN11: 3 | AO11: 1367.96023 | AP11: 256.7758179 | AS11: r | AT11: =AP41/(CA65*CA66) -> 0.004666884641 | AW11: =IF($AO$5=1,Data!D37,0)*$AY$38/1000 -> 0.6839801149 | AX11: =IF($AO$5=1,Data!E37,0)*$AY$38/1000 -> 0.2065394356 | BE11: =INDEX(BI9:BI17,BE10) -> E | BF11: =INDEX(BI9:BI17,BF10) -> H | BG11: =INDEX(BI9:BI17,BG10) -> I | BH11: =INDEX(BI9:BI17,BH10) -> I | BI11: C
M12: Ls | N12: 4200 | P12: RH | Q12: 0.55 | AN12: 4 | AO12: 2051.940345 | AP12: 281.4279769 | AS12: k | AT12: =MAX(1,1.6-CA65/1000) -> 1.175647552 | AW12: =IF($AO$5=1,Data!D38,0)*$AY$38/1000 -> 1.36796023 | AX12: =IF($AO$5=1,Data!E38,0)*$AY$38/1000 -> 0.2567758179 | BD12: N | BE12: =INDEX($AN$30:$AQ$38,BE10,2) -> 500 | BF12: =INDEX($AN$30:$AQ$38,BF10,2) -> 3800 | BG12: =INDEX($AN$30:$AQ$38,BG10,2) -> 4100 | BH12: =INDEX($AN$30:$AQ$38,BH10,2) -> 4100 | BI12: D
K13: Tværsnit | P13: to | Q13: 28 | AN13: 5 | AO13: 2735.92046 | AP13: 278.3512264 | AS13: s_p | AU13: MPa | AW13: =IF($AO$5=1,Data!D39,0)*$AY$38/1000 -> 2.051940345 | AX13: =IF($AO$5=1,Data!E39,0)*$AY$38/1000 -> 0.2814279769 | BD13: N | BE13: =INDEX(Data!$AN$22:$AX$22,1,1)*1000 -> 500 | BF13: =INDEX(Data!$AN$25:$AX$25,1,1)*1000 -> 3800 | BG13: =INDEX(Data!$AN$28:$AX$28,1,1)*1000 -> 4100 | BH13: =INDEX(Data!$AN$22:$AX$22,1,1)*1000 -> 500 | BI13: E
M14: D | N14: 500 | P14: fo | Q14: =AT41 -> 1.748645162 | AN14: 6 | AO14: 3419.900575 | AP14: 239.4616592 | AS14: t_0d | AT14: =0.25*AT12*(1.2+40*AT11)*AT10+0.15*AT13 -> 0.5822291153 | AU14: MPa | AW14: =IF($AO$5=1,Data!D40,0)*$AY$38/1000 -> 2.73592046 | AX14: =IF($AO$5=1,Data!E40,0)*$AY$38/1000 -> 0.2783512264 | BD14: M | BE14: =INDEX($AN$30:$AQ$38,BE10,4) -> 126.41 | BF14: =INDEX($AN$30:$AQ$38,BF10,4) -> 96.41 | BG14: 98.41 | BH14: 98.41 | BI14: F
M15: c | N15: 60 | P15: M0Eqp/M0Ed | Q15: 0.9 | AN15: 7 | AO15: 4103.88069 | AP15: 182.7883193 | AW15: =IF($AO$5=1,Data!D41,0)*$AY$38/1000 -> 3.419900575 | AX15: =IF($AO$5=1,Data!E41,0)*$AY$38/1000 -> 0.2394616592 | BD15: Mud | BE15: =INDEX(Data!$AN$22:$AX$22,1,2)*1000 -> 188.3367072 | BF15: =INDEX(Data!$AN$25:$AX$25,1,2)*1000 -> 207.9673168 | BG15: =INDEX(Data!$AN$28:$AX$28,1,2)*1000 -> 183.1098661 | BH15: =INDEX(Data!$AN$22:$AX$22,1,2)*1000 -> 188.3367072 | BI15: G
K16: Armering | P16: fef | Q16: =Q15*Q14 -> 1.573780645 | AN16: 8 | AO16: 4787.860804 | AP16: 112.0059606 | AS16: t_d | AT16: =0.5*N12*MAX(Q25:Q28)/(0.8*CA65*CA66) -> 0.05568102965 | AU16: MPa | AW16: =IF($AO$5=1,Data!D42,0)*$AY$38/1000 -> 4.10388069 | AX16: =IF($AO$5=1,Data!E42,0)*$AY$38/1000 -> 0.1827883193 | BD16: u | BE16: =INDEX(Data!$AN$22:$AX$22,1,11)*1000 -> 17.61857587 | BF16: =INDEX(Data!$AN$25:$AX$25,1,11)*1000 -> 31.70414503 | BG16: =INDEX(Data!$AN$28:$AX$28,1,11)*1000 -> 29.08302351 | BH16: =INDEX(Data!$AN$22:$AX$22,1,11)*1000 -> 17.61857587 | BI16: H
M17: da | N17: 20 | O17: Bøjler | P17: ="Generelt: ø "&CEILING(MAX(6,CA68/4,CA70/4),1)&" / "&CEILING(MIN(20*MIN(CA68,CA70),MIN(CA65,CA66),400),1)&" mm" -> Generelt: ø 6 / 400 mm | AN17: 9 | AO17: 5471.840919 | AP17: 33.18609227 | AS17: Ingen negative inddata | AT17: =IF(MIN(N7,N8,N9,N10,N12,N15,CA68,CA69,CA70,CA71,AP40,AP41,CA65,CA66,N25:Q34,N35:P35,Q12,Q13,Q15,N23)<0,1,0) -> 0 | AU17: =IF(AT17=1,AS17&" ! ","") ->  | AW17: =IF($AO$5=1,Data!D43,0)*$AY$38/1000 -> 4.787860804 | AX17: =IF($AO$5=1,Data!E43,0)*$AY$38/1000 -> 0.1120059606 | BD17: wr | BE17: - | BF17: - | BG17: - | BH17: - | BI17: I
M18: Antal | N18: 8 | P18: ="Top og bund: ø "&CEILING(MAX(6,CA68/4,CA70/4),1)&" / "&CEILING(0.6*MIN(20*MIN(CA68,CA70),MIN(CA65,CA66),400),1)&" mm" -> Top og bund: ø 6 / 240 mm | AN18: 10 | AO18: 5471.840919 | AP18: 33.18609227 | AS18: f_ck højst 50 MPa | AT18: =IF(N7>50,1,0) -> 0 | AW18: =IF($AO$5=1,Data!D44,0)*$AY$38/1000 -> 5.471840919 | AX18: =IF($AO$5=1,Data!E44,0)*$AY$38/1000 -> 0.03318609227 | BD18: e0 | BE18: =INDEX(Data!$AN$22:$AX$22,1,8)*1000 -> 0.871495582 | BF18: =INDEX(Data!$AN$25:$AX$25,1,8)*1000 -> 2.715127557 | BG18: =INDEX(Data!$AN$28:$AX$28,1,8)*1000 -> 2.655128471 | BH18: =INDEX(Data!$AN$22:$AX$22,1,8)*1000 -> 0.871495582
K19: Anvendelsestilstand | O19: Kritisk last (central) | AN19: 11 | AO19: 0 | AP19: 0 | AS19: f_ck mindst 20 MPa | AT19: =IF(N7<20,1,0) -> 0 | AW19: =IF($AO$5=1,Data!D45,0)*$AY$38/1000 -> 5.471840919 | AX19: =IF($AO$5=1,Data!E45,0)*$AY$38/1000 -> 0.03318609227 | BD19: sc0 | BE19: =('Ark1'!$O$31*'Ark1'!$O$30*Kold!BE18/1000-(Kold!BE18/1000)^2)*$Q$8/('Ark1'!$O$30^2+('Ark1'!$O$31-2)*'Ark1'!$O$30*Kold!BE18/1000) -> 17.99928492 | BF19: =('Ark1'!$O$31*'Ark1'!$O$30*Kold!BF18/1000-(Kold!BF18/1000)^2)*$Q$8/('Ark1'!$O$30^2+('Ark1'!$O$31-2)*'Ark1'!$O$30*Kold!BF18/1000) -> 27.8830601 | BG19: =('Ark1'!$O$31*'Ark1'!$O$30*Kold!BG18/1000-(Kold!BG18/1000)^2)*$Q$8/('Ark1'!$O$30^2+('Ark1'!$O$31-2)*'Ark1'!$O$30*Kold!BG18/1000) -> 28.07654788 | BH19: =('Ark1'!$O$31*'Ark1'!$O$30*Kold!BH18/1000-(Kold!BH18/1000)^2)*$Q$8/('Ark1'!$O$30^2+('Ark1'!$O$31-2)*'Ark1'!$O$30*Kold!BH18/1000) -> 17.99928492
L20: I anvendelsestilstand skønnes a | P20: scrd | Q20: =Q8/(1+12*Q8*N12^2/(PI()^2*Q10*CA65^2)) -> 25.16714625 | AN20: 12 | AO20: 0 | AP20: 0 | AS20: D mindst 150 mm | AT20: =IF(N14<150,1,0) -> 0 | BD20: sst | BE20: =INDEX(Data!$AN$22:$AX$22,1,9) -> 453.6219073 | BF20: =INDEX(Data!$AN$25:$AX$25,1,9) -> 225.908918 | BG20: =INDEX(Data!$AN$28:$AX$28,1,9) -> 122.5688114 | BH20: =INDEX(Data!$AN$22:$AX$22,1,9) -> 453.6219073
L21: til en passende værdi afhængig af | P21: fc | Q21: =AP40/(CA65*CA66) -> 0.004666884641 | AN21: 13 | AO21: 0 | AP21: 0 | AS21: ="A_s må højst være "&BB35&" mm^2" -> A_s må højst være 7854 mm^2 | AT21: =IF(AP42>BB35,1,0) -> 0 | BD21: ssc | BE21: =INDEX(Data!$AN$22:$AX$22,1,10) -> 305.4550575 | BF21: =INDEX(Data!$AN$25:$AX$25,1,10) -> 458.3333333 | BG21: =INDEX(Data!$AN$28:$AX$28,1,10) -> 458.3333333 | BH21: =INDEX(Data!$AN$22:$AX$22,1,10) -> 305.4550575
L22: forholdet mellem lang- og kort- | P22: ft | Q22: =AP41/(CA65*CA66) -> 0.004666884641 | AN22: 14 | AO22: 0 | AP22: 0 | AS22: Mindst 6 og højst 24 armeringsjern | AT22: =IF(OR(N18<6,N18>24),1,0) -> 0 | BD22: hc | BE22: =$N$14-INDEX(Data!$AN$22:$AX$22,1,3)*1000 -> 210.4149632 | BF22: =$N$14-INDEX(Data!$AN$25:$AX$25,1,3)*1000 -> 379.62166 | BG22: =$N$14-INDEX(Data!$AN$28:$AX$28,1,3)*1000 -> 402.8900895 | BH22: =$N$14-INDEX(Data!$AN$22:$AX$22,1,3)*1000 -> 210.4149632
L23: tidslast: | M23: aanv. = | N23: 15 | P23: Ncr | Q23: =MIN(CA65*CA66*Q20*(1+(200000/Q10)*2*MIN(Q21,Q22)),CA65*CA66*Q20*(1+(Q9/Q20)*2*MIN(Q21,Q22)))/1000 -> 5098.028709 | AN23: 15 | AO23: 0 | AP23: 0 | AS23: c højst D/4 | AT23: =IF(N15>N14/4,1,0) -> 0 | AU23: =IF(AT23=1,AS23&" ! ","") -> 
F24: Kontrolparametre | G24: Brudlasttilfælde | J24: Anv. - | K24: Brudlasttilfælde | N24: N1 (kN) | O24: N0 (kN) | P24: N2 (kN) | Q24: w (kN/m) | AN24: 16 | AO24: 0 | AP24: 0 | AS24: Armeringsdiameteren skal være større end 8 mm | AT24: =IF(N17<8,1,0) -> 0
G25: =IF($AO$5=1,BE11,"-") -> E | H25: =IF($AO$5=1,BF11,"-") -> H | I25: =IF($AO$5=1,BG11,"-") -> I | J25: tilfælde | K25: A | N25: 80 | O25: 20 | P25: 80 | Q25: 4 | AN25: 17 | AO25: 0 | AP25: 0 | AS25: f_yk højst 600 MPa | AT25: =IF(N8>600,1,0) -> 0
E26: NEd | F26: (kN) | G26: =IF($AO$5=1,BE13,"-") -> 500 | H26: =IF($AO$5=1,BF13,"-") -> 3800 | I26: =IF($AO$5=1,BG13,"-") -> 4100 | J26: =N34+O34+P34 -> 360 | K26: B | N26: 300 | O26: 20 | P26: 80 | Q26: 4 | AN26: 18 | AO26: 0 | AP26: 0 | AS26: ="A_s skal være større end "&AY35&" mm^2" -> A_s skal være større end 895 mm^2 | AT26: =IF(AP42<AY35,1,0) -> 0 | AU26: =IF(AT26=1,AS26&" ! ","") -> 
E27: M0Ed | F27: (kNm) | G27: 126.41 | H27: 96.41 | I27: 98.41 | J27: =(N34*N35+O34*O35-P34*P35)/1000+0.125*Q34*(N12/1000)^2 -> 84.4 | K27: C | N27: 300 | O27: 3000 | P27: 80 | Q27: 4 | AN27: 19 | AO27: 0 | AP27: 0 | AS27: Partialkoefficienter mindst 1,0 | AT27: =IF(MIN(N9,N10)<1,1,0) -> 0
E28: M0Rd | F28: (kNm) | G28: 188.3367072 | H28: 207.9673168 | I28: 183.1098661 | J28: =IF(AT57+0.00001<0.9*AR51,"ustabil","-") -> - | K28: D | N28: 300 | O28: 3000 | P28: 300 | Q28: 4 | AS28: Søjlelængde må højst være 50 D | AT28: =IF(N12>50*N14,1,0) -> 0 | AU28: =IF(AT28=1,AS28&" ! ","") -> 
E29: u | F29: (mm) | G29: 17.61857587 | H29: 31.70414503 | I29: 29.08302351 | J29: =AQ86 -> 6.059839434 | K29: E | N29: 400 | O29: 20 | P29: 80 | Q29: 2 | AS29: Programmet indstillet til brandberegning ! | AT29: =IF(AO5=1,0,1) -> 0 | AU29: =IF(AT29=1,AS29&" ! ","") -> 
E30: wk | F30: (mm) | G30: - | H30: - | I30: - | J30: =IF(AQ81=0,"urevnet",AS86) -> 0.1131807367 | K30: F | N30: 400 | O30: 3000 | P30: 80 | Q30: 2 | AO30: =N25+O25+P25 -> 180 | AQ30: =(N25*$N$35+O25*$O$35-P25*$P$35)/1000+0.125*Q25*($N$12/1000)^2 -> 15.62 | AS30: For ny bruger: Klik på knappen 'angiv nyt brugernavn' for ibrugtagning. | AT30: =HE9 -> 1 | AU30: =IF(AT30=1,AS30,"") -> For ny bruger: Klik på knappen 'angiv nyt brugernavn' for ibrugtagning.
E31: e0 / (1+f) | F31: (o/oo) | G31: 0.871495582 | H31: 2.715127557 | I31: 2.655128471 | J31: - | K31: G | N31: 300 | O31: 3500 | P31: 80 | Q31: 2 | AO31: 400 | AQ31: 94.82 | AS31: Beregning af krybetal | AW31: Minimumsarmering
E32: sc0 | F32: (Mpa) | G32: 17.99928492 | H32: 27.8830601 | I32: 28.07654788 | J32: =IF($J$28="-",IF(AQ81=0,AP78,AQ78),"-") -> 9.120557136 | K32: H | N32: 400 | O32: 3000 | P32: 400 | Q32: 2 | AO32: 3380 | AQ32: 154.42 | AS32: to | AT32: =Q13 -> 28 | AX32: Maks N | AY32: =MAX($AO$30:$AO$38)*1000 -> 4100000 | AZ32: N
E33: sst | F33: (Mpa) | G33: 453.6219073 | H33: 225.908918 | I33: 122.5688114 | J33: =IF($J$28="-",IF(AQ81=0,AP76,AQ76),"-") -> 124.3091842 | K33: I | N33: 300 | O33: 3500 | P33: 300 | Q33: 2 | AO33: 3600 | AQ33: 92.82 | AS33: RH | AT33: =Q12*100 -> 55 | AX33: Ac | AY33: =PI()*N14^2/4 -> 196349.5408 | AZ33: mm2
E34: ssc | F34: (Mpa) | G34: 305.4550575 | H34: 458.3333333 | I34: 458.3333333 | J34: =IF($J$28="-",IF(AQ81=0,AP79,AQ79),"-") -> 93.80863915 | K34: Anvendelsestilfælde: | N34: 280 | O34: 20 | P34: 60 | Q34: 0 | AO34: 500 | AQ34: 126.41 | AS34: D | AT34: =N14 -> 500 | AX34: Asmin | AY34: =ROUND(MAX(0.002*AY33,0.1*$AY$32/Q9),0) -> 895 | AZ34: mm2 | BA34: Asmax | BB34: =ROUND(MAX(0.04*AY33,0.1*$AY$32/Q9),0) -> 7854
E35: x | F35: (mm) | G35: 210.4149632 | H35: 379.62166 | I35: 402.8900895 | J35: =IF(AND($J$28="-",J26>0),IF(AQ81=0,"urevnet",AR57*1000),"-") -> 190.8966343 | K35: Excentriciteter (mm) : | N35: 360 | O35: 20 | P35: 280 | AO35: 3480 | AQ35: 186.01 | AS35: b | AT35: =AT34/2 -> 250 | AX35: Asmin | AY35: =ROUND(AY34,0) -> 895 | AZ35: mm2 | BA35: Asmax | BB35: =BB34 -> 7854
B36: Vejledning: | C36: Betonelementbyggeriers Statik | K36: NB: Resultaterne skal altid kontrolleres af ansvarlig statiker | AO36: 3880 | AQ36: 160.01 | AS36: ho | AT36: =AT35 -> 250
AO37: 3800 | AQ37: 96.41 | AS37: fck | AT37: =N7 -> 40 | AW37: Nulstilling for fejl
AO38: 4100 | AQ38: 98.41 | AS38: fcm | AT38: =AT37+8 -> 48 | AX38: Testfaktor | AY38: =IF(MAX(AT17,AT18,AT19,AT21,AT22,AT23,AT24,AT27,AT28)=1,0,1) -> 1
AS39: a1 | AT39: =IF(AT38<35,1,(35/AT38)^0.7) -> 0.8016388658
AN40: Trykarmering | AP40: =CA68^2*CA69*PI()/4 -> 880.0535664 | AQ40: mm^2 | AS40: a2 | AT40: =IF(AT38<35,1,(35/AT38)^0.2) -> 0.9387833131
AN41: Trækarmering | AP41: =CA70^2*CA71*PI()/4 -> 880.0535664 | AQ41: mm^2 | AS41: f | AT41: =(1/(0.1+AT32^0.2))*(16.8/AT38^0.5)*(1+10*AT39*(1-AT33/100)/AT36^(1/3))*AT40 -> 1.748645162
AN42: Armeringsareal i alt | AP42: =N18*N17^2*PI()/4 -> 2513.274123 | AQ42: mm^2
AN44: gc | AO44: 1 | AQ44: ANVENDELSESLAST | AT44: Mo | AV44: sc,max | AW44: sc,min | AX44: sc | AY44: st | AZ44: hc | BA44: u | BB44: a | BC44: Mt | BD44: a*fc | BE44: a*ft | BF44: B | BG44: C | BH44: D | BI44: p | BJ44: q | BK44: C' | BL44: y' | BM44: b | BN44: m | BO44: Ec | BP44: Atr | BQ44: Syt | BR44: Iyt | BS44: z | BT44: Io | BU44: sc | BV44: sm | BW44: hc
AN45: ga | AO45: 1 | AT45: =BC45-AR48*BA45 -> 0.08953833006 | AV45: =IF(BL45*SQRT(4*ABS(BI45)/3)-BF45/3<=AO51,BC45/(BN45*AO52*AO51^2),BU45) -> 9.697366591 | AW45: =IF(BL45*SQRT(4*ABS(BI45)/3)-BF45/3<=AO51,0,BV45) -> 0 | AX45: =BB45*(AZ45-AO53)*AV45/AZ45 -> 98.21641849 | AY45: =BB45*(AO51-AO53-AZ45)*AV45/AZ45 -> 141.4311067 | AZ45: =IF(BL45*SQRT(4*ABS(BI45)/3)-BF45/3<=AO51,BL45*SQRT(4*ABS(BI45)/3)-BF45/3,BW45) -> 0.1847348887 | BA45: =0.1*(AV45/(AZ45*BO45))*AO57^2 -> 0.006944879816 | BB45: =AO54 -> 15 | BC45: =IF(J27>0,AR51+AO51*AR48/20,0)+0.000000000001 -> 0.09203855624 | BD45: =BB45*AO55/(AO51*AO52) -> 0.07000326961 | BE45: =BB45*AO56/(AO51*AO52) -> 0.07000326961 | BF45: =-6*AO51*(0.25-0.5*BC45/(AO51*AR50)) -> 0.1304379922 | BG45: =-6*AO51*(BD45*(0.5*AO51-AO53)-BE45*(0.5*AO51-AO53)-(BD45+BE45)*AO51*BC45/(AO51*AR50)) -> 0.09113422733 | BH45: =6*AO51*((BD45*AO53-BE45*(AO51-AO53))*(0.5*AO51-AO53)-(BD45*AO53+BE45*(AO51-AO53))*BC45/AR50) -> -0.02759156967 | BI45: =(3*BG45-BF45^2)/3 -> 0.08546287072 | BJ45: =(9*BG45*BF45-27*BH45-2*BF45^3)/27 -> 0.03138963369 | BK45: =0.5*BJ45*(3/ABS(BI45))^(3/2) -> 3.26416361 | BL45: =IF(BI45>0,SINH(ASINH(BK45)/3),IF(BK45>=1,COSH(ACOSH(BK45)/3),IF(BK45<=-1,-COSH(ACOSH(ABS(BK45))/3),COS(ACOS(BK45)/3)))) -> 0.6760589928 | BM45: =AZ45/AO51 -> 0.4353336234 | BN45: =0.5*BM45*(0.5-BM45/3)+BD45*(0.5-AO53/AO51)*(BM45-AO53/AO51)/BM45+BE45*(0.5-AO53/AO51)*(1-AO53/AO51-BM45)/BM45 -> 0.118606156 | BO45: =IF(BL45*SQRT(4*ABS(BI45)/3)-BF45/3<=AO51,AO50*(1-AO49*AV45/AO48),AO50*(1-AO49*AV45/AO48-(1-1)*BV45/AO48)) -> 13333.33333 | BP45: =(1+BD45+BE45)*AO51*AO52 -> 0.214975706 | BQ45: =0.5*(AO51-AO53)*(BE45-BD45)*AO51*AO52 -> 0 | BR45: =AO52*AO51^3/12+(0.5*AO51-AO53)^2*(BD45+BE45)*AO52*AO51 -> 0.00344118801 | BS45: =BQ45/BP45 -> 0 | BT45: =BR45-BP45*BS45^2 -> 0.00344118801 | BU45: =AR50/BP45+(BC45+BS45*AR50)*(0.5*AO51+BS45)/BT45 -> 7.34955303 | BV45: =AR50/BP45+(BC45+BS45*AR50)*(-0.5*AO51+BS45)/BT45 -> -4.000244342 | BW45: =AR50*BT45/((BC45+AR50*BS45)*BP45)+(0.5*AO51+BS45) -> 0.2747891189
AN46: fck | AO46: =N7 -> 40 | AP46: MPa | AT46: =BC46-AR48*BA46 -> 0.0846152586 | AU46: =BA46/BA45 -> 0.9139043484 | AV46: =IF(BL46*SQRT(4*ABS(BI46)/3)-BF46/3<=AO51,BC46/(BN46*AO52*AO51^2),BU46) -> 9.144749927 | AW46: =IF(BL46*SQRT(4*ABS(BI46)/3)-BF46/3<=AO51,0,BV46) -> 0 | AX46: =BB46*(AZ46-AO53)*AV46/AZ46 -> 93.99467841 | AY46: =BB46*(AO51-AO53-AZ46)*AV46/AZ46 -> 125.0202369 | AZ46: =IF(BL46*SQRT(4*ABS(BI46)/3)-BF46/3<=AO51,BL46*SQRT(4*ABS(BI46)/3)-BF46/3,BW46) -> 0.1906190056 | BA46: =0.1*(AV46/(AZ46*BO46))*AO57^2 -> 0.006346955862 | BB46: =AO54 -> 15 | BC46: =AR51+BA45*AR48 -> 0.08690022618 | BD46: =BB46*AO55/(AO51*AO52) -> 0.07000326961 | BE46: =BB46*AO56/(AO51*AO52) -> 0.07000326961 | BF46: =-6*AO51*(0.25-0.5*BC46/(AO51*AR50)) -> 0.0876197645 | BG46: =-6*AO51*(BD46*(0.5*AO51-AO53)-BE46*(0.5*AO51-AO53)-(BD46+BE46)*AO51*BC46/(AO51*AR50)) -> 0.08604638416 | BH46: =6*AO51*((BD46*AO53-BE46*(AO51-AO53))*(0.5*AO51-AO53)-(BD46*AO53+BE46*(AO51-AO53))*BC46/AR50) -> -0.02651205032 | BI46: =(3*BG46-BF46^2)/3 -> 0.08348730978 | BJ46: =(9*BG46*BF46-27*BH46-2*BF46^3)/27 -> 0.02897534374 | BK46: =0.5*BJ46*(3/ABS(BI46))^(3/2) -> 3.120683917 | BL46: =IF(BI46>0,SINH(ASINH(BK46)/3),IF(BK46>=1,COSH(ACOSH(BK46)/3),IF(BK46<=-1,-COSH(ACOSH(ABS(BK46))/3),COS(ACOS(BK46)/3)))) -> 0.6588683611 | BM46: =AZ46/AO51 -> 0.4491997315 | BN46: =0.5*BM46*(0.5-BM46/3)+BD46*(0.5-AO53/AO51)*(BM46-AO53/AO51)/BM46+BE46*(0.5-AO53/AO51)*(1-AO53/AO51-BM46)/BM46 -> 0.1187518325 | BO46: =IF(BL46*SQRT(4*ABS(BI46)/3)-BF46/3<=AO51,AO50*(1-AO49*AV46/AO48),AO50*(1-AO49*AV46/AO48-(1-1)*BV46/AO48)) -> 13333.33333 | BP46: =(1+BD46+BE46)*AO51*AO52 -> 0.214975706 | BQ46: =0.5*(AO51-AO53)*(BE46-BD46)*AO51*AO52 -> 0 | BR46: =AO52*AO51^3/12+(0.5*AO51-AO53)^2*(BD46+BE46)*AO52*AO51 -> 0.00344118801 | BS46: =BQ46/BP46 -> 0 | BT46: =BR46-BP46*BS46^2 -> 0.00344118801 | BU46: =AR50/BP46+(BC46+BS46*AR50)*(0.5*AO51+BS46)/BT46 -> 7.032734692 | BV46: =AR50/BP46+(BC46+BS46*AR50)*(-0.5*AO51+BS46)/BT46 -> -3.683426003 | BW46: =AR50*BT46/((BC46+AR50*BS46)*BP46)+(0.5*AO51+BS46) -> 0.2784913615
AN47: Es | AO47: 200000 | AP47: MPa | AQ47: Max_N | AR47: =(AO51*AO52+AO54*(AO55+AO56))*AO48/(1+(12*(AO48/AO50)/PI()^2)*(AO57/AO51)^2) -> 6.335335295 | AT47: =BC47-AR48*BA47 -> 0.08440896941 | AU47: =BA47/BA46 -> 0.9960746 | AV47: =IF(BL47*SQRT(4*ABS(BI47)/3)-BF47/3<=AO51,BC47/(BN47*AO52*AO51^2),BU47) -> 9.121565249 | AW47: =IF(BL47*SQRT(4*ABS(BI47)/3)-BF47/3<=AO51,0,BV47) -> 0 | AX47: =BB47*(AZ47-AO53)*AV47/AZ47 -> 93.81639355 | AY47: =BB47*(AO51-AO53-AZ47)*AV47/AZ47 -> 124.3388006 | AZ47: =IF(BL47*SQRT(4*ABS(BI47)/3)-BF47/3<=AO51,BL47*SQRT(4*ABS(BI47)/3)-BF47/3,BW47) -> 0.1908850295 | BA47: =0.1*(AV47/(AZ47*BO47))*AO57^2 -> 0.006322041522 | BB47: =AO54 -> 15 | BC47: =AR51+BA46*AR48 -> 0.08668496758 | BD47: =BB47*AO55/(AO51*AO52) -> 0.07000326961 | BE47: =BB47*AO56/(AO51*AO52) -> 0.07000326961 | BF47: =-6*AO51*(0.25-0.5*BC47/(AO51*AR50)) -> 0.08582599264 | BG47: =-6*AO51*(BD47*(0.5*AO51-AO53)-BE47*(0.5*AO51-AO53)-(BD47+BE47)*AO51*BC47/(AO51*AR50)) -> 0.08583324059 | BH47: =6*AO51*((BD47*AO53-BE47*(AO51-AO53))*(0.5*AO51-AO53)-(BD47*AO53+BE47*(AO51-AO53))*BC47/AR50) -> -0.02646682632 | BI47: =(3*BG47-BF47^2)/3 -> 0.08337787359 | BJ47: =(9*BG47*BF47-27*BH47-2*BF47^3)/27 -> 0.02887557083 | BK47: =0.5*BJ47*(3/ABS(BI47))^(3/2) -> 3.116063092 | BL47: 0.6583051782 | BM47: =AZ47/AO51 -> 0.4498266252 | BN47: =0.5*BM47*(0.5-BM47/3)+BD47*(0.5-AO53/AO51)*(BM47-AO53/AO51)/BM47+BE47*(0.5-AO53/AO51)*(1-AO53/AO51-BM47)/BM47 -> 0.118758764 | BO47: =IF(BL47*SQRT(4*ABS(BI47)/3)-BF47/3<=AO51,AO50*(1-AO49*AV47/AO48),AO50*(1-AO49*AV47/AO48-(1-1)*BV47/AO48)) -> 13333.33333 | BP47: =(1+BD47+BE47)*AO51*AO52 -> 0.214975706 | BQ47: =0.5*(AO51-AO53)*(BE47-BD47)*AO51*AO52 -> 0 | BR47: =AO52*AO51^3/12+(0.5*AO51-AO53)^2*(BD47+BE47)*AO52*AO51 -> 0.00344118801 | BS47: 0 | BT47: 0.00344118801 | BU47: =AR50/BP47+(BC47+BS47*AR50)*(0.5*AO51+BS47)/BT47 -> 7.019462311 | BV47: =AR50/BP47+(BC47+BS47*AR50)*(-0.5*AO51+BS47)/BT47 -> -3.670153623 | BW47: =AR50*BT47/((BC47+AR50*BS47)*BP47)+(0.5*AO51+BS47) -> 0.2786560371
AN48: fcd | AO48: =AO46/AO44 -> 40 | AP48: MPa | AQ48: Nd | AR48: =J26/1000+0.00001 -> 0.36001 | AS48: MN | AT48: =BC48-AR48*BA48 -> 0.08440037365 | AU48: 0.9998358321 | AV48: =IF(BL48*SQRT(4*ABS(BI48)/3)-BF48/3<=AO51,BC48/(BN48*AO52*AO51^2),BU48) -> 9.120599132 | AW48: =IF(BL48*SQRT(4*ABS(BI48)/3)-BF48/3<=AO51,0,BV48) -> 0 | AX48: =BB48*(AZ48-AO53)*AV48/AZ48 -> 93.80896218 | AY48: =BB48*(AO51-AO53-AZ48)*AV48/AZ48 -> 124.3104179 | AZ48: =IF(BL48*SQRT(4*ABS(BI48)/3)-BF48/3<=AO51,BL48*SQRT(4*ABS(BI48)/3)-BF48/3,BW48) -> 0.1908961508 | BA48: =0.1*(AV48/(AZ48*BO48))*AO57^2 -> 0.006321003646 | BB48: =AO54 -> 15 | BC48: =AR51+BA47*AR48 -> 0.08667599817 | BD48: =BB48*AO55/(AO51*AO52) -> 0.07000326961 | BE48: =BB48*AO56/(AO51*AO52) -> 0.07000326961 | BF48: =-6*AO51*(0.25-0.5*BC48/(AO51*AR50)) -> 0.08575124962 | BG48: =-6*AO51*(BD48*(0.5*AO51-AO53)-BE48*(0.5*AO51-AO53)-(BD48+BE48)*AO51*BC48/(AO51*AR50)) -> 0.08582435931 | BH48: =6*AO51*((BD48*AO53-BE48*(AO51-AO53))*(0.5*AO51-AO53)-(BD48*AO53+BE48*(AO51-AO53))*BC48/AR50) -> -0.02646494193 | BI48: 0.08337326704 | BJ48: 0.02887141634 | BK48: 3.115872986 | BL48: 0.6582819951 | BM48: =AZ48/AO51 -> 0.4498528329 | BN48: =0.5*BM48*(0.5-BM48/3)+BD48*(0.5-AO53/AO51)*(BM48-AO53/AO51)/BM48+BE48*(0.5-AO53/AO51)*(1-AO53/AO51-BM48)/BM48 -> 0.1187590543 | BO48: =IF(BL48*SQRT(4*ABS(BI48)/3)-BF48/3<=AO51,AO50*(1-AO49*AV48/AO48),AO50*(1-AO49*AV48/AO48-(1-1)*BV48/AO48)) -> 13333.33333 | BP48: =(1+BD48+BE48)*AO51*AO52 -> 0.214975706 | BQ48: =0.5*(AO51-AO53)*(BE48-BD48)*AO51*AO52 -> 0 | BR48: =AO52*AO51^3/12+(0.5*AO51-AO53)^2*(BD48+BE48)*AO52*AO51 -> 0.00344118801 | BS48: 0 | BT48: 0.00344118801 | BU48: =AR50/BP48+(BC48+BS48*AR50)*(0.5*AO51+BS48)/BT48 -> 7.018909276 | BV48: =AR50/BP48+(BC48+BS48*AR50)*(-0.5*AO51+BS48)/BT48 -> -3.669600588 | BW48: =AR50*BT48/((BC48+AR50*BS48)*BP48)+(0.5*AO51+BS48) -> 0.2786629166
AN49: k | AO49: 0 | AQ49: Nf | AR49: 0 | AS49: MN | AT49: =BC49-AR48*BA49 -> 0.08440001557 | AU49: 0.9999931601 | AV49: =IF(BL49*SQRT(4*ABS(BI49)/3)-BF49/3<=AO51,BC49/(BN49*AO52*AO51^2),BU49) -> 9.120558886 | AW49: =IF(BL49*SQRT(4*ABS(BI49)/3)-BF49/3<=AO51,0,BV49) -> 0 | AX49: =BB49*(AZ49-AO53)*AV49/AZ49 -> 93.8086526 | AY49: =BB49*(AO51-AO53-AZ49)*AV49/AZ49 -> 124.3092356 | AZ49: =IF(BL49*SQRT(4*ABS(BI49)/3)-BF49/3<=AO51,BL49*SQRT(4*ABS(BI49)/3)-BF49/3,BW49) -> 0.1908966142 | BA49: =0.1*(AV49/(AZ49*BO49))*AO57^2 -> 0.00632096041 | BB49: =AO54 -> 15 | BC49: =AR51+BA48*AR48 -> 0.08667562452 | BD49: =BB49*AO55/(AO51*AO52) -> 0.07000326961 | BE49: =BB49*AO56/(AO51*AO52) -> 0.07000326961 | BF49: =-6*AO51*(0.25-0.5*BC49/(AO51*AR50)) -> 0.08574813599 | BG49: =-6*AO51*(BD49*(0.5*AO51-AO53)-BE49*(0.5*AO51-AO53)-(BD49+BE49)*AO51*BC49/(AO51*AR50)) -> 0.08582398933 | BH49: =6*AO51*((BD49*AO53-BE49*(AO51-AO53))*(0.5*AO51-AO53)-(BD49*AO53+BE49*(AO51-AO53))*BC49/AR50) -> -0.02646486343 | BI49: 0.08337307506 | BJ49: 0.02887124328 | BK49: 3.115865071 | BL49: 0.6582810299 | BM49: =AZ49/AO51 -> 0.4498539248 | BN49: =0.5*BM49*(0.5-BM49/3)+BD49*(0.5-AO53/AO51)*(BM49-AO53/AO51)/BM49+BE49*(0.5-AO53/AO51)*(1-AO53/AO51-BM49)/BM49 -> 0.1187590664 | BO49: =IF(BL49*SQRT(4*ABS(BI49)/3)-BF49/3<=AO51,AO50*(1-AO49*AV49/AO48),AO50*(1-AO49*AV49/AO48-(1-1)*BV49/AO48)) -> 13333.33333 | BP49: =(1+BD49+BE49)*AO51*AO52 -> 0.214975706 | BQ49: =0.5*(AO51-AO53)*(BE49-BD49)*AO51*AO52 -> 0 | BR49: =AO52*AO51^3/12+(0.5*AO51-AO53)^2*(BD49+BE49)*AO52*AO51 -> 0.00344118801 | BS49: 0 | BT49: 0.00344118801 | BU49: =AR50/BP49+(BC49+BS49*AR50)*(0.5*AO51+BS49)/BT49 -> 7.018886238 | BV49: =AR50/BP49+(BC49+BS49*AR50)*(-0.5*AO51+BS49)/BT49 -> -3.66957755 | BW49: =AR50*BT49/((BC49+AR50*BS49)*BP49)+(0.5*AO51+BS49) -> 0.2786632032
AN50: E | AO50: =AO47/AO54 -> 13333.33333 | AP50: MPa | AQ50: N | AR50: =AR49+AR48 -> 0.36001 | AS50: MN | AT50: =BC50-AR48*BA50 -> 0.08440000065 | AU50: 0.9999997151 | AV50: =IF(BL50*SQRT(4*ABS(BI50)/3)-BF50/3<=AO51,BC50/(BN50*AO52*AO51^2),BU50) -> 9.120557209 | AW50: =IF(BL50*SQRT(4*ABS(BI50)/3)-BF50/3<=AO51,0,BV50) -> 0 | AX50: =BB50*(AZ50-AO53)*AV50/AZ50 -> 93.80863971 | AY50: =BB50*(AO51-AO53-AZ50)*AV50/AZ50 -> 124.3091863 | AZ50: =IF(BL50*SQRT(4*ABS(BI50)/3)-BF50/3<=AO51,BL50*SQRT(4*ABS(BI50)/3)-BF50/3,BW50) -> 0.1908966335 | BA50: =0.1*(AV50/(AZ50*BO50))*AO57^2 -> 0.006320958609 | BB50: =AO54 -> 15 | BC50: =AR51+BA49*AR48 -> 0.08667560896 | BD50: =BB50*AO55/(AO51*AO52) -> 0.07000326961 | BE50: =BB50*AO56/(AO51*AO52) -> 0.07000326961 | BF50: =-6*AO51*(0.25-0.5*BC50/(AO51*AR50)) -> 0.08574800629 | BG50: =-6*AO51*(BD50*(0.5*AO51-AO53)-BE50*(0.5*AO51-AO53)-(BD50+BE50)*AO51*BC50/(AO51*AR50)) -> 0.08582397392 | BH50: =6*AO51*((BD50*AO53-BE50*(AO51-AO53))*(0.5*AO51-AO53)-(BD50*AO53+BE50*(AO51-AO53))*BC50/AR50) -> -0.02646486016 | BI50: =(3*BG50-BF50^2)/3 -> 0.08337306706 | BJ50: =(9*BG50*BF50-27*BH50-2*BF50^3)/27 -> 0.02887123607 | BK50: =0.5*BJ50*(3/ABS(BI50))^(3/2) -> 3.115864741 | BL50: =IF(BI50>0,SINH(ASINH(BK50)/3),IF(BK50>=1,COSH(ACOSH(BK50)/3),IF(BK50<=-1,-COSH(ACOSH(ABS(BK50))/3),COS(ACOS(BK50)/3)))) -> 0.6582809896 | BM50: =AZ50/AO51 -> 0.4498539703 | BN50: =0.5*BM50*(0.5-BM50/3)+BD50*(0.5-AO53/AO51)*(BM50-AO53/AO51)/BM50+BE50*(0.5-AO53/AO51)*(1-AO53/AO51-BM50)/BM50 -> 0.1187590669 | BO50: =IF(BL50*SQRT(4*ABS(BI50)/3)-BF50/3<=AO51,AO50*(1-AO49*AV50/AO48),AO50*(1-AO49*AV50/AO48-(1-1)*BV50/AO48)) -> 13333.33333 | BP50: =(1+BD50+BE50)*AO51*AO52 -> 0.214975706 | BQ50: =0.5*(AO51-AO53)*(BE50-BD50)*AO51*AO52 -> 0 | BR50: =AO52*AO51^3/12+(0.5*AO51-AO53)^2*(BD50+BE50)*AO52*AO51 -> 0.00344118801 | BS50: 0 | BT50: 0.00344118801 | BU50: =AR50/BP50+(BC50+BS50*AR50)*(0.5*AO51+BS50)/BT50 -> 7.018885279 | BV50: =AR50/BP50+(BC50+BS50*AR50)*(-0.5*AO51+BS50)/BT50 -> -3.66957659 | BW50: =AR50*BT50/((BC50+AR50*BS50)*BP50)+(0.5*AO51+BS50) -> 0.2786632151
AN51: h | AO51: =$CA$65/1000 -> 0.4243524479 | AP51: m | AQ51: Mo | AR51: =J27/1000 -> 0.0844 | AS51: MNm | AT51: =BC51-AR48*BA51 -> 0.08440000003 | AU51: 0.9999999881 | AV51: =IF(BL51*SQRT(4*ABS(BI51)/3)-BF51/3<=AO51,BC51/(BN51*AO52*AO51^2),BU51) -> 9.120557139 | AW51: =IF(BL51*SQRT(4*ABS(BI51)/3)-BF51/3<=AO51,0,BV51) -> 0 | AX51: =BB51*(AZ51-AO53)*AV51/AZ51 -> 93.80863917 | AY51: =BB51*(AO51-AO53-AZ51)*AV51/AZ51 -> 124.3091843 | AZ51: =IF(BL51*SQRT(4*ABS(BI51)/3)-BF51/3<=AO51,BL51*SQRT(4*ABS(BI51)/3)-BF51/3,BW51) -> 0.1908966343 | BA51: =0.1*(AV51/(AZ51*BO51))*AO57^2 -> 0.006320958534 | BB51: =AO54 -> 15 | BC51: =AR51+BA50*AR48 -> 0.08667560831 | BD51: =BB51*AO55/(AO51*AO52) -> 0.07000326961 | BE51: =BB51*AO56/(AO51*AO52) -> 0.07000326961 | BF51: =-6*AO51*(0.25-0.5*BC51/(AO51*AR50)) -> 0.08574800089 | BG51: =-6*AO51*(BD51*(0.5*AO51-AO53)-BE51*(0.5*AO51-AO53)-(BD51+BE51)*AO51*BC51/(AO51*AR50)) -> 0.08582397328 | BH51: =6*AO51*((BD51*AO53-BE51*(AO51-AO53))*(0.5*AO51-AO53)-(BD51*AO53+BE51*(AO51-AO53))*BC51/AR50) -> -0.02646486002 | BI51: 0.08337306673 | BJ51: 0.02887123577 | BK51: 3.115864728 | BL51: 0.658280988 | BM51: =AZ51/AO51 -> 0.4498539722 | BN51: =0.5*BM51*(0.5-BM51/3)+BD51*(0.5-AO53/AO51)*(BM51-AO53/AO51)/BM51+BE51*(0.5-AO53/AO51)*(1-AO53/AO51-BM51)/BM51 -> 0.1187590669 | BO51: =IF(BL51*SQRT(4*ABS(BI51)/3)-BF51/3<=AO51,AO50*(1-AO49*AV51/AO48),AO50*(1-AO49*AV51/AO48-(1-1)*BV51/AO48)) -> 13333.33333 | BP51: =(1+BD51+BE51)*AO51*AO52 -> 0.214975706 | BQ51: =0.5*(AO51-AO53)*(BE51-BD51)*AO51*AO52 -> 0 | BR51: =AO52*AO51^3/12+(0.5*AO51-AO53)^2*(BD51+BE51)*AO52*AO51 -> 0.00344118801 | BS51: 0 | BT51: 0.00344118801 | BU51: =AR50/BP51+(BC51+BS51*AR50)*(0.5*AO51+BS51)/BT51 -> 7.018885239 | BV51: =AR50/BP51+(BC51+BS51*AR50)*(-0.5*AO51+BS51)/BT51 -> -3.66957655 | BW51: =AR50*BT51/((BC51+AR50*BS51)*BP51)+(0.5*AO51+BS51) -> 0.2786632156
AN52: b | AO52: =$CA$66/1000 -> 0.4443808442 | AP52: m | AQ52: u | AR52: =BA57 -> 0.006320958531 | AS52: m | AT52: =BC52-AR48*BA52 -> 0.0844 | AU52: 0.9999999995 | AV52: =IF(BL52*SQRT(4*ABS(BI52)/3)-BF52/3<=AO51,BC52/(BN52*AO52*AO51^2),BU52) -> 9.120557136 | AW52: =IF(BL52*SQRT(4*ABS(BI52)/3)-BF52/3<=AO51,0,BV52) -> 0 | AX52: =BB52*(AZ52-AO53)*AV52/AZ52 -> 93.80863915 | AY52: =BB52*(AO51-AO53-AZ52)*AV52/AZ52 -> 124.3091842 | AZ52: =IF(BL52*SQRT(4*ABS(BI52)/3)-BF52/3<=AO51,BL52*SQRT(4*ABS(BI52)/3)-BF52/3,BW52) -> 0.1908966343 | BA52: =0.1*(AV52/(AZ52*BO52))*AO57^2 -> 0.006320958531 | BB52: =AO54 -> 15 | BC52: =AR51+BA51*AR48 -> 0.08667560828 | BD52: =BB52*AO55/(AO51*AO52) -> 0.07000326961 | BE52: =BB52*AO56/(AO51*AO52) -> 0.07000326961 | BF52: =-6*AO51*(0.25-0.5*BC52/(AO51*AR50)) -> 0.08574800066 | BG52: =-6*AO51*(BD52*(0.5*AO51-AO53)-BE52*(0.5*AO51-AO53)-(BD52+BE52)*AO51*BC52/(AO51*AR50)) -> 0.08582397325 | BH52: =6*AO51*((BD52*AO53-BE52*(AO51-AO53))*(0.5*AO51-AO53)-(BD52*AO53+BE52*(AO51-AO53))*BC52/AR50) -> -0.02646486001 | BI52: 0.08337306671 | BJ52: 0.02887123576 | BK52: 3.115864727 | BL52: 0.6582809879 | BM52: =AZ52/AO51 -> 0.4498539723 | BN52: =0.5*BM52*(0.5-BM52/3)+BD52*(0.5-AO53/AO51)*(BM52-AO53/AO51)/BM52+BE52*(0.5-AO53/AO51)*(1-AO53/AO51-BM52)/BM52 -> 0.1187590669 | BO52: =IF(BL52*SQRT(4*ABS(BI52)/3)-BF52/3<=AO51,AO50*(1-AO49*AV52/AO48),AO50*(1-AO49*AV52/AO48-(1-1)*BV52/AO48)) -> 13333.33333 | BP52: =(1+BD52+BE52)*AO51*AO52 -> 0.214975706 | BQ52: =0.5*(AO51-AO53)*(BE52-BD52)*AO51*AO52 -> 0 | BR52: =AO52*AO51^3/12+(0.5*AO51-AO53)^2*(BD52+BE52)*AO52*AO51 -> 0.00344118801 | BS52: 0 | BT52: 0.00344118801 | BU52: =AR50/BP52+(BC52+BS52*AR50)*(0.5*AO51+BS52)/BT52 -> 7.018885237 | BV52: =AR50/BP52+(BC52+BS52*AR50)*(-0.5*AO51+BS52)/BT52 -> -3.669576548 | BW52: =AR50*BT52/((BC52+AR50*BS52)*BP52)+(0.5*AO51+BS52) -> 0.2786632157
AN53: a | AO53: =N15/1000 -> 0.06 | AP53: m | AQ53: ec,max | AR53: =1000*AV57/BO57 -> 0.6840417852 | AS53: o/oo | AT53: =BC53-AR48*BA53 -> 0.0844 | AU53: 1 | AV53: =IF(BL53*SQRT(4*ABS(BI53)/3)-BF53/3<=AO51,BC53/(BN53*AO52*AO51^2),BU53) -> 9.120557136 | AW53: =IF(BL53*SQRT(4*ABS(BI53)/3)-BF53/3<=AO51,0,BV53) -> 0 | AX53: =BB53*(AZ53-AO53)*AV53/AZ53 -> 93.80863915 | AY53: =BB53*(AO51-AO53-AZ53)*AV53/AZ53 -> 124.3091842 | AZ53: =IF(BL53*SQRT(4*ABS(BI53)/3)-BF53/3<=AO51,BL53*SQRT(4*ABS(BI53)/3)-BF53/3,BW53) -> 0.1908966343 | BA53: =0.1*(AV53/(AZ53*BO53))*AO57^2 -> 0.006320958531 | BB53: =AO54 -> 15 | BC53: =AR51+BA52*AR48 -> 0.08667560828 | BD53: =BB53*AO55/(AO51*AO52) -> 0.07000326961 | BE53: =BB53*AO56/(AO51*AO52) -> 0.07000326961 | BF53: =-6*AO51*(0.25-0.5*BC53/(AO51*AR50)) -> 0.08574800065 | BG53: =-6*AO51*(BD53*(0.5*AO51-AO53)-BE53*(0.5*AO51-AO53)-(BD53+BE53)*AO51*BC53/(AO51*AR50)) -> 0.08582397325 | BH53: =6*AO51*((BD53*AO53-BE53*(AO51-AO53))*(0.5*AO51-AO53)-(BD53*AO53+BE53*(AO51-AO53))*BC53/AR50) -> -0.02646486001 | BI53: 0.08337306671 | BJ53: 0.02887123576 | BK53: 3.115864727 | BL53: 0.6582809879 | BM53: =AZ53/AO51 -> 0.4498539723 | BN53: =0.5*BM53*(0.5-BM53/3)+BD53*(0.5-AO53/AO51)*(BM53-AO53/AO51)/BM53+BE53*(0.5-AO53/AO51)*(1-AO53/AO51-BM53)/BM53 -> 0.1187590669 | BO53: =IF(BL53*SQRT(4*ABS(BI53)/3)-BF53/3<=AO51,AO50*(1-AO49*AV53/AO48),AO50*(1-AO49*AV53/AO48-(1-1)*BV53/AO48)) -> 13333.33333 | BP53: =(1+BD53+BE53)*AO51*AO52 -> 0.214975706 | BQ53: =0.5*(AO51-AO53)*(BE53-BD53)*AO51*AO52 -> 0 | BR53: =AO52*AO51^3/12+(0.5*AO51-AO53)^2*(BD53+BE53)*AO52*AO51 -> 0.00344118801 | BS53: 0 | BT53: 0.00344118801 | BU53: =AR50/BP53+(BC53+BS53*AR50)*(0.5*AO51+BS53)/BT53 -> 7.018885237 | BV53: =AR50/BP53+(BC53+BS53*AR50)*(-0.5*AO51+BS53)/BT53 -> -3.669576548 | BW53: =AR50*BT53/((BC53+AR50*BS53)*BP53)+(0.5*AO51+BS53) -> 0.2786632157
AN54: a | AO54: =$N$23 -> 15 | AQ54: ec,min | AR54: =1000*AW57/BO57 -> 0 | AS54: o/oo | AT54: =BC54-AR48*BA54 -> 0.0844 | AU54: =BA54/BA53 -> 1 | AV54: =IF(BL54*SQRT(4*ABS(BI54)/3)-BF54/3<=AO51,BC54/(BN54*AO52*AO51^2),BU54) -> 9.120557136 | AW54: =IF(BL54*SQRT(4*ABS(BI54)/3)-BF54/3<=AO51,0,BV54) -> 0 | AX54: =BB54*(AZ54-AO53)*AV54/AZ54 -> 93.80863915 | AY54: =BB54*(AO51-AO53-AZ54)*AV54/AZ54 -> 124.3091842 | AZ54: =IF(BL54*SQRT(4*ABS(BI54)/3)-BF54/3<=AO51,BL54*SQRT(4*ABS(BI54)/3)-BF54/3,BW54) -> 0.1908966343 | BA54: =0.1*(AV54/(AZ54*BO54))*AO57^2 -> 0.006320958531 | BB54: =AO54 -> 15 | BC54: =AR51+BA53*AR48 -> 0.08667560828 | BD54: =BB54*AO55/(AO51*AO52) -> 0.07000326961 | BE54: =BB54*AO56/(AO51*AO52) -> 0.07000326961 | BF54: =-6*AO51*(0.25-0.5*BC54/(AO51*AR50)) -> 0.08574800065 | BG54: =-6*AO51*(BD54*(0.5*AO51-AO53)-BE54*(0.5*AO51-AO53)-(BD54+BE54)*AO51*BC54/(AO51*AR50)) -> 0.08582397325 | BH54: =6*AO51*((BD54*AO53-BE54*(AO51-AO53))*(0.5*AO51-AO53)-(BD54*AO53+BE54*(AO51-AO53))*BC54/AR50) -> -0.02646486001 | BI54: 0.08337306671 | BJ54: 0.02887123576 | BK54: 3.115864727 | BL54: 0.6582809879 | BM54: =AZ54/AO51 -> 0.4498539723 | BN54: =0.5*BM54*(0.5-BM54/3)+BD54*(0.5-AO53/AO51)*(BM54-AO53/AO51)/BM54+BE54*(0.5-AO53/AO51)*(1-AO53/AO51-BM54)/BM54 -> 0.1187590669 | BO54: =IF(BL54*SQRT(4*ABS(BI54)/3)-BF54/3<=AO51,AO50*(1-AO49*AV54/AO48),AO50*(1-AO49*AV54/AO48-(1-1)*BV54/AO48)) -> 13333.33333 | BP54: =(1+BD54+BE54)*AO51*AO52 -> 0.214975706 | BQ54: =0.5*(AO51-AO53)*(BE54-BD54)*AO51*AO52 -> 0 | BR54: =AO52*AO51^3/12+(0.5*AO51-AO53)^2*(BD54+BE54)*AO52*AO51 -> 0.00344118801 | BS54: 0 | BT54: 0.00344118801 | BU54: =AR50/BP54+(BC54+BS54*AR50)*(0.5*AO51+BS54)/BT54 -> 7.018885237 | BV54: =AR50/BP54+(BC54+BS54*AR50)*(-0.5*AO51+BS54)/BT54 -> -3.669576548 | BW54: =AR50*BT54/((BC54+AR50*BS54)*BP54)+(0.5*AO51+BS54) -> 0.2786632157
AN55: Ac | AO55: =$AP$40/1000000 -> 0.0008800535664 | AP55: m2 | AQ55: sa,c | AR55: =AX57 -> 93.80863915 | AS55: MPa | AT55: =BC55-AR48*BA55 -> 0.0844 | AU55: =BA55/BA54 -> 1 | AV55: =IF(BL55*SQRT(4*ABS(BI55)/3)-BF55/3<=AO51,BC55/(BN55*AO52*AO51^2),BU55) -> 9.120557136 | AW55: =IF(BL55*SQRT(4*ABS(BI55)/3)-BF55/3<=AO51,0,BV55) -> 0 | AX55: =BB55*(AZ55-AO53)*AV55/AZ55 -> 93.80863915 | AY55: =BB55*(AO51-AO53-AZ55)*AV55/AZ55 -> 124.3091842 | AZ55: =IF(BL55*SQRT(4*ABS(BI55)/3)-BF55/3<=AO51,BL55*SQRT(4*ABS(BI55)/3)-BF55/3,BW55) -> 0.1908966343 | BA55: =0.1*(AV55/(AZ55*BO55))*AO57^2 -> 0.006320958531 | BB55: =AO54 -> 15 | BC55: =AR51+BA54*AR48 -> 0.08667560828 | BD55: =BB55*AO55/(AO51*AO52) -> 0.07000326961 | BE55: =BB55*AO56/(AO51*AO52) -> 0.07000326961 | BF55: =-6*AO51*(0.25-0.5*BC55/(AO51*AR50)) -> 0.08574800065 | BG55: =-6*AO51*(BD55*(0.5*AO51-AO53)-BE55*(0.5*AO51-AO53)-(BD55+BE55)*AO51*BC55/(AO51*AR50)) -> 0.08582397325 | BH55: =6*AO51*((BD55*AO53-BE55*(AO51-AO53))*(0.5*AO51-AO53)-(BD55*AO53+BE55*(AO51-AO53))*BC55/AR50) -> -0.02646486001 | BI55: 0.08337306671 | BJ55: 0.02887123576 | BK55: 3.115864727 | BL55: 0.6582809879 | BM55: =AZ55/AO51 -> 0.4498539723 | BN55: =0.5*BM55*(0.5-BM55/3)+BD55*(0.5-AO53/AO51)*(BM55-AO53/AO51)/BM55+BE55*(0.5-AO53/AO51)*(1-AO53/AO51-BM55)/BM55 -> 0.1187590669 | BO55: =IF(BL55*SQRT(4*ABS(BI55)/3)-BF55/3<=AO51,AO50*(1-AO49*AV55/AO48),AO50*(1-AO49*AV55/AO48-(1-1)*BV55/AO48)) -> 13333.33333 | BP55: =(1+BD55+BE55)*AO51*AO52 -> 0.214975706 | BQ55: =0.5*(AO51-AO53)*(BE55-BD55)*AO51*AO52 -> 0 | BR55: =AO52*AO51^3/12+(0.5*AO51-AO53)^2*(BD55+BE55)*AO52*AO51 -> 0.00344118801 | BS55: 0 | BT55: 0.00344118801 | BU55: =AR50/BP55+(BC55+BS55*AR50)*(0.5*AO51+BS55)/BT55 -> 7.018885237 | BV55: =AR50/BP55+(BC55+BS55*AR50)*(-0.5*AO51+BS55)/BT55 -> -3.669576548 | BW55: =AR50*BT55/((BC55+AR50*BS55)*BP55)+(0.5*AO51+BS55) -> 0.2786632157
AN56: At | AO56: =$AP$41/1000000 -> 0.0008800535664 | AP56: m2 | AQ56: sa,t | AR56: =AY57 -> 124.3091842 | AS56: MPa | AT56: =BC56-AR48*BA56 -> 0.0844 | AU56: =BA56/BA55 -> 1 | AV56: =IF(BL56*SQRT(4*ABS(BI56)/3)-BF56/3<=AO51,BC56/(BN56*AO52*AO51^2),BU56) -> 9.120557136 | AW56: =IF(BL56*SQRT(4*ABS(BI56)/3)-BF56/3<=AO51,0,BV56) -> 0 | AX56: =BB56*(AZ56-AO53)*AV56/AZ56 -> 93.80863915 | AY56: =BB56*(AO51-AO53-AZ56)*AV56/AZ56 -> 124.3091842 | AZ56: =IF(BL56*SQRT(4*ABS(BI56)/3)-BF56/3<=AO51,BL56*SQRT(4*ABS(BI56)/3)-BF56/3,BW56) -> 0.1908966343 | BA56: =0.1*(AV56/(AZ56*BO56))*AO57^2 -> 0.006320958531 | BB56: =AO54 -> 15 | BC56: =AR51+BA55*AR48 -> 0.08667560828 | BD56: =BB56*AO55/(AO51*AO52) -> 0.07000326961 | BE56: =BB56*AO56/(AO51*AO52) -> 0.07000326961 | BF56: =-6*AO51*(0.25-0.5*BC56/(AO51*AR50)) -> 0.08574800065 | BG56: =-6*AO51*(BD56*(0.5*AO51-AO53)-BE56*(0.5*AO51-AO53)-(BD56+BE56)*AO51*BC56/(AO51*AR50)) -> 0.08582397325 | BH56: =6*AO51*((BD56*AO53-BE56*(AO51-AO53))*(0.5*AO51-AO53)-(BD56*AO53+BE56*(AO51-AO53))*BC56/AR50) -> -0.02646486001 | BI56: 0.08337306671 | BJ56: 0.02887123576 | BK56: 3.115864727 | BL56: 0.6582809879 | BM56: =AZ56/AO51 -> 0.4498539723 | BN56: =0.5*BM56*(0.5-BM56/3)+BD56*(0.5-AO53/AO51)*(BM56-AO53/AO51)/BM56+BE56*(0.5-AO53/AO51)*(1-AO53/AO51-BM56)/BM56 -> 0.1187590669 | BO56: =IF(BL56*SQRT(4*ABS(BI56)/3)-BF56/3<=AO51,AO50*(1-AO49*AV56/AO48),AO50*(1-AO49*AV56/AO48-(1-1)*BV56/AO48)) -> 13333.33333 | BP56: =(1+BD56+BE56)*AO51*AO52 -> 0.214975706 | BQ56: =0.5*(AO51-AO53)*(BE56-BD56)*AO51*AO52 -> 0 | BR56: =AO52*AO51^3/12+(0.5*AO51-AO53)^2*(BD56+BE56)*AO52*AO51 -> 0.00344118801 | BS56: 0 | BT56: 0.00344118801 | BU56: =AR50/BP56+(BC56+BS56*AR50)*(0.5*AO51+BS56)/BT56 -> 7.018885237 | BV56: =AR50/BP56+(BC56+BS56*AR50)*(-0.5*AO51+BS56)/BT56 -> -3.669576548 | BW56: =AR50*BT56/((BC56+AR50*BS56)*BP56)+(0.5*AO51+BS56) -> 0.2786632157
AN57: L | AO57: =$N$12/1000 -> 4.2 | AP57: m | AQ57: hc | AR57: =AZ57 -> 0.1908966343 | AS57: m | AT57: =BC57-AR48*BA57 -> 0.0844 | AU57: =BA57/BA56 -> 1 | AV57: =IF(BL57*SQRT(4*ABS(BI57)/3)-BF57/3<=AO51,BC57/(BN57*AO52*AO51^2),BU57) -> 9.120557136 | AW57: =IF(BL57*SQRT(4*ABS(BI57)/3)-BF57/3<=AO51,0,BV57) -> 0 | AX57: =BB57*(AZ57-AO53)*AV57/AZ57 -> 93.80863915 | AY57: =BB57*(AO51-AO53-AZ57)*AV57/AZ57 -> 124.3091842 | AZ57: =IF(BL57*SQRT(4*ABS(BI57)/3)-BF57/3<=AO51,BL57*SQRT(4*ABS(BI57)/3)-BF57/3,BW57) -> 0.1908966343 | BA57: =0.1*(AV57/(AZ57*BO57))*AO57^2 -> 0.006320958531 | BB57: =AO54 -> 15 | BC57: =AR51+BA56*AR48 -> 0.08667560828 | BD57: =BB57*AO55/(AO51*AO52) -> 0.07000326961 | BE57: =BB57*AO56/(AO51*AO52) -> 0.07000326961 | BF57: =-6*AO51*(0.25-0.5*BC57/(AO51*AR50)) -> 0.08574800065 | BG57: =-6*AO51*(BD57*(0.5*AO51-AO53)-BE57*(0.5*AO51-AO53)-(BD57+BE57)*AO51*BC57/(AO51*AR50)) -> 0.08582397325 | BH57: =6*AO51*((BD57*AO53-BE57*(AO51-AO53))*(0.5*AO51-AO53)-(BD57*AO53+BE57*(AO51-AO53))*BC57/AR50) -> -0.02646486001 | BI57: 0.08337306671 | BJ57: 0.02887123576 | BK57: 3.115864727 | BL57: 0.6582809879 | BM57: =AZ57/AO51 -> 0.4498539723 | BN57: =0.5*BM57*(0.5-BM57/3)+BD57*(0.5-AO53/AO51)*(BM57-AO53/AO51)/BM57+BE57*(0.5-AO53/AO51)*(1-AO53/AO51-BM57)/BM57 -> 0.1187590669 | BO57: =IF(BL57*SQRT(4*ABS(BI57)/3)-BF57/3<=AO51,AO50*(1-AO49*AV57/AO48),AO50*(1-AO49*AV57/AO48-(1-1)*BV57/AO48)) -> 13333.33333 | BP57: =(1+BD57+BE57)*AO51*AO52 -> 0.214975706 | BQ57: =0.5*(AO51-AO53)*(BE57-BD57)*AO51*AO52 -> 0 | BR57: =AO52*AO51^3/12+(0.5*AO51-AO53)^2*(BD57+BE57)*AO52*AO51 -> 0.00344118801 | BS57: 0 | BT57: 0.00344118801 | BU57: =AR50/BP57+(BC57+BS57*AR50)*(0.5*AO51+BS57)/BT57 -> 7.018885237 | BV57: =AR50/BP57+(BC57+BS57*AR50)*(-0.5*AO51+BS57)/BT57 -> -3.669576548 | BW57: =AR50*BT57/((BC57+AR50*BS57)*BP57)+(0.5*AO51+BS57) -> 0.2786632157
AN60: ANVENDELSESSTADIE - HENSYN TIL KRYBNING, TENSION STIFFENING, SVIND MV:
AN61: L | AO61: h | AP61: b | AQ61: fck | AR61: fcd | AS61: Ecd | AT61: Ac | AU61: ac | AV61: Esc | AW61: fyd_c | AX61: At | AY61: at | AZ61: Est | BA61: fyd_t | BB61: aeff | BC61: RH | BD61: feff = fctm | BE61: N
AN62: (m) | AO62: (m) | AP62: (m) | AQ62: (Mpa) | AR62: (Mpa) | AS62: (Mpa) | AT62: (m2) | AU62: (m) | AV62: (Mpa) | AW62: (Mpa) | AX62: (m2) | AY62: (m) | AZ62: (Mpa) | BA62: (Mpa) | BD62: (Mpa) | BE62: (MN)
AN63: =AO57 -> 4.2 | AO63: =AO51 -> 0.4243524479 | AP63: =AO52 -> 0.4443808442 | AQ63: =AO46 -> 40 | AR63: =AO48 -> 40 | AS63: =AO50 -> 13333.33333 | AT63: =AO55 -> 0.0008800535664 | AU63: =AO53 -> 0.06 | AV63: 200000 | AW63: =N8 -> 550 | AX63: =AO56 -> 0.0008800535664 | AY63: =AO53 -> 0.06 | AZ63: 200000 | BA63: =AW63 -> 550 | BB63: =AO54 -> 15 | BC63: =Q12 -> 0.55 | BD63: =0.3*AQ63^(2/3) -> 3.508821286 | BE63: =AR50 -> 0.36001 | BG63: Rund søjle | BL63: Ækvivalent rektangulær søjle med fire hjørnejern | BQ63: Effektivt armeringsareal i kvartcirkel | BX63: Ækvivalent rektangulær søjle
AN64: Nedbøjninger | AP64: Urevnet | AQ64: Revnet | AR64: Revnevidder | AT64: Udtørringssvind
AN65: (1+ f) | AP65: 1 | AQ65: 1 | AU65: CEM-klasse: | AV65: N | BL65: Reg.fakt. | BM65: 0.98 | BX65: Tværsnit | BZ65: h | CA65: =BM66 -> 424.3524479
AN66: aeff | AO66: - | AP66: =BB63 -> 15 | AQ66: =BB63 -> 15 | AR66: aeff | AS66: =BB63 -> 15 | AU66: fcmo | AV66: 10 | AW66: MPa | BG66: R | BH66: =0.5*N14 -> 250 | BL66: h | BM66: =BM65*BH66*3^0.5 -> 424.3524479 | BR66: y | BZ66: b | CA66: =BM67 -> 444.3808442
AN67: hc | AO67: (m) | AP67: - | AQ67: =AR57 -> 0.1908966343 | AR67: kt | AS67: 0.4 | AU67: fcm | AV67: =AQ63+8 -> 48 | AW67: MPa | BG67: c | BH67: =N15 -> 60 | BL67: b | BM67: =BM65*(PI()*BH66/3^0.5) -> 444.3808442
AN68: Atr | AO68: (m2) | AP68: =AO63*AP63+AP66*AT63+AP66*AX63 -> 0.214975706 | AQ68: =IF(AQ67>AO63,AP68,AQ67*AP63+AQ66*AT63+AQ66*AX63) -> 0.1112324145 | AR68: x1 | AS68: 0 | AU68: ads1 | AV68: 4 | BG68: R-c | BH68: =BH66-BH67 -> 190 | BX68: Trykarm. | BZ68: da | CA68: =BM79 -> 23.66980146
AN69: Sy | AO69: (m3) | AP69: =AP66*(0.5*AO63-AU63)*AT63-AP66*(0.5*AO63-AY63)*AX63 -> 0 | AQ69: =IF(AQ67>AO63,AP69,AQ67*AP63*(0.5*AO63-0.5*AQ67)+AQ66*(0.5*AO63-AU63)*AT63-AQ66*(0.5*AO63-AY63)*AX63) -> 0.009902122591 | AR69: As | AS69: =AX63 -> 0.0008800535664 | AU69: ads2 | AV69: 0.12 | BL69: A | BM69: =BM67*BM66 -> 188574.099 | BZ69: Antal | CA69: 2
AN70: Iy | AO70: (m4) | AP70: =AP63*AO63^3/12+AP66*(0.5*AO63-AU63)^2*AT63+AP66*(0.5*AO63-AY63)^2*AX63 -> 0.00344118801 | AQ70: =IF(AQ67>AO63,AP70,AP63*AQ67^3/12+AP63*AQ67*(0.5*AO63-0.5*AQ67)^2+AQ66*(0.5*AO63-AU63)^2*AT63+AQ66*(0.5*AO63-AY63)^2*AX63) -> 0.002024865645 | AR70: d | AS70: =AO63-(AX63*AY63)/(AX63) -> 0.3643524479 | AU70: RH0 | AV70: 1 | BG70: A | BH70: =PI()*BH66^2 -> 196349.5408 | BL70: W | BM70: =BM67*BM66^2/6 -> 13336980.09 | BX70: Trækarm. | BZ70: da | CA70: =BM79 -> 23.66980146
AN71: z | AO71: (m) | AP71: =AP69/AP68 -> 0 | AQ71: =AQ69/AQ68 -> 0.08902191538 | AR71: hc,eff | AS71: =MIN(2.5*(AO63-AS70),(AO63-AQ67)/3,AO63/2) -> 0.07781860452 | AU71: RH | AV71: =BC63 -> 0.55 | BG71: W | BH71: =PI()*BH66^3/4 -> 12271846.3 | BL71: I | BM71: =BM67*BM66^3/12 -> 2829790074 | BT71: (x0, y0) | BZ71: Antal | CA71: 2
AN72: Io | AO72: (m4) | AP72: =AP70-AP68*AP71^2 -> 0.00344118801 | AQ72: =AQ70-AQ68*AQ71^2 -> 0.001143359726 | AR72: Ac,eff | AS72: =AS71*AP63 -> 0.03458109717 | AU72: bRH | AV72: =1.55*(1-(AV71/AV70)^3) -> 1.29211875 | BG72: I | BH72: =PI()*BH66^4/4 -> 3067961576
AN73: aeff*Sa | AO73: (m3) | AP73: =-(AP66*(0.5*AO63-AU63-AP71)*AT63-AP66*(0.5*AO63-AY63+AP71)*AX63) -> 0 | AQ73: =-(AQ66*(0.5*AO63-AU63-AQ71)*AT63-AQ66*(0.5*AO63-AY63+AQ71)*AX63) -> 0.002350321623 | AR73: rp,eff | AS73: =AS69/AS72 -> 0.02544897757 | AU73: ecd,0 | AV73: =0.85*((220+110*AV68)*EXP(-AV69*AV67/AV66))*AV72/1000000 -> 0.0004074850392 | BL73: x0 | BM73: =BH94 -> 169.3351687 | BU73: x
AN74: Sa/Io | AO74: (m) | AP74: =MAX(AP73/AP72,0) -> 0 | AQ74: =MAX(AQ73/AQ72,0) -> 2.055627437 | AR74: esm-ecm | AS74: =MAX(AQ76-AS67*BD63*(1+AS66*AS73)/AS73,0.6*AQ76)/AV63 -> 0.0003729275525 | AU74: b | AV74: 1 | BG74: d | BH74: =N17 -> 20 | BL74: y0 | BM74: =(BH68^2-BH94^2)^0.5 -> 86.17192492
AN75: Mcr | AO75: (MNm) | AP75: =(BD63+BE63/AP68)*AP72/(0.5*AO63+AP71) -> 0.08406839305 | AR75: feq | AS75: =CA70/1000 -> 0.02366980146 | AU75: h0 | AV75: =2*AO63*AP63/(2*(AO63+AP63)) -> 0.2170678858 | AW75: m | BG75: n | BH75: =N18 -> 8 | BL75: v' | BM75: =ASIN(BM74/(BH66-BH67)) -> 0.4707293688
AN76: sat | AO76: (MPa) | AP76: =-AP66*AR50/AP68+AP66*(AR51-AR50*(AP71-AP82/1000))*(0.5*AO63+AP71-AY63)/AP72 -> 31.65100192 | AQ76: =-AQ66*AR50/AQ68+AQ66*(BC57-AR50*AQ71)*(0.5*AO63+AQ71-AY63)/AQ72 -> 124.3091842 | AR76: c | AS76: =AO63-AS70-0.5*AS75 -> 0.04816509927 | AU76: kn | AV76: =IF(AV75<0.1,1,IF(AV75<0.2,0.85+0.15*(0.2-AV75)/0.1,IF(AV75<0.3,0.75+0.1*(0.3-AV75)/0.1,IF(AV75<0.5,0.7+0.05*(0.5-AV75)/0.2,0.7)))) -> 0.8329321142 | BL76: (pi()/2-v')/(pi()/2) | BM76: =(PI()/2-BM75)/(PI()/2) -> 0.7003243764
AN77: sr | AO77: (MPa, v/revnemoment) | AQ77: =-AQ66*AR50/AQ68+AQ66*(AP75-AR50*AQ71)*(0.5*AO63+AQ71-AY63)/AQ72 -> 116.0590843 | AR77: k1 | AS77: 0.8 | AU77: ecd | AV77: =AV73*AV74*AV76 -> 0.0003394073752
AN78: sc0 | AO78: (MPa) | AP78: =-(-AR50/AP68+(AR51-AR50*(AP71-AP82/1000))*(-0.5*AO63+AP71)/AP72) -> 6.9516143 | AQ78: =-(-AR50/AQ68+(BC57-AR50*AQ71)*(-0.5*AO63+AQ71)/AQ72) -> 9.120557136 | AR78: k2 | AS78: 0.5 | BL78: Asc = Ast | BM78: =0.5*BM76*BH75*0.785*BH74^2 -> 879.6074167
AN79: sac | AO79: (MPa) | AP79: =-(-AP66*AR50/AP68+AP66*(AR51-AR50*(AP71-AP82/1000))*(-0.5*AO63+AP71+AU63)/AP72) -> 81.89063225 | AQ79: =-(-AQ66*AR50/AQ68+AQ66*(BC57-AR50*AQ71)*(-0.5*AO63+AQ71+AU63)/AQ72) -> 93.80863915 | AR79: k3 | AS79: =3.4*(25/CA70)^(2/3) -> 3.526218174 | AT79: Autogent svind | BL79: dc = dt | BM79: =(0.5*BM78/0.785)^0.5 -> 23.66980146
AN80: EI | AO80: (MNm2) | AP80: =AP72*AS63 -> 45.8825068 | AQ80: =AQ72*AS63 -> 15.24479635 | AR80: k4 | AS80: 0.425 | AU80: eca | AV80: =2.5*(AQ63-10)/1000000 -> 7.5e-05
AN81: x | AO81: (faktor vedr. tension stiffening) | AQ81: =MAX(IF(AQ77>AQ76,0,1-0.5*(AQ77/AQ76)^2),0) -> 0.5641652532 | AR81: s,rmaks | AS81: =MIN(1.3*(AO63-AQ67),AS79*AS76+AS77*AS78*AS80*AS75/AS73) -> 0.3034925576
AN82: u | AO82: (mm, elastisk u) | AP82: =1000*AR51/(10*AP80/AN63^2-AR50) -> 3.290386591 | AQ82: =AR52*1000 -> 6.320958531 | AR82: wk | AS82: =MAX(1000*AS81*AS74,0) -> 0.1131807367 | AT82: Resulterende svind | BG82: Fastlæggelse af effektivt armeringsareal i kvartcirkel med samme tyngdepunkt som hjørnejern i ækvivalent rektangulær søjle
AN83: uts | AO83: (mm, incl tension stiffening) | AQ83: =AQ81*AQ82+(1-AQ81)*AP82 -> 5.000129977 | AU83: esc | AV83: =AV77+AV80 -> 0.0004144073752
AN84: us | AO84: (mm, svindtillæg - langtid) | AP84: =1000*0.125*AV83*AP74*AN63^2 -> 0 | AQ84: =1000*0.125*AV83*AQ74*AN63^2 -> 1.878367111
AN85: ucs | AO85: (mm, svindtillæg incl tension stiffening) | AQ85: =AQ81*AQ84+(1-AQ81)*AP84 -> 1.059709457 | BG85: n | BI85: 0 | BJ85: 1 | BK85: 2 | BL85: 3 | BM85: 4 | BN85: 5 | BO85: 6 | BP85: 7 | BQ85: 8 | BR85: 9 | BS85: 10 | BT85: 11 | BU85: 12 | BV85: 13 | BW85: 14 | BX85: 15 | BY85: 16 | BZ85: 17 | CA85: 18 | CB85: 19 | CC85: 20 | CD85: 21 | CE85: 22 | CF85: 23 | CG85: 24 | CH85: 25 | CI85: 26 | CJ85: 27 | CK85: 28 | CL85: 29 | CM85: 30 | CN85: 31 | CO85: 32 | CP85: 33 | CQ85: 34 | CR85: 35 | CS85: 36 | CT85: 37 | CU85: 38 | CV85: 39 | CW85: 40 | CX85: 41 | CY85: 42 | CZ85: 43 | DA85: 44 | DB85: 45 | DC85: 46 | DD85: 47 | DE85: 48 | DF85: 49 | DG85: 49.9
AN86: ures | AO86: (mm, resulterende udbøjning) | AQ86: =AQ85+AQ83 -> 6.059839434 | AR86: wk, res | AS86: =AS82 -> 0.1131807367 | BG86: x | BI86: =$BH$68*BI85/50 -> 0 | BJ86: =$BH$68*BJ85/50 -> 3.8 | BK86: 7.6 | BL86: 11.4 | BM86: 15.2 | BN86: 19 | BO86: 22.8 | BP86: 26.6 | BQ86: 30.4 | BR86: 34.2 | BS86: 38 | BT86: 41.8 | BU86: 45.6 | BV86: 49.4 | BW86: 53.2 | BX86: 57 | BY86: 60.8 | BZ86: 64.6 | CA86: 68.4 | CB86: 72.2 | CC86: 76 | CD86: 79.8 | CE86: 83.6 | CF86: 87.4 | CG86: 91.2 | CH86: 95 | CI86: 98.8 | CJ86: 102.6 | CK86: 106.4 | CL86: 110.2 | CM86: 114 | CN86: 117.8 | CO86: 121.6 | CP86: 125.4 | CQ86: 129.2 | CR86: 133 | CS86: 136.8 | CT86: 140.6 | CU86: 144.4 | CV86: 148.2 | CW86: 152 | CX86: 155.8 | CY86: 159.6 | CZ86: 163.4 | DA86: 167.2 | DB86: 171 | DC86: 174.8 | DD86: 178.6 | DE86: 182.4 | DF86: 186.2 | DG86: 189.62
BG87: Ds | BI87: 0 | BJ87: =0.5*(BK86-BI86)*(1+BJ86^2/($BH$68^2-BJ86^2))^0.5 -> 3.800760228 | BK87: =0.5*(BL86-BJ86)*(1+BK86^2/($BH$68^2-BK86^2))^0.5 -> 3.803043653 | BL87: 3.806858524 | BM87: 3.812218681 | BN87: 3.819143698 | BO87: 3.827659079 | BP87: 3.837796525 | BQ87: 3.849594268 | BR87: 3.863097477 | BS87: 3.878358759 | BT87: 3.895438748 | BU87: 3.914406806 | BV87: 3.935341851 | BW87: 3.958333333 | BX87: 3.98348238 | BY87: 4.010903144 | BZ87: 4.040724396 | CA87: 4.073091397 | CB87: 4.108168126 | CC87: 4.146139914 | CD87: 4.187216606 | CE87: 4.23163633 | CF87: 4.279670063 | CG87: 4.33162715 | CH87: 4.387862046 | CI87: 4.448782605 | CJ87: 4.514860337 | CK87: 4.586643221 | CL87: 4.664771853 | CM87: 4.75 | CN87: 4.843221048 | CO87: 4.94550246 | CP87: 5.058131247 | CQ87: 5.182674893 | CR87: 5.321064319 | CS87: 5.475708968 | CT87: 5.649659818 | CU87: 5.846845822 | CV87: 6.072426335 | CW87: 6.333333333 | CX87: 6.639137299 | CY87: 7.003492917 | CZ87: 7.446687116 | DA87: 8.00044325 | DB87: 8.717797887 | DC87: 9.695896899 | DD87: 11.13799725 | DE87: 13.57142857 | DF87: 18.14093257 | DG87: -1472.776823
BG88: DS | BI88: 0 | BJ88: =0.5*(BK86-BI86)*(1+BJ86^2/($BH$68^2-BJ86^2))^0.5*($BH$68^2-BJ86^2)^0.5 -> 722 | BK88: =0.5*(BL86-BJ86)*(1+BK86^2/($BH$68^2-BK86^2))^0.5*($BH$68^2-BK86^2)^0.5 -> 722 | BL88: 722 | BM88: 722 | BN88: 722 | BO88: 722 | BP88: 722 | BQ88: 722 | BR88: 722 | BS88: 722 | BT88: 722 | BU88: 722 | BV88: 722 | BW88: 722 | BX88: 722 | BY88: 722 | BZ88: 722 | CA88: 722 | CB88: 722 | CC88: 722 | CD88: 722 | CE88: 722 | CF88: 722 | CG88: 722 | CH88: 722 | CI88: 722 | CJ88: 722 | CK88: 722 | CL88: 722 | CM88: 722 | CN88: 722 | CO88: 722 | CP88: 722 | CQ88: 722 | CR88: 722 | CS88: 722 | CT88: 722 | CU88: 722 | CV88: 722 | CW88: 722 | CX88: 722 | CY88: 722 | CZ88: 722 | DA88: 722 | DB88: 722 | DC88: 722 | DD88: 722 | DE88: 722 | DF88: 685.9 | DG88: -17689
BG89: s | BI89: 0 | BJ89: =BI89+BJ87 -> 3.800760228 | BK89: =BJ89+BK87 -> 7.603803881 | BL89: 11.4106624 | BM89: 15.22288109 | BN89: 19.04202478 | BO89: 22.86968386 | BP89: 26.70748039 | BQ89: 30.55707466 | BR89: 34.42017213 | BS89: 38.29853089 | BT89: 42.19396964 | BU89: 46.10837645 | BV89: 50.0437183 | BW89: 54.00205163 | BX89: 57.98553401 | BY89: 61.99643715 | BZ89: 66.03716155 | CA89: 70.11025295 | CB89: 74.21842107 | CC89: 78.36456099 | CD89: 82.55177759 | CE89: 86.78341392 | CF89: 91.06308399 | CG89: 95.39471114 | CH89: 99.78257318 | CI89: 104.2313558 | CJ89: 108.7462161 | CK89: 113.3328593 | CL89: 117.9976312 | CM89: 122.7476312 | CN89: 127.5908522 | CO89: 132.5363547 | CP89: 137.594486 | CQ89: 142.7771608 | CR89: 148.0982252 | CS89: 153.5739341 | CT89: 159.223594 | CU89: 165.0704398 | CV89: 171.1428661 | CW89: 177.4761994 | CX89: 184.1153367 | CY89: 191.1188297 | CZ89: 198.5655168 | DA89: 206.56596 | DB89: 215.2837579 | DC89: 224.9796548 | DD89: 236.1176521 | DE89: 249.6890806 | DF89: 267.8300132 | DG89: -1204.94681
BG90: S | BI90: 0 | BJ90: =BI90+BJ88 -> 722 | BK90: 1444 | BL90: 2166 | BM90: 2888 | BN90: 3610 | BO90: 4332 | BP90: 5054 | BQ90: 5776 | BR90: 6498 | BS90: 7220 | BT90: 7942 | BU90: 8664 | BV90: 9386 | BW90: 10108 | BX90: 10830 | BY90: 11552 | BZ90: 12274 | CA90: 12996 | CB90: 13718 | CC90: 14440 | CD90: 15162 | CE90: 15884 | CF90: 16606 | CG90: 17328 | CH90: 18050 | CI90: 18772 | CJ90: 19494 | CK90: 20216 | CL90: 20938 | CM90: 21660 | CN90: 22382 | CO90: 23104 | CP90: 23826 | CQ90: 24548 | CR90: 25270 | CS90: 25992 | CT90: 26714 | CU90: 27436 | CV90: 28158 | CW90: 28880 | CX90: 29602 | CY90: 30324 | CZ90: 31046 | DA90: 31768 | DB90: 32490 | DC90: 33212 | DD90: 33934 | DE90: 34656 | DF90: 35341.9 | DG90: 17652.9
BG91: S/s | BI91: 1 | BJ91: =BJ90/BJ89 -> 189.9619962 | BK91: =BK90/BK89 -> 189.9049505 | BL91: 189.8224593 | BM91: 189.7144163 | BN91: 189.5806796 | BO91: 189.4210705 | BP91: 189.2353725 | BQ91: 189.0233298 | BR91: 188.7846457 | BS91: 188.5189805 | BT91: 188.2259495 | BU91: 187.9051198 | BV91: 187.5560074 | BW91: 187.1780737 | BX91: 186.7707211 | BY91: 186.3332883 | BZ91: 185.865045 | CA91: 185.3651849 | CB91: 184.8328192 | CC91: 184.2669673 | CD91: 183.6665477 | CE91: 183.0303658 | CF91: 182.357101 | CG91: 181.6452903 | CH91: 180.8933106 | CI91: 180.0993555 | CJ91: 179.2614097 | CK91: 178.3772166 | CL91: 177.4442401 | CM91: 176.4596171 | CN91: 175.4200995 | CO91: 174.3219817 | CP91: 173.1610089 | CQ91: 171.9322604 | CR91: 170.6299989 | CS91: 169.2474712 | CT91: 167.7766425 | CU91: 166.2078325 | CV91: 164.5292067 | CW91: 162.7260449 | CX91: 160.7796533 | CY91: 158.6656849 | CZ91: 156.3514174 | DA91: 153.7910699 | DB91: 150.917098 | DC91: 147.6222373 | DD91: 143.7164892 | DE91: 138.7966182 | DF91: 131.9564584 | DG91: -14.65035622
BG92: Sa_r | BJ92: =0.5*$BM$66-$BH$67 -> 152.1762239 | BK92: 152.1762239 | BL92: 152.1762239 | BM92: 152.1762239 | BN92: 152.1762239 | BO92: 152.1762239 | BP92: 152.1762239 | BQ92: 152.1762239 | BR92: 152.1762239 | BS92: 152.1762239 | BT92: 152.1762239 | BU92: 152.1762239 | BV92: 152.1762239 | BW92: 152.1762239 | BX92: 152.1762239 | BY92: 152.1762239 | BZ92: 152.1762239 | CA92: 152.1762239 | CB92: 152.1762239 | CC92: 152.1762239 | CD92: 152.1762239 | CE92: 152.1762239 | CF92: 152.1762239 | CG92: 152.1762239 | CH92: 152.1762239 | CI92: 152.1762239 | CJ92: 152.1762239 | CK92: 152.1762239 | CL92: 152.1762239 | CM92: 152.1762239 | CN92: 152.1762239 | CO92: 152.1762239 | CP92: =0.5*$BM$66-$BH$67 -> 152.1762239 | CQ92: 152.1762239 | CR92: 152.1762239 | CS92: 152.1762239 | CT92: 152.1762239 | CU92: 152.1762239 | CV92: 152.1762239 | CW92: 152.1762239 | CX92: 152.1762239 | CY92: 152.1762239 | CZ92: 152.1762239 | DA92: 152.1762239 | DB92: 152.1762239 | DC92: 152.1762239 | DD92: 152.1762239 | DE92: 152.1762239 | DF92: 152.1762239 | DG92: 152.1762239
BI93: 0 | BJ93: =IF(BJ92>=BJ91,1,0) -> 0 | BK93: =IF(BK92>=BK91,1,0) -> 0 | BL93: 0 | BM93: 0 | BN93: 0 | BO93: 0 | BP93: 0 | BQ93: 0 | BR93: 0 | BS93: 0 | BT93: 0 | BU93: 0 | BV93: 0 | BW93: 0 | BX93: 0 | BY93: 0 | BZ93: 0 | CA93: 0 | CB93: 0 | CC93: 0 | CD93: 0 | CE93: 0 | CF93: 0 | CG93: 0 | CH93: 0 | CI93: 0 | CJ93: 0 | CK93: 0 | CL93: 0 | CM93: 0 | CN93: 0 | CO93: 0 | CP93: 0 | CQ93: 0 | CR93: 0 | CS93: 0 | CT93: 0 | CU93: 0 | CV93: 0 | CW93: 0 | CX93: 0 | CY93: 0 | CZ93: 0 | DA93: 0 | DB93: 1 | DC93: 1 | DD93: 1 | DE93: 1 | DF93: 1 | DG93: 1
BG94: x0 | BH94: =MAX(BJ94:DF94) -> 169.3351687 | BI94: 0 | BJ94: =IF(AND(BI93=0,BJ93=1),BI86+(BJ86-BI86)*(BJ92-BI91)/(BJ91-BI91),0) -> 0 | BK94: =IF(AND(BJ93=0,BK93=1),BJ86+(BK86-BJ86)*(BK92-BJ91)/(BK91-BJ91),0) -> 0 | BL94: =IF(AND(BK93=0,BL93=1),BK86+(BL86-BK86)*(BL92-BK91)/(BL91-BK91),0) -> 0 | BM94: 0 | BN94: 0 | BO94: 0 | BP94: 0 | BQ94: 0 | BR94: 0 | BS94: 0 | BT94: 0 | BU94: 0 | BV94: 0 | BW94: 0 | BX94: 0 | BY94: 0 | BZ94: 0 | CA94: 0 | CB94: 0 | CC94: 0 | CD94: 0 | CE94: 0 | CF94: 0 | CG94: 0 | CH94: 0 | CI94: 0 | CJ94: 0 | CK94: 0 | CL94: 0 | CM94: 0 | CN94: 0 | CO94: 0 | CP94: 0 | CQ94: 0 | CR94: 0 | CS94: 0 | CT94: 0 | CU94: 0 | CV94: 0 | CW94: 0 | CX94: 0 | CY94: 0 | CZ94: =IF(AND(CY93=0,CZ93=1),CY86+(CZ86-CY86)*(CZ92-CY91)/(CZ91-CY91),0) -> 0 | DA94: 0 | DB94: 169.3351687 | DC94: 0 | DD94: 0 | DE94: 0 | DF94: 0 | DG94: 0

Sheet Brand
B2: Bruger: | C2: =Kold!C2 -> Bruger skal registreres | K2: =Kold!K2 -> RUND SØJLE, ver. 1.0 | N2: =Kold!N2 -> Betonelement-Foreningen november 2012
B3: Sagsnavn: | C3: =Kold!C3 -> Betonelementhuset | H3: Sag nr.: | I3: =Kold!I3 -> 23 - 4545 | L3: =AU28&AU29&AU30&AU31&AU32&AU33&AU34&AU35&AU36&AU37 -> Underliggende konstruktion skal kontrolleres for forsætning af søjlens reaktion under brand på exc( R ) = 34 mm mod søjlens trækside Programmet indstillet til kold beregning ! | AS3: 2
B4: Bygningsdel: | C4: =Kold!C4 -> Søjle i modul D/12, stueetage | H4: Dato: | I4: =Kold!I4 -> 2007-01-02 | AS4: Tilslag: Kvartsholdigt
B5: Emne: | C5: Brandlastkombinationer | H5: Init: | I5: =Kold!I5 -> JFJ | AS5: Tilslag: Søsand / granit
K7: Materialer | M7: fck | N7: =Kold!N7 -> 40 | O7: Regningsmæssige parametre
M8: fyk | N8: =Kold!N8 -> 550 | P8: fcd | Q8: =N7/(N9)*Q19 -> 40
M9: gc | N9: 1 | P9: fyd,tryk | Q9: =N8/MAX(1,N10)*Q20 -> 350.3226472 | AN9: 1 | AO9: 0 | AP9: =BB10*1000 -> 0 | AW9: gc | AX9: =N9 -> 1 | BA9: N | BB9: M | BC9: hc | BD9: e0 | BE9: sac | BF9: sat | BH9: =Kold!N25 -> 80 | BI9: =Kold!O25 -> 20 | BJ9: =Kold!P25 -> 80 | BK9: =Kold!Q25 -> 4 | HA9: =Kold!HA9 -> 0 | HD9: Bruger skal registreres | HE9: 1
M10: gs | N10: 1 | P10: fyd,træk | Q10: =N8/MAX(1,N10)*Q22 -> 350.3226472 | AN10: 2 | AO10: =BA11*1000 -> 0 | AP10: 0 | AS10: Tillægsexc fra svækket rand | AT10: =0.5*(AU20-AU21)*Q18/1000 -> 0 | AW10: ga | AX10: =N10 -> 1 | BA10: =IF(Kold!$AO$5=-1,'Ark1'!M10,0)*$AT$40 -> 0 | BB10: =IF(Kold!$AO$5=-1,'Ark1'!N10,0)*$AT$40 -> 0 | BC10: =IF(Kold!$AO$5=-1,'Ark1'!O10,0) -> 0 | BD10: =IF(Kold!$AO$5=-1,'Ark1'!P10,0) -> 0 | BE10: =IF(Kold!$AO$5=-1,'Ark1'!Q10,0) -> 0 | BF10: =IF(Kold!$AO$5=-1,'Ark1'!R10,0) -> 0 | BH10: =Kold!N26 -> 300 | BI10: =Kold!O26 -> 20 | BJ10: =Kold!P26 -> 80 | BK10: =Kold!Q26 -> 4
K11: Søjlelængde | O11: Krybning | AN11: 3 | AO11: 0 | AP11: 0 | AS11: uterminsk, revnet tværsnit | AT11: =1.1*Firsidig!X34*AX27^2/(800000*(AX21-AX24))+IF(OR(BE32=10,AR61=1),0,$Q$16/1000)-0.4*AX32 -> 0.01830370017 | AU11: m | AW11: fck | AX11: =N7 -> 40 | AY11: MPa | BA11: =IF(Kold!$AO$5=-1,'Ark1'!M11,0)*$AT$40 -> 0 | BB11: =IF(Kold!$AO$5=-1,'Ark1'!N11,0)*$AT$40 -> 0 | BC11: =IF(Kold!$AO$5=-1,'Ark1'!O11,0) -> 0 | BD11: =IF(Kold!$AO$5=-1,'Ark1'!P11,0) -> 0 | BE11: =IF(Kold!$AO$5=-1,'Ark1'!Q11,0) -> 0 | BF11: =IF(Kold!$AO$5=-1,'Ark1'!R11,0) -> 0 | BH11: =Kold!N27 -> 300 | BI11: =Kold!O27 -> 3000 | BJ11: =Kold!P27 -> 80 | BK11: =Kold!Q27 -> 4
M12: Ls | N12: =Kold!N12 -> 4200 | P12: fo | Q12: =Kold!Q14 -> 1.748645162 | AN12: 4 | AO12: 0 | AP12: 0 | AS12: uterminsk, urevnet tværsnit | AT12: =IF(1.1*Firsidig!V13*AX27^2/(800000*AX21)+IF(OR(BE32=10,AR61=1),0,$Q$16/1000)>AT11,1.1*Firsidig!V13*AX27^2/(800000*AX21)+IF(OR(BE32=10,AR61=1),0,$Q$16/1000),AT11) -> 0.02471492969 | AU12: m | AW12: Es_c | AX12: =Firsidig!E34*200000 -> 138550.0297 | AY12: MPa | BA12: =IF(Kold!$AO$5=-1,'Ark1'!M12,0)*$AT$40 -> 0 | BB12: =IF(Kold!$AO$5=-1,'Ark1'!N12,0)*$AT$40 -> 0 | BC12: =IF(Kold!$AO$5=-1,'Ark1'!O12,0) -> 0 | BD12: =IF(Kold!$AO$5=-1,'Ark1'!P12,0) -> 0 | BE12: =IF(Kold!$AO$5=-1,'Ark1'!Q12,0) -> 0 | BF12: =IF(Kold!$AO$5=-1,'Ark1'!R12,0) -> 0 | BH12: =Kold!N28 -> 300 | BI12: =Kold!O28 -> 3000 | BJ12: =Kold!P28 -> 300 | BK12: =Kold!Q28 -> 4
K13: Tværsnit | P13: M0Eqp/M0Ed | Q13: 1 | AN13: 5 | AO13: 0 | AP13: 0 | AW13: Es_t | AX13: =Firsidig!E40*200000 -> 138550.0297 | AY13: MPa | BA13: =IF(Kold!$AO$5=-1,'Ark1'!M13,0)*$AT$40 -> 0 | BB13: =IF(Kold!$AO$5=-1,'Ark1'!N13,0)*$AT$40 -> 0 | BC13: =IF(Kold!$AO$5=-1,'Ark1'!O13,0) -> 0 | BD13: =IF(Kold!$AO$5=-1,'Ark1'!P13,0) -> 0 | BE13: =IF(Kold!$AO$5=-1,'Ark1'!Q13,0) -> 0 | BF13: =IF(Kold!$AO$5=-1,'Ark1'!R13,0) -> 0 | BH13: =Kold!N29 -> 400 | BI13: =Kold!O29 -> 20 | BJ13: =Kold!P29 -> 80 | BK13: =Kold!Q29 -> 2
M14: D | N14: =Kold!N14 -> 500 | P14: fef | Q14: =Q12*Q13 -> 1.748645162 | AN14: 6 | AO14: 0 | AP14: 0 | AS14: 1 | AT14: h | AU14: =BK22-AU20*Q18-Q18*AU21 -> 324.9062933 | AW14: fcd | AX14: =AX11/AX9 -> 40 | AY14: MPa | BA14: =IF(Kold!$AO$5=-1,'Ark1'!M14,0)*$AT$40 -> 0 | BB14: =IF(Kold!$AO$5=-1,'Ark1'!N14,0)*$AT$40 -> 0 | BC14: =IF(Kold!$AO$5=-1,'Ark1'!O14,0) -> 0 | BD14: =IF(Kold!$AO$5=-1,'Ark1'!P14,0) -> 0 | BE14: =IF(Kold!$AO$5=-1,'Ark1'!Q14,0) -> 0 | BF14: =IF(Kold!$AO$5=-1,'Ark1'!R14,0) -> 0 | BH14: =Kold!N30 -> 400 | BI14: =Kold!O30 -> 3000 | BJ14: =Kold!P30 -> 80 | BK14: =Kold!Q30 -> 2
M15: c | N15: =Kold!N15 -> 60 | P15: =IF(OR(BE32=10,AR61=1),"Der regnes med fuld krybning","Udbøjningstillæg fra krybning:") -> Udbøjningstillæg fra krybning: | AN15: 7 | AO15: 0 | AP15: 0 | AS15: Stål: Varmvalset | AT15: b | AU15: =BK23-2*Q18*AU22 -> 344.9346897 | AW15: k | AX15: =0.8-400*AX14/AX16 -> 0.3 | AY15: MPa | BA15: =IF(Kold!$AO$5=-1,'Ark1'!M15,0)*$AT$40 -> 0 | BB15: =IF(Kold!$AO$5=-1,'Ark1'!N15,0)*$AT$40 -> 0 | BC15: =IF(Kold!$AO$5=-1,'Ark1'!O15,0) -> 0 | BD15: =IF(Kold!$AO$5=-1,'Ark1'!P15,0) -> 0 | BE15: =IF(Kold!$AO$5=-1,'Ark1'!Q15,0) -> 0 | BF15: =IF(Kold!$AO$5=-1,'Ark1'!R15,0) -> 0 | BH15: =Kold!N31 -> 300 | BI15: =Kold!O31 -> 3500 | BJ15: =Kold!P31 -> 80 | BK15: =Kold!Q31 -> 2
K16: Armering | P16: Dukrybning | Q16: =IF(OR(BE32=10,AR61=1),"- ",AS68*1000) -> 1.958408654 | AN16: 8 | AO16: 0 | AP16: 0 | AS16: Stål: Bratkølet | AT16: ac | AU16: =BK24-AU20*Q18 -> 10.27692271 | AW16: Eo | AX16: =2*AX14/Firsidig!F21 -> 32000 | AY16: MPa | BA16: =IF(Kold!$AO$5=-1,'Ark1'!M16,0)*$AT$40 -> 0 | BB16: =IF(Kold!$AO$5=-1,'Ark1'!N16,0)*$AT$40 -> 0 | BC16: =IF(Kold!$AO$5=-1,'Ark1'!O16,0) -> 0 | BD16: =IF(Kold!$AO$5=-1,'Ark1'!P16,0) -> 0 | BE16: =IF(Kold!$AO$5=-1,'Ark1'!Q16,0) -> 0 | BF16: =IF(Kold!$AO$5=-1,'Ark1'!R16,0) -> 0 | BH16: =Kold!N32 -> 400 | BI16: =Kold!O32 -> 3000 | BJ16: =Kold!P32 -> 400 | BK16: =Kold!Q32 -> 2
M17: da | N17: =Kold!N17 -> 20 | O17: Reduktionsparametre | AN17: 9 | AO17: 0 | AP17: 0 | AS17: Stål: Kolddeformeret | AT17: at | AU17: =BK24-AU21*Q18 -> 10.27692271 | AW17: Ncr | AX17: =(AX21*AX22+2*MIN(AX12*AX25,AX13*AX26))*AX14/(1+12*(AX14/AX16)*(AX27/(PI()*AX21))^2) -> 7782.512891 | AY17: MN | BA17: =IF(Kold!$AO$5=-1,'Ark1'!M17,0)*$AT$40 -> 0 | BB17: =IF(Kold!$AO$5=-1,'Ark1'!N17,0)*$AT$40 -> 0 | BC17: =IF(Kold!$AO$5=-1,'Ark1'!O17,0) -> 0 | BD17: =IF(Kold!$AO$5=-1,'Ark1'!P17,0) -> 0 | BE17: =IF(Kold!$AO$5=-1,'Ark1'!Q17,0) -> 0 | BF17: =IF(Kold!$AO$5=-1,'Ark1'!R17,0) -> 0 | BH17: =Kold!N33 -> 300 | BI17: =Kold!O33 -> 3500 | BJ17: =Kold!P33 -> 300 | BK17: =Kold!Q33 -> 2
M18: Antal | N18: =Kold!N18 -> 8 | O18: Randzone: | P18: a | Q18: =Firsidig!E24*1000 -> 49.72307729 | AN18: 10 | AO18: 0 | AP18: 0 | AS18: =IF(AS14=1,"Q",IF(AS14=2,"AC","C")) -> Q | AW18: fyk | AX18: =N8 -> 550 | BA18: =IF(Kold!$AO$5=-1,'Ark1'!M18,0)*$AT$40 -> 0 | BB18: =IF(Kold!$AO$5=-1,'Ark1'!N18,0)*$AT$40 -> 0 | BC18: =IF(Kold!$AO$5=-1,'Ark1'!O18,0) -> 0 | BD18: =IF(Kold!$AO$5=-1,'Ark1'!P18,0) -> 0 | BE18: =IF(Kold!$AO$5=-1,'Ark1'!Q18,0) -> 0 | BF18: =IF(Kold!$AO$5=-1,'Ark1'!R18,0) -> 0
K19: Brandpåvirkning, tid : | N19: 120 | O19: Beton: | P19: kc,M | Q19: =Firsidig!E21 -> 1 | AN19: 11 | AO19: 0 | AP19: 0 | AW19: fyd_c | AX19: =Firsidig!E35*AX18/AX10 -> 350.3226472 | BA19: =IF(Kold!$AO$5=-1,'Ark1'!M19,0)*$AT$40 -> 0 | BB19: =IF(Kold!$AO$5=-1,'Ark1'!N19,0)*$AT$40 -> 0 | BC19: =IF(Kold!$AO$5=-1,'Ark1'!O19,0) -> 0 | BD19: =IF(Kold!$AO$5=-1,'Ark1'!P19,0) -> 0 | BE19: =IF(Kold!$AO$5=-1,'Ark1'!Q19,0) -> 0 | BF19: =IF(Kold!$AO$5=-1,'Ark1'!R19,0) -> 0 | BH19: =Kold!N35 -> 360 | BI19: =Kold!O35 -> 20 | BJ19: =Kold!P35 -> 280 | BK19: =Kold!Q35 -> 0
L20: Brand, trykside | N20: =IF(AT20=2,"JA","NEJ") -> JA | O20: Trykarm: | P20: fsy,q / fyk | Q20: =Firsidig!E35 -> 0.6369502676 | AN20: 12 | AO20: 0 | AP20: 0 | AS20: Brand, trykside | AT20: 2 | AU20: =AT20-1 -> 1 | AW20: fyd_t | AX20: =Firsidig!E41*AX18/AX10 -> 350.3226472 | BA20: =IF(Kold!$AO$5=-1,'Ark1'!M20,0)*$AT$40 -> 0 | BB20: =IF(Kold!$AO$5=-1,'Ark1'!N20,0)*$AT$40 -> 0 | BC20: =IF(Kold!$AO$5=-1,'Ark1'!O20,0) -> 0 | BD20: =IF(Kold!$AO$5=-1,'Ark1'!P20,0) -> 0 | BE20: =IF(Kold!$AO$5=-1,'Ark1'!Q20,0) -> 0 | BF20: =IF(Kold!$AO$5=-1,'Ark1'!R20,0) -> 0
L21: Brand, trækside | N21: =IF(AT21=2,"JA","NEJ") -> JA | P21: Es,q / Es | Q21: =Firsidig!E34 -> 0.6927501486 | AN21: 13 | AO21: 0 | AP21: 0 | AS21: Brand, trækside | AT21: 2 | AU21: =AT21-1 -> 1 | AW21: h | AX21: =AU14/1000 -> 0.3249062933 | AY21: m | BA21: =IF(Kold!$AO$5=-1,'Ark1'!M21,0)*$AT$40 -> 0 | BB21: =IF(Kold!$AO$5=-1,'Ark1'!N21,0)*$AT$40 -> 0 | BC21: =IF(Kold!$AO$5=-1,'Ark1'!O21,0) -> 0 | BD21: =IF(Kold!$AO$5=-1,'Ark1'!P21,0) -> 0 | BE21: =IF(Kold!$AO$5=-1,'Ark1'!Q21,0) -> 0 | BF21: =IF(Kold!$AO$5=-1,'Ark1'!R21,0) -> 0 | BH21: Ækvivalent tværsnit
L22: Brand, sider | N22: =IF(AT22=2,"JA","NEJ") -> JA | O22: Trækarm: | P22: fsy,q / fyk | Q22: =Firsidig!E41 -> 0.6369502676 | AN22: 14 | AO22: 0 | AP22: 0 | AS22: Brand, sider | AT22: 2 | AU22: =AT22-1 -> 1 | AW22: b | AX22: =AU15/1000 -> 0.3449346897 | AY22: m | BA22: =IF(Kold!$AO$5=-1,'Ark1'!M22,0)*$AT$40 -> 0 | BB22: =IF(Kold!$AO$5=-1,'Ark1'!N22,0)*$AT$40 -> 0 | BC22: =IF(Kold!$AO$5=-1,'Ark1'!O22,0) -> 0 | BD22: =IF(Kold!$AO$5=-1,'Ark1'!P22,0) -> 0 | BE22: =IF(Kold!$AO$5=-1,'Ark1'!Q22,0) -> 0 | BF22: =IF(Kold!$AO$5=-1,'Ark1'!R22,0) -> 0 | BH22: Tværsnit | BJ22: h | BK22: =Kold!CA65 -> 424.3524479
K23: =INDEX($AS$4:$AS$5,$AS$3,1)&" "&INDEX($AS$15:$AS$17,$AS$14,1) -> Tilslag: Søsand / granit Stål: Varmvalset | P23: Es,q / Es | Q23: =Firsidig!E40 -> 0.6927501486 | AN23: 15 | AO23: 0 | AP23: 0 | AW23: ac | AX23: =AU16/1000 -> 0.01027692271 | AY23: m | BA23: =IF(Kold!$AO$5=-1,'Ark1'!M23,0)*$AT$40 -> 0 | BB23: =IF(Kold!$AO$5=-1,'Ark1'!N23,0)*$AT$40 -> 0 | BC23: =IF(Kold!$AO$5=-1,'Ark1'!O23,0) -> 0 | BD23: =IF(Kold!$AO$5=-1,'Ark1'!P23,0) -> 0 | BE23: =IF(Kold!$AO$5=-1,'Ark1'!Q23,0) -> 0 | BF23: =IF(Kold!$AO$5=-1,'Ark1'!R23,0) -> 0 | BJ23: b | BK23: =Kold!CA66 -> 444.3808442
F24: Kontrolparametre | G24: Brandlasttilfælde | J24: Ref-last | K24: Brandlasttilfælde | N24: N1 (kN) | O24: N0 (kN) | P24: N2 (kN) | Q24: w (kN/m) | AN24: 16 | AO24: 0 | AP24: 0 | AU24: NEJ | AW24: at | AX24: =AU17/1000 -> 0.01027692271 | AY24: m | BA24: =IF(Kold!$AO$5=-1,'Ark1'!M24,0)*$AT$40 -> 0 | BB24: =IF(Kold!$AO$5=-1,'Ark1'!N24,0)*$AT$40 -> 0 | BC24: =IF(Kold!$AO$5=-1,'Ark1'!O24,0) -> 0 | BD24: =IF(Kold!$AO$5=-1,'Ark1'!P24,0) -> 0 | BE24: =IF(Kold!$AO$5=-1,'Ark1'!Q24,0) -> 0 | BF24: =IF(Kold!$AO$5=-1,'Ark1'!R24,0) -> 0 | BJ24: c | BK24: =Kold!N15 -> 60
G25: =IF(Kold!$AO$5=-1,Brand!BB33,"-") -> - | H25: =IF(Kold!$AO$5=-1,Brand!BC33,"-") -> - | I25: =IF(Kold!$AO$5=-1,Brand!BD33,"-") -> - | J25: =IF(Kold!$AO$5=-1,Brand!BE33,"-") -> - | K25: A | N25: 62.22222222 | O25: 15.55555556 | P25: 62.22222222 | Q25: 2 | AN25: 17 | AO25: 0 | AP25: 0 | AU25: JA | AW25: Ac | AX25: =AP40/1000000 -> 0.0008800535664 | AY25: m2 | BA25: =IF(Kold!$AO$5=-1,'Ark1'!M25,0)*$AT$40 -> 0 | BB25: =IF(Kold!$AO$5=-1,'Ark1'!N25,0)*$AT$40 -> 0 | BC25: =IF(Kold!$AO$5=-1,'Ark1'!O25,0) -> 0 | BD25: =IF(Kold!$AO$5=-1,'Ark1'!P25,0) -> 0 | BE25: =IF(Kold!$AO$5=-1,'Ark1'!Q25,0) -> 0 | BF25: =IF(Kold!$AO$5=-1,'Ark1'!R25,0) -> 0 | BH25: Trykarm. | BJ25: da | BK25: =Kold!CA68 -> 23.66980146
E26: NEd | F26: (kN) | G26: =IF(Kold!$AO$5=-1,Brand!BB35,"-") -> - | H26: =IF(Kold!$AO$5=-1,Brand!BC35,"-") -> - | I26: =IF(Kold!$AO$5=-1,Brand!BD35,"-") -> - | J26: =IF(Kold!$AO$5=-1,IF($BE$32=10,"-",Brand!BE35),"-") -> - | K26: B | N26: 233.3333333 | O26: 15.55555556 | P26: 62.22222222 | Q26: 2 | AN26: 18 | AO26: 0 | AP26: 0 | AW26: At | AX26: =AP41/1000000 -> 0.0008800535664 | AY26: m2 | BA26: =IF(Kold!$AO$5=-1,'Ark1'!M26,0)*$AT$40 -> 0 | BB26: =IF(Kold!$AO$5=-1,'Ark1'!N26,0)*$AT$40 -> 0 | BC26: =IF(Kold!$AO$5=-1,'Ark1'!O26,0) -> 0 | BD26: =IF(Kold!$AO$5=-1,'Ark1'!P26,0) -> 0 | BE26: =IF(Kold!$AO$5=-1,'Ark1'!Q26,0) -> 0 | BF26: =IF(Kold!$AO$5=-1,'Ark1'!R26,0) -> 0 | BJ26: Antal | BK26: =Kold!CA69 -> 2
E27: M0Ed | F27: (kNm) | G27: =IF(Kold!$AO$5=-1,Brand!BB36,"-") -> - | H27: =IF(Kold!$AO$5=-1,Brand!BC36,"-") -> - | I27: =IF(Kold!$AO$5=-1,Brand!BD36,"-") -> - | J27: =IF(Kold!$AO$5=-1,IF($BE$32=10,"-",Brand!BE36),"-") -> - | K27: C | N27: 233.3333333 | O27: 2333.333333 | P27: 62.22222222 | Q27: 2 | AN27: 19 | AO27: 0 | AP27: 0 | AW27: L | AX27: =N12/1000 -> 4.2 | AY27: m | BA27: =IF(Kold!$AO$5=-1,'Ark1'!M27,0)*$AT$40 -> 0 | BB27: =IF(Kold!$AO$5=-1,'Ark1'!N27,0)*$AT$40 -> 0 | BC27: =IF(Kold!$AO$5=-1,'Ark1'!O27,0) -> 0 | BD27: =IF(Kold!$AO$5=-1,'Ark1'!P27,0) -> 0 | BE27: =IF(Kold!$AO$5=-1,'Ark1'!Q27,0) -> 0 | BF27: =IF(Kold!$AO$5=-1,'Ark1'!R27,0) -> 0 | BH27: Trækarm. | BJ27: da | BK27: =Kold!CA70 -> 23.66980146
E28: M0Rd | F28: (kNm) | G28: =IF(Kold!$AO$5=-1,Brand!BB37,"-") -> - | H28: =IF(Kold!$AO$5=-1,Brand!BC37,"-") -> - | I28: =IF(Kold!$AO$5=-1,Brand!BD37,"-") -> - | J28: =IF(Kold!$AO$5=-1,IF($BE$32=10,"-",Brand!BE37),"-") -> - | K28: D | N28: 233.3333333 | O28: 2333.333333 | P28: 233.3333333 | Q28: 2 | AS28: Ingen negative inddata | AT28: =IF(MIN(N9,N10,Q13,N19,N25:Q33,N35:P35)<0,1,0) -> 0 | AU28: =IF(AT28=1,AS28&" ! ","") ->  | AW28: e1 | AX28: =Firsidig!F21 -> 0.0025 | BA28: =IF(Kold!$AO$5=-1,'Ark1'!M28,0)*$AT$40 -> 0 | BB28: =IF(Kold!$AO$5=-1,'Ark1'!N28,0)*$AT$40 -> 0 | BC28: =IF(Kold!$AO$5=-1,'Ark1'!O28,0) -> 0 | BD28: =IF(Kold!$AO$5=-1,'Ark1'!P28,0) -> 0 | BE28: =IF(Kold!$AO$5=-1,'Ark1'!Q28,0) -> 0 | BF28: =IF(Kold!$AO$5=-1,'Ark1'!R28,0) -> 0 | BJ28: Antal | BK28: =Kold!CA71 -> 2
E29: u | F29: (mm) | G29: =IF(Kold!$AO$5=-1,Brand!BB38+0.4*AX32*1000,"-") -> - | H29: =IF(Kold!$AO$5=-1,Brand!BC38+0.4*AX32*1000,"-") -> - | I29: =IF(Kold!$AO$5=-1,Brand!BD38+0.4*AX32*1000,"-") -> - | J29: =IF(Kold!$AO$5=-1,IF($BE$32=10,"-",Brand!BE38+0.4*AX32*1000),"-") -> - | K29: E | N29: 311.1111111 | O29: 15.55555556 | P29: 62.22222222 | Q29: 1 | AR29: =MAX(AP9:AQ38,Kold!AP9:AQ38) -> 281.4279769 | AS29: f_ck højst 50 MPa | AT29: =IF(N7>50,1,0) -> 0
E30: wk | F30: (mm) | G30: =IF(Kold!$AO$5=-1,Brand!BB39,"-") -> - | H30: =IF(Kold!$AO$5=-1,Brand!BC39,"-") -> - | I30: =IF(Kold!$AO$5=-1,Brand!BD39,"-") -> - | J30: =IF(Kold!$AO$5=-1,Brand!BE39,"-") -> - | K30: F | N30: 311.1111111 | O30: 2333.333333 | P30: 62.22222222 | Q30: 1 | AO30: =N25+O25+P25+$AO$9 -> 140 | AQ30: =(N25*$N$35+O25*$O$35-P25*$P$35)/1000+0.125*Q25*($N$12/1000)^2+0.001+AT10*AO30 -> 4.411 | AS30: f_ck mindst 20 MPa | AT30: =IF(N7<20,1,0) -> 0
E31: e0 | F31: (o/oo) | G31: =IF(Kold!$AO$5=-1,Brand!BB40,"-") -> - | H31: =IF(Kold!$AO$5=-1,Brand!BC40,"-") -> - | I31: =IF(Kold!$AO$5=-1,Brand!BD40,"-") -> - | J31: =IF(Kold!$AO$5=-1,IF($BE$32=10,"-",Brand!BE40),"-") -> - | K31: G | N31: 233.3333333 | O31: 2722.222222 | P31: 62.22222222 | Q31: 1 | AO31: 311.1111111 | AQ31: =(N26*$N$35+O26*$O$35-P26*$P$35)/1000+0.125*Q26*($N$12/1000)^2+0.001+AO31*AT10 -> 55.74433333 | AU31: =IF(AX32>0,"Underliggende konstruktion skal kontrolleres for forsætning af søjlens reaktion under brand på exc( R ) = "&ROUND(AX32*1000,0)&" mm mod søjlens trækside ","") -> Underliggende konstruktion skal kontrolleres for forsætning af søjlens reaktion under brand på exc( R ) = 34 mm mod søjlens trækside | AW31: Forsætning af reaktion | BA31: Lastpunkt | BB31: 1 | BC31: 2 | BD31: 3 | BE31: 4 | BF31: A
E32: sc0 | F32: (Mpa) | G32: =IF(Kold!$AO$5=-1,Brand!BB41,"-") -> - | H32: =IF(Kold!$AO$5=-1,Brand!BC41,"-") -> - | I32: =IF(Kold!$AO$5=-1,Brand!BD41,"-") -> - | J32: =IF(Kold!$AO$5=-1,IF($BE$32=10,"-",Brand!BE41),"-") -> - | K32: H | N32: 311.1111111 | O32: 2333.333333 | P32: 311.1111111 | Q32: 1 | AO32: 2628.888889 | AQ32: =(N27*$N$35+O27*$O$35-P27*$P$35)/1000+0.125*Q27*($N$12/1000)^2+0.001+AO32*AT10 -> 55.74433333 | AW32: exc( R ) | AX32: =IF(AND(AT21=2,N19>5),MIN(AX33:AX35),0) -> 0.03377018137 | BA32: Indeks | BB32: 1 | BC32: 2 | BD32: 4 | BE32: 3 | BF32: B
E33: sst | F33: (Mpa) | G33: =IF(Kold!$AO$5=-1,Brand!BB42,"-") -> - | H33: =IF(Kold!$AO$5=-1,Brand!BC42,"-") -> - | I33: =IF(Kold!$AO$5=-1,Brand!BD42,"-") -> - | J33: =IF(Kold!$AO$5=-1,IF($BE$32=10,"-",Brand!BE42),"-") -> - | K33: I | N33: 233.3333333 | O33: 2722.222222 | P33: 233.3333333 | Q33: 1 | AO33: 2800 | AQ33: =(N28*$N$35+O28*$O$35-P28*$P$35)/1000+0.125*Q28*($N$12/1000)^2+0.001+AO33*AT10 -> 4.411 | AS33: Ref-last bør ændres - der regnes med fuld krybning | AT33: =IF(AR61=1,1,0) -> 0 | AU33: =IF(AT33=1,AS33&" ! ","") ->  | AW33: 0,5 (h -2a) | AX33: =0.5*(BK22-2*Q18)/1000 -> 0.1624531466 | BB33: =INDEX(BF31:BF39,BB32) -> A | BC33: =INDEX(BF31:BF39,BC32) -> B | BD33: =INDEX(BF31:BF39,BD32) -> D | BE33: =INDEX(BF31:BF39,BE32) -> C | BF33: C
E34: ssc | F34: (Mpa) | G34: =IF(Kold!$AO$5=-1,Brand!BB43,"-") -> - | H34: =IF(Kold!$AO$5=-1,Brand!BC43,"-") -> - | I34: =IF(Kold!$AO$5=-1,Brand!BD43,"-") -> - | J34: =IF(Kold!$AO$5=-1,IF($BE$32=10,"-",Brand!BE43),"-") -> - | Q34: max exc( R )brand | AO34: 388.8888889 | AQ34: =(N29*$N$35+O29*$O$35-P29*$P$35)/1000+0.125*Q29*($N$12/1000)^2+0.001+AO34*AT10 -> 76.87266667 | AS34: Resttværsnit meget spinkelt | AT34: =IF(AT43<0.2*Kold!Q23/1000,1,0) -> 0 | AW34: max exc(R ) | AX34: =Q35/1000 -> 0.1 | BA34: N | BB34: =INDEX(AN30:AQ38,BB32,2) -> 140 | BC34: =INDEX(AN30:AQ38,BC32,2) -> 311.1111111 | BD34: =INDEX(AN30:AQ38,BD32,2) -> 2800 | BE34: =INDEX(AN30:AQ38,BE32,2) -> 2628.888889 | BF34: D
E35: x | F35: (mm) | G35: =IF(Kold!$AO$5=-1,Brand!BB44,"-") -> - | H35: =IF(Kold!$AO$5=-1,Brand!BC44,"-") -> - | I35: =IF(Kold!$AO$5=-1,Brand!BD44,"-") -> - | J35: =IF(Kold!$AO$5=-1,IF($BE$32=10,"-",Brand!BE44),"-") -> - | K35: Excentriciteter (mm) : | N35: 300 | O35: 0 | P35: 300 | Q35: 100 | AO35: 2706.666667 | AQ35: =(N30*$N$35+O30*$O$35-P30*$P$35)/1000+0.125*Q30*($N$12/1000)^2+0.001+AO35*AT10 -> 76.87266667 | AS35: f_yk højst 600 MPa | AT35: =IF(N8>600,1,0) -> 0 | AW35: 2 utermisk | AX35: =1.1*Firsidig!X34*AX27^2/(800000*(AX21-AX24))+IF(OR(BE32=10,AR61=1),0,$Q$16/1000)*2 -> 0.03377018137 | BA35: N | BB35: =INDEX(Lastresult,1+5*(BB31-1),16)*1000 -> 499.9998693 | BC35: =INDEX(Lastresult,1+5*(BC31-1),16)*1000 -> 3800.004015 | BD35: =INDEX(Lastresult,1+5*(BD31-1),16)*1000 -> 4100.000004 | BE35: =INDEX(Lastresult,1+5*(BE31-1),16)*1000 -> 4100.000004 | BF35: E
B36: Vejledning: | C36: Betonelementbyggeriers statik | J36: Polyteknisk Forlag 2011, eller www.bef.dk | K36: NB: Resultaterne skal altid kontrolleres af ansvarlig statiker | AO36: 3017.777778 | AQ36: =(N31*$N$35+O31*$O$35-P31*$P$35)/1000+0.125*Q31*($N$12/1000)^2+0.001+AO36*AT10 -> 53.53933333 | AS36: Partialkoefficienter mindst 1,0 | AT36: =IF(MIN(N9,N10)<1,1,0) -> 0 | BA36: M | BB36: =INDEX(AN30:AQ38,BB32,4) -> 4.411 | BC36: =INDEX(AN30:AQ38,BC32,4) -> 55.74433333 | BD36: =INDEX(AN30:AQ38,BD32,4) -> 4.411 | BE36: =INDEX(AN30:AQ38,BE32,4) -> 55.74433333 | BF36: F
AO37: 2955.555556 | AQ37: =(N32*$N$35+O32*$O$35-P32*$P$35)/1000+0.125*Q32*($N$12/1000)^2+0.001+AO37*AT10 -> 2.206 | AS37: Programmet indstillet til kold beregning | AT37: =IF(Kold!$AO$5=1,1,0) -> 1 | AU37: Programmet indstillet til kold beregning ! | BA37: Mud | BB37: =INDEX(Lastresult,1+5*(BB31-1),17)*1000 -> 190.2732948 | BC37: =INDEX(Lastresult,1+5*(BC31-1),17)*1000 -> 166.8898242 | BD37: =INDEX(Lastresult,1+5*(BD31-1),17)*1000 -> 135.3781802 | BE37: =INDEX(Lastresult,1+5*(BE31-1),17)*1000 -> 135.3781802 | BF37: G
AO38: 3188.888889 | AQ38: =(N33*$N$35+O33*$O$35-P33*$P$35)/1000+0.125*Q33*($N$12/1000)^2+0.001+AO38*AT10 -> 2.206 | BA38: u | BB38: =INDEX(Lastresult,1+5*(BB31-1),15)*1000 -> 24.13772094 | BC38: =INDEX(Lastresult,1+5*(BC31-1),15)*1000 -> 30.84021384 | BD38: =INDEX(Lastresult,1+5*(BD31-1),15)*1000 -> 28.185657 | BE38: =INDEX(Lastresult,1+5*(BE31-1),15)*1000 -> 28.185657 | BF38: H
AS39: Nulstilling for fejl | BA39: wr | BB39: - | BC39: - | BD39: - | BE39: - | BF39: I
AN40: Trykarmering | AP40: =BK25^2*BK26*PI()/4 -> 880.0535664 | AQ40: mm^2 | AS40: Testfaktor | AT40: =IF(MAX(AT28,AT29,AT30,AT34,AT36)=1,0,1) -> 1 | BA40: e0 | BB40: =INDEX(Lastresult,1+5*(BB31-1),3)*1000 -> 0.8395789465 | BC40: =INDEX(Lastresult,1+5*(BC31-1),3)*1000 -> 2.547711453 | BD40: =INDEX(Lastresult,1+5*(BD31-1),3)*1000 -> 2.502115496 | BE40: =INDEX(Lastresult,1+5*(BE31-1),3)*1000 -> 2.502115496
AN41: Trækarmering | AP41: =BK27^2*BK28*PI()/4 -> 880.0535664 | AQ41: mm^2 | BA41: sc0 | BB41: =3*(BB40/1000)*$Q$8/(Firsidig!$F$21*(2+((BB40/1000)/Firsidig!$F$21)^3)) -> 19.775388 | BC41: =3*(BC40/1000)*$Q$8/(Firsidig!$F$21*(2+((BC40/1000)/Firsidig!$F$21)^3)) -> 39.98561821 | BD41: =3*(BD40/1000)*$Q$8/(Firsidig!$F$21*(2+((BD40/1000)/Firsidig!$F$21)^3)) -> 39.99997137 | BE41: =3*(BE40/1000)*$Q$8/(Firsidig!$F$21*(2+((BE40/1000)/Firsidig!$F$21)^3)) -> 39.99997137
AS42: Kritisk normalspænding | AT42: =Q8/(1+12*Q8*AX27^2/(PI()^2*AX16*AX21^2)) -> 31.89881727 | AU42: MPa | BA42: sst | BB42: =INDEX(Lastresult,1+5*(BB31-1),12) -> 458.3333333 | BC42: =INDEX(Lastresult,1+5*(BC31-1),12) -> -37.44697881 | BD42: =INDEX(Lastresult,1+5*(BD31-1),12) -> -123.6353961 | BE42: =INDEX(Lastresult,1+5*(BE31-1),12) -> -123.6353961
AS43: Kritisk normalkraft, Ncr | AT43: =AT42*AX22*AX21 -> 3.574946751 | AU43: MN | BA43: ssc | BB43: =INDEX(Lastresult,1+5*(BB31-1),10) -> 267.9762253 | BC43: =INDEX(Lastresult,1+5*(BC31-1),10) -> 458.3333333 | BD43: =INDEX(Lastresult,1+5*(BD31-1),10) -> 458.3333333 | BE43: =INDEX(Lastresult,1+5*(BE31-1),10) -> 458.3333333
BA44: hc | BB44: =INDEX(Lastresult,1+5*(BB31-1),2)*1000 -> 157.919365 | BC44: =INDEX(Lastresult,1+5*(BC31-1),2)*1000 -> 375.0619181 | BD44: =INDEX(Lastresult,1+5*(BD31-1),2)*1000 -> 403.0410686 | BE44: =INDEX(Lastresult,1+5*(BE31-1),2)*1000 -> 403.0410686
AN46: gc | AO46: 1 | AQ46: Referencelast før krybning | AT46: Mo | AV46: sc,max | AW46: sc,min | AX46: sc | AY46: st | AZ46: hc | BA46: u | BB46: a | BC46: Mt | BD46: a*fc | BE46: a*ft | BF46: B | BG46: C | BH46: D | BI46: p | BJ46: q | BK46: C' | BL46: y' | BM46: b | BN46: m | BO46: Ec | BP46: Atr | BQ46: Syt | BR46: Iyt | BS46: z | BT46: Io | BU46: sc | BV46: sm | BW46: hc | BZ46: Referencelast
AN47: ga | AO47: 1 | AT47: =BC47-AR50*BA47 -> 0.105960364 | AV47: =IF(BL47*SQRT(4*ABS(BI47)/3)-BF47/3<=AO53,BC47/(BN47*AO54*AO53^2),BU47) -> 20.96895593 | AW47: =IF(BL47*SQRT(4*ABS(BI47)/3)-BF47/3<=AO53,0,BV47) -> 5.509499864 | AX47: =BB47*(AZ47-AO55)*AV47/AZ47 -> 106.6602356 | AY47: =BB47*(AO53-AO55-AZ47)*AV47/AZ47 -> -43.69813041 | AZ47: =IF(BL47*SQRT(4*ABS(BI47)/3)-BF47/3<=AO53,BL47*SQRT(4*ABS(BI47)/3)-BF47/3,BW47) -> 0.5755847903 | BA47: =0.1*(AV47/(AZ47*BO47))*AO59^2 -> 0.002116077288 | BB47: =AO56 -> 5.678517174 | BC47: =IF(AR53>0,AR53+AO53*AR50/20,0)+0.000000000001 -> 0.1115233173 | BD47: =BB47*AO57/(AO53*AO54) -> 0.02650098458 | BE47: =BB47*AO58/(AO53*AO54) -> 0.02650098458 | BF47: =-6*AO53*(0.25-0.5*BC47/(AO53*AR52)) -> -0.5092624794 | BG47: =-6*AO53*(BD47*(0.5*AO53-AO55)-BE47*(0.5*AO53-AO55)-(BD47+BE47)*AO53*BC47/(AO53*AR52)) -> 0.005724819042 | BH47: =6*AO53*((BD47*AO55-BE47*(AO53-AO55))*(0.5*AO53-AO55)-(BD47*AO55+BE47*(AO53-AO55))*BC47/AR52) -> -0.004339768005 | BI47: =(3*BG47-BF47^2)/3 -> -0.08072460526 | BJ47: =(9*BG47*BF47-27*BH47-2*BF47^3)/27 -> 0.01315138908 | BK47: =0.5*BJ47*(3/ABS(BI47))^(3/2) -> 1.489754198 | BL47: =IF(BI47>0,SINH(ASINH(BK47)/3),IF(BK47>=1,COSH(ACOSH(BK47)/3),IF(BK47<=-1,-COSH(ACOSH(ABS(BK47))/3),COS(ACOS(BK47)/3)))) -> 1.050903608 | BM47: =AZ47/AO53 -> 1.356383811 | BN47: =0.5*BM47*(0.5-BM47/3)+BD47*(0.5-AO55/AO53)*(BM47-AO55/AO53)/BM47+BE47*(0.5-AO55/AO53)*(1-AO55/AO53-BM47)/BM47 -> 0.03749160218 | BO47: =IF(BL47*SQRT(4*ABS(BI47)/3)-BF47/3<=AO53,AO52*(1-AO51*AV47/AO50),AO52*(1-AO51*AV47/AO50-(1-AO51)*BV47/AO50)) -> 30369.28398 | BP47: =(1+BD47+BE47)*AO53*AO54 -> 0.1985688976 | BQ47: =0.5*(AO53-AO55)*(BE47-BD47)*AO53*AO54 -> 0 | BR47: =AO54*AO53^3/12+(0.5*AO53-AO55)^2*(BD47+BE47)*AO54*AO53 -> 0.003061245653 | BS47: =BQ47/BP47 -> 0 | BT47: =BR47-BP47*BS47^2 -> 0.003061245653 | BU47: =AR52/BP47+(BC47+BS47*AR52)*(0.5*AO53+BS47)/BT47 -> 20.96895593 | BV47: =AR52/BP47+(BC47+BS47*AR52)*(-0.5*AO53+BS47)/BT47 -> 5.509499864 | BW47: =AR52*BT47/((BC47+AR52*BS47)*BP47)+(0.5*AO53+BS47) -> 0.5755847903 | BZ47: A | CA47: =AO30 -> 140 | CB47: =(N25*$N$35+O25*$O$35-P25*$P$35)/1000+0.125*Q25*($N$12/1000)^2+0.001 -> 4.411
AN48: fck | AO48: =$N$7 -> 40 | AP48: MPa | AT48: =BC48-AR50*BA48 -> 0.0579059511 | AU48: =BA48/BA47 -> 0.6114262197 | AV48: =IF(BL48*SQRT(4*ABS(BI48)/3)-BF48/3<=AO53,BC48/(BN48*AO54*AO53^2),BU48) -> 17.48846172 | AW48: =IF(BL48*SQRT(4*ABS(BI48)/3)-BF48/3<=AO53,0,BV48) -> 8.989994076 | AX48: =BB48*(AZ48-AO55)*AV48/AZ48 -> 92.4851416 | AY48: =BB48*(AO53-AO55-AZ48)*AV48/AZ48 -> -57.87322439 | AZ48: =IF(BL48*SQRT(4*ABS(BI48)/3)-BF48/3<=AO53,BL48*SQRT(4*ABS(BI48)/3)-BF48/3,BW48) -> 0.8732481962 | BA48: =0.1*(AV48/(AZ48*BO48))*AO59^2 -> 0.001293825136 | BB48: =AO56 -> 5.678517174 | BC48: =AR53+BA47*AR50 -> 0.06130728656 | BD48: =BB48*AO57/(AO53*AO54) -> 0.02650098458 | BE48: =BB48*AO58/(AO53*AO54) -> 0.02650098458 | BF48: =-6*AO53*(0.25-0.5*BC48/(AO53*AR52)) -> -0.5665671147 | BG48: =-6*AO53*(BD48*(0.5*AO53-AO55)-BE48*(0.5*AO53-AO55)-(BD48+BE48)*AO53*BC48/(AO53*AR52)) -> 0.003147082871 | BH48: =6*AO53*((BD48*AO55-BE48*(AO53-AO55))*(0.5*AO53-AO55)-(BD48*AO55+BE48*(AO53-AO55))*BC48/AR52) -> -0.003792833678 | BI48: =(3*BG48-BF48^2)/3 -> -0.1038523489 | BJ48: =(9*BG48*BF48-27*BH48-2*BF48^3)/27 -> 0.01667012454 | BK48: =0.5*BJ48*(3/ABS(BI48))^(3/2) -> 1.294095255 | BL48: =IF(BI48>0,SINH(ASINH(BK48)/3),IF(BK48>=1,COSH(ACOSH(BK48)/3),IF(BK48<=-1,-COSH(ACOSH(ABS(BK48))/3),COS(ACOS(BK48)/3)))) -> 1.031352882 | BM48: =AZ48/AO53 -> 2.057837066 | BN48: =0.5*BM48*(0.5-BM48/3)+BD48*(0.5-AO55/AO53)*(BM48-AO55/AO53)/BM48+BE48*(0.5-AO55/AO53)*(1-AO55/AO53-BM48)/BM48 -> -0.1880107297 | BO48: =IF(BL48*SQRT(4*ABS(BI48)/3)-BF48/3<=AO53,AO52*(1-AO51*AV48/AO50),AO52*(1-AO51*AV48/AO50-(1-AO51)*BV48/AO50)) -> 27304.66861 | BP48: =(1+BD48+BE48)*AO53*AO54 -> 0.1985688976 | BQ48: =0.5*(AO53-AO55)*(BE48-BD48)*AO53*AO54 -> 0 | BR48: =AO54*AO53^3/12+(0.5*AO53-AO55)^2*(BD48+BE48)*AO54*AO53 -> 0.003061245653 | BS48: =BQ48/BP48 -> 0 | BT48: =BR48-BP48*BS48^2 -> 0.003061245653 | BU48: =AR52/BP48+(BC48+BS48*AR52)*(0.5*AO53+BS48)/BT48 -> 17.48846172 | BV48: =AR52/BP48+(BC48+BS48*AR52)*(-0.5*AO53+BS48)/BT48 -> 8.989994076 | BW48: =AR52*BT48/((BC48+AR52*BS48)*BP48)+(0.5*AO53+BS48) -> 0.8732481962 | BZ48: B | CA48: =AO31 -> 311.1111111 | CB48: 55.74433333
AN49: Es | AO49: 200000 | AP49: MPa | AQ49: Max_N | AR49: =(AO53*AO54+AO56*(AO57+AO58))*AO50/(1+(12*(AO50/AO52)/PI()^2)*(AO59/AO53)^2) -> 6.99637748 | AT49: =BC49-AR50*BA49 -> 0.05584832928 | AU49: =BA49/BA48 -> 0.9694249663 | AV49: =IF(BL49*SQRT(4*ABS(BI49)/3)-BF49/3<=AO53,BC49/(BN49*AO54*AO53^2),BU49) -> 17.33863908 | AW49: =IF(BL49*SQRT(4*ABS(BI49)/3)-BF49/3<=AO53,0,BV49) -> 9.139816713 | AX49: =BB49*(AZ49-AO55)*AV49/AZ49 -> 91.87495528 | AY49: =BB49*(AO53-AO55-AZ49)*AV49/AZ49 -> -58.48341071 | AZ49: =IF(BL49*SQRT(4*ABS(BI49)/3)-BF49/3<=AO53,BL49*SQRT(4*ABS(BI49)/3)-BF49/3,BW49) -> 0.8974086284 | BA49: =0.1*(AV49/(AZ49*BO49))*AO59^2 -> 0.001254266389 | BB49: =AO56 -> 5.678517174 | BC49: =AR53+BA48*AR50 -> 0.0591456688 | BD49: =BB49*AO57/(AO53*AO54) -> 0.02650098458 | BE49: =BB49*AO58/(AO53*AO54) -> 0.02650098458 | BF49: =-6*AO53*(0.25-0.5*BC49/(AO53*AR52)) -> -0.5690338711 | BG49: =-6*AO53*(BD49*(0.5*AO53-AO55)-BE49*(0.5*AO53-AO55)-(BD49+BE49)*AO53*BC49/(AO53*AR52)) -> 0.00303612069 | BH49: =6*AO53*((BD49*AO55-BE49*(AO53-AO55))*(0.5*AO53-AO55)-(BD49*AO55+BE49*(AO53-AO55))*BC49/AR52) -> -0.003769290142 | BI49: =(3*BG49-BF49^2)/3 -> -0.1048970615 | BJ49: =(9*BG49*BF49-27*BH49-2*BF49^3)/27 -> 0.01684176863 | BK49: =0.5*BJ49*(3/ABS(BI49))^(3/2) -> 1.287936941 | BL49: 1.030721678 | BM49: =AZ49/AO53 -> 2.114771891 | BN49: =0.5*BM49*(0.5-BM49/3)+BD49*(0.5-AO55/AO53)*(BM49-AO55/AO53)/BM49+BE49*(0.5-AO55/AO53)*(1-AO55/AO53-BM49)/BM49 -> -0.2134606569 | BO49: =IF(BL49*SQRT(4*ABS(BI49)/3)-BF49/3<=AO53,AO52*(1-AO51*AV49/AO50),AO52*(1-AO51*AV49/AO50-(1-AO51)*BV49/AO50)) -> 27172.74804 | BP49: =(1+BD49+BE49)*AO53*AO54 -> 0.1985688976 | BQ49: =0.5*(AO53-AO55)*(BE49-BD49)*AO53*AO54 -> 0 | BR49: =AO54*AO53^3/12+(0.5*AO53-AO55)^2*(BD49+BE49)*AO54*AO53 -> 0.003061245653 | BS49: 0 | BT49: 0.003061245653 | BU49: =AR52/BP49+(BC49+BS49*AR52)*(0.5*AO53+BS49)/BT49 -> 17.33863908 | BV49: =AR52/BP49+(BC49+BS49*AR52)*(-0.5*AO53+BS49)/BT49 -> 9.139816713 | BW49: =AR52*BT49/((BC49+AR52*BS49)*BP49)+(0.5*AO53+BS49) -> 0.8974086284 | BZ49: C | CA49: 2628.888889 | CB49: 55.74433333
AN50: fcd | AO50: =AO48/AO46 -> 40 | AP50: MPa | AQ50: Nd | AR50: =INDEX(BZ47:CB56,BE32,2)/1000+0.00001 -> 2.628898889 | AS50: MN | AT50: =BC50-AR50*BA50 -> 0.05574936207 | AU50: 0.9984749115 | AV50: =IF(BL50*SQRT(4*ABS(BI50)/3)-BF50/3<=AO53,BC50/(BN50*AO54*AO53^2),BU50) -> 17.33143108 | AW50: =IF(BL50*SQRT(4*ABS(BI50)/3)-BF50/3<=AO53,0,BV50) -> 9.147024716 | AX50: =BB50*(AZ50-AO55)*AV50/AZ50 -> 91.84559907 | AY50: =BB50*(AO53-AO55-AZ50)*AV50/AZ50 -> -58.51276692 | AZ50: =IF(BL50*SQRT(4*ABS(BI50)/3)-BF50/3<=AO53,BL50*SQRT(4*ABS(BI50)/3)-BF50/3,BW50) -> 0.8986155961 | BA50: =0.1*(AV50/(AZ50*BO50))*AO59^2 -> 0.001252353522 | BB50: =AO56 -> 5.678517174 | BC50: =AR53+BA49*AR50 -> 0.05904167285 | BD50: =BB50*AO57/(AO53*AO54) -> 0.02650098458 | BE50: =BB50*AO58/(AO53*AO54) -> 0.02650098458 | BF50: =-6*AO53*(0.25-0.5*BC50/(AO53*AR52)) -> -0.5691525474 | BG50: =-6*AO53*(BD50*(0.5*AO53-AO55)-BE50*(0.5*AO53-AO55)-(BD50+BE50)*AO53*BC50/(AO53*AR52)) -> 0.003030782273 | BH50: =6*AO53*((BD50*AO55-BE50*(AO53-AO55))*(0.5*AO53-AO55)-(BD50*AO55+BE50*(AO53-AO55))*BC50/AR52) -> -0.003768157457 | BI50: -0.1049474251 | BJ50: 0.01685006982 | BK50: 1.2876443 | BL50: 1.030691658 | BM50: =AZ50/AO53 -> 2.117616148 | BN50: =0.5*BM50*(0.5-BM50/3)+BD50*(0.5-AO55/AO53)*(BM50-AO55/AO53)/BM50+BE50*(0.5-AO55/AO53)*(1-AO55/AO53-BM50)/BM50 -> -0.2147602552 | BO50: =IF(BL50*SQRT(4*ABS(BI50)/3)-BF50/3<=AO53,AO52*(1-AO51*AV50/AO50),AO52*(1-AO51*AV50/AO50-(1-AO51)*BV50/AO50)) -> 27166.40131 | BP50: =(1+BD50+BE50)*AO53*AO54 -> 0.1985688976 | BQ50: =0.5*(AO53-AO55)*(BE50-BD50)*AO53*AO54 -> 0 | BR50: =AO54*AO53^3/12+(0.5*AO53-AO55)^2*(BD50+BE50)*AO54*AO53 -> 0.003061245653 | BS50: 0 | BT50: 0.003061245653 | BU50: =AR52/BP50+(BC50+BS50*AR52)*(0.5*AO53+BS50)/BT50 -> 17.33143108 | BV50: =AR52/BP50+(BC50+BS50*AR52)*(-0.5*AO53+BS50)/BT50 -> 9.147024716 | BW50: =AR52*BT50/((BC50+AR52*BS50)*BP50)+(0.5*AO53+BS50) -> 0.8986155961 | BZ50: D | CA50: 2800 | CB50: 4.411
AN51: k | AO51: 0 | AQ51: Nf | AR51: 0 | AS51: MN | AT51: =BC51-AR50*BA51 -> 0.05574457656 | AU51: 0.9999261235 | AV51: =IF(BL51*SQRT(4*ABS(BI51)/3)-BF51/3<=AO53,BC51/(BN51*AO54*AO53^2),BU51) -> 17.33108254 | AW51: =IF(BL51*SQRT(4*ABS(BI51)/3)-BF51/3<=AO53,0,BV51) -> 9.147373259 | AX51: =BB51*(AZ51-AO55)*AV51/AZ51 -> 91.84417954 | AY51: =BB51*(AO53-AO55-AZ51)*AV51/AZ51 -> -58.51418644 | AZ51: =IF(BL51*SQRT(4*ABS(BI51)/3)-BF51/3<=AO53,BL51*SQRT(4*ABS(BI51)/3)-BF51/3,BW51) -> 0.8986740669 | BA51: =0.1*(AV51/(AZ51*BO51))*AO59^2 -> 0.001252261002 | BB51: =AO56 -> 5.678517174 | BC51: =AR53+BA50*AR50 -> 0.05903664412 | BD51: =BB51*AO57/(AO53*AO54) -> 0.02650098458 | BE51: =BB51*AO58/(AO53*AO54) -> 0.02650098458 | BF51: =-6*AO53*(0.25-0.5*BC51/(AO53*AR52)) -> -0.569158286 | BG51: =-6*AO53*(BD51*(0.5*AO53-AO55)-BE51*(0.5*AO53-AO55)-(BD51+BE51)*AO53*BC51/(AO53*AR52)) -> 0.003030524133 | BH51: =6*AO53*((BD51*AO55-BE51*(AO53-AO55))*(0.5*AO53-AO55)-(BD51*AO55+BE51*(AO53-AO55))*BC51/AR52) -> -0.003768102685 | BI51: -0.1049498607 | BJ51: 0.01685047132 | BK51: 1.287630157 | BL51: 1.030690207 | BM51: =AZ51/AO53 -> 2.117753937 | BN51: =0.5*BM51*(0.5-BM51/3)+BD51*(0.5-AO55/AO53)*(BM51-AO55/AO53)/BM51+BE51*(0.5-AO55/AO53)*(1-AO55/AO53-BM51)/BM51 -> -0.2148232816 | BO51: =IF(BL51*SQRT(4*ABS(BI51)/3)-BF51/3<=AO53,AO52*(1-AO51*AV51/AO50),AO52*(1-AO51*AV51/AO50-(1-AO51)*BV51/AO50)) -> 27166.09442 | BP51: =(1+BD51+BE51)*AO53*AO54 -> 0.1985688976 | BQ51: =0.5*(AO53-AO55)*(BE51-BD51)*AO53*AO54 -> 0 | BR51: =AO54*AO53^3/12+(0.5*AO53-AO55)^2*(BD51+BE51)*AO54*AO53 -> 0.003061245653 | BS51: 0 | BT51: 0.003061245653 | BU51: =AR52/BP51+(BC51+BS51*AR52)*(0.5*AO53+BS51)/BT51 -> 17.33108254 | BV51: =AR52/BP51+(BC51+BS51*AR52)*(-0.5*AO53+BS51)/BT51 -> 9.147373259 | BW51: =AR52*BT51/((BC51+AR52*BS51)*BP51)+(0.5*AO53+BS51) -> 0.8986740669 | BZ51: E | CA51: 388.8888889 | CB51: 76.87266667
AN52: Ecm | AO52: =1000*22*((AO50+8)/10)^0.3 -> 35220.46229 | AP52: MPa | AQ52: N | AR52: =AR51+AR50 -> 2.628898889 | AS52: MN | AT52: =BC52-AR50*BA52 -> 0.0557443451 | AU52: 0.9999964265 | AV52: =IF(BL52*SQRT(4*ABS(BI52)/3)-BF52/3<=AO53,BC52/(BN52*AO54*AO53^2),BU52) -> 17.33106568 | AW52: =IF(BL52*SQRT(4*ABS(BI52)/3)-BF52/3<=AO53,0,BV52) -> 9.147390117 | AX52: =BB52*(AZ52-AO55)*AV52/AZ52 -> 91.84411089 | AY52: =BB52*(AO53-AO55-AZ52)*AV52/AZ52 -> -58.5142551 | AZ52: =IF(BL52*SQRT(4*ABS(BI52)/3)-BF52/3<=AO53,BL52*SQRT(4*ABS(BI52)/3)-BF52/3,BW52) -> 0.8986768952 | BA52: =0.1*(AV52/(AZ52*BO52))*AO59^2 -> 0.001252256528 | BB52: =AO56 -> 5.678517174 | BC52: =AR53+BA51*AR50 -> 0.05903640089 | BD52: =BB52*AO57/(AO53*AO54) -> 0.02650098458 | BE52: =BB52*AO58/(AO53*AO54) -> 0.02650098458 | BF52: =-6*AO53*(0.25-0.5*BC52/(AO53*AR52)) -> -0.5691585636 | BG52: =-6*AO53*(BD52*(0.5*AO53-AO55)-BE52*(0.5*AO53-AO55)-(BD52+BE52)*AO53*BC52/(AO53*AR52)) -> 0.003030511648 | BH52: =6*AO53*((BD52*AO55-BE52*(AO53-AO55))*(0.5*AO53-AO55)-(BD52*AO55+BE52*(AO53-AO55))*BC52/AR52) -> -0.003768100036 | BI52: =(3*BG52-BF52^2)/3 -> -0.1049499785 | BJ52: =(9*BG52*BF52-27*BH52-2*BF52^3)/27 -> 0.01685049074 | BK52: =0.5*BJ52*(3/ABS(BI52))^(3/2) -> 1.287629473 | BL52: =IF(BI52>0,SINH(ASINH(BK52)/3),IF(BK52>=1,COSH(ACOSH(BK52)/3),IF(BK52<=-1,-COSH(ACOSH(ABS(BK52))/3),COS(ACOS(BK52)/3)))) -> 1.030690137 | BM52: =AZ52/AO53 -> 2.117760602 | BN52: =0.5*BM52*(0.5-BM52/3)+BD52*(0.5-AO55/AO53)*(BM52-AO55/AO53)/BM52+BE52*(0.5-AO55/AO53)*(1-AO55/AO53-BM52)/BM52 -> -0.2148263305 | BO52: =IF(BL52*SQRT(4*ABS(BI52)/3)-BF52/3<=AO53,AO52*(1-AO51*AV52/AO50),AO52*(1-AO51*AV52/AO50-(1-AO51)*BV52/AO50)) -> 27166.07957 | BP52: =(1+BD52+BE52)*AO53*AO54 -> 0.1985688976 | BQ52: =0.5*(AO53-AO55)*(BE52-BD52)*AO53*AO54 -> 0 | BR52: =AO54*AO53^3/12+(0.5*AO53-AO55)^2*(BD52+BE52)*AO54*AO53 -> 0.003061245653 | BS52: 0 | BT52: 0.003061245653 | BU52: =AR52/BP52+(BC52+BS52*AR52)*(0.5*AO53+BS52)/BT52 -> 17.33106568 | BV52: =AR52/BP52+(BC52+BS52*AR52)*(-0.5*AO53+BS52)/BT52 -> 9.147390117 | BW52: =AR52*BT52/((BC52+AR52*BS52)*BP52)+(0.5*AO53+BS52) -> 0.8986768952 | BZ52: F | CA52: 2706.666667 | CB52: 76.87266667
AN53: h | AO53: =$BK$22/1000 -> 0.4243524479 | AP53: m | AQ53: Mo | AR53: =INDEX(BZ47:CB56,BE32,3)/1000 -> 0.05574433333 | AS53: MNm | AT53: =BC53-AR50*BA53 -> 0.0557443339 | AU53: 0.9999998272 | AV53: =IF(BL53*SQRT(4*ABS(BI53)/3)-BF53/3<=AO53,BC53/(BN53*AO54*AO53^2),BU53) -> 17.33106486 | AW53: =IF(BL53*SQRT(4*ABS(BI53)/3)-BF53/3<=AO53,0,BV53) -> 9.147390933 | AX53: =BB53*(AZ53-AO55)*AV53/AZ53 -> 91.84410756 | AY53: =BB53*(AO53-AO55-AZ53)*AV53/AZ53 -> -58.51425842 | AZ53: =IF(BL53*SQRT(4*ABS(BI53)/3)-BF53/3<=AO53,BL53*SQRT(4*ABS(BI53)/3)-BF53/3,BW53) -> 0.898677032 | BA53: =0.1*(AV53/(AZ53*BO53))*AO59^2 -> 0.001252256311 | BB53: =AO56 -> 5.678517174 | BC53: =AR53+BA52*AR50 -> 0.05903638913 | BD53: =BB53*AO57/(AO53*AO54) -> 0.02650098458 | BE53: =BB53*AO58/(AO53*AO54) -> 0.02650098458 | BF53: =-6*AO53*(0.25-0.5*BC53/(AO53*AR52)) -> -0.569158577 | BG53: =-6*AO53*(BD53*(0.5*AO53-AO55)-BE53*(0.5*AO53-AO55)-(BD53+BE53)*AO53*BC53/(AO53*AR52)) -> 0.003030511044 | BH53: =6*AO53*((BD53*AO55-BE53*(AO53-AO55))*(0.5*AO53-AO55)-(BD53*AO55+BE53*(AO53-AO55))*BC53/AR52) -> -0.003768099908 | BI53: -0.1049499842 | BJ53: 0.01685049168 | BK53: 1.28762944 | BL53: 1.030690134 | BM53: =AZ53/AO53 -> 2.117760924 | BN53: =0.5*BM53*(0.5-BM53/3)+BD53*(0.5-AO55/AO53)*(BM53-AO55/AO53)/BM53+BE53*(0.5-AO55/AO53)*(1-AO55/AO53-BM53)/BM53 -> -0.2148264779 | BO53: =IF(BL53*SQRT(4*ABS(BI53)/3)-BF53/3<=AO53,AO52*(1-AO51*AV53/AO50),AO52*(1-AO51*AV53/AO50-(1-AO51)*BV53/AO50)) -> 27166.07885 | BP53: =(1+BD53+BE53)*AO53*AO54 -> 0.1985688976 | BQ53: =0.5*(AO53-AO55)*(BE53-BD53)*AO53*AO54 -> 0 | BR53: =AO54*AO53^3/12+(0.5*AO53-AO55)^2*(BD53+BE53)*AO54*AO53 -> 0.003061245653 | BS53: 0 | BT53: 0.003061245653 | BU53: =AR52/BP53+(BC53+BS53*AR52)*(0.5*AO53+BS53)/BT53 -> 17.33106486 | BV53: =AR52/BP53+(BC53+BS53*AR52)*(-0.5*AO53+BS53)/BT53 -> 9.147390933 | BW53: =AR52*BT53/((BC53+AR52*BS53)*BP53)+(0.5*AO53+BS53) -> 0.898677032 | BZ53: G | CA53: 3017.777778 | CB53: 53.53933333
AN54: b | AO54: =$BK$23/1000 -> 0.4443808442 | AP54: m | AQ54: u | AR54: =BA59 -> 0.0012522563 | AS54: m | AT54: =BC54-AR50*BA54 -> 0.05574433336 | AU54: 0.9999999916 | AV54: =IF(BL54*SQRT(4*ABS(BI54)/3)-BF54/3<=AO53,BC54/(BN54*AO54*AO53^2),BU54) -> 17.33106482 | AW54: =IF(BL54*SQRT(4*ABS(BI54)/3)-BF54/3<=AO53,0,BV54) -> 9.147390972 | AX54: =BB54*(AZ54-AO55)*AV54/AZ54 -> 91.8441074 | AY54: =BB54*(AO53-AO55-AZ54)*AV54/AZ54 -> -58.51425858 | AZ54: =IF(BL54*SQRT(4*ABS(BI54)/3)-BF54/3<=AO53,BL54*SQRT(4*ABS(BI54)/3)-BF54/3,BW54) -> 0.8986770387 | BA54: =0.1*(AV54/(AZ54*BO54))*AO59^2 -> 0.001252256301 | BB54: =AO56 -> 5.678517174 | BC54: =AR53+BA53*AR50 -> 0.05903638856 | BD54: =BB54*AO57/(AO53*AO54) -> 0.02650098458 | BE54: =BB54*AO58/(AO53*AO54) -> 0.02650098458 | BF54: =-6*AO53*(0.25-0.5*BC54/(AO53*AR52)) -> -0.5691585776 | BG54: =-6*AO53*(BD54*(0.5*AO53-AO55)-BE54*(0.5*AO53-AO55)-(BD54+BE54)*AO53*BC54/(AO53*AR52)) -> 0.003030511015 | BH54: =6*AO53*((BD54*AO55-BE54*(AO53-AO55))*(0.5*AO53-AO55)-(BD54*AO55+BE54*(AO53-AO55))*BC54/AR52) -> -0.003768099902 | BI54: -0.1049499845 | BJ54: 0.01685049173 | BK54: 1.287629439 | BL54: 1.030690133 | BM54: =AZ54/AO53 -> 2.11776094 | BN54: =0.5*BM54*(0.5-BM54/3)+BD54*(0.5-AO55/AO53)*(BM54-AO55/AO53)/BM54+BE54*(0.5-AO55/AO53)*(1-AO55/AO53-BM54)/BM54 -> -0.214826485 | BO54: =IF(BL54*SQRT(4*ABS(BI54)/3)-BF54/3<=AO53,AO52*(1-AO51*AV54/AO50),AO52*(1-AO51*AV54/AO50-(1-AO51)*BV54/AO50)) -> 27166.07882 | BP54: =(1+BD54+BE54)*AO53*AO54 -> 0.1985688976 | BQ54: =0.5*(AO53-AO55)*(BE54-BD54)*AO53*AO54 -> 0 | BR54: =AO54*AO53^3/12+(0.5*AO53-AO55)^2*(BD54+BE54)*AO54*AO53 -> 0.003061245653 | BS54: 0 | BT54: 0.003061245653 | BU54: =AR52/BP54+(BC54+BS54*AR52)*(0.5*AO53+BS54)/BT54 -> 17.33106482 | BV54: =AR52/BP54+(BC54+BS54*AR52)*(-0.5*AO53+BS54)/BT54 -> 9.147390972 | BW54: =AR52*BT54/((BC54+AR52*BS54)*BP54)+(0.5*AO53+BS54) -> 0.8986770387 | BZ54: H | CA54: 2955.555556 | CB54: 2.206
AN55: a | AO55: =$BK$24/1000 -> 0.06 | AP55: m | AQ55: ec,max | AR55: =1000*AV59/BO59 -> 0.637967111 | AS55: o/oo | AT55: =BC55-AR50*BA55 -> 0.05574433333 | AU55: 0.9999999996 | AV55: =IF(BL55*SQRT(4*ABS(BI55)/3)-BF55/3<=AO53,BC55/(BN55*AO54*AO53^2),BU55) -> 17.33106482 | AW55: =IF(BL55*SQRT(4*ABS(BI55)/3)-BF55/3<=AO53,0,BV55) -> 9.147390974 | AX55: =BB55*(AZ55-AO55)*AV55/AZ55 -> 91.8441074 | AY55: =BB55*(AO53-AO55-AZ55)*AV55/AZ55 -> -58.51425859 | AZ55: =IF(BL55*SQRT(4*ABS(BI55)/3)-BF55/3<=AO53,BL55*SQRT(4*ABS(BI55)/3)-BF55/3,BW55) -> 0.898677039 | BA55: =0.1*(AV55/(AZ55*BO55))*AO59^2 -> 0.0012522563 | BB55: =AO56 -> 5.678517174 | BC55: =AR53+BA54*AR50 -> 0.05903638853 | BD55: =BB55*AO57/(AO53*AO54) -> 0.02650098458 | BE55: =BB55*AO58/(AO53*AO54) -> 0.02650098458 | BF55: =-6*AO53*(0.25-0.5*BC55/(AO53*AR52)) -> -0.5691585777 | BG55: =-6*AO53*(BD55*(0.5*AO53-AO55)-BE55*(0.5*AO53-AO55)-(BD55+BE55)*AO53*BC55/(AO53*AR52)) -> 0.003030511013 | BH55: =6*AO53*((BD55*AO55-BE55*(AO53-AO55))*(0.5*AO53-AO55)-(BD55*AO55+BE55*(AO53-AO55))*BC55/AR52) -> -0.003768099902 | BI55: -0.1049499845 | BJ55: 0.01685049173 | BK55: 1.287629439 | BL55: 1.030690133 | BM55: =AZ55/AO53 -> 2.11776094 | BN55: =0.5*BM55*(0.5-BM55/3)+BD55*(0.5-AO55/AO53)*(BM55-AO55/AO53)/BM55+BE55*(0.5-AO55/AO53)*(1-AO55/AO53-BM55)/BM55 -> -0.2148264854 | BO55: =IF(BL55*SQRT(4*ABS(BI55)/3)-BF55/3<=AO53,AO52*(1-AO51*AV55/AO50),AO52*(1-AO51*AV55/AO50-(1-AO51)*BV55/AO50)) -> 27166.07882 | BP55: =(1+BD55+BE55)*AO53*AO54 -> 0.1985688976 | BQ55: =0.5*(AO53-AO55)*(BE55-BD55)*AO53*AO54 -> 0 | BR55: =AO54*AO53^3/12+(0.5*AO53-AO55)^2*(BD55+BE55)*AO54*AO53 -> 0.003061245653 | BS55: 0 | BT55: 0.003061245653 | BU55: =AR52/BP55+(BC55+BS55*AR52)*(0.5*AO53+BS55)/BT55 -> 17.33106482 | BV55: =AR52/BP55+(BC55+BS55*AR52)*(-0.5*AO53+BS55)/BT55 -> 9.147390974 | BW55: =AR52*BT55/((BC55+AR52*BS55)*BP55)+(0.5*AO53+BS55) -> 0.898677039 | BZ55: I | CA55: 3188.888889 | CB55: 2.206
AN56: a | AO56: =AO49/AO52 -> 5.678517174 | AQ56: ec,min | AR56: =1000*AW59/BO59 -> 0.3367210644 | AS56: o/oo | AT56: =BC56-AR50*BA56 -> 0.05574433333 | AU56: =BA56/BA55 -> 1 | AV56: =IF(BL56*SQRT(4*ABS(BI56)/3)-BF56/3<=AO53,BC56/(BN56*AO54*AO53^2),BU56) -> 17.33106482 | AW56: =IF(BL56*SQRT(4*ABS(BI56)/3)-BF56/3<=AO53,0,BV56) -> 9.147390974 | AX56: =BB56*(AZ56-AO55)*AV56/AZ56 -> 91.8441074 | AY56: =BB56*(AO53-AO55-AZ56)*AV56/AZ56 -> -58.51425859 | AZ56: =IF(BL56*SQRT(4*ABS(BI56)/3)-BF56/3<=AO53,BL56*SQRT(4*ABS(BI56)/3)-BF56/3,BW56) -> 0.898677039 | BA56: =0.1*(AV56/(AZ56*BO56))*AO59^2 -> 0.0012522563 | BB56: =AO56 -> 5.678517174 | BC56: =AR53+BA55*AR50 -> 0.05903638853 | BD56: =BB56*AO57/(AO53*AO54) -> 0.02650098458 | BE56: =BB56*AO58/(AO53*AO54) -> 0.02650098458 | BF56: =-6*AO53*(0.25-0.5*BC56/(AO53*AR52)) -> -0.5691585777 | BG56: =-6*AO53*(BD56*(0.5*AO53-AO55)-BE56*(0.5*AO53-AO55)-(BD56+BE56)*AO53*BC56/(AO53*AR52)) -> 0.003030511013 | BH56: =6*AO53*((BD56*AO55-BE56*(AO53-AO55))*(0.5*AO53-AO55)-(BD56*AO55+BE56*(AO53-AO55))*BC56/AR52) -> -0.003768099902 | BI56: -0.1049499845 | BJ56: 0.01685049173 | BK56: 1.287629439 | BL56: 1.030690133 | BM56: =AZ56/AO53 -> 2.11776094 | BN56: =0.5*BM56*(0.5-BM56/3)+BD56*(0.5-AO55/AO53)*(BM56-AO55/AO53)/BM56+BE56*(0.5-AO55/AO53)*(1-AO55/AO53-BM56)/BM56 -> -0.2148264854 | BO56: =IF(BL56*SQRT(4*ABS(BI56)/3)-BF56/3<=AO53,AO52*(1-AO51*AV56/AO50),AO52*(1-AO51*AV56/AO50-(1-AO51)*BV56/AO50)) -> 27166.07882 | BP56: =(1+BD56+BE56)*AO53*AO54 -> 0.1985688976 | BQ56: =0.5*(AO53-AO55)*(BE56-BD56)*AO53*AO54 -> 0 | BR56: =AO54*AO53^3/12+(0.5*AO53-AO55)^2*(BD56+BE56)*AO54*AO53 -> 0.003061245653 | BS56: 0 | BT56: 0.003061245653 | BU56: =AR52/BP56+(BC56+BS56*AR52)*(0.5*AO53+BS56)/BT56 -> 17.33106482 | BV56: =AR52/BP56+(BC56+BS56*AR52)*(-0.5*AO53+BS56)/BT56 -> 9.147390974 | BW56: =AR52*BT56/((BC56+AR52*BS56)*BP56)+(0.5*AO53+BS56) -> 0.898677039 | BZ56: INGEN
AN57: Ac | AO57: =$AP$40/1000000 -> 0.0008800535664 | AP57: m2 | AQ57: sa,c | AR57: =AX59 -> 91.8441074 | AS57: MPa | AT57: =BC57-AR50*BA57 -> 0.05574433333 | AU57: =BA57/BA56 -> 1 | AV57: =IF(BL57*SQRT(4*ABS(BI57)/3)-BF57/3<=AO53,BC57/(BN57*AO54*AO53^2),BU57) -> 17.33106482 | AW57: =IF(BL57*SQRT(4*ABS(BI57)/3)-BF57/3<=AO53,0,BV57) -> 9.147390974 | AX57: =BB57*(AZ57-AO55)*AV57/AZ57 -> 91.8441074 | AY57: =BB57*(AO53-AO55-AZ57)*AV57/AZ57 -> -58.51425859 | AZ57: =IF(BL57*SQRT(4*ABS(BI57)/3)-BF57/3<=AO53,BL57*SQRT(4*ABS(BI57)/3)-BF57/3,BW57) -> 0.898677039 | BA57: =0.1*(AV57/(AZ57*BO57))*AO59^2 -> 0.0012522563 | BB57: =AO56 -> 5.678517174 | BC57: =AR53+BA56*AR50 -> 0.05903638853 | BD57: =BB57*AO57/(AO53*AO54) -> 0.02650098458 | BE57: =BB57*AO58/(AO53*AO54) -> 0.02650098458 | BF57: =-6*AO53*(0.25-0.5*BC57/(AO53*AR52)) -> -0.5691585777 | BG57: =-6*AO53*(BD57*(0.5*AO53-AO55)-BE57*(0.5*AO53-AO55)-(BD57+BE57)*AO53*BC57/(AO53*AR52)) -> 0.003030511013 | BH57: =6*AO53*((BD57*AO55-BE57*(AO53-AO55))*(0.5*AO53-AO55)-(BD57*AO55+BE57*(AO53-AO55))*BC57/AR52) -> -0.003768099902 | BI57: -0.1049499845 | BJ57: 0.01685049173 | BK57: 1.287629439 | BL57: 1.030690133 | BM57: =AZ57/AO53 -> 2.11776094 | BN57: =0.5*BM57*(0.5-BM57/3)+BD57*(0.5-AO55/AO53)*(BM57-AO55/AO53)/BM57+BE57*(0.5-AO55/AO53)*(1-AO55/AO53-BM57)/BM57 -> -0.2148264854 | BO57: =IF(BL57*SQRT(4*ABS(BI57)/3)-BF57/3<=AO53,AO52*(1-AO51*AV57/AO50),AO52*(1-AO51*AV57/AO50-(1-AO51)*BV57/AO50)) -> 27166.07882 | BP57: =(1+BD57+BE57)*AO53*AO54 -> 0.1985688976 | BQ57: =0.5*(AO53-AO55)*(BE57-BD57)*AO53*AO54 -> 0 | BR57: =AO54*AO53^3/12+(0.5*AO53-AO55)^2*(BD57+BE57)*AO54*AO53 -> 0.003061245653 | BS57: 0 | BT57: 0.003061245653 | BU57: =AR52/BP57+(BC57+BS57*AR52)*(0.5*AO53+BS57)/BT57 -> 17.33106482 | BV57: =AR52/BP57+(BC57+BS57*AR52)*(-0.5*AO53+BS57)/BT57 -> 9.147390974 | BW57: =AR52*BT57/((BC57+AR52*BS57)*BP57)+(0.5*AO53+BS57) -> 0.898677039
AN58: At | AO58: =$AP$41/1000000 -> 0.0008800535664 | AP58: m2 | AQ58: sa,t | AR58: =AY59 -> -58.51425859 | AS58: MPa | AT58: =BC58-AR50*BA58 -> 0.05574433333 | AU58: =BA58/BA57 -> 1 | AV58: =IF(BL58*SQRT(4*ABS(BI58)/3)-BF58/3<=AO53,BC58/(BN58*AO54*AO53^2),BU58) -> 17.33106482 | AW58: =IF(BL58*SQRT(4*ABS(BI58)/3)-BF58/3<=AO53,0,BV58) -> 9.147390974 | AX58: =BB58*(AZ58-AO55)*AV58/AZ58 -> 91.8441074 | AY58: =BB58*(AO53-AO55-AZ58)*AV58/AZ58 -> -58.51425859 | AZ58: =IF(BL58*SQRT(4*ABS(BI58)/3)-BF58/3<=AO53,BL58*SQRT(4*ABS(BI58)/3)-BF58/3,BW58) -> 0.898677039 | BA58: =0.1*(AV58/(AZ58*BO58))*AO59^2 -> 0.0012522563 | BB58: =AO56 -> 5.678517174 | BC58: =AR53+BA57*AR50 -> 0.05903638853 | BD58: =BB58*AO57/(AO53*AO54) -> 0.02650098458 | BE58: =BB58*AO58/(AO53*AO54) -> 0.02650098458 | BF58: =-6*AO53*(0.25-0.5*BC58/(AO53*AR52)) -> -0.5691585777 | BG58: =-6*AO53*(BD58*(0.5*AO53-AO55)-BE58*(0.5*AO53-AO55)-(BD58+BE58)*AO53*BC58/(AO53*AR52)) -> 0.003030511013 | BH58: =6*AO53*((BD58*AO55-BE58*(AO53-AO55))*(0.5*AO53-AO55)-(BD58*AO55+BE58*(AO53-AO55))*BC58/AR52) -> -0.003768099902 | BI58: -0.1049499845 | BJ58: 0.01685049173 | BK58: 1.287629439 | BL58: 1.030690133 | BM58: =AZ58/AO53 -> 2.11776094 | BN58: =0.5*BM58*(0.5-BM58/3)+BD58*(0.5-AO55/AO53)*(BM58-AO55/AO53)/BM58+BE58*(0.5-AO55/AO53)*(1-AO55/AO53-BM58)/BM58 -> -0.2148264854 | BO58: =IF(BL58*SQRT(4*ABS(BI58)/3)-BF58/3<=AO53,AO52*(1-AO51*AV58/AO50),AO52*(1-AO51*AV58/AO50-(1-AO51)*BV58/AO50)) -> 27166.07882 | BP58: =(1+BD58+BE58)*AO53*AO54 -> 0.1985688976 | BQ58: =0.5*(AO53-AO55)*(BE58-BD58)*AO53*AO54 -> 0 | BR58: =AO54*AO53^3/12+(0.5*AO53-AO55)^2*(BD58+BE58)*AO54*AO53 -> 0.003061245653 | BS58: 0 | BT58: 0.003061245653 | BU58: =AR52/BP58+(BC58+BS58*AR52)*(0.5*AO53+BS58)/BT58 -> 17.33106482 | BV58: =AR52/BP58+(BC58+BS58*AR52)*(-0.5*AO53+BS58)/BT58 -> 9.147390974 | BW58: =AR52*BT58/((BC58+AR52*BS58)*BP58)+(0.5*AO53+BS58) -> 0.898677039
AN59: L | AO59: =$N$12/1000 -> 4.2 | AP59: m | AQ59: hc | AR59: =AZ59 -> 0.898677039 | AS59: m | AT59: =BC59-AR50*BA59 -> 0.05574433333 | AU59: =BA59/BA58 -> 1 | AV59: =IF(BL59*SQRT(4*ABS(BI59)/3)-BF59/3<=AO53,BC59/(BN59*AO54*AO53^2),BU59) -> 17.33106482 | AW59: =IF(BL59*SQRT(4*ABS(BI59)/3)-BF59/3<=AO53,0,BV59) -> 9.147390974 | AX59: =BB59*(AZ59-AO55)*AV59/AZ59 -> 91.8441074 | AY59: =BB59*(AO53-AO55-AZ59)*AV59/AZ59 -> -58.51425859 | AZ59: =IF(BL59*SQRT(4*ABS(BI59)/3)-BF59/3<=AO53,BL59*SQRT(4*ABS(BI59)/3)-BF59/3,BW59) -> 0.898677039 | BA59: =0.1*(AV59/(AZ59*BO59))*AO59^2 -> 0.0012522563 | BB59: =AO56 -> 5.678517174 | BC59: =AR53+BA58*AR50 -> 0.05903638853 | BD59: =BB59*AO57/(AO53*AO54) -> 0.02650098458 | BE59: =BB59*AO58/(AO53*AO54) -> 0.02650098458 | BF59: =-6*AO53*(0.25-0.5*BC59/(AO53*AR52)) -> -0.5691585777 | BG59: =-6*AO53*(BD59*(0.5*AO53-AO55)-BE59*(0.5*AO53-AO55)-(BD59+BE59)*AO53*BC59/(AO53*AR52)) -> 0.003030511013 | BH59: =6*AO53*((BD59*AO55-BE59*(AO53-AO55))*(0.5*AO53-AO55)-(BD59*AO55+BE59*(AO53-AO55))*BC59/AR52) -> -0.003768099902 | BI59: -0.1049499845 | BJ59: 0.01685049173 | BK59: 1.287629439 | BL59: 1.030690133 | BM59: =AZ59/AO53 -> 2.11776094 | BN59: =0.5*BM59*(0.5-BM59/3)+BD59*(0.5-AO55/AO53)*(BM59-AO55/AO53)/BM59+BE59*(0.5-AO55/AO53)*(1-AO55/AO53-BM59)/BM59 -> -0.2148264854 | BO59: =IF(BL59*SQRT(4*ABS(BI59)/3)-BF59/3<=AO53,AO52*(1-AO51*AV59/AO50),AO52*(1-AO51*AV59/AO50-(1-AO51)*BV59/AO50)) -> 27166.07882 | BP59: =(1+BD59+BE59)*AO53*AO54 -> 0.1985688976 | BQ59: =0.5*(AO53-AO55)*(BE59-BD59)*AO53*AO54 -> 0 | BR59: =AO54*AO53^3/12+(0.5*AO53-AO55)^2*(BD59+BE59)*AO54*AO53 -> 0.003061245653 | BS59: 0 | BT59: 0.003061245653 | BU59: =AR52/BP59+(BC59+BS59*AR52)*(0.5*AO53+BS59)/BT59 -> 17.33106482 | BV59: =AR52/BP59+(BC59+BS59*AR52)*(-0.5*AO53+BS59)/BT59 -> 9.147390974 | BW59: =AR52*BT59/((BC59+AR52*BS59)*BP59)+(0.5*AO53+BS59) -> 0.898677039
AN60: gc | AO60: 1 | AQ60: Referencelast efter krybning | AT60: Mo | AV60: sc,max | AW60: sc,min | AX60: sc | AY60: st | AZ60: hc | BA60: u | BB60: a | BC60: Mt | BD60: a*fc | BE60: a*ft | BF60: B | BG60: C | BH60: D | BI60: p | BJ60: q | BK60: C' | BL60: y' | BM60: b | BN60: m | BO60: Ec | BP60: Atr | BQ60: Syt | BR60: Iyt | BS60: z | BT60: Io | BU60: sc | BV60: sm | BW60: hc
AN61: ga | AO61: 1 | AQ61: Kontrol | AR61: =IF(AND(BE32<10,ABS(1-AU73)>0.01),1,0) -> 0 | AT61: =BC61-AR64*BA61 -> 0.09808387437 | AV61: =IF(BL61*SQRT(4*ABS(BI61)/3)-BF61/3<=AO67,BC61/(BN61*AO68*AO67^2),BU61) -> 18.99532506 | AW61: =IF(BL61*SQRT(4*ABS(BI61)/3)-BF61/3<=AO67,0,BV61) -> 5.341119958 | AX61: =BB61*(AZ61-AO69)*AV61/AZ61 -> 266.3502255 | AY61: =BB61*(AO67-AO69-AZ61)*AV61/AZ61 -> -113.4985755 | AZ61: =IF(BL61*SQRT(4*ABS(BI61)/3)-BF61/3<=AO67,BL61*SQRT(4*ABS(BI61)/3)-BF61/3,BW61) -> 0.5903465362 | BA61: =0.1*(AV61/(AZ61*BO61))*AO73^2 -> 0.005112194675 | BB61: =AO70 -> 15.60822876 | BC61: =IF(AR67>0,AR67+AO67*AR64/20,0)+0.000000000001 -> 0.1115233173 | BD61: =BB61*AO71/(AO67*AO68) -> 0.07284180305 | BE61: =BB61*AO72/(AO67*AO68) -> 0.07284180305 | BF61: =-6*AO67*(0.25-0.5*BC61/(AO67*AR66)) -> -0.5092624794 | BG61: =-6*AO67*(BD61*(0.5*AO67-AO69)-BE61*(0.5*AO67-AO69)-(BD61+BE61)*AO67*BC61/(AO67*AR66)) -> 0.01573549616 | BH61: =6*AO67*((BD61*AO69-BE61*(AO67-AO69))*(0.5*AO67-AO69)-(BD61*AO69+BE61*(AO67-AO69))*BC61/AR66) -> -0.01192848233 | BI61: =(3*BG61-BF61^2)/3 -> -0.07071392814 | BJ61: =(9*BG61*BF61-27*BH61-2*BF61^3)/27 -> 0.01904074933 | BK61: =0.5*BJ61*(3/ABS(BI61))^(3/2) -> 2.630743328 | BL61: =IF(BI61>0,SINH(ASINH(BK61)/3),IF(BK61>=1,COSH(ACOSH(BK61)/3),IF(BK61<=-1,-COSH(ACOSH(ABS(BK61))/3),COS(ACOS(BK61)/3)))) -> 1.149785757 | BM61: =AZ61/AO67 -> 1.391170333 | BN61: =0.5*BM61*(0.5-BM61/3)+BD61*(0.5-AO69/AO67)*(BM61-AO69/AO67)/BM61+BE61*(0.5-AO69/AO67)*(1-AO69/AO67-BM61)/BM61 -> 0.03870042467 | BO61: =IF(BL61*SQRT(4*ABS(BI61)/3)-BF61/3<=AO67,AO66*(1-AO65*AV61/AO64),AO66*(1-AO65*AV61/AO64-(1-AO65)*BV61/AO64)) -> 11102.75887 | BP61: =(1+BD61+BE61)*AO67*AO68 -> 0.2160462538 | BQ61: =0.5*(AO67-AO69)*(BE61-BD61)*AO67*AO68 -> 0 | BR61: =AO68*AO67^3/12+(0.5*AO67-AO69)^2*(BD61+BE61)*AO68*AO67 -> 0.003465979331 | BS61: =BQ61/BP61 -> 0 | BT61: =BR61-BP61*BS61^2 -> 0.003465979331 | BU61: =AR66/BP61+(BC61+BS61*AR66)*(0.5*AO67+BS61)/BT61 -> 18.99532506 | BV61: =AR66/BP61+(BC61+BS61*AR66)*(-0.5*AO67+BS61)/BT61 -> 5.341119958 | BW61: =AR66*BT61/((BC61+AR66*BS61)*BP61)+(0.5*AO67+BS61) -> 0.5903465362
AN62: fck | AO62: =$N$7 -> 40 | AP62: MPa | AQ62: feff | AR62: =$Q$12 -> 1.748645162 | AT62: =BC62-AR64*BA62 -> 0.06017270952 | AU62: =BA62/BA61 -> 0.6704940661 | AV62: =IF(BL62*SQRT(4*ABS(BI62)/3)-BF62/3<=AO67,BC62/(BN62*AO68*AO67^2),BU62) -> 16.40343311 | AW62: =IF(BL62*SQRT(4*ABS(BI62)/3)-BF62/3<=AO67,0,BV62) -> 7.933011912 | AX62: =BB62*(AZ62-AO69)*AV62/AZ62 -> 237.3353573 | AY62: =BB62*(AO67-AO69-AZ62)*AV62/AZ62 -> -142.5134437 | AZ62: =IF(BL62*SQRT(4*ABS(BI62)/3)-BF62/3<=AO67,BL62*SQRT(4*ABS(BI62)/3)-BF62/3,BW62) -> 0.8217816836 | BA62: =0.1*(AV62/(AZ62*BO62))*AO73^2 -> 0.003427696194 | BB62: =AO70 -> 15.60822876 | BC62: =AR67+BA61*AR64 -> 0.06918377623 | BD62: =BB62*AO71/(AO67*AO68) -> 0.07284180305 | BE62: =BB62*AO72/(AO67*AO68) -> 0.07284180305 | BF62: =-6*AO67*(0.25-0.5*BC62/(AO67*AR66)) -> -0.5575787625 | BG62: =-6*AO67*(BD62*(0.5*AO67-AO69)-BE62*(0.5*AO67-AO69)-(BD62+BE62)*AO67*BC62/(AO67*AR66)) -> 0.009761555448 | BH62: =6*AO67*((BD62*AO69-BE62*(AO67-AO69))*(0.5*AO67-AO69)-(BD62*AO69+BE62*(AO67-AO69))*BC62/AR66) -> -0.01066095415 | BI62: -0.09386980336 | BJ62: 0.02168726321 | BK62: 1.959150389 | BL62: 1.094333971 | BM62: =AZ62/AO67 -> 1.936554597 | BN62: =0.5*BM62*(0.5-BM62/3)+BD62*(0.5-AO69/AO67)*(BM62-AO69/AO67)/BM62+BE62*(0.5-AO69/AO67)*(1-AO69/AO67-BM62)/BM62 -> -0.1312276336 | BO62: =IF(BL62*SQRT(4*ABS(BI62)/3)-BF62/3<=AO67,AO66*(1-AO65*AV62/AO64),AO66*(1-AO65*AV62/AO64-(1-AO65)*BV62/AO64)) -> 10272.46223 | BP62: =(1+BD62+BE62)*AO67*AO68 -> 0.2160462538 | BQ62: =0.5*(AO67-AO69)*(BE62-BD62)*AO67*AO68 -> 0 | BR62: =AO68*AO67^3/12+(0.5*AO67-AO69)^2*(BD62+BE62)*AO68*AO67 -> 0.003465979331 | BS62: =BQ62/BP62 -> 0 | BT62: =BR62-BP62*BS62^2 -> 0.003465979331 | BU62: =AR66/BP62+(BC62+BS62*AR66)*(0.5*AO67+BS62)/BT62 -> 16.40343311 | BV62: =AR66/BP62+(BC62+BS62*AR66)*(-0.5*AO67+BS62)/BT62 -> 7.933011912 | BW62: =AR66*BT62/((BC62+AR66*BS62)*BP62)+(0.5*AO67+BS62) -> 0.8217816836
AN63: Es | AO63: 200000 | AP63: MPa | AQ63: Max_N | AR63: =(AO67*AO68+AO70*(AO71+AO72))*AO64/(1+(12*(AO64/AO66)/PI()^2)*(AO73/AO67)^2) -> 6.299639418 | AT63: =BC63-AR64*BA63 -> 0.05624921118 | AU63: =BA63/BA62 -> 0.9439713568 | AV63: =IF(BL63*SQRT(4*ABS(BI63)/3)-BF63/3<=AO67,BC63/(BN63*AO68*AO67^2),BU63) -> 16.13234201 | AW63: =IF(BL63*SQRT(4*ABS(BI63)/3)-BF63/3<=AO67,0,BV63) -> 8.204103008 | AX63: =BB63*(AZ63-AO69)*AV63/AZ63 -> 234.3006349 | AY63: =BB63*(AO67-AO69-AZ63)*AV63/AZ63 -> -145.5481661 | AZ63: =IF(BL63*SQRT(4*ABS(BI63)/3)-BF63/3<=AO67,BL63*SQRT(4*ABS(BI63)/3)-BF63/3,BW63) -> 0.8634702887 | BA63: =0.1*(AV63/(AZ63*BO63))*AO73^2 -> 0.003235647027 | BB63: =AO70 -> 15.60822876 | BC63: =AR67+BA62*AR64 -> 0.06475540005 | BD63: =BB63*AO71/(AO67*AO68) -> 0.07284180305 | BE63: =BB63*AO72/(AO67*AO68) -> 0.07284180305 | BF63: =-6*AO67*(0.25-0.5*BC63/(AO67*AR66)) -> -0.562632258 | BG63: =-6*AO67*(BD63*(0.5*AO67-AO69)-BE63*(0.5*AO67-AO69)-(BD63+BE63)*AO67*BC63/(AO67*AR66)) -> 0.009136729195 | BH63: =6*AO67*((BD63*AO69-BE63*(AO67-AO69))*(0.5*AO67-AO69)-(BD63*AO69+BE63*(AO67-AO69))*BC63/AR66) -> -0.01052838087 | BI63: -0.09638162338 | BJ63: 0.02200773667 | BK63: 1.910890987 | BL63: 1.090068838 | BM63: =AZ63/AO67 -> 2.034795117 | BN63: =0.5*BM63*(0.5-BM63/3)+BD63*(0.5-AO69/AO67)*(BM63-AO69/AO67)/BM63+BE63*(0.5-AO69/AO67)*(1-AO69/AO67-BM63)/BM63 -> -0.1721591602 | BO63: =IF(BL63*SQRT(4*ABS(BI63)/3)-BF63/3<=AO67,AO66*(1-AO65*AV63/AO64),AO66*(1-AO65*AV63/AO64-(1-AO65)*BV63/AO64)) -> 10185.61987 | BP63: =(1+BD63+BE63)*AO67*AO68 -> 0.2160462538 | BQ63: =0.5*(AO67-AO69)*(BE63-BD63)*AO67*AO68 -> 0 | BR63: =AO68*AO67^3/12+(0.5*AO67-AO69)^2*(BD63+BE63)*AO68*AO67 -> 0.003465979331 | BS63: 0 | BT63: 0.003465979331 | BU63: =AR66/BP63+(BC63+BS63*AR66)*(0.5*AO67+BS63)/BT63 -> 16.13234201 | BV63: =AR66/BP63+(BC63+BS63*AR66)*(-0.5*AO67+BS63)/BT63 -> 8.204103008 | BW63: =AR66*BT63/((BC63+AR66*BS63)*BP63)+(0.5*AO67+BS63) -> 0.8634702887
AN64: fcd | AO64: =AO62/AO60 -> 40 | AP64: MPa | AQ64: Nd | AR64: =INDEX(BZ47:CB56,BE32,2)/1000+0.00001 -> 2.628898889 | AS64: MN | AT64: =BC64-AR64*BA64 -> 0.05580244155 | AU64: 0.9931687129 | AV64: =IF(BL64*SQRT(4*ABS(BI64)/3)-BF64/3<=AO67,BC64/(BN64*AO68*AO67^2),BU64) -> 16.101435 | AW64: =IF(BL64*SQRT(4*ABS(BI64)/3)-BF64/3<=AO67,0,BV64) -> 8.235010023 | AX64: =BB64*(AZ64-AO69)*AV64/AZ64 -> 233.9546472 | AY64: =BB64*(AO67-AO69-AZ64)*AV64/AZ64 -> -145.8941539 | AZ64: =IF(BL64*SQRT(4*ABS(BI64)/3)-BF64/3<=AO67,BL64*SQRT(4*ABS(BI64)/3)-BF64/3,BW64) -> 0.8685881295 | BA64: =0.1*(AV64/(AZ64*BO64))*AO73^2 -> 0.003213543393 | BB64: =AO70 -> 15.60822876 | BC64: =AR67+BA63*AR64 -> 0.06425052221 | BD64: =BB64*AO71/(AO67*AO68) -> 0.07284180305 | BE64: =BB64*AO72/(AO67*AO68) -> 0.07284180305 | BF64: =-6*AO67*(0.25-0.5*BC64/(AO67*AR66)) -> -0.5632084055 | BG64: =-6*AO67*(BD64*(0.5*AO67-AO69)-BE64*(0.5*AO67-AO69)-(BD64+BE64)*AO67*BC64/(AO67*AR66)) -> 0.009065492941 | BH64: =6*AO67*((BD64*AO69-BE64*(AO67-AO69))*(0.5*AO67-AO69)-(BD64*AO69+BE64*(AO67-AO69))*BC64/AR66) -> -0.01051326623 | BI64: -0.09666907639 | BJ64: 0.02204481189 | BK64: 1.905578876 | BL64: 1.089596769 | BM64: =AZ64/AO67 -> 2.046855471 | BN64: =0.5*BM64*(0.5-BM64/3)+BD64*(0.5-AO69/AO67)*(BM64-AO69/AO67)/BM64+BE64*(0.5-AO69/AO67)*(1-AO69/AO67-BM64)/BM64 -> -0.1774026806 | BO64: =IF(BL64*SQRT(4*ABS(BI64)/3)-BF64/3<=AO67,AO66*(1-AO65*AV64/AO64),AO66*(1-AO65*AV64/AO64-(1-AO65)*BV64/AO64)) -> 10175.719 | BP64: =(1+BD64+BE64)*AO67*AO68 -> 0.2160462538 | BQ64: =0.5*(AO67-AO69)*(BE64-BD64)*AO67*AO68 -> 0 | BR64: =AO68*AO67^3/12+(0.5*AO67-AO69)^2*(BD64+BE64)*AO68*AO67 -> 0.003465979331 | BS64: 0 | BT64: 0.003465979331 | BU64: =AR66/BP64+(BC64+BS64*AR66)*(0.5*AO67+BS64)/BT64 -> 16.101435 | BV64: =AR66/BP64+(BC64+BS64*AR66)*(-0.5*AO67+BS64)/BT64 -> 8.235010023 | BW64: =AR66*BT64/((BC64+AR66*BS64)*BP64)+(0.5*AO67+BS64) -> 0.8685881295
AN65: k | AO65: 0 | AQ65: Nf | AR65: 0 | AS65: MN | AT65: =BC65-AR64*BA65 -> 0.05575102848 | AU65: 0.9992074955 | AV65: =IF(BL65*SQRT(4*ABS(BI65)/3)-BF65/3<=AO67,BC65/(BN65*AO68*AO67^2),BU65) -> 16.0978778 | AW65: =IF(BL65*SQRT(4*ABS(BI65)/3)-BF65/3<=AO67,0,BV65) -> 8.238567223 | AX65: =BB65*(AZ65-AO69)*AV65/AZ65 -> 233.9148262 | AY65: =BB65*(AO67-AO69-AZ65)*AV65/AZ65 -> -145.9339749 | AZ65: =IF(BL65*SQRT(4*ABS(BI65)/3)-BF65/3<=AO67,BL65*SQRT(4*ABS(BI65)/3)-BF65/3,BW65) -> 0.8691823263 | BA65: =0.1*(AV65/(AZ65*BO65))*AO73^2 -> 0.003210996646 | BB65: =AO70 -> 15.60822876 | BC65: =AR67+BA64*AR64 -> 0.06419241399 | BD65: =BB65*AO71/(AO67*AO68) -> 0.07284180305 | BE65: =BB65*AO72/(AO67*AO68) -> 0.07284180305 | BF65: =-6*AO67*(0.25-0.5*BC65/(AO67*AR66)) -> -0.5632747164 | BG65: =-6*AO67*(BD65*(0.5*AO67-AO69)-BE65*(0.5*AO67-AO69)-(BD65+BE65)*AO67*BC65/(AO67*AR66)) -> 0.009057294103 | BH65: =6*AO67*((BD65*AO69-BE65*(AO67-AO69))*(0.5*AO67-AO69)-(BD65*AO69+BE65*(AO67-AO69))*BC65/AR66) -> -0.01051152663 | BI65: -0.0967021746 | BJ65: 0.0220490861 | BK65: 1.904969905 | BL65: 1.089542619 | BM65: =AZ65/AO67 -> 2.048255714 | BN65: =0.5*BM65*(0.5-BM65/3)+BD65*(0.5-AO69/AO67)*(BM65-AO69/AO67)/BM65+BE65*(0.5-AO69/AO67)*(1-AO69/AO67-BM65)/BM65 -> -0.1780145692 | BO65: =IF(BL65*SQRT(4*ABS(BI65)/3)-BF65/3<=AO67,AO66*(1-AO65*AV65/AO64),AO66*(1-AO65*AV65/AO64-(1-AO65)*BV65/AO64)) -> 10174.57947 | BP65: =(1+BD65+BE65)*AO67*AO68 -> 0.2160462538 | BQ65: =0.5*(AO67-AO69)*(BE65-BD65)*AO67*AO68 -> 0 | BR65: =AO68*AO67^3/12+(0.5*AO67-AO69)^2*(BD65+BE65)*AO68*AO67 -> 0.003465979331 | BS65: 0 | BT65: 0.003465979331 | BU65: =AR66/BP65+(BC65+BS65*AR66)*(0.5*AO67+BS65)/BT65 -> 16.0978778 | BV65: =AR66/BP65+(BC65+BS65*AR66)*(-0.5*AO67+BS65)/BT65 -> 8.238567223 | BW65: =AR66*BT65/((BC65+AR66*BS65)*BP65)+(0.5*AO67+BS65) -> 0.8691823263
AN66: Ecm | AO66: =(1000*22*((AO64+8)/10)^0.3)/(1+$Q$12*$Q$13) -> 12813.75377 | AP66: MPa | AQ66: N | AR66: =AR65+AR64 -> 2.628898889 | AS66: MN | AT66: =BC66-AR64*BA66 -> 0.05574510483 | AU66: 0.999908605 | AV66: =IF(BL66*SQRT(4*ABS(BI66)/3)-BF66/3<=AO67,BC66/(BN66*AO68*AO67^2),BU66) -> 16.09746794 | AW66: =IF(BL66*SQRT(4*ABS(BI66)/3)-BF66/3<=AO67,0,BV66) -> 8.238977078 | AX66: =BB66*(AZ66-AO69)*AV66/AZ66 -> 233.9102381 | AY66: =BB66*(AO67-AO69-AZ66)*AV66/AZ66 -> -145.938563 | AZ66: =IF(BL66*SQRT(4*ABS(BI66)/3)-BF66/3<=AO67,BL66*SQRT(4*ABS(BI66)/3)-BF66/3,BW66) -> 0.8692508579 | BA66: =0.1*(AV66/(AZ66*BO66))*AO73^2 -> 0.003210703177 | BB66: =AO70 -> 15.60822876 | BC66: =AR67+BA65*AR64 -> 0.06418571885 | BD66: =BB66*AO71/(AO67*AO68) -> 0.07284180305 | BE66: =BB66*AO72/(AO67*AO68) -> 0.07284180305 | BF66: =-6*AO67*(0.25-0.5*BC66/(AO67*AR66)) -> -0.5632823566 | BG66: =-6*AO67*(BD66*(0.5*AO67-AO69)-BE66*(0.5*AO67-AO69)-(BD66+BE66)*AO67*BC66/(AO67*AR66)) -> 0.009056349445 | BH66: =6*AO67*((BD66*AO69-BE66*(AO67-AO69))*(0.5*AO67-AO69)-(BD66*AO69+BE66*(AO67-AO69))*BC66/AR66) -> -0.0105113262 | BI66: -0.09670598832 | BJ66: 0.02204957866 | BK66: 1.904899773 | BL66: 1.089536382 | BM66: =AZ66/AO67 -> 2.048417211 | BN66: =0.5*BM66*(0.5-BM66/3)+BD66*(0.5-AO69/AO67)*(BM66-AO69/AO67)/BM66+BE66*(0.5-AO69/AO67)*(1-AO69/AO67-BM66)/BM66 -> -0.1780851827 | BO66: =IF(BL66*SQRT(4*ABS(BI66)/3)-BF66/3<=AO67,AO66*(1-AO65*AV66/AO64),AO66*(1-AO65*AV66/AO64-(1-AO65)*BV66/AO64)) -> 10174.44818 | BP66: =(1+BD66+BE66)*AO67*AO68 -> 0.2160462538 | BQ66: =0.5*(AO67-AO69)*(BE66-BD66)*AO67*AO68 -> 0 | BR66: =AO68*AO67^3/12+(0.5*AO67-AO69)^2*(BD66+BE66)*AO68*AO67 -> 0.003465979331 | BS66: 0 | BT66: 0.003465979331 | BU66: =AR66/BP66+(BC66+BS66*AR66)*(0.5*AO67+BS66)/BT66 -> 16.09746794 | BV66: =AR66/BP66+(BC66+BS66*AR66)*(-0.5*AO67+BS66)/BT66 -> 8.238977078 | BW66: =AR66*BT66/((BC66+AR66*BS66)*BP66)+(0.5*AO67+BS66) -> 0.8692508579
AN67: h | AO67: =$BK$22/1000 -> 0.4243524479 | AP67: m | AQ67: Mo | AR67: =INDEX(BZ47:CB56,BE32,3)/1000 -> 0.05574433333 | AS67: MNm | AT67: =BC67-AR64*BA67 -> 0.05574442224 | AU67: 0.9999894672 | AV67: =IF(BL67*SQRT(4*ABS(BI67)/3)-BF67/3<=AO67,BC67/(BN67*AO68*AO67^2),BU67) -> 16.09742072 | AW67: =IF(BL67*SQRT(4*ABS(BI67)/3)-BF67/3<=AO67,0,BV67) -> 8.239024307 | AX67: =BB67*(AZ67-AO69)*AV67/AZ67 -> 233.9097094 | AY67: =BB67*(AO67-AO69-AZ67)*AV67/AZ67 -> -145.9390917 | AZ67: =IF(BL67*SQRT(4*ABS(BI67)/3)-BF67/3<=AO67,BL67*SQRT(4*ABS(BI67)/3)-BF67/3,BW67) -> 0.8692587559 | BA67: =0.1*(AV67/(AZ67*BO67))*AO73^2 -> 0.003210669359 | BB67: =AO70 -> 15.60822876 | BC67: =AR67+BA66*AR64 -> 0.06418494735 | BD67: =BB67*AO71/(AO67*AO68) -> 0.07284180305 | BE67: =BB67*AO72/(AO67*AO68) -> 0.07284180305 | BF67: =-6*AO67*(0.25-0.5*BC67/(AO67*AR66)) -> -0.563283237 | BG67: =-6*AO67*(BD67*(0.5*AO67-AO69)-BE67*(0.5*AO67-AO69)-(BD67+BE67)*AO67*BC67/(AO67*AR66)) -> 0.009056240589 | BH67: =6*AO67*((BD67*AO69-BE67*(AO67-AO69))*(0.5*AO67-AO69)-(BD67*AO69+BE67*(AO67-AO69))*BC67/AR66) -> -0.0105113031 | BI67: -0.09670642778 | BJ67: 0.02204963542 | BK67: 1.904891691 | BL67: 1.089535664 | BM67: =AZ67/AO67 -> 2.048435823 | BN67: =0.5*BM67*(0.5-BM67/3)+BD67*(0.5-AO69/AO67)*(BM67-AO69/AO67)/BM67+BE67*(0.5-AO69/AO67)*(1-AO69/AO67-BM67)/BM67 -> -0.1780933212 | BO67: =IF(BL67*SQRT(4*ABS(BI67)/3)-BF67/3<=AO67,AO66*(1-AO65*AV67/AO64),AO66*(1-AO65*AV67/AO64-(1-AO65)*BV67/AO64)) -> 10174.43305 | BP67: =(1+BD67+BE67)*AO67*AO68 -> 0.2160462538 | BQ67: =0.5*(AO67-AO69)*(BE67-BD67)*AO67*AO68 -> 0 | BR67: =AO68*AO67^3/12+(0.5*AO67-AO69)^2*(BD67+BE67)*AO68*AO67 -> 0.003465979331 | BS67: 0 | BT67: 0.003465979331 | BU67: =AR66/BP67+(BC67+BS67*AR66)*(0.5*AO67+BS67)/BT67 -> 16.09742072 | BV67: =AR66/BP67+(BC67+BS67*AR66)*(-0.5*AO67+BS67)/BT67 -> 8.239024307 | BW67: =AR66*BT67/((BC67+AR66*BS67)*BP67)+(0.5*AO67+BS67) -> 0.8692587559
AN68: b | AO68: =$BK$23/1000 -> 0.4443808442 | AP68: m | AQ68: u | AR68: =BA73 -> 0.003210664954 | AS68: =AR68-AR54 -> 0.001958408654 | AT68: =BC68-AR64*BA68 -> 0.05574434358 | AU68: 0.9999987862 | AV68: =IF(BL68*SQRT(4*ABS(BI68)/3)-BF68/3<=AO67,BC68/(BN68*AO68*AO67^2),BU68) -> 16.09741527 | AW68: =IF(BL68*SQRT(4*ABS(BI68)/3)-BF68/3<=AO67,0,BV68) -> 8.23902975 | AX68: =BB68*(AZ68-AO69)*AV68/AZ68 -> 233.9096484 | AY68: =BB68*(AO67-AO69-AZ68)*AV68/AZ68 -> -145.9391526 | AZ68: =IF(BL68*SQRT(4*ABS(BI68)/3)-BF68/3<=AO67,BL68*SQRT(4*ABS(BI68)/3)-BF68/3,BW68) -> 0.869259666 | BA68: =0.1*(AV68/(AZ68*BO68))*AO73^2 -> 0.003210665462 | BB68: =AO70 -> 15.60822876 | BC68: =AR67+BA67*AR64 -> 0.06418485844 | BD68: =BB68*AO71/(AO67*AO68) -> 0.07284180305 | BE68: =BB68*AO72/(AO67*AO68) -> 0.07284180305 | BF68: =-6*AO67*(0.25-0.5*BC68/(AO67*AR66)) -> -0.5632833385 | BG68: =-6*AO67*(BD68*(0.5*AO67-AO69)-BE68*(0.5*AO67-AO69)-(BD68+BE68)*AO67*BC68/(AO67*AR66)) -> 0.009056228045 | BH68: =6*AO67*((BD68*AO69-BE68*(AO67-AO69))*(0.5*AO67-AO69)-(BD68*AO69+BE68*(AO67-AO69))*BC68/AR66) -> -0.01051130044 | BI68: -0.09670647842 | BJ68: 0.02204964196 | BK68: 1.90489076 | BL68: 1.089535581 | BM68: =AZ68/AO67 -> 2.048437968 | BN68: =0.5*BM68*(0.5-BM68/3)+BD68*(0.5-AO69/AO67)*(BM68-AO69/AO67)/BM68+BE68*(0.5-AO69/AO67)*(1-AO69/AO67-BM68)/BM68 -> -0.1780942591 | BO68: =IF(BL68*SQRT(4*ABS(BI68)/3)-BF68/3<=AO67,AO66*(1-AO65*AV68/AO64),AO66*(1-AO65*AV68/AO64-(1-AO65)*BV68/AO64)) -> 10174.4313 | BP68: =(1+BD68+BE68)*AO67*AO68 -> 0.2160462538 | BQ68: =0.5*(AO67-AO69)*(BE68-BD68)*AO67*AO68 -> 0 | BR68: =AO68*AO67^3/12+(0.5*AO67-AO69)^2*(BD68+BE68)*AO68*AO67 -> 0.003465979331 | BS68: 0 | BT68: 0.003465979331 | BU68: =AR66/BP68+(BC68+BS68*AR66)*(0.5*AO67+BS68)/BT68 -> 16.09741527 | BV68: =AR66/BP68+(BC68+BS68*AR66)*(-0.5*AO67+BS68)/BT68 -> 8.23902975 | BW68: =AR66*BT68/((BC68+AR66*BS68)*BP68)+(0.5*AO67+BS68) -> 0.869259666
AN69: a | AO69: =$BK$24/1000 -> 0.06 | AP69: m | AQ69: ec,max | AR69: =1000*AV73/BO73 -> 1.582143949 | AS69: o/oo | AT69: =BC69-AR64*BA69 -> 0.05574433451 | AU69: 0.9999998601 | AV69: =IF(BL69*SQRT(4*ABS(BI69)/3)-BF69/3<=AO67,BC69/(BN69*AO68*AO67^2),BU69) -> 16.09741465 | AW69: =IF(BL69*SQRT(4*ABS(BI69)/3)-BF69/3<=AO67,0,BV69) -> 8.239030377 | AX69: =BB69*(AZ69-AO69)*AV69/AZ69 -> 233.9096414 | AY69: =BB69*(AO67-AO69-AZ69)*AV69/AZ69 -> -145.9391596 | AZ69: =IF(BL69*SQRT(4*ABS(BI69)/3)-BF69/3<=AO67,BL69*SQRT(4*ABS(BI69)/3)-BF69/3,BW69) -> 0.8692597709 | BA69: =0.1*(AV69/(AZ69*BO69))*AO73^2 -> 0.003210665013 | BB69: =AO70 -> 15.60822876 | BC69: =AR67+BA68*AR64 -> 0.0641848482 | BD69: =BB69*AO71/(AO67*AO68) -> 0.07284180305 | BE69: =BB69*AO72/(AO67*AO68) -> 0.07284180305 | BF69: =-6*AO67*(0.25-0.5*BC69/(AO67*AR66)) -> -0.5632833502 | BG69: =-6*AO67*(BD69*(0.5*AO67-AO69)-BE69*(0.5*AO67-AO69)-(BD69+BE69)*AO67*BC69/(AO67*AR66)) -> 0.0090562266 | BH69: =6*AO67*((BD69*AO69-BE69*(AO67-AO69))*(0.5*AO67-AO69)-(BD69*AO69+BE69*(AO67-AO69))*BC69/AR66) -> -0.01051130014 | BI69: -0.09670648426 | BJ69: 0.02204964272 | BK69: 1.904890653 | BL69: 1.089535571 | BM69: =AZ69/AO67 -> 2.048438215 | BN69: =0.5*BM69*(0.5-BM69/3)+BD69*(0.5-AO69/AO67)*(BM69-AO69/AO67)/BM69+BE69*(0.5-AO69/AO67)*(1-AO69/AO67-BM69)/BM69 -> -0.1780943672 | BO69: =IF(BL69*SQRT(4*ABS(BI69)/3)-BF69/3<=AO67,AO66*(1-AO65*AV69/AO64),AO66*(1-AO65*AV69/AO64-(1-AO65)*BV69/AO64)) -> 10174.4311 | BP69: =(1+BD69+BE69)*AO67*AO68 -> 0.2160462538 | BQ69: =0.5*(AO67-AO69)*(BE69-BD69)*AO67*AO68 -> 0 | BR69: =AO68*AO67^3/12+(0.5*AO67-AO69)^2*(BD69+BE69)*AO68*AO67 -> 0.003465979331 | BS69: 0 | BT69: 0.003465979331 | BU69: =AR66/BP69+(BC69+BS69*AR66)*(0.5*AO67+BS69)/BT69 -> 16.09741465 | BV69: =AR66/BP69+(BC69+BS69*AR66)*(-0.5*AO67+BS69)/BT69 -> 8.239030377 | BW69: =AR66*BT69/((BC69+AR66*BS69)*BP69)+(0.5*AO67+BS69) -> 0.8692597709
AN70: a | AO70: =AO63/AO66 -> 15.60822876 | AQ70: ec,min | AR70: =1000*AW73/BO73 -> 0.809778001 | AS70: o/oo | AT70: =BC70-AR64*BA70 -> 0.05574433347 | AU70: =BA70/BA69 -> 0.9999999839 | AV70: =IF(BL70*SQRT(4*ABS(BI70)/3)-BF70/3<=AO67,BC70/(BN70*AO68*AO67^2),BU70) -> 16.09741457 | AW70: =IF(BL70*SQRT(4*ABS(BI70)/3)-BF70/3<=AO67,0,BV70) -> 8.239030449 | AX70: =BB70*(AZ70-AO69)*AV70/AZ70 -> 233.9096406 | AY70: =BB70*(AO67-AO69-AZ70)*AV70/AZ70 -> -145.9391604 | AZ70: =IF(BL70*SQRT(4*ABS(BI70)/3)-BF70/3<=AO67,BL70*SQRT(4*ABS(BI70)/3)-BF70/3,BW70) -> 0.869259783 | BA70: =0.1*(AV70/(AZ70*BO70))*AO73^2 -> 0.003210664961 | BB70: =AO70 -> 15.60822876 | BC70: =AR67+BA69*AR64 -> 0.06418484702 | BD70: =BB70*AO71/(AO67*AO68) -> 0.07284180305 | BE70: =BB70*AO72/(AO67*AO68) -> 0.07284180305 | BF70: =-6*AO67*(0.25-0.5*BC70/(AO67*AR66)) -> -0.5632833515 | BG70: =-6*AO67*(BD70*(0.5*AO67-AO69)-BE70*(0.5*AO67-AO69)-(BD70+BE70)*AO67*BC70/(AO67*AR66)) -> 0.009056226433 | BH70: =6*AO67*((BD70*AO69-BE70*(AO67-AO69))*(0.5*AO67-AO69)-(BD70*AO69+BE70*(AO67-AO69))*BC70/AR66) -> -0.0105113001 | BI70: -0.09670648493 | BJ70: 0.0220496428 | BK70: 1.904890641 | BL70: 1.08953557 | BM70: =AZ70/AO67 -> 2.048438244 | BN70: =0.5*BM70*(0.5-BM70/3)+BD70*(0.5-AO69/AO67)*(BM70-AO69/AO67)/BM70+BE70*(0.5-AO69/AO67)*(1-AO69/AO67-BM70)/BM70 -> -0.1780943796 | BO70: =IF(BL70*SQRT(4*ABS(BI70)/3)-BF70/3<=AO67,AO66*(1-AO65*AV70/AO64),AO66*(1-AO65*AV70/AO64-(1-AO65)*BV70/AO64)) -> 10174.43108 | BP70: =(1+BD70+BE70)*AO67*AO68 -> 0.2160462538 | BQ70: =0.5*(AO67-AO69)*(BE70-BD70)*AO67*AO68 -> 0 | BR70: =AO68*AO67^3/12+(0.5*AO67-AO69)^2*(BD70+BE70)*AO68*AO67 -> 0.003465979331 | BS70: 0 | BT70: 0.003465979331 | BU70: =AR66/BP70+(BC70+BS70*AR66)*(0.5*AO67+BS70)/BT70 -> 16.09741457 | BV70: =AR66/BP70+(BC70+BS70*AR66)*(-0.5*AO67+BS70)/BT70 -> 8.239030449 | BW70: =AR66*BT70/((BC70+AR66*BS70)*BP70)+(0.5*AO67+BS70) -> 0.869259783
AN71: Ac | AO71: =$AP$40/1000000 -> 0.0008800535664 | AP71: m2 | AQ71: sa,c | AR71: =AX73 -> 233.9096405 | AS71: MPa | AT71: =BC71-AR64*BA71 -> 0.05574433335 | AU71: =BA71/BA70 -> 0.9999999981 | AV71: =IF(BL71*SQRT(4*ABS(BI71)/3)-BF71/3<=AO67,BC71/(BN71*AO68*AO67^2),BU71) -> 16.09741456 | AW71: =IF(BL71*SQRT(4*ABS(BI71)/3)-BF71/3<=AO67,0,BV71) -> 8.239030457 | AX71: =BB71*(AZ71-AO69)*AV71/AZ71 -> 233.9096405 | AY71: =BB71*(AO67-AO69-AZ71)*AV71/AZ71 -> -145.9391605 | AZ71: =IF(BL71*SQRT(4*ABS(BI71)/3)-BF71/3<=AO67,BL71*SQRT(4*ABS(BI71)/3)-BF71/3,BW71) -> 0.8692597844 | BA71: =0.1*(AV71/(AZ71*BO71))*AO73^2 -> 0.003210664955 | BB71: =AO70 -> 15.60822876 | BC71: =AR67+BA70*AR64 -> 0.06418484688 | BD71: =BB71*AO71/(AO67*AO68) -> 0.07284180305 | BE71: =BB71*AO72/(AO67*AO68) -> 0.07284180305 | BF71: =-6*AO67*(0.25-0.5*BC71/(AO67*AR66)) -> -0.5632833517 | BG71: =-6*AO67*(BD71*(0.5*AO67-AO69)-BE71*(0.5*AO67-AO69)-(BD71+BE71)*AO67*BC71/(AO67*AR66)) -> 0.009056226414 | BH71: =6*AO67*((BD71*AO69-BE71*(AO67-AO69))*(0.5*AO67-AO69)-(BD71*AO69+BE71*(AO67-AO69))*BC71/AR66) -> -0.0105113001 | BI71: -0.09670648501 | BJ71: 0.02204964281 | BK71: 1.904890639 | BL71: 1.08953557 | BM71: =AZ71/AO67 -> 2.048438247 | BN71: =0.5*BM71*(0.5-BM71/3)+BD71*(0.5-AO69/AO67)*(BM71-AO69/AO67)/BM71+BE71*(0.5-AO69/AO67)*(1-AO69/AO67-BM71)/BM71 -> -0.178094381 | BO71: =IF(BL71*SQRT(4*ABS(BI71)/3)-BF71/3<=AO67,AO66*(1-AO65*AV71/AO64),AO66*(1-AO65*AV71/AO64-(1-AO65)*BV71/AO64)) -> 10174.43108 | BP71: =(1+BD71+BE71)*AO67*AO68 -> 0.2160462538 | BQ71: =0.5*(AO67-AO69)*(BE71-BD71)*AO67*AO68 -> 0 | BR71: =AO68*AO67^3/12+(0.5*AO67-AO69)^2*(BD71+BE71)*AO68*AO67 -> 0.003465979331 | BS71: 0 | BT71: 0.003465979331 | BU71: =AR66/BP71+(BC71+BS71*AR66)*(0.5*AO67+BS71)/BT71 -> 16.09741456 | BV71: =AR66/BP71+(BC71+BS71*AR66)*(-0.5*AO67+BS71)/BT71 -> 8.239030457 | BW71: =AR66*BT71/((BC71+AR66*BS71)*BP71)+(0.5*AO67+BS71) -> 0.8692597844
AN72: At | AO72: =$AP$41/1000000 -> 0.0008800535664 | AP72: m2 | AQ72: sa,t | AR72: =AY73 -> -145.9391605 | AS72: MPa | AT72: =BC72-AR64*BA72 -> 0.05574433334 | AU72: =BA72/BA71 -> 0.9999999998 | AV72: =IF(BL72*SQRT(4*ABS(BI72)/3)-BF72/3<=AO67,BC72/(BN72*AO68*AO67^2),BU72) -> 16.09741456 | AW72: =IF(BL72*SQRT(4*ABS(BI72)/3)-BF72/3<=AO67,0,BV72) -> 8.239030458 | AX72: =BB72*(AZ72-AO69)*AV72/AZ72 -> 233.9096405 | AY72: =BB72*(AO67-AO69-AZ72)*AV72/AZ72 -> -145.9391605 | AZ72: =IF(BL72*SQRT(4*ABS(BI72)/3)-BF72/3<=AO67,BL72*SQRT(4*ABS(BI72)/3)-BF72/3,BW72) -> 0.8692597845 | BA72: =0.1*(AV72/(AZ72*BO72))*AO73^2 -> 0.003210664954 | BB72: =AO70 -> 15.60822876 | BC72: =AR67+BA71*AR64 -> 0.06418484687 | BD72: =BB72*AO71/(AO67*AO68) -> 0.07284180305 | BE72: =BB72*AO72/(AO67*AO68) -> 0.07284180305 | BF72: =-6*AO67*(0.25-0.5*BC72/(AO67*AR66)) -> -0.5632833517 | BG72: =-6*AO67*(BD72*(0.5*AO67-AO69)-BE72*(0.5*AO67-AO69)-(BD72+BE72)*AO67*BC72/(AO67*AR66)) -> 0.009056226412 | BH72: =6*AO67*((BD72*AO69-BE72*(AO67-AO69))*(0.5*AO67-AO69)-(BD72*AO69+BE72*(AO67-AO69))*BC72/AR66) -> -0.0105113001 | BI72: -0.09670648502 | BJ72: 0.02204964281 | BK72: 1.904890639 | BL72: 1.08953557 | BM72: =AZ72/AO67 -> 2.048438247 | BN72: =0.5*BM72*(0.5-BM72/3)+BD72*(0.5-AO69/AO67)*(BM72-AO69/AO67)/BM72+BE72*(0.5-AO69/AO67)*(1-AO69/AO67-BM72)/BM72 -> -0.1780943812 | BO72: =IF(BL72*SQRT(4*ABS(BI72)/3)-BF72/3<=AO67,AO66*(1-AO65*AV72/AO64),AO66*(1-AO65*AV72/AO64-(1-AO65)*BV72/AO64)) -> 10174.43108 | BP72: =(1+BD72+BE72)*AO67*AO68 -> 0.2160462538 | BQ72: =0.5*(AO67-AO69)*(BE72-BD72)*AO67*AO68 -> 0 | BR72: =AO68*AO67^3/12+(0.5*AO67-AO69)^2*(BD72+BE72)*AO68*AO67 -> 0.003465979331 | BS72: 0 | BT72: 0.003465979331 | BU72: =AR66/BP72+(BC72+BS72*AR66)*(0.5*AO67+BS72)/BT72 -> 16.09741456 | BV72: =AR66/BP72+(BC72+BS72*AR66)*(-0.5*AO67+BS72)/BT72 -> 8.239030458 | BW72: =AR66*BT72/((BC72+AR66*BS72)*BP72)+(0.5*AO67+BS72) -> 0.8692597845
AN73: L | AO73: =$N$12/1000 -> 4.2 | AP73: m | AQ73: hc | AR73: =AZ73 -> 0.8692597845 | AS73: m | AT73: =BC73-AR64*BA73 -> 0.05574433333 | AU73: =BA73/BA72 -> 1 | AV73: =IF(BL73*SQRT(4*ABS(BI73)/3)-BF73/3<=AO67,BC73/(BN73*AO68*AO67^2),BU73) -> 16.09741456 | AW73: =IF(BL73*SQRT(4*ABS(BI73)/3)-BF73/3<=AO67,0,BV73) -> 8.239030458 | AX73: =BB73*(AZ73-AO69)*AV73/AZ73 -> 233.9096405 | AY73: =BB73*(AO67-AO69-AZ73)*AV73/AZ73 -> -145.9391605 | AZ73: =IF(BL73*SQRT(4*ABS(BI73)/3)-BF73/3<=AO67,BL73*SQRT(4*ABS(BI73)/3)-BF73/3,BW73) -> 0.8692597845 | BA73: =0.1*(AV73/(AZ73*BO73))*AO73^2 -> 0.003210664954 | BB73: =AO70 -> 15.60822876 | BC73: =AR67+BA72*AR64 -> 0.06418484686 | BD73: =BB73*AO71/(AO67*AO68) -> 0.07284180305 | BE73: =BB73*AO72/(AO67*AO68) -> 0.07284180305 | BF73: =-6*AO67*(0.25-0.5*BC73/(AO67*AR66)) -> -0.5632833517 | BG73: =-6*AO67*(BD73*(0.5*AO67-AO69)-BE73*(0.5*AO67-AO69)-(BD73+BE73)*AO67*BC73/(AO67*AR66)) -> 0.009056226412 | BH73: =6*AO67*((BD73*AO69-BE73*(AO67-AO69))*(0.5*AO67-AO69)-(BD73*AO69+BE73*(AO67-AO69))*BC73/AR66) -> -0.0105113001 | BI73: -0.09670648502 | BJ73: 0.02204964281 | BK73: 1.904890639 | BL73: 1.08953557 | BM73: =AZ73/AO67 -> 2.048438247 | BN73: =0.5*BM73*(0.5-BM73/3)+BD73*(0.5-AO69/AO67)*(BM73-AO69/AO67)/BM73+BE73*(0.5-AO69/AO67)*(1-AO69/AO67-BM73)/BM73 -> -0.1780943812 | BO73: =IF(BL73*SQRT(4*ABS(BI73)/3)-BF73/3<=AO67,AO66*(1-AO65*AV73/AO64),AO66*(1-AO65*AV73/AO64-(1-AO65)*BV73/AO64)) -> 10174.43108 | BP73: =(1+BD73+BE73)*AO67*AO68 -> 0.2160462538 | BQ73: =0.5*(AO67-AO69)*(BE73-BD73)*AO67*AO68 -> 0 | BR73: =AO68*AO67^3/12+(0.5*AO67-AO69)^2*(BD73+BE73)*AO68*AO67 -> 0.003465979331 | BS73: 0 | BT73: 0.003465979331 | BU73: =AR66/BP73+(BC73+BS73*AR66)*(0.5*AO67+BS73)/BT73 -> 16.09741456 | BV73: =AR66/BP73+(BC73+BS73*AR66)*(-0.5*AO67+BS73)/BT73 -> 8.239030458 | BW73: =AR66*BT73/((BC73+AR66*BS73)*BP73)+(0.5*AO67+BS73) -> 0.8692597845

Sheet Ark1
B2: Tilstand: | C2: =Kold!$AO$5 -> 1
B4: L | C4: h | D4: b | E4: fck | F4: fcd | G4: Ecd | H4: Ac | I4: ac | J4: Esc | K4: fyd_c | L4: At | M4: at | N4: Est | O4: fyd_t | P4: Modenhed | Q4: 1+f | R4: uterm | S4: Iterationstyring | V4: Iterationsfakt.
B5: (m) | C5: (m) | D5: (m) | E5: (Mpa) | F5: (Mpa) | G5: (Mpa) | H5: (m2) | I5: (m) | J5: (Mpa) | K5: (Mpa) | L5: (m2) | M5: (m) | N5: (Mpa) | O5: (Mpa) | P5: (døgn) | R5: (m) | S5: Ncr-korr | T5: hc-step | U5: e-skift
B6: =Kold!$N$12/1000 -> 4.2 | C6: =IF(Kold!$AO$5=1,Kold!$CA$65/1000,Brand!$AX$21) -> 0.4243524479 | D6: =IF(Kold!$AO$5=1,Kold!$CA$66/1000,Brand!$AX$22) -> 0.4443808442 | E6: =IF(Kold!$AO$5=1,Kold!$N$7,Brand!$AX$14) -> 40 | F6: =IF(Kold!$AO$5=1,Kold!$Q$8,Brand!$AX$14) -> 28.57142857 | G6: =1000*22*((E6+8)/10)^0.3/IF(C2=1,Kold!N9,Brand!N9) -> 25157.47306 | H6: =Kold!$AP$40/1000000 -> 0.0008800535664 | I6: =IF(Kold!$AO$5=1,Kold!$N$15/1000,Brand!$AX$23) -> 0.06 | J6: =IF(Kold!$AO$5=1,200000,Brand!$AX$12) -> 200000 | K6: =IF(Kold!$AO$5=1,Kold!$Q$9,Brand!$AX$19) -> 458.3333333 | L6: =Kold!$AP$41/1000000 -> 0.0008800535664 | M6: =IF(Kold!$AO$5=1,Kold!$N$15/1000,Brand!$AX$24) -> 0.06 | N6: =IF(Kold!$AO$5=1,200000,Brand!$AX$13) -> 200000 | O6: =IF(Kold!$AO$5=1,Kold!$Q$9,Brand!$AX$20) -> 458.3333333 | Q6: =IF(Kold!$AO$5=1,Kold!$Q$16,IF(OR(Brand!$BE$32=10,Brand!AR61=1),Brand!$Q$14,0))+1 -> 2.573780645 | R6: =IF(Kold!$AO$5=1,0,Brand!AT$11) -> 0 | S6: =MIN(1,15*C6/B6) -> 1 | T6: 0.15 | U6: -0.1 | V6: =MAX(1,IF(C2=1,0.05,0.08)*B6/C6) -> 1 | Y6: Checkpunkt | Z6: 16
M9: N | N9: M | O9: hc | P9: e0 | Q9: sac | R9: sat | U9: hc_0 | V9: 1/hc_0 | Y9: Test-fakt | Z9: hc | AA9: e0 | AB9: a' | AC9: b' | AD9: N' | AE9: tN' | AF9: t | AG9: Nc | AH9: sac | AI9: Nac | AJ9: sat | AK9: Nat | AL9: Mtot | AM9: u | AN9: N | AO9: Mo | AP9: x
L10: =IF($Z$6=29-ROW(),1,0) -> 0 | M10: =Q955 -> 0.0001 | N10: =R955 -> 0.128249515 | O10: =C955 -> 0.1225234542 | P10: =D955 -> 0.0004511031306 | Q10: =K955 -> 118.4952929 | R10: =M955 -> 458.3175673 | S10: 1 | U10: =Y51 -> 0.1225234542 | V10: =1/U10 -> 8.161702643 | Y10: 0.5 | Z10: =$Z$15 -> 0.1597178098 | AA10: =Y10*$AA$15 -> 0.0004390685768 | AB10: =IF($C$2=1,AA10/($O$31*$O$30),2^(1/3)*$O$30/AA10) -> 0.08791082379 | AC10: =IF($C$2=1,-($O$31-2)*AA10/$O$30,3*($O$30/AA10)^2) -> -0.02811991486 | AD10: =IF($C$2=1,0.5*($O$31*AA10*$F$6/$O$30)*(1-AP10^2+(AB10-AC10)*(AC10^2*(1-AP10^2)+2*AC10*(1-AP10)+2*LN((1-AC10)/(1-AC10*AP10)))/(AC10^3)),$F$6*AC10*(LN((1-AB10+AB10^2)/(1+AB10)^2)/(6*AB10)+ATAN((2-AB10)/(AB10*3^0.5))/(AB10*3^0.5)-LN((AP10^2-AB10*AP10+AB10^2)/(AP10+AB10)^2)/(6*AB10)-ATAN((2*AP10-AB10)/(AB10*3^0.5))/(AB10*3^0.5))) -> 5.35974634 | AE10: =IF($C$2=1,($O$31*AA10*$F$6/$O$30)*(1-AP10^3-(AB10-AC10)*(-2*AC10^3*(1-AP10^3)-3*AC10^2*(1-AP10^2)-6*AC10*(1-AP10)-6*LN((1-AC10)/(1-AC10*AP10)))/(2*AC10^4))/3,$F$6*AC10*(LN((1+AB10^3)/(AB10^3+AP10^3)))/3) -> 3.537009371 | AF10: =AE10/AD10 -> 0.6599210385 | AG10: =AD10*Z10*$D$6 -> 0.3804108647 | AH10: =MAX(MIN($K$6,$Q$6*$J$6*AA10*(Z10-$I$6)/Z10),-$K$6) -> 141.1085301 | AI10: =AH10*$H$6 -> 0.1241830652 | AJ10: =MIN($O$6,$Q$6*$N$6*AA10*(C$6-Z10-$M$6)/Z10) -> 289.5740798 | AK10: =AJ10*$L$6 -> 0.2548407016 | AL10: =(0.5*$C$6-Z10+AF10*Z10)*AG10+(0.5*$C$6-$I$6)*AI10+(0.5*$C$6-$M$6)*AK10 -> 0.1177298962 | AM10: =0.1*$Q$6*AA10*$B$6^2/Z10+$R$6 -> 0.0124809925 | AN10: =AG10+AI10-AK10 -> 0.2497532283 | AO10: =AL10-AM10*AN10 -> 0.114612728 | AP10: =IF(Z10<$C$6,0,(Z10-$C$6)/Z10) -> 0
L11: 0 | M11: =Q956 -> 0.1419981543 | N11: =R956 -> 0.1470690428 | O11: =C956 -> 0.1370161388 | P11: =D956 -> 0.0005552445211 | Q11: =K956 -> 160.655584 | R11: =M956 -> 458.3333333 | S11: 2 | U11: =Y53 -> 0.1370161388 | V11: =1/U11 -> 7.298410308 | Y11: 0.6 | Z11: =$Z$15 -> 0.1597178098 | AA11: =Y11*$AA$15 -> 0.0005268822922 | AB11: 0.1054929886 | AC11: -0.03374389784 | AD11: =IF($C$2=1,0.5*($O$31*AA11*$F$6/$O$30)*(1-AP11^2+(AB11-AC11)*(AC11^2*(1-AP11^2)+2*AC11*(1-AP11)+2*LN((1-AC11)/(1-AC11*AP11)))/(AC11^3)),$F$6*AC11*(LN((1-AB11+AB11^2)/(1+AB11)^2)/(6*AB11)+ATAN((2-AB11)/(AB11*3^0.5))/(AB11*3^0.5)-LN((AP11^2-AB11*AP11+AB11^2)/(AP11+AB11)^2)/(6*AB11)-ATAN((2*AP11-AB11)/(AB11*3^0.5))/(AB11*3^0.5))) -> 6.328851725 | AE11: =IF($C$2=1,($O$31*AA11*$F$6/$O$30)*(1-AP11^3-(AB11-AC11)*(-2*AC11^3*(1-AP11^3)-3*AC11^2*(1-AP11^2)-6*AC11*(1-AP11)-6*LN((1-AC11)/(1-AC11*AP11)))/(2*AC11^4))/3,$F$6*AC11*(LN((1+AB11^3)/(AB11^3+AP11^3)))/3) -> 4.16751326 | AF11: 0.6584943748 | AG11: 0.449193638 | AH11: 169.3302362 | AI11: 0.1490196782 | AJ11: 347.4888957 | AK11: 0.3058088419 | AL11: 0.1400212406 | AM11: =0.1*$Q$6*AA11*$B$6^2/Z11+$R$6 -> 0.014977191 | AN11: 0.2924044743 | AO11: 0.1356418429 | AP11: 0
L12: 0 | M12: =IF(ISERROR(Q957),M11,IF(AND(N11/M11>0.01,Q957>1.02*M11),Q957,M11)) -> 0.2794099443 | N12: =IF(ISERROR(Q957),N11,IF(AND(N11/M11>0.01,Q957>1.02*M11,ISNUMBER(Q957)),R957,N11)) -> 0.1641827595 | O12: =IF(AND(N11/M11>0.007,Q957>M11),C957,O11) -> 0.1491277955 | P12: =IF(AND(N11/M11>0.007,Q957>M11),D957,P11) -> 0.0006510898857 | Q12: =IF(AND(N11/M11>0.007,Q957>M11),K957,Q11) -> 200.3074223 | R12: =IF(AND(N11/M11>0.007,Q957>M11),M957,R11) -> 458.3333333 | S12: 3 | U12: =Y55 -> 0.1491277955 | V12: =1/U12 -> 6.705658036 | Y12: 0.7 | Z12: =$Z$15 -> 0.1597178098 | AA12: =Y12*$AA$15 -> 0.0006146960076 | AB12: 0.1230751533 | AC12: -0.03936788081 | AD12: 7.264654208 | AE12: 4.773164601 | AF12: 0.6570394769 | AG12: 0.51561272 | AH12: 197.5519422 | AI12: 0.1738562913 | AJ12: 405.4037117 | AK12: 0.3567769823 | AL12: 0.1619068595 | AM12: 0.0174733895 | AN12: 0.332692029 | AO12: 0.1560936021 | AP12: 0
L13: 1 | M13: =IF(ISERROR(Q958),M12,IF(AND(N12/M12>0.01,Q958>1.02*M12),Q958,M12)) -> 0.5459809219 | N13: =IF(ISERROR(Q958),N12,IF(AND(N12/M12>0.01,Q958>1.02*M12,ISNUMBER(Q958)),R958,N12)) -> 0.1953718376 | O13: =IF(AND(N12/M12>0.007,Q958>M12),C958,O12) -> 0.1597178098 | P13: =IF(AND(N12/M12>0.007,Q958>M12),D958,P12) -> 0.0008781371537 | Q13: =IF(AND(N12/M12>0.007,Q958>M12),K958,Q12) -> 282.2170603 | R13: =IF(AND(N12/M12>0.007,Q958>M12),M958,R12) -> 458.3333333 | S13: 4 | U13: =Y57 -> 0.1597178098 | V13: =1/U13^(1/3) -> 1.843099939 | Y13: 0.8 | Z13: =$Z$15 -> 0.1597178098 | AA13: =Y13*$AA$15 -> 0.0007025097229 | AB13: 0.1406573181 | AC13: -0.04499186378 | AD13: 8.167558599 | AE13: 5.354285685 | AF13: 0.6555552214 | AG13: 0.5796968423 | AH13: 225.7736482 | AI13: 0.1986929043 | AJ13: 458.3333333 | AK13: 0.4033578846 | AL13: 0.1827242805 | AM13: 0.019969588 | AN13: 0.375031862 | AO13: 0.1752350488 | AP13: 0
L14: 0 | M14: 0.7793699004 | N14: 0.2194295424 | O14: 0.1738693311 | P14: 0.001038049728 | Q14: 349.9479645 | R14: 458.3333333 | S14: 5 | U14: =1/V14^3 -> 0.1738693311 | V14: =V13+($V$28-$V$13)/15 -> 1.791674058 | Y14: 0.9 | Z14: =$Z$15 -> 0.1597178098 | AA14: =Y14*$AA$15 -> 0.0007903234383 | AB14: 0.1582394828 | AC14: -0.05061584676 | AD14: 9.03796275 | AE14: 5.911193034 | AF14: 0.654040429 | AG14: 0.6414742427 | AH14: 253.9953542 | AI14: 0.2235295173 | AJ14: 458.3333333 | AK14: 0.4033578846 | AL14: 0.1960577004 | AM14: 0.0224657865 | AN14: 0.4616458755 | AO14: 0.1856864628 | AP14: 0
L15: 0 | M15: 1.149780154 | N15: 0.2527113538 | O15: 0.1897432946 | P15: 0.001322055302 | Q15: 458.3333333 | R15: 458.3333333 | S15: 6 | U15: =1/V15^3 -> 0.1897432946 | V15: =V14+($V$28-$V$13)/15 -> 1.740248178 | Y15: 1 | Z15: =SUMPRODUCT(L10:L28,O10:O28) -> 0.1597178098 | AA15: =SUMPRODUCT(L10:L28,P10:P28) -> 0.0008781371537 | AB15: 0.1758216476 | AC15: -0.05623982973 | AD15: 9.87625771 | AE15: 6.444197529 | AF15: 0.6524938613 | AG15: 0.7009726762 | AH15: 282.2170603 | AI15: 0.2483661304 | AJ15: 458.3333333 | AK15: 0.4033578846 | AL15: 0.2090006052 | AM15: 0.024961985 | AN15: 0.5459809219 | AO15: 0.1953718376 | AP15: 0
L16: 0 | M16: 1.333620896 | N16: 0.2647813151 | O16: 0.2076099374 | P16: 0.001433076318 | Q16: 458.3333333 | R16: 458.3333333 | S16: 7 | U16: 0.2076099374 | V16: 1.688822297 | Y16: =MIN(1.1,$O$6/ABS($AJ$15)) -> 1 | Z16: =$Z$15 -> 0.1597178098 | AA16: =Y16*$AA$15 -> 0.0008781371537 | AB16: 0.1758216476 | AC16: -0.05623982973 | AD16: 9.87625771 | AE16: 6.444197529 | AF16: 0.6524938613 | AG16: 0.7009726762 | AH16: 282.2170603 | AI16: 0.2483661304 | AJ16: 458.3333333 | AK16: 0.4033578846 | AL16: 0.2090006052 | AM16: 0.024961985 | AN16: 0.5459809219 | AO16: 0.1953718376 | AP16: 0
L17: 0 | M17: 1.711512362 | N17: 0.2812316212 | O17: 0.2277920135 | P17: 0.0018131798 | Q17: 458.3333333 | R17: 458.3333333 | S17: 8 | U17: 0.2277920135 | V17: 1.637396416 | Y17: =MIN(1.2,$O$6/ABS($AJ$15)) -> 1 | Z17: =$Z$15 -> 0.1597178098 | AA17: =Y17*$AA$15 -> 0.0008781371537 | AB17: 0.1758216476 | AC17: -0.05623982973 | AD17: 9.87625771 | AE17: 6.444197529 | AF17: 0.6524938613 | AG17: 0.7009726762 | AH17: 282.2170603 | AI17: 0.2483661304 | AJ17: 458.3333333 | AK17: 0.4033578846 | AL17: 0.2090006052 | AM17: 0.024961985 | AN17: 0.5459809219 | AO17: 0.1953718376 | AP17: 0
L18: 0 | M18: 2.090381975 | N18: 0.2872757772 | O18: 0.2506770965 | P18: 0.002177492824 | Q18: 458.3333333 | R18: 458.3333333 | S18: 9 | U18: 0.2506770965 | V18: 1.585970536 | Y18: =MIN(1.3,$O$6/ABS($AJ$15)) -> 1 | Z18: =$Z$15 -> 0.1597178098 | AA18: =Y18*$AA$15 -> 0.0008781371537 | AB18: 0.1758216476 | AC18: -0.05623982973 | AD18: 9.87625771 | AE18: 6.444197529 | AF18: 0.6524938613 | AG18: 0.7009726762 | AH18: 282.2170603 | AI18: 0.2483661304 | AJ18: 458.3333333 | AK18: 0.4033578846 | AL18: 0.2090006052 | AM18: 0.024961985 | AN18: 0.5459809219 | AO18: 0.1953718376 | AP18: 0
L19: 0 | M19: 2.553456959 | N19: 0.271877528 | O19: 0.2767332906 | P19: 0.002701104012 | Q19: 458.3333333 | R19: 440.2308758 | S19: 10 | U19: 0.2767332906 | V19: 1.534544655 | Y19: =MIN(1.5,$O$6/ABS($AJ$15)) -> 1 | Z19: =$Z$15 -> 0.1597178098 | AA19: =Y19*$AA$15 -> 0.0008781371537 | AB19: 0.1758216476 | AC19: -0.05623982973 | AD19: 9.87625771 | AE19: 6.444197529 | AF19: 0.6524938613 | AG19: 0.7009726762 | AH19: 282.2170603 | AI19: 0.2483661304 | AJ19: 458.3333333 | AK19: 0.4033578846 | AL19: 0.2090006052 | AM19: 0.024961985 | AN19: 0.5459809219 | AO19: 0.1953718376 | AP19: 0
L20: 0 | M20: 2.953549071 | N20: 0.2408662568 | O20: 0.3065294473 | P20: 0.002603375156 | Q20: 458.3333333 | R20: 252.7939668 | S20: 11 | U20: 0.3065294473 | V20: 1.483118775 | Y20: =MIN(2,$O$6/ABS($AJ$15)) -> 1 | Z20: =$Z$15 -> 0.1597178098 | AA20: =Y20*$AA$15 -> 0.0008781371537 | AB20: 0.1758216476 | AC20: -0.05623982973 | AD20: 9.87625771 | AE20: 6.444197529 | AF20: 0.6524938613 | AG20: 0.7009726762 | AH20: 282.2170603 | AI20: 0.2483661304 | AJ20: 458.3333333 | AK20: 0.4033578846 | AL20: 0.2090006052 | AM20: 0.024961985 | AN20: 0.5459809219 | AO20: 0.1953718376 | AP20: 0
L21: 0 | M21: 3.409215289 | N21: 0.2028030315 | O21: 0.3407613983 | P21: 0.002615674417 | Q21: 458.3333333 | R21: 93.21420115 | S21: 12 | U21: 0.3407613983 | V21: 1.431692894
L22: 0 | M22: 3.856429861 | N22: 0.1612716719 | O22: 0.3802862937 | P22: 0.002537359889 | Q22: 458.3333333 | R22: -54.72597835 | S22: 13 | U22: 0.3802862937 | V22: 1.380267014
L23: 0 | M23: 4.335849317 | N23: 0.1075872668 | O23: 0.4261679757 | P23: 0.002466294716 | Q23: 458.3333333 | R23: -184.1464153 | S23: 14 | U23: 0.4261679757 | V23: 1.328841133 | Y23: Lastpunkter | Z23: hc | AA23: e0 | AB23: a' | AC23: b' | AD23: N' | AE23: tN' | AF23: t | AG23: Nc | AH23: sac | AI23: Nac | AJ23: sat | AK23: Nat | AL23: Mtot | AM23: u | AN23: N | AO23: Mo | AP23: x
L24: 0 | M24: 4.72541711 | N24: 0.06177739081 | O24: 0.4797375446 | P24: 0.002346137501 | Q24: 458.3333333 | R24: -290.4698084 | S24: 15 | U24: 0.4797375446 | V24: 1.277415252 | Y24: =MAX(IF(Kold!AO5=1,Kold!BE12,Brand!BB34)/1000,M10) -> 0.5 | Z24: =Z25+(Z28-Z27)*(Y24-AN25)/(Y28-Y27) -> 0.157919365 | AA24: =AA25+(AA28-AA27)*(Y24-AN25)/(Y28-Y27) -> 0.0008395789465 | AB24: =IF($C$2=1,AA24/($O$31*$O$30),2^(1/3)*$O$30/AA24) -> 0.1681014783 | AC24: =IF($C$2=1,-($O$31-2)*AA24/$O$30,3*($O$30/AA24)^2) -> -0.05377038974 | AD24: =IF($C$2=1,0.5*($O$31*AA24*$F$6/$O$30)*(1-AP24^2+(AB24-AC24)*(AC24^2*(1-AP24^2)+2*AC24*(1-AP24)+2*LN((1-AC24)/(1-AC24*AP24)))/(AC24^3)),$F$6*AC24*(LN((1-AB24+AB24^2)/(1+AB24)^2)/(6*AB24)+ATAN((2-AB24)/(AB24*3^0.5))/(AB24*3^0.5)-LN((AP24^2-AB24*AP24+AB24^2)/(AP24+AB24)^2)/(6*AB24)-ATAN((2*AP24-AB24)/(AB24*3^0.5))/(AB24*3^0.5))) -> 9.512099291 | AE24: =IF($C$2=1,($O$31*AA24*$F$6/$O$30)*(1-AP24^3-(AB24-AC24)*(-2*AC24^3*(1-AP24^3)-3*AC24^2*(1-AP24^2)-6*AC24*(1-AP24)-6*LN((1-AC24)/(1-AC24*AP24)))/(2*AC24^4))/3,$F$6*AC24*(LN((1+AB24^3)/(AB24^3+AP24^3)))/3) -> 6.213083909 | AF24: =AE24/AD24 -> 0.6531769401 | AG24: =AD24*Z24*$D$6 -> 0.6675243211 | AH24: =MAX(MIN($K$6,$Q$6*$J$6*AA24*(Z24-$I$6)/Z24),-$K$6) -> 267.9762253 | AI24: =AH24*$H$6 -> 0.2358334328 | AJ24: =MIN($O$6,$Q$6*$N$6*AA24*(C$6-Z24-$M$6)/Z24) -> 458.3333333 | AK24: =AJ24*$L$6 -> 0.4033578846 | AL24: =(0.5*$C$6-Z24+AF24*Z24)*AG24+(0.5*$C$6-$I$6)*AI24+(0.5*$C$6-$M$6)*AK24 -> 0.2023421521 | AM24: =0.1*$Q$6*AA24*$B$6^2/Z24+$R$6 -> 0.02413772094 | AN24: =AG24+AI24-AK24 -> 0.4999998693 | AO24: =AL24-AM24*AN24 -> 0.1902732948 | AP24: =IF(Z24<$C$6,0,(Z24-$C$6)/Z24) -> 0
L25: 0 | M25: 5.000522629 | N25: 0.03222123791 | O25: 0.5426750866 | P25: 0.002224294943 | Q25: 458.3333333 | R25: -376.23613 | S25: 16 | U25: 0.5426750866 | V25: 1.225989372 | Y25: 1 | Z25: =Z27+(Z28-Z27)*(Y24*Y24/AN26-Y27)/(Y28-Y27) -> 0.1579197711 | AA25: =AA27+(AA28-AA27)*(Y24*Y24/AN26-Y27)/(Y28-Y27) -> 0.0008395876531 | AB25: 0.1681032215 | AC25: -0.05377094735 | AD25: 9.512182213 | AE25: 6.213136611 | AF25: 0.6531767865 | AG25: 0.6675318568 | AH25: 267.9794265 | AI25: 0.23583625 | AJ25: 458.3333333 | AK25: 0.4033578846 | AL25: 0.2023436568 | AM25: 0.02413790918 | AN25: 0.5000102222 | AO25: 0.1902744555 | AP25: 0
L26: 0 | M26: 5.000522629 | N26: 0.03222123791 | O26: 0.5426750866 | P26: 0.002224294943 | Q26: 458.3333333 | R26: -376.23613 | S26: 17 | U26: 0.6171212585 | V26: 1.174563491 | Y26: =VLOOKUP(Y24,Result,7) -> 3 | Z26: =Z27+(Z28-Z27)*(Y24-Y27)/(Y28-Y27) -> 0.1578911345 | AA26: =AA27+(AA28-AA27)*(Y24-Y27)/(Y28-Y27) -> 0.0008389736904 | AB26: 0.1679802932 | AC26: -0.05373162643 | AD26: 9.506334089 | AE26: 6.209419665 | AF26: 0.6531876123 | AG26: 0.6670004822 | AH26: 267.7537023 | AI26: 0.2356376006 | AJ26: 458.3333333 | AK26: 0.4033578846 | AL26: 0.2022375502 | AM26: 0.02412463261 | AN26: 0.4992801982 | AO26: 0.1901925989 | AP26: 0
L27: 0 | M27: 5.000522629 | N27: 0.03222123791 | O27: 0.5426750866 | P27: 0.002224294943 | Q27: 458.3333333 | R27: -376.23613 | S27: 18 | U27: 0.7058315836 | V27: 1.123137611 | Y27: =INDEX(Result,Y26,1) -> 0.2794099443 | Z27: =INDEX(Result,Y26,3) -> 0.1491277955 | AA27: =INDEX(Result,Y26,4) -> 0.0006510898857 | AB27: 0.1303619781 | AC27: -0.0416987075 | AD27: 7.642826566 | AE27: 5.016965085 | AF27: 0.6564279644 | AG27: 0.5064865675 | AH27: 200.3074223 | AI27: 0.1762812613 | AJ27: 458.3333333 | AK27: 0.4033578846 | AL27: 0.169721287 | AM27: 0.01982222779 | AN27: 0.2794099443 | AO27: 0.1641827595 | AP27: 0
L28: 0 | M28: 5.000522629 | N28: 0.03222123791 | O28: 0.5426750866 | P28: 0.002224294943 | Q28: 458.3333333 | R28: -376.23613 | S28: 19 | U28: =Y82 -> 0.8123927659 | V28: =1/U28^(1/3) -> 1.07171173 | Y28: =INDEX(Result,Y26+1,1) -> 0.5459809219 | Z28: =INDEX(Result,Y26+1,3) -> 0.1597178098 | AA28: =INDEX(Result,Y26+1,4) -> 0.0008781371537 | AB28: 0.1758216476 | AC28: -0.05623982973 | AD28: 9.87625771 | AE28: 6.444197529 | AF28: 0.6524938613 | AG28: 0.7009726762 | AH28: 282.2170603 | AI28: 0.2483661304 | AJ28: 458.3333333 | AK28: 0.4033578846 | AL28: 0.2090006052 | AM28: 0.024961985 | AN28: 0.5459809219 | AO28: 0.1953718376 | AP28: 0
M29: emax | O29: =IF(C2=1,0.0028,Firsidig!G21) -> 0.0028 | P29: Konv.krit: | Q29: =IF(Y81<0.6*C6,1.003,1.001) -> 1.001 | U29: N_max | V29: =AP82 -> 5.098028709 | Y29: =MAX(IF(Kold!AO5=1,Kold!BF12,Brand!BC34)/1000,M10) -> 3.8 | Z29: =Z30+(Z33-Z32)*(Y29-AN30)/(Y33-Y32) -> 0.3750619181 | AA29: =AA30+(AA33-AA32)*(Y29-AN30)/(Y33-Y32) -> 0.002547711453 | AB29: 0.5101057659 | AC29: -0.163166833 | AD29: 20.18170088 | AE29: 12.40749299 | AF29: 0.6147892618 | AG29: 3.363690783 | AH29: 458.3333333 | AI29: 0.4033578846 | AJ29: -37.44697881 | AK29: -0.03295534725 | AL29: 0.2840827605 | AM29: 0.03084021384 | AN29: 3.800004015 | AO29: 0.1668898242 | AP29: 0
M30: e1 | O30: =IF(C2=1,0.7*(E6+8)^0.31/1000,Firsidig!F21) -> 0.002324249914 | P30: Vælg checkpunkt: | U30: e | V30: =Z82 -> 0.001837610088 | Y30: 1 | Z30: =Z32+(Z33-Z32)*(Y29*Y29/AN31-Y32)/(Y33-Y32) -> 0.3750710242 | AA30: =AA32+(AA33-AA32)*(Y29*Y29/AN31-Y32)/(Y33-Y32) -> 0.002547693411 | AB30: 0.5101021533 | AC30: -0.1631656775 | AD30: 20.18164307 | AE30: 12.40746799 | AF30: 0.6147897843 | AG30: 3.363762814 | AH30: 458.3333333 | AI30: 0.4033578846 | AJ30: -37.47764403 | AK30: -0.03298233429 | AL30: 0.2840723901 | AM30: 0.03083924668 | AN30: 3.800103033 | AO30: 0.1668800752 | AP30: 0
M31: k | O31: =1.05*G6*O30/F6 -> 2.148855357 | P31: Stepmax: | Q31: =IF(Y81<0.6*C6,0.025,0.06)*0.5*(0.0024+O30)/(0.0024*V6) -> 0.05905312393 | Y31: =VLOOKUP(Y29,Result,7) -> 12 | Z31: =Z32+(Z33-Z32)*(Y29-Y32)/(Y33-Y32) -> 0.3752990135 | AA31: =AA32+(AA33-AA32)*(Y29-Y32)/(Y33-Y32) -> 0.002547241673 | AB31: 0.5100117059 | AC31: -0.1631367462 | AD31: 20.18019538 | AE31: 12.40684193 | AF31: 0.6148028646 | AG31: 3.365566058 | AH31: 458.3333333 | AI31: 0.4033578846 | AJ31: -38.24477779 | AK31: -0.03365745309 | AL31: 0.2838126685 | AM31: 0.03081504738 | AN31: 3.802581396 | AO31: 0.1666359426 | AP31: 0
Y32: =INDEX(Result,Y31,1) -> 3.409215289 | Z32: =INDEX(Result,Y31,3) -> 0.3407613983 | AA32: =INDEX(Result,Y31,4) -> 0.002615674417 | AB32: 0.5237133899 | AC32: -0.1675194851 | AD32: 20.39183111 | AE32: 12.49606198 | AF32: 0.6127974438 | AG32: 3.087890895 | AH32: 458.3333333 | AI32: 0.4033578846 | AJ32: 93.21420115 | AK32: 0.08203349016 | AL32: 0.3216143545 | AM32: 0.03485004992 | AN32: 3.409215289 | AO32: 0.2028030315 | AP32: 0
Y33: =INDEX(Result,Y31+1,1) -> 3.856429861 | Z33: =INDEX(Result,Y31+1,3) -> 0.3802862937 | AA33: =INDEX(Result,Y31+1,4) -> 0.002537359889 | AB33: 0.5080331635 | AC33: -0.1625038726 | AD33: 20.14835796 | AE33: 12.39302286 | AF33: =AE33/AD33 -> 0.6150884795 | AG33: =AD33*Z33*$D$6 -> 3.404910184 | AH33: 458.3333333 | AI33: 0.4033578846 | AJ33: -54.72597835 | AK33: -0.04816179242 | AL33: =(0.5*$C$6-Z33+AF33*Z33)*AG33+(0.5*$C$6-$I$6)*AI33+(0.5*$C$6-$M$6)*AK33 -> 0.278094293 | AM33: =0.1*$Q$6*AA33*$B$6^2/Z33+$R$6 -> 0.03029294587 | AN33: =AG33+AI33-AK33 -> 3.856429861 | AO33: =AL33-AM33*AN33 -> 0.1612716719 | AP33: 0
B34: hc/hcm | C34: hc | D34: e0 | E34: a' | F34: b' | G34: N' | H34: tN' | I34: t | J34: Nc | K34: sac | L34: Nac | M34: sat | N34: Nat | O34: Mtot | P34: u | Q34: N | R34: Mo | S34: a'' | T34: b'' | U34: c'' | W34: x | Y34: =MAX(IF(Kold!AO5=1,Kold!BG12,Brand!BD34)/1000,M10) -> 4.1 | Z34: =Z35+(Z38-Z37)*(Y34-AN35)/(Y38-Y37) -> 0.4030410686 | AA34: =AA35+(AA38-AA37)*(Y34-AN35)/(Y38-Y37) -> 0.002502115496 | AB34: 0.5009764901 | AC34: -0.1602466641 | AD34: 20.03216986 | AE34: 12.34180329 | AF34: 0.6160991733 | AG34: 3.587836348 | AH34: 458.3333333 | AI34: 0.4033578846 | AJ34: -123.6353961 | AK34: -0.1088057713 | AL34: 0.250939374 | AM34: 0.028185657 | AN34: 4.100000004 | AO34: 0.1353781802 | AP34: 0
B35: =C35/$Y$81 -> 0.1414906801 | C35: =U10 -> 0.1225234542 | D35: =Z51 -> 0.0004511031306 | E35: =IF($C$2=1,D35/($O$31*$O$30),2^(1/3)*$O$30/D35) -> 0.09032039621 | F35: =IF($C$2=1,-($O$31-2)*D35/$O$30,3*($O$30/D35)^2) -> -0.0288906615 | G35: =IF($C$2=1,0.5*($O$31*D35*$F$6/$O$30)*(1-W35^2+(E35-F35)*(F35^2*(1-W35^2)+2*F35*(1-W35)+2*LN((1-F35)/(1-F35*W35)))/(F35^3)),$F$6*F35*(LN((1-E35+E35^2)/(1+E35)^2)/(6*E35)+ATAN((2-E35)/(E35*3^0.5))/(E35*3^0.5)-LN((W35^2-E35*W35+E35^2)/(W35+E35)^2)/(6*E35)-ATAN((2*W35-E35)/(E35*3^0.5))/(E35*3^0.5))) -> 5.494543076 | H35: =IF($C$2=1,($O$31*D35*$F$6/$O$30)*(1-W35^3-(E35-F35)*(-2*F35^3*(1-W35^3)-3*F35^2*(1-W35^2)-6*F35*(1-W35)-6*LN((1-F35)/(1-F35*W35)))/(2*F35^4))/3,$F$6*F35*(LN((1+E35^3)/(E35^3+W35^3)))/3) -> 3.624899239 | I35: =H35/G35 -> 0.6597271491 | J35: =G35*C35*$D$6 -> 0.2991618045 | K35: =MAX(MIN($K$6,$Q$6*$J$6*D35*(C35-$I$6)/C35),-$K$6) -> 118.4952929 | L35: =K35*$H$6 -> 0.1042822051 | M35: =MIN($O$6,$Q$6*$N$6*D35*(C$6-C35-$M$6)/C35) -> 458.3175673 | N35: =M35*$L$6 -> 0.4033440096 | O35: =(0.5*$C$6-C35+I35*C35)*J35+(0.5*$C$6-$I$6)*L35+(0.5*$C$6-$M$6)*N35 -> 0.1282511866 | P35: =0.1*$Q$6*D35*$B$6^2/C35+$R$6 -> 0.01671578284 | Q35: =(J35+L35-N35) -> 0.0001 | R35: =O35-P35*Q35 -> 0.128249515 | W35: =IF(C35<$C$6,0,(C35-$C$6)/C35) -> 0 | Y35: 1 | Z35: =Z37+(Z38-Z37)*(Y34*Y34/AN36-Y37)/(Y38-Y37) -> 0.4030423259 | AA35: =AA37+(AA38-AA37)*(Y34*Y34/AN36-Y37)/(Y38-Y37) -> 0.002502113549 | AB35: 0.5009761001 | AC35: -0.1602465394 | AD35: 20.03216332 | AE35: 12.34180038 | AF35: 0.6160992288 | AG35: 3.58784637 | AH35: 458.3333333 | AI35: 0.4033578846 | AJ35: -123.6389322 | AK35: -0.1088088832 | AL35: 0.2509378246 | AM35: 0.02818554713 | AN35: 4.100013138 | AO35: 0.135376711 | AP35: 0
B36: =C36/$Y$81 -> 0.1582269027 | C36: =U11 -> 0.1370161388 | D36: =Z53 -> 0.0005522796268 | E36: 0.1105780726 | F36: =IF($C$2=1,-($O$31-2)*D36/$O$30,3*($O$30/D36)^2) -> -0.0353704567 | G36: =IF($C$2=1,0.5*($O$31*D36*$F$6/$O$30)*(1-W36^2+(E36-F36)*(F36^2*(1-W36^2)+2*F36*(1-W36)+2*LN((1-F36)/(1-F36*W36)))/(F36^3)),$F$6*F36*(LN((1-E36+E36^2)/(1+E36)^2)/(6*E36)+ATAN((2-E36)/(E36*3^0.5))/(E36*3^0.5)-LN((W36^2-E36*W36+E36^2)/(W36+E36)^2)/(6*E36)-ATAN((2*W36-E36)/(E36*3^0.5))/(E36*3^0.5))) -> 6.602907983 | H36: =IF($C$2=1,($O$31*D36*$F$6/$O$30)*(1-W36^3-(E36-F36)*(-2*F36^3*(1-W36^3)-3*F36^2*(1-W36^2)-6*F36*(1-W36)-6*LN((1-F36)/(1-F36*W36)))/(2*F36^4))/3,$F$6*F36*(LN((1+E36^3)/(E36^3+W36^3)))/3) -> 4.345218855 | I36: =H36/G36 -> 0.6580765424 | J36: =G36*C36*$D$6 -> 0.4020335525 | K36: =MAX(MIN($K$6,$Q$6*$J$6*D36*(C36-$I$6)/C36),-$K$6) -> 159.7977154 | L36: 0.1406305493 | M36: =MIN($O$6,$Q$6*$N$6*D36*(C$6-C36-$M$6)/C36) -> 458.3333333 | N36: 0.4033578846 | O36: =(0.5*$C$6-C36+I36*C36)*J36+(0.5*$C$6-$I$6)*L36+(0.5*$C$6-$M$6)*N36 -> 0.1492491841 | P36: =0.1*$Q$6*D36*$B$6^2/C36+$R$6 -> 0.0183002663 | Q36: =(J36+L36-N36) -> 0.1393062173 | R36: =O36-P36*Q36 -> 0.1466998432 | S36: =((R36-R35)*(Q36-Q37)-(R36-R37)*(Q36-Q35))/((Q36^2-Q35^2)*(Q36-Q37)-(Q36^2-Q37^2)*(Q36-Q35)) -> -0.02912946212 | T36: =-(S36*(Q36^2-Q35^2)-(R36-R35))/(Q36-Q35) -> 0.1366003695 | U36: =R36-S36*Q36^2-T36*Q36 -> 0.1282358552 | V36: =S36*Q35^2+T36*Q35+U36 -> 0.128249515 | W36: =IF(C36<$C$6,0,(C36-$C$6)/C36) -> 0 | Y36: =VLOOKUP(Y34,Result,7) -> 13 | Z36: =Z37+(Z38-Z37)*(Y34-Y37)/(Y38-Y37) -> 0.403596586 | AA36: =AA37+(AA38-AA37)*(Y34-Y37)/(Y38-Y37) -> 0.002501255067 | AB36: 0.5008042139 | AC36: -0.1601915583 | AD36: 20.02928173 | AE36: 12.34051503 | AF36: 0.6161236931 | AG36: 3.592263528 | AH36: 458.3333333 | AI36: 0.4033578846 | AJ36: -125.1949525 | AK36: -0.1101782644 | AL36: 0.2502542981 | AM36: 0.02813718261 | AN36: 4.105799677 | AO36: 0.1347286628 | AP36: 0
B37: 0.1722135026 | C37: 0.1491277955 | D37: =Z55 -> 0.0006441734396 | E37: 0.1289771592 | F37: -0.04125574736 | G37: 7.571390664 | H37: 4.970955433 | I37: 0.6565445706 | J37: 0.5017525435 | K37: 198.1795816 | L37: 0.1744086476 | M37: 458.3333333 | N37: 0.4033578846 | O37: 0.1686831506 | P37: =0.1*$Q$6*D37*$B$6^2/C37+$R$6 -> 0.01961165875 | Q37: 0.2728033065 | R37: =O37-P37*Q37 -> 0.1633330253 | S37: -0.02586355148 | T37: 0.1352544566 | U37: 0.1283599703 | V37: 0.1466998432 | W37: 0 | Y37: =INDEX(Result,Y36,1) -> 3.856429861 | Z37: =INDEX(Result,Y36,3) -> 0.3802862937 | AA37: =INDEX(Result,Y36,4) -> 0.002537359889 | AB37: 0.5080331635 | AC37: -0.1625038726 | AD37: 20.14835796 | AE37: 12.39302286 | AF37: 0.6150884795 | AG37: 3.404910184 | AH37: 458.3333333 | AI37: 0.4033578846 | AJ37: -54.72597835 | AK37: -0.04816179242 | AL37: 0.278094293 | AM37: 0.03029294587 | AN37: 3.856429861 | AO37: 0.1612716719 | AP37: 0
B38: 0.1844429026 | C38: 0.1597178098 | D38: =Z57 -> 0.0007309784275 | E38: 0.1463573554 | F38: -0.04681512692 | G38: 8.453279881 | H38: 5.537469242 | I38: 0.6550675382 | J38: 0.5999760633 | K38: 234.922964 | L38: 0.2067447923 | M38: 458.3333333 | N38: 0.4033578846 | O38: 0.1870899815 | P38: 0.02077884129 | Q38: 0.4033629709 | R38: 0.1787085663 | S38: -0.06096926691 | T38: 0.1589917575 | U38: 0.1244969812 | V38: 0.1633330253 | W38: 0 | Y38: =INDEX(Result,Y36+1,1) -> 4.335849317 | Z38: =INDEX(Result,Y36+1,3) -> 0.4261679757 | AA38: =INDEX(Result,Y36+1,4) -> 0.002466294716 | AB38: 0.4938044116 | AC38: -0.1579525412 | AD38: 19.90925709 | AE38: 12.2866402 | AF38: 0.6171320277 | AG38: 3.770432723 | AH38: 458.3333333 | AI38: 0.4033578846 | AJ38: -184.1464153 | AK38: -0.1620587095 | AL38: 0.2215094904 | AM38: 0.02627448864 | AN38: 4.335849317 | AO38: 0.1075872668 | AP38: 0.004260122557
B39: 0.2007851482 | C39: 0.1738693311 | D39: =D38+($D$53-$D$38)/15 -> 0.0008047538716 | E39: 0.161128761 | F39: -0.05154003623 | G39: 9.177914197 | H39: 6.000414729 | I39: 0.6537884971 | J39: 0.7091241995 | K39: 271.2991214 | L39: 0.2387577593 | M39: 453.8351256 | N39: 0.3993992209 | O39: 0.2048854844 | P39: 0.02101407136 | Q39: 0.548482738 | R39: 0.193359629 | S39: -0.1431848921 | T39: 0.2372483475 | U39: 0.1063077914 | V39: 0.1787085663 | W39: 0 | Y39: =MAX(IF(Kold!AO5=1,Kold!BH12,Brand!BE34)/1000,M10) -> 4.1 | Z39: =Z40+(Z43-Z42)*(Y39-AN40)/(Y43-Y42) -> 0.4030410686 | AA39: =AA40+(AA43-AA42)*(Y39-AN40)/(Y43-Y42) -> 0.002502115496 | AB39: 0.5009764901 | AC39: -0.1602466641 | AD39: 20.03216986 | AE39: 12.34180329 | AF39: 0.6160991733 | AG39: 3.587836348 | AH39: 458.3333333 | AI39: 0.4033578846 | AJ39: -123.6353961 | AK39: -0.1088057713 | AL39: 0.250939374 | AM39: 0.028185657 | AN39: 4.100000004 | AO39: 0.1353781802 | AP39: 0
B40: 0.2191164783 | C40: 0.1897432946 | D40: =D39+($D$53-$D$38)/15 -> 0.0008785293157 | E40: 0.1759001667 | F40: -0.05626494553 | G40: 9.879929962 | H40: 6.446524689 | I40: 0.6524868814 | J40: 0.8330587547 | K40: 309.2261897 | L40: 0.2721356111 | M40: 416.1581015 | N40: 0.3662414214 | O40: 0.2189706023 | P40: 0.02102131753 | Q40: 0.7389529444 | R40: 0.2034368378 | S40: -0.02708120132 | T40: 0.08777231322 | U40: 0.1533649579 | V40: 0.193359629 | W40: 0 | Y40: 1 | Z40: =Z42+(Z43-Z42)*(Y39*Y39/AN41-Y42)/(Y43-Y42) -> 0.4030423259 | AA40: =AA42+(AA43-AA42)*(Y39*Y39/AN41-Y42)/(Y43-Y42) -> 0.002502113549 | AB40: 0.5009761001 | AC40: -0.1602465394 | AD40: 20.03216332 | AE40: 12.34180038 | AF40: 0.6160992288 | AG40: 3.58784637 | AH40: 458.3333333 | AI40: 0.4033578846 | AJ40: -123.6389322 | AK40: -0.1088088832 | AL40: 0.2509378246 | AM40: 0.02818554713 | AN40: 4.100013138 | AO40: 0.135376711 | AP40: 0
B41: 0.2397489642 | C41: 0.2076099374 | D41: 0.0009523047597 | E41: 0.1906715724 | F41: -0.06098985484 | G41: 10.55955479 | H41: 6.875979928 | I41: 0.6511619159 | J41: 0.9742021307 | K41: 348.5338309 | L41: 0.3067284409 | M41: 370.0974922 | N41: 0.3257056179 | O41: 0.2323900434 | P41: 0.02082561949 | Q41: 0.9552249537 | R41: 0.212496892 | S41: -0.02128410796 | T41: 0.07795100577 | U41: 0.1574569307 | V41: =S41*Q40^2+T41*Q40+U41 -> 0.2034368378 | W41: 0 | Y41: =VLOOKUP(Y39,Result,7) -> 13 | Z41: =Z42+(Z43-Z42)*(Y39-Y42)/(Y43-Y42) -> 0.403596586 | AA41: =AA42+(AA43-AA42)*(Y39-Y42)/(Y43-Y42) -> 0.002501255067 | AB41: 0.5008042139 | AC41: -0.1601915583 | AD41: 20.02928173 | AE41: 12.34051503 | AF41: 0.6161236931 | AG41: 3.592263528 | AH41: 458.3333333 | AI41: 0.4033578846 | AJ41: -125.1949525 | AK41: -0.1101782644 | AL41: 0.2502542981 | AM41: 0.02813718261 | AN41: 4.105799677 | AO41: 0.1347286628 | AP41: 0
B42: 0.2630553237 | C42: 0.2277920135 | D42: 0.001026080204 | E42: 0.205442978 | F42: -0.06571476415 | G42: 11.21701305 | H42: 7.288958568 | I42: 0.6498127921 | J42: 1.135457931 | K42: 389.0591444 | L42: 0.3423928875 | M42: 316.6425187 | N42: 0.2786623779 | O42: 0.2448517135 | P42: 0.02045092363 | Q42: 1.199188441 | R42: 0.2203272022 | S42: -0.01856224997 | T42: 0.07208699847 | U42: 0.1605748047 | V42: =S42*Q41^2+T42*Q41+U42 -> 0.212496892 | W42: 0 | Y42: =INDEX(Result,Y41,1) -> 3.856429861 | Z42: =INDEX(Result,Y41,3) -> 0.3802862937 | AA42: =INDEX(Result,Y41,4) -> 0.002537359889 | AB42: 0.5080331635 | AC42: -0.1625038726 | AD42: 20.14835796 | AE42: 12.39302286 | AF42: 0.6150884795 | AG42: 3.404910184 | AH42: 458.3333333 | AI42: 0.4033578846 | AJ42: -54.72597835 | AK42: -0.04816179242 | AL42: 0.278094293 | AM42: 0.03029294587 | AN42: 3.856429861 | AO42: 0.1612716719 | AP42: 0
B43: 0.2894831288 | C43: 0.2506770965 | D43: 0.001099855648 | E43: 0.2202143837 | F43: -0.07043967346 | G43: 11.85252593 | H43: 7.685636103 | I43: 0.6484386659 | J43: 1.320325161 | K43: 430.6466667 | L43: 0.3789921349 | M43: 256.7372381 | N43: 0.225942522 | O43: 0.2558401687 | P43: 0.01992008306 | Q43: 1.473374774 | R43: 0.2264904208 | S43: -0.02759625654 | T43: 0.09623095211 | U43: 0.144613034 | V43: 0.2203272022 | W43: 0 | Y43: =INDEX(Result,Y41+1,1) -> 4.335849317 | Z43: =INDEX(Result,Y41+1,3) -> 0.4261679757 | AA43: =INDEX(Result,Y41+1,4) -> 0.002466294716 | AB43: 0.4938044116 | AC43: -0.1579525412 | AD43: 19.90925709 | AE43: 12.2866402 | AF43: 0.6171320277 | AG43: 3.770432723 | AH43: 458.3333333 | AI43: 0.4033578846 | AJ43: -184.1464153 | AK43: -0.1620587095 | AL43: 0.2215094904 | AM43: 0.02627448864 | AN43: 4.335849317 | AO43: 0.1075872668 | AP43: 0.004260122557
B44: 0.3195729483 | C44: 0.2767332906 | D44: 0.001173631092 | E44: 0.2349857894 | F44: -0.07516458277 | G44: 12.4663115 | H44: 8.066185441 | I44: 0.647038656 | J44: 1.533044324 | K44: 458.3333333 | L44: 0.4033578846 | M44: 191.2805435 | N44: 0.1683371245 | O44: 0.2625320698 | P44: 0.01925485758 | Q44: 1.768065084 | R44: 0.2284882284 | S44: -0.03851582801 | T44: 0.1316260863 | U44: 0.1161673047 | V44: 0.2264904208 | W44: 0
B45: 0.3539816947 | C45: 0.3065294473 | D45: 0.001247406536 | E45: 0.249757195 | F45: -0.07988949208 | G45: 13.05858477 | H45: 8.430776958 | I45: 0.6456118414 | J45: 1.778785761 | K45: 458.3333333 | L45: 0.4033578846 | M45: 121.1261641 | N45: 0.1065975127 | O45: 0.2617889126 | P45: 0.01847591368 | Q45: 2.075546133 | R45: 0.2234413014 | S45: -0.02196092408 | T45: 0.06799547184 | U45: 0.1769188464 | V45: 0.2284882284 | W45: 0
B46: 0.3935129181 | C46: 0.3407613983 | D46: 0.00132118198 | E46: 0.2645286007 | F46: -0.08461440139 | G46: 13.62955771 | H46: 8.779578543 | I46: 0.6441572594 | J46: 2.063894455 | K46: 458.3333333 | L46: 0.4033578846 | M46: 47.0826652 | N46: 0.04143526742 | O46: 0.2553336547 | P46: 0.01760282459 | Q46: 2.425817073 | R46: 0.2126324223 | S46: -0.02393001522 | T46: 0.07685906627 | U46: 0.1670046788 | V46: 0.2234413014 | W46: 0 | Y46: hc | Z46: e0 | AA46: a' | AB46: b' | AC46: N' | AD46: tN' | AE46: t' | AF46: Nc | AG46: sac | AH46: Nac | AI46: sat | AJ46: Nat | AK46: Mtot | AL46: N | AM46: u | AN46: Mo | AP46: N | AQ46: A | AR46: B1 | AS46: B2 | AT46: B3 | AU46: C1 | AV46: C2 | AW46: x
B47: 0.4391564592 | C47: 0.3802862937 | D47: 0.001394957424 | E47: 0.2793000064 | F47: -0.0893393107 | G47: 14.17943938 | H47: 9.112755646 | I47: 0.6426739029 | J47: 2.396211029 | K47: 458.3333333 | L47: 0.4033578846 | M47: -30.08655182 | N47: -0.02647777723 | O47: 0.2401591474 | P47: 0.01665407021 | Q47: 2.826046691 | R47: 0.1930939674 | S47: -0.02616650393 | T47: 0.08860480027 | U47: 0.1516724924 | V47: 0.2126324223 | W47: 0 | AW47: 0
B48: 0.4921408485 | C48: 0.4261679757 | D48: 0.001468732868 | E48: 0.294071412 | F48: -0.09406422001 | G48: 14.70808423 | H48: 9.430470325 | I48: 0.6411759803 | J48: 2.785430005 | K48: 458.3333333 | L48: 0.4033578846 | M48: -109.6632495 | N48: -0.09650953378 | O48: 0.2117510203 | P48: 0.01564703715 | Q48: 3.285297424 | R48: 0.1603458495 | S48: -0.01181195105 | T48: 0.000879188038 | U48: 0.2849459593 | V48: 0.1930939674 | W48: 0.004260122557 | Y48: =0.5*(-(AR48+AS48+AT48)+SQRT(MAX((AR48+AS48+AT48)^2+4*AQ48*(AU48+AV48),0)))/AQ48 -> 0.120359 | Z48: =0.05*O30 -> 0.0001162124957 | AA48: =IF($C$2=1,Z48/($O$31*$O$30),2^(1/3)*$O$30/Z48) -> 0.02326820176 | AB48: =IF($C$2=1,-($O$31-2)*Z48/$O$30,3*($O$30/Z48)^2) -> -0.007442767845 | AC48: =IF($C$2=1,0.5*($O$31*Z48*$F$6/$O$30)*(1-AW47^2+(AA48-AB48)*(AB48^2*(1-AW47^2)+2*AB48*(1-AW47)+2*LN((1-AB48)/(1-AB48*AW47)))/(AB48^3)),$F$6*AB48*(LN((1-AA48+AA48^2)/(1+AA48)^2)/(6*AA48)+ATAN((2-AA48)/(AA48*3^0.5))/(AA48*3^0.5)-LN((AW47^2-AA48*AW47+AA48^2)/(AW47+AA48)^2)/(6*AA48)-ATAN((2*AW47-AA48)/(AA48*3^0.5))/(AA48*3^0.5))) -> 1.503645621 | AD48: =IF($C$2=1,($O$31*Z48*$F$6/$O$30)*(1-AW47^3-(AA48-AB48)*(-2*AB48^3*(1-AW47^3)-3*AB48^2*(1-AW47^2)-6*AB48*(1-AW47)-6*LN((1-AB48)/(1-AB48*AW47)))/(2*AB48^4))/3,$F$6*AB48*(LN((1+AA48^3)/(AA48^3+AW47^3)))/3) -> 0.9998348468 | AE48: =AD48/AC48 -> 0.6649404839 | AF48: =AC48*Y48*$D$6 -> 0.08042283793 | AG48: =MAX(MIN($K$6,$Q$6*$J$6*Z48*(Y48-$I$6)/Y48),-$K$6) -> 29.9997627 | AH48: =AG48*$H$6 -> 0.02640139816 | AI48: =MIN($O$6,$Q$6*$N$6*Z48*(C$6-Y48-$M$6)/Y48) -> 121.2701592 | AJ48: =AI48*$L$6 -> 0.1067242361 | AK48: =(0.5*$C$6-Y48+AE48*Y48)*AF48+(0.5*$C$6-$I$6)*AH48+(0.5*$C$6-$M$6)*AJ48 -> 0.03407912417 | AL48: =AF48+AH48-AJ48 -> 0.0001 | AO48: 0 | AP48: =AO48*$AP$81 -> 0 | AQ48: =AC48*$D$6 -> 0.6681913105 | AR48: =$Q$6*Z48*$H$6*$J$6 -> 0.05264576751 | AS48: =$Q$6*Z48*$L$6*$N$6 -> 0.05264576751 | AT48: =-(AP48+0.0001) -> -0.0001 | AU48: =$I$6*$Q$6*Z48*$H$6*$J$6 -> 0.003158746051 | AV48: =($C$6-$M$6)*$Q$6*Z48*$L$6*$N$6 -> 0.01918161426 | AW48: 0
B49: 0.5540032469 | C49: 0.4797375446 | D49: 0.001542508312 | E49: 0.3088428177 | F49: -0.09878912932 | G49: 14.95365851 | H49: 9.712718033 | I49: 0.6495211874 | J49: 3.187913262 | K49: 458.3333333 | L49: 0.4033578846 | M49: -190.9743541 | N49: -0.1680676614 | O49: 0.1761961099 | P49: 0.01459801873 | Q49: 3.759338808 | R49: 0.1213172116 | S49: 0.001598484152 | T49: -0.09359244969 | U49: 0.4505721575 | V49: 0.1603458495 | W49: 0.1154487435 | Y49: =0.5*(-(AR49+AS49+AT49)+SQRT(MAX((AR49+AS49+AT49)^2+4*AQ49*(AU49+AV49),0)))/AQ49 -> 0.1224446378 | Z49: =MIN(Z48*$O$6/AI48,$O$30) -> 0.0004392181959 | AA49: 0.08794078069 | AB49: -0.02812949714 | AC49: =IF($C$2=1,0.5*($O$31*Z49*$F$6/$O$30)*(1-AW48^2+(AA49-AB49)*(AB49^2*(1-AW48^2)+2*AB49*(1-AW48)+2*LN((1-AB49)/(1-AB49*AW48)))/(AB49^3)),$F$6*AB49*(LN((1-AA49+AA49^2)/(1+AA49)^2)/(6*AA49)+ATAN((2-AA49)/(AA49*3^0.5))/(AA49*3^0.5)-LN((AW48^2-AA49*AW48+AA49^2)/(AW48+AA49)^2)/(6*AA49)-ATAN((2*AW48-AA49)/(AA49*3^0.5))/(AA49*3^0.5))) -> 5.36142608 | AD49: =IF($C$2=1,($O$31*Z49*$F$6/$O$30)*(1-AW48^3-(AA49-AB49)*(-2*AB49^3*(1-AW48^3)-3*AB49^2*(1-AW48^2)-6*AB49*(1-AW48)-6*LN((1-AB49)/(1-AB49*AW48)))/(2*AB49^4))/3,$F$6*AB49*(LN((1+AA49^3)/(AA49^3+AW48^3)))/3) -> 3.53810496 | AE49: 0.6599186312 | AF49: 0.291726192 | AG49: =MAX(MIN($K$6,$Q$6*$J$6*Z49*(Y49-$I$6)/Y49),-$K$6) -> 115.3021034 | AH49: 0.1014720273 | AI49: 446.6753324 | AJ49: 0.3930982193 | AK49: 0.1250113832 | AL49: 0.0001 | AP49: =AP48 -> 0 | AQ49: 2.382515048 | AR49: =IF(AG48<$K$6,$Q$6*Z49*$H$6*$J$6,$H$6*$K$6) -> 0.1989715382 | AS49: =IF(AI48<$O$6,$Q$6*Z49*$L$6*$N$6,-$L$6*$O$6) -> 0.1989715382 | AT49: -0.0001 | AU49: =IF(AG48<$K$6,$I$6*$Q$6*Z49*$H$6*$J$6,0) -> 0.01193829229 | AV49: =IF(AI48<$O$6,($C$6-$M$6)*$Q$6*Z49*$L$6*$N$6,0) -> 0.07249576699 | AW49: 0
B50: 0.6266838261 | C50: 0.5426750866 | D50: 0.001616283756 | E50: 0.3236142234 | F50: -0.1035140386 | G50: 14.75169876 | H50: 9.882764664 | I50: 0.6699407863 | J50: 3.557437256 | K50: 458.3333333 | L50: 0.4033578846 | M50: -273.3919561 | N50: -0.240599566 | O50: 0.1423814878 | P50: 0.01352221496 | Q50: 4.201394707 | R50: 0.08556932542 | S50: 0.001914652073 | T50: -0.09610937825 | U50: 0.455565861 | V50: 0.1213172116 | W50: 0.2180358775 | Y50: 0.1225206568 | Z50: =IF(ABS(Z49-Z48)/Z49<0.0001,Z49,MIN(Z49*$O$6/AI49,$O$30)) -> 0.0004506815693 | AA50: 0.09023599072 | AB50: -0.02886366283 | AC50: 5.489831939 | AD50: 3.621828507 | AE50: 0.6597339495 | AF50: 0.2988984725 | AG50: 118.3819637 | AH50: 0.1041824694 | AI50: 457.9050154 | AJ50: 0.4029809418 | AK50: 0.1281363983 | AL50: 0.0001 | AP50: =AP49 -> 0 | AQ50: 2.439576152 | AR50: =IF(AG49<$K$6,$Q$6*Z50*$H$6*$J$6,$H$6*$K$6) -> 0.204164595 | AS50: =IF(AI49<$O$6,$Q$6*Z50*$L$6*$N$6,-$L$6*$O$6) -> 0.204164595 | AT50: -0.0001 | AU50: =IF(AG49<$K$6,$I$6*$Q$6*Z50*$H$6*$J$6,0) -> 0.0122498757 | AV50: =IF(AI49<$O$6,($C$6-$M$6)*$Q$6*Z50*$L$6*$N$6,0) -> 0.07438786995 | AW50: 0
B51: 0.7126546271 | C51: 0.6171212585 | D51: 0.0016900592 | E51: 0.338385629 | F51: -0.1082389479 | G51: 14.19168893 | H51: 9.885093414 | I51: 0.696541015 | J51: 3.891884294 | K51: 458.3333333 | L51: 0.4033578846 | M51: -356.3333097 | N51: -0.3135924 | O51: 0.1105884584 | P51: 0.01243373256 | Q51: 4.608834579 | R51: 0.05328344183 | S51: 0.002186842367 | T51: -0.09850743715 | U51: 0.4608364268 | V51: 0.08556932542 | W51: 0.3123678013 | Y51: 0.1225234542 | Z51: =IF(ABS(Z50-Z49)/Z50<0.001,Z50,MIN(Z50*$O$6/AI50,$O$30)) -> 0.0004511031306 | AA51: 0.09032039621 | AB51: =IF($C$2=1,-($O$31-2)*Z51/$O$30,3*($O$30/Z51)^2) -> -0.0288906615 | AC51: =IF($C$2=1,0.5*($O$31*Z51*$F$6/$O$30)*(1-AW50^2+(AA51-AB51)*(AB51^2*(1-AW50^2)+2*AB51*(1-AW50)+2*LN((1-AB51)/(1-AB51*AW50)))/(AB51^3)),$F$6*AB51*(LN((1-AA51+AA51^2)/(1+AA51)^2)/(6*AA51)+ATAN((2-AA51)/(AA51*3^0.5))/(AA51*3^0.5)-LN((AW50^2-AA51*AW50+AA51^2)/(AW50+AA51)^2)/(6*AA51)-ATAN((2*AW50-AA51)/(AA51*3^0.5))/(AA51*3^0.5))) -> 5.494543076 | AD51: 3.624899239 | AE51: 0.6597271491 | AF51: 0.2991618045 | AG51: 118.4952929 | AH51: 0.1042822051 | AI51: 458.3175673 | AJ51: 0.4033440096 | AK51: 0.1282511866 | AL51: 0.0001 | AP51: =AP50 -> 0 | AQ51: 2.441669691 | AR51: =IF(AG50<$K$6,$Q$6*Z51*$H$6*$J$6,$H$6*$K$6) -> 0.2043555677 | AS51: =IF(AI50<$O$6,$Q$6*Z51*$L$6*$N$6,-$L$6*$O$6) -> 0.2043555677 | AT51: -0.0001 | AU51: =IF(AG50<$K$6,$I$6*$Q$6*Z51*$H$6*$J$6,0) -> 0.01226133406 | AV51: =IF(AI50<$O$6,($C$6-$M$6)*$Q$6*Z51*$L$6*$N$6,0) -> 0.07445745133 | AW51: =IF(Y51<=$C$6,0,(Y51-$C$6)/Y51) -> 0
B52: 0.8150977415 | C52: 0.7058315836 | D52: 0.001763834644 | E52: 0.3531570347 | F52: -0.1129638572 | G52: 13.35885948 | H52: 9.697467344 | I52: 0.7259203048 | J52: 4.190113614 | K52: 458.3333333 | L52: 0.4033578846 | M52: -439.260833 | N52: -0.3865730627 | O52: 0.08100205486 | P52: 0.01134558496 | Q52: 4.980044562 | R52: 0.02450053617 | S52: 0.002392744769 | T52: -0.1004818104 | U52: 0.4655623402 | V52: 0.05328344183 | W52: 0.3987907913 | Y52: 0.1394806768 | Z52: =Z51 -> 0.0004511031306 | AA52: 0.09032039621 | AB52: -0.0288906615 | AC52: 5.494543076 | AD52: 3.624899239 | AE52: 0.6597271491 | AF52: 0.340565741 | AG52: 132.3198128 | AH52: 0.1164485232 | AI52: 374.3676056 | AJ52: 0.3294635465 | AK52: 0.1239534112 | AL52: 0.1275507177 | AO52: =IF(C6<0.12,0.0125,0.025) -> 0.025 | AP52: =AO52*$AP$81 -> 0.1274507177 | AQ52: 2.441669691 | AR52: =$Q$6*Z52*$H$6*$J$6 -> 0.2043555677 | AS52: =$Q$6*Z52*$L$6*$N$6 -> 0.2043555677 | AT52: -0.1275507177 | AU52: =$I$6*$Q$6*Z52*$H$6*$J$6 -> 0.01226133406 | AV52: =($C$6-$M$6)*$Q$6*Z52*$L$6*$N$6 -> 0.07445745133 | AW52: 0
B53: 0.9381551124 | C53: 0.8123927659 | D53: =$Z$82 -> 0.001837610088 | E53: 0.3679284403 | F53: =IF($C$2=1,-($O$31-2)*D53/$O$30,3*($O$30/D53)^2) -> -0.1176887666 | G53: 12.33154605 | H53: 9.322968147 | I53: =H53/G53 -> 0.7560258956 | J53: =G53*C53*$D$6 -> 4.451833429 | K53: 458.3333333 | L53: 0.4033578846 | M53: =MIN($O$6,$Q$6*$N$6*D53*(C$6-C53-$M$6)/C53) -> -521.6821081 | N53: -0.4591081998 | O53: =(0.5*$C$6-C53+I53*C53)*J53+(0.5*$C$6-$I$6)*L53+(0.5*$C$6-$M$6)*N53 -> 0.05372349455 | P53: =0.1*$Q$6*D53*$B$6^2/C53+$R$6 -> 0.01026969228 | Q53: =(J53+L53-N53) -> 5.314299513 | R53: =O53-P53*Q53 -> -0.000852726114 | W53: 0.4776511243 | Y53: 0.1370161388 | Z53: =MIN(Z52*$O$6/AI52,$O$30) -> 0.0005522796268 | AA53: 0.1105780726 | AB53: -0.0353704567 | AC53: 6.602907983 | AD53: 4.345218855 | AE53: 0.6580765424 | AF53: 0.4020335525 | AG53: 159.7977154 | AH53: 0.1406305493 | AI53: 458.3333333 | AJ53: 0.4033578846 | AK53: 0.1492491841 | AL53: 0.1393062173 | AP53: =AP52 -> 0.1274507177 | AQ53: 2.934205824 | AR53: =IF(AG52<$K$6,$Q$6*Z53*$H$6*$J$6,$H$6*$K$6) -> 0.2501898325 | AS53: =IF(AI52<$O$6,$Q$6*Z53*$L$6*$N$6,-$L$6*$O$6) -> 0.2501898325 | AT53: -0.1275507177 | AU53: =IF(AG52<$K$6,$I$6*$Q$6*Z53*$H$6*$J$6,0) -> 0.01501138995 | AV53: =IF(AI52<$O$6,($C$6-$M$6)*$Q$6*Z53*$L$6*$N$6,0) -> 0.09115727789 | AW53: 0
B54: De | C54: hc | D54: e0 | E54: a' | F54: b' | G54: N' | H54: tN' | I54: t | J54: Nc | K54: sac | L54: Nac | M54: sat | N54: Nat | O54: Mtot | P54: u | Q54: N | R54: Mo | S54: a'' | T54: b'' | U54: c'' | W54: x | Y54: 0.1529466136 | Z54: =Z53 -> 0.0005522796268 | AA54: 0.1105780726 | AB54: -0.0353704567 | AC54: 6.602907983 | AD54: 4.345218855 | AE54: 0.6580765424 | AF54: 0.4487768443 | AG54: 172.7643994 | AH54: 0.1520419258 | AI54: 392.9503248 | AJ54: 0.3458173347 | AK54: 0.147512869 | AL54: 0.2550014355 | AO54: =IF(C6<0.12,0.025,0.05) -> 0.05 | AP54: =AO54*$AP$81 -> 0.2549014355 | AQ54: 2.934205824 | AR54: =$Q$6*Z54*$H$6*$J$6 -> 0.2501898325 | AS54: =$Q$6*Z54*$L$6*$N$6 -> 0.2501898325 | AT54: -0.2550014355 | AU54: =$I$6*$Q$6*Z54*$H$6*$J$6 -> 0.01501138995 | AV54: =($C$6-$M$6)*$Q$6*Z54*$L$6*$N$6 -> 0.09115727789 | AW54: 0
C55: =$C$35 -> 0.1225234542 | D55: =$D$35 -> 0.0004511031306 | E55: =$E$35 -> 0.09032039621 | F55: =$F$35 -> -0.0288906615 | G55: =IF($C$2=1,0.5*($O$31*D55*$F$6/$O$30)*(1-W55^2+(E55-F55)*(F55^2*(1-W55^2)+2*F55*(1-W55)+2*LN((1-F55)/(1-F55*W55)))/(F55^3)),$F$6*F55*(LN((1-E55+E55^2)/(1+E55)^2)/(6*E55)+ATAN((2-E55)/(E55*3^0.5))/(E55*3^0.5)-LN((W55^2-E55*W55+E55^2)/(W55+E55)^2)/(6*E55)-ATAN((2*W55-E55)/(E55*3^0.5))/(E55*3^0.5))) -> 5.494543076 | H55: =IF($C$2=1,($O$31*D55*$F$6/$O$30)*(1-W55^3-(E55-F55)*(-2*F55^3*(1-W55^3)-3*F55^2*(1-W55^2)-6*F55*(1-W55)-6*LN((1-F55)/(1-F55*W55)))/(2*F55^4))/3,$F$6*F55*(LN((1+E55^3)/(E55^3+W55^3)))/3) -> 3.624899239 | I55: =$I$35 -> 0.6597271491 | J55: =$J$35 -> 0.2991618045 | K55: =$K$35 -> 118.4952929 | L55: =$L$35 -> 0.1042822051 | M55: =$M$35 -> 458.3175673 | N55: =$N$35 -> 0.4033440096 | O55: =$O$35 -> 0.1282511866 | P55: =$P$35 -> 0.01671578284 | Q55: =$Q$35 -> 0.0001 | R55: =$R$35 -> 0.128249515 | W55: =IF(C55<$C$6,0,(C55-$C$6)/C55) -> 0 | Y55: 0.1491277955 | Z55: =MIN(Z54*$O$6/AI54,$O$30) -> 0.0006441734396 | AA55: 0.1289771592 | AB55: -0.04125574736 | AC55: 7.571390664 | AD55: 4.970955433 | AE55: 0.6565445706 | AF55: 0.5017525435 | AG55: 198.1795816 | AH55: 0.1744086476 | AI55: 458.3333333 | AJ55: 0.4033578846 | AK55: 0.1686831506 | AL55: 0.2728033065 | AP55: =AP54 -> 0.2549014355 | AQ55: 3.364580975 | AR55: =IF(AG54<$K$6,$Q$6*Z55*$H$6*$J$6,$H$6*$K$6) -> 0.2918189213 | AS55: =IF(AI54<$O$6,$Q$6*Z55*$L$6*$N$6,-$L$6*$O$6) -> 0.2918189213 | AT55: -0.2550014355 | AU55: =IF(AG54<$K$6,$I$6*$Q$6*Z55*$H$6*$J$6,0) -> 0.01750913528 | AV55: =IF(AI54<$O$6,($C$6-$M$6)*$Q$6*Z55*$L$6*$N$6,0) -> 0.1063249383 | AW55: 0
B56: =0.25*D36*$Q$31 -> 8.153459311e-06 | C56: =C36 -> 0.1370161388 | D56: =D36+B56 -> 0.0005604330861 | E56: =IF($C$2=1,D56/($O$31*$O$30),2^(1/3)*$O$30/D56) -> 0.1122105677 | F56: =IF($C$2=1,-($O$31-2)*D56/$O$30,3*($O$30/D56)^2) -> -0.03589264069 | G56: =IF($C$2=1,0.5*($O$31*D56*$F$6/$O$30)*(1-W56^2+(E56-F56)*(F56^2*(1-W56^2)+2*F56*(1-W56)+2*LN((1-F56)/(1-F56*W56)))/(F56^3)),$F$6*F56*(LN((1-E56+E56^2)/(1+E56)^2)/(6*E56)+ATAN((2-E56)/(E56*3^0.5))/(E56*3^0.5)-LN((W56^2-E56*W56+E56^2)/(W56+E56)^2)/(6*E56)-ATAN((2*W56-E56)/(E56*3^0.5))/(E56*3^0.5))) -> 6.690300835 | H56: =IF($C$2=1,($O$31*D56*$F$6/$O$30)*(1-W56^3-(E56-F56)*(-2*F56^3*(1-W56^3)-3*F56^2*(1-W56^2)-6*F56*(1-W56)-6*LN((1-F56)/(1-F56*W56)))/(2*F56^4))/3,$F$6*F56*(LN((1+E56^3)/(E56^3+W56^3)))/3) -> 4.40182923 | I56: =H56/G56 -> 0.657941898 | J56: =G56*C56*$D$6 -> 0.4073546715 | K56: =MAX(MIN($K$6,$Q$6*$J$6*D56*(C56-$I$6)/C56),-$K$6) -> 162.156854 | L56: =K56*$H$6 -> 0.1427067177 | M56: =MIN($O$6,$Q$6*$N$6*D56*(C$6-C56-$M$6)/C56) -> 458.3333333 | N56: =M56*$L$6 -> 0.4033578846 | O56: =(0.5*$C$6-C56+I56*C56)*J56+(0.5*$C$6-$I$6)*L56+(0.5*$C$6-$M$6)*N56 -> 0.1504373381 | P56: =0.1*$Q$6*D56*$B$6^2/C56+$R$6 -> 0.01857043827 | Q56: =(J56+L56-N56) -> 0.1467035045 | R56: =O56-P56*Q56 -> 0.1477129897 | S56: =((R56-R55)*(Q56-Q57)-(R56-R57)*(Q56-Q55))/((Q56^2-Q55^2)*(Q56-Q57)-(Q56^2-Q57^2)*(Q56-Q55)) -> -0.02870107477 | T56: =-(S56*(Q56^2-Q55^2)-(R56-R55))/(Q56-Q55) -> 0.1369761023 | U56: =R56-S56*Q56^2-T56*Q56 -> 0.1282358177 | V56: =S36*Q56^2+T36*Q56+U36 -> 0.1476486863 | W56: =IF(C56<$C$6,0,(C56-$C$6)/C56) -> 0 | Y56: 0.1642648858 | Z56: =Z55 -> 0.0006441734396 | AA56: 0.1289771592 | AB56: -0.04125574736 | AC56: 7.571390664 | AD56: 4.970955433 | AE56: 0.6565445706 | AF56: 0.5526825095 | AG56: 210.4736227 | AH56: 0.1852280623 | AI56: 403.9054351 | AJ56: 0.3554584186 | AK56: 0.1683646572 | AL56: 0.3824521532 | AO56: =IF(C6<0.12,0.0375,0.075) -> 0.075 | AP56: =AO56*$AP$81 -> 0.3823521532 | AQ56: 3.364580975 | AR56: =$Q$6*Z56*$H$6*$J$6 -> 0.2918189213 | AS56: =$Q$6*Z56*$L$6*$N$6 -> 0.2918189213 | AT56: -0.3824521532 | AU56: =$I$6*$Q$6*Z56*$H$6*$J$6 -> 0.01750913528 | AV56: =($C$6-$M$6)*$Q$6*Z56*$L$6*$N$6 -> 0.1063249383 | AW56: 0
B57: =0.5*D37*$Q$31 -> 1.902022698e-05 | C57: 0.1491277955 | D57: 0.0006631936666 | E57: 0.1327854113 | F57: -0.04247388774 | G57: 7.767350914 | H57: 5.097117874 | I57: 0.6562234577 | J57: 0.5147387383 | K57: 204.0311433 | L57: 0.1795583353 | M57: 458.3333333 | N57: 0.4033578846 | O57: 0.1715323865 | P57: =0.1*$Q$6*D57*$B$6^2/C57+$R$6 -> 0.02019072361 | Q57: 0.290939189 | R57: 0.1656581138 | S57: -0.02540466454 | T57: 0.1355334524 | U57: 0.1283765144 | V57: 0.1655215561 | W57: 0 | Y57: 0.1597178098 | Z57: =MIN(Z56*$O$6/AI56,$O$30) -> 0.0007309784275 | AA57: 0.1463573554 | AB57: -0.04681512692 | AC57: 8.453279881 | AD57: 5.537469242 | AE57: 0.6550675382 | AF57: 0.5999760633 | AG57: 234.922964 | AH57: 0.2067447923 | AI57: 458.3333333 | AJ57: 0.4033578846 | AK57: 0.1870899815 | AL57: 0.4033629709 | AP57: =AP56 -> 0.3823521532 | AQ57: 3.75647565 | AR57: =IF(AG56<$K$6,$Q$6*Z57*$H$6*$J$6,$H$6*$K$6) -> 0.3311427064 | AS57: =IF(AI56<$O$6,$Q$6*Z57*$L$6*$N$6,-$L$6*$O$6) -> 0.3311427064 | AT57: -0.3824521532 | AU57: =IF(AG56<$K$6,$I$6*$Q$6*Z57*$H$6*$J$6,0) -> 0.01986856239 | AV57: =IF(AI56<$O$6,($C$6-$M$6)*$Q$6*Z57*$L$6*$N$6,0) -> 0.1206526557 | AW57: 0
B58: =0.75*D38*$Q$31 -> 3.237491975e-05 | C58: 0.1597178098 | D58: 0.0007633533473 | E58: 0.1528394997 | F58: -0.04888856153 | G58: 8.774071289 | H58: 5.742708512 | I58: 0.6545089872 | J58: 0.6227444051 | K58: 245.3276652 | L58: 0.2159014867 | M58: 458.3333333 | N58: 0.4033578846 | O58: 0.1920044078 | P58: 0.0216991329 | Q58: 0.4352880071 | R58: 0.1825590355 | S58: -0.03047021275 | T58: 0.1392121913 | U58: 0.1277350015 | V58: 0.182151995 | W58: 0
B59: =D39*$Q$31 -> 4.752323011e-05 | C59: 0.1738693311 | D59: 0.0008522771017 | E59: 0.1706439177 | F59: -0.05458363637 | G59: 9.632702973 | H59: 6.28969925 | I59: 0.6529526829 | J59: 0.7442630906 | K59: 287.320182 | L59: 0.2528571509 | M59: 458.3333333 | N59: 0.4033578846 | O59: 0.2128657649 | P59: 0.02225501792 | Q59: 0.5937623569 | R59: 0.199651573 | S59: -0.09564196343 | T59: 0.2062772051 | U59: 0.1108908651 | V59: 0.1966965607 | W59: 0
B60: 5.187990055e-05 | C60: 0.1897432946 | D60: 0.0009304092162 | E60: 0.1862876211 | F60: -0.05958756634 | G60: 10.36017462 | H60: 6.750250834 | I60: 0.6515576314 | J60: 0.8735521605 | K60: 327.4869622 | L60: 0.2882060691 | M60: 440.7335374 | N60: 0.3878691214 | O60: 0.2304750141 | P60: 0.022262692 | Q60: 0.7738891081 | R60: 0.2132461592 | S60: -0.08758865557 | T60: 0.1952630868 | U60: 0.1145914101 | V60: 0.2050719458 | W60: 0 | Y60: hc | Z60: e0 | AA60: a' | AB60: b' | AC60: N' | AD60: tN' | AE60: t' | AF60: Nc | AG60: sac | AH60: Nac | AI60: sat | AJ60: Nat | AK60: Mtot | AL60: N | AM60: u | AN60: Mo | AP60: N | AQ60: A | AR60: B1 | AS60: B2 | AT60: B3 | AU60: C1 | AV60: C2 | AW60: gættet x | AX60: beregnet x | AY60: Max-valg | AZ60: hc' | BA60: sac | BB60: sat
B61: 5.623657099e-05 | C61: 0.2076099374 | D61: 0.001008541331 | E61: 0.2019313244 | F61: -0.0645914963 | G61: 11.06271003 | H61: 7.19226336 | I61: 0.6501357569 | J61: 1.020622166 | K61: 369.1158424 | L61: 0.3248417136 | M61: 391.9529052 | N61: 0.3449395521 | O61: 0.2443433505 | P61: 0.02205543738 | Q61: 1.000524328 | R61: 0.2222763488 | S61: -0.02039091146 | T61: 0.07602650676 | U61: 0.1666222793 | V61: =S41*Q61^2+T41*Q61+U41 -> 0.2141423748 | W61: 0 | Y61: =$C$6 -> 0.4243524479
B62: 6.059324143e-05 | C62: 0.2277920135 | D62: 0.001086673445 | E62: 0.2175750277 | F62: -0.06959542626 | G62: 11.74057296 | H62: 7.615946113 | I62: 0.6486860682 | J62: 1.18845602 | K62: 412.0343022 | L62: 0.3626122571 | M62: 335.3412486 | N62: 0.2951182618 | O62: 0.2571450723 | P62: 0.02165861456 | Q62: 1.255950015 | R62: 0.229942935 | S62: -0.01777482894 | T62: 0.07012338367 | U62: 0.169909671 | V62: 0.2218321846 | W62: 0 | Y62: =0.5*(-(AR62+AS62+AT62)+SQRT((AR62+AS62+AT62)^2+4*AQ62*(AU62+AV62)))/AQ62 -> 0.4601459083 | Z62: =$O$30 -> 0.002324249914 | AA62: =IF($C$2=1,Z62/($O$31*$O$30),2^(1/3)*$O$30/Z62) -> 0.4653640352 | AB62: =IF($C$2=1,-($O$31-2)*Z62/$O$30,3*($O$30/Z62)^2) -> -0.1488553569 | AC62: =IF($C$2=1,0.5*($O$31*Z62*$F$6/$O$30)*(1-AW62^2+(AA62-AB62)*(AB62^2*(1-AW62^2)+2*AB62*(1-AW62)+2*LN((1-AB62)/(1-AB62*AW62)))/(AB62^3)),$F$6*AB62*(LN((1-AA62+AA62^2)/(1+AA62)^2)/(6*AA62)+ATAN((2-AA62)/(AA62*3^0.5))/(AA62*3^0.5)-LN((AW62^2-AA62*AW62+AA62^2)/(AW62+AA62)^2)/(6*AA62)-ATAN((2*AW62-AA62)/(AA62*3^0.5))/(AA62*3^0.5))) -> 19.38238213 | AD62: =IF($C$2=1,($O$31*Z62*$F$6/$O$30)*(1-AW62^3-(AA62-AB62)*(-2*AB62^3*(1-AW62^3)-3*AB62^2*(1-AW62^2)-6*AB62*(1-AW62)-6*LN((1-AB62)/(1-AB62*AW62)))/(2*AB62^4))/3,$F$6*AB62*(LN((1+AA62^3)/(AA62^3+AW62^3)))/3) -> 12.03679903 | AE62: =AD62/AC62 -> 0.6210175278 | AF62: =AC62*Y62*$D$6 -> 3.963310025 | AG62: =MAX(MIN($K$6,$Q$6*$J$6*Z62*(Y62-$I$6)/Y62),-$K$6) -> 458.3333333 | AH62: =AG62*$H$6 -> 0.4033578846 | AI62: =MIN($O$6,$Q$6*$N$6*Z62*(C$6-Y62-$M$6)/Y62) -> -249.0718505 | AJ62: =AI62*$L$6 -> -0.2191965703 | AK62: =(0.5*$C$6-Y62+AE62*Y62)*AF62+(0.5*$C$6-$I$6)*AH62+(0.5*$C$6-$M$6)*AJ62 -> 0.1777944565 | AL62: =AF62+AH62-AJ62 -> 4.58586448 | AM62: =0.1*$Q$6*Z62*$B$6^2/Y62+$R$6 -> 0.02293281516 | AN62: =AK62-AM62*AL62 -> 0.072627674 | AO62: =IF(AN62=$AO$80,Z62,0) -> 0 | AP62: =IF($C$2=1,Kold!$Q$23/1000,Brand!$AT$43)*V6*S6 -> 5.098028709 | AQ62: =AC62*$D$6 -> 8.613159334 | AR62: =$Q$6*Z62*$H$6*$J$6 -> 1.05291535 | AS62: =$Q$6*Z62*$L$6*$N$6 -> 1.05291535 | AT62: =-(AP62+0.0001) -> -5.098128709 | AU62: =$I$6*$Q$6*Z62*$H$6*$J$6 -> 0.06317492101 | AV62: =($C$6-$M$6)*$Q$6*Z62*$L$6*$N$6 -> 0.3836322852 | AW62: =IF(Y61<$C$6,0,(Y61-$C$6)/Y61) -> 0
... 77 more rows

Sheet Firsidig
D2: =IF(Brand!N19=0,0,Brand!AU20) -> 1 | K2: Q | M2: y | N2: Q-3 | V2: Q-4
L3: Punkt | O3: 1 | P3: 2 | Q3: 3 | R3: Midte | S3: 4 | T3: 5 | U3: 6
K4: x | O4: =$E$16/(4*$E$19)+(O3-1)*$E$16/(2*$E$19) -> 0.03703173702 | P4: =$E$16/(4*$E$19)+(P3-1)*$E$16/(2*$E$19) -> 0.1110952111 | Q4: =$E$16/(4*$E$19)+(Q3-1)*$E$16/(2*$E$19) -> 0.1851586851 | R4: =0.5*E16 -> 0.2221904221 | S4: =$E$16/(4*$E$19)+(S3-1)*$E$16/(2*$E$19) -> 0.2592221591 | T4: =$E$16/(4*$E$19)+(T3-1)*$E$16/(2*$E$19) -> 0.3332856332 | U4: =$E$16/(4*$E$19)+(U3-1)*$E$16/(2*$E$19) -> 0.4073491072
K5: Q-1 | O5: =MAX(312*LOG10(8*$E$17+1)*EXP(-1.9*O4*$E$18/SQRT($E$17))*SIN(PI()/2-O4*$E$18/SQRT($E$17)),0)*$B$6 -> 416.7971883 | P5: =MAX(312*LOG10(8*$E$17+1)*EXP(-1.9*P4*$E$18/SQRT($E$17))*SIN(PI()/2-P4*$E$18/SQRT($E$17)),0)*$B$6 -> 42.8585888 | Q5: =MAX(312*LOG10(8*$E$17+1)*EXP(-1.9*Q4*$E$18/SQRT($E$17))*SIN(PI()/2-Q4*$E$18/SQRT($E$17)),0)*$B$6 -> 0 | R5: 0 | S5: 0 | T5: 0 | U5: 0 | V5: =MAX(312*LOG10(8*$E$17+1)*EXP(-1.9*($E$16)*$E$18/SQRT($E$17))*SIN(PI()/2-($E$16)*$E$18/SQRT($E$17)),0) -> 0
B6: =IF(Brand!N19=0,0,Brand!AU22) -> 1 | F6: =IF(Brand!N19=0,0,Brand!AU22) -> 1 | L6: 1 | M6: =$E$15/(4*$E$19)+(L6-1)*$E$15/(2*$E$19) -> 0.03536270399 | N6: =MAX(312*LOG10(8*$E$17+1)*EXP(-1.9*M6*$E$18/SQRT($E$17))*SIN(PI()/2-M6*$E$18/SQRT($E$17)),0)*$D$2 -> 433.6324868 | O6: =MAX(((O$5+O$13)*$E$20/($E$20+$V$5))*(1-($N6+$V6)/$E$20)+$N6+$V6,20) -> 656.2163761 | P6: =MAX(((P$5+P$13)*$E$20/($E$20+$V$5))*(1-($N6+$V6)/$E$20)+$N6+$V6,20) -> 456.5204324 | Q6: 433.6324868 | R6: 433.6324868 | S6: 433.6324868 | T6: 456.5204324 | U6: 656.2163761 | V6: =MAX(312*LOG10(8*$E$17+1)*EXP(-1.9*($E$15-M6)*$E$18/SQRT($E$17))*SIN(PI()/2-($E$15-M6)*$E$18/SQRT($E$17)),0)*$D$11 -> 0
L7: 2 | M7: =$E$15/(4*$E$19)+(L7-1)*$E$15/(2*$E$19) -> 0.106088112 | N7: =MAX(312*LOG10(8*$E$17+1)*EXP(-1.9*M7*$E$18/SQRT($E$17))*SIN(PI()/2-M7*$E$18/SQRT($E$17)),0)*$D$2 -> 52.6919053 | O7: 445.8896884 | P7: 93.12380498 | Q7: 52.6919053 | R7: 52.6919053 | S7: 52.6919053 | T7: 93.12380498 | U7: 445.8896884 | V7: =MAX(312*LOG10(8*$E$17+1)*EXP(-1.9*($E$15-M7)*$E$18/SQRT($E$17))*SIN(PI()/2-($E$15-M7)*$E$18/SQRT($E$17)),0)*$D$11 -> 0
L8: 3 | M8: =$E$15/(4*$E$19)+(L8-1)*$E$15/(2*$E$19) -> 0.1768135199 | N8: 0 | O8: 416.7971883 | P8: 42.8585888 | Q8: 20 | R8: 20 | S8: 20 | T8: 42.8585888 | U8: 416.7971883 | V8: 0
L9: Midte | M9: =0.5*E15 -> 0.2121762239 | N9: 0 | O9: 416.7971883 | P9: 42.8585888 | Q9: 20 | R9: 20 | S9: 20 | T9: 42.8585888 | U9: 416.7971883 | V9: 0
L10: 4 | M10: =$E$15/(4*$E$19)+(L10-1)*$E$15/(2*$E$19) -> 0.2475389279 | N10: 0 | O10: 416.7971883 | P10: 42.8585888 | Q10: 20 | R10: 20 | S10: 20 | T10: 42.8585888 | U10: 416.7971883 | V10: 0
D11: =IF(Brand!N19=0,0,Brand!AU21) -> 1 | H11: =VLOOKUP(600,Bet,5) -> 7 | L11: 5 | M11: =$E$15/(4*$E$19)+(L11-1)*$E$15/(2*$E$19) -> 0.3182643359 | N11: 0 | O11: 445.8896884 | P11: 93.12380498 | Q11: 52.6919053 | R11: 52.6919053 | S11: 52.6919053 | T11: 93.12380498 | U11: 445.8896884 | V11: 52.6919053
L12: 6 | M12: =$E$15/(4*$E$19)+(L12-1)*$E$15/(2*$E$19) -> 0.3889897439 | N12: 0 | O12: 656.2163761 | P12: 456.5204324 | Q12: 433.6324868 | R12: 433.6324868 | S12: 433.6324868 | T12: 456.5204324 | U12: 656.2163761 | V12: 433.6324868
B13: Betontværsnit | K13: Q-2 | M13: =E15-E27 -> 0.3746293706 | O13: =MAX(312*LOG10(8*$E$17+1)*EXP(-1.9*($E$16-O4)*$E$18/SQRT($E$17))*SIN(PI()/2-($E$16-O4)*$E$18/SQRT($E$17)),0)*$F$6 -> 0 | P13: =MAX(312*LOG10(8*$E$17+1)*EXP(-1.9*($E$16-P4)*$E$18/SQRT($E$17))*SIN(PI()/2-($E$16-P4)*$E$18/SQRT($E$17)),0)*$F$6 -> 0 | Q13: 0 | R13: 0 | S13: 0 | T13: 42.8585888 | U13: 416.7971883 | V13: =MAX(312*LOG10(8*$E$17+1)*EXP(-1.9*($E$15-M13)*$E$18/SQRT($E$17))*SIN(PI()/2-($E$15-M13)*$E$18/SQRT($E$17)),0)*$D$11 -> 304.8335147
K14: z-1
D15: h | E15: =Brand!BK22/1000 -> 0.4243524479 | F15: m | L15: Punkt | O15: 1 | P15: 2 | Q15: 3 | R15: Midte | S15: 4 | T15: 5 | U15: 6
D16: b | E16: =Brand!BK23/1000 -> 0.4443808442 | F16: m
B17: Brandtid | D17: t | E17: =IF(D2+F6+D11+B6=0,0.0001,Brand!N19+0.0001) -> 120.0001 | F17: min
B18: Svækket tværsnit | D18: k | E18: =SQRT(PI()*2300*1000/(750*0.75)) -> 113.338534 | L18: 1 | O18: =INDEX(Bet,VLOOKUP(O6,Bet,5),2)+(INDEX(Bet,VLOOKUP(O6,Bet,5)+1,2)-INDEX(Bet,VLOOKUP(O6,Bet,5),2))*(O6-INDEX(Bet,VLOOKUP(O6,Bet,5),1))/(INDEX(Bet,VLOOKUP(O6,Bet,5)+1,1)-INDEX(Bet,VLOOKUP(O6,Bet,5),1)) -> 0.4875672479 | P18: 0.8289863494 | Q18: 0.8442449646 | S18: =INDEX(Bet,VLOOKUP(S6,Bet,5),2)+(INDEX(Bet,VLOOKUP(S6,Bet,5)+1,2)-INDEX(Bet,VLOOKUP(S6,Bet,5),2))*(S6-INDEX(Bet,VLOOKUP(S6,Bet,5),1))/(INDEX(Bet,VLOOKUP(S6,Bet,5)+1,1)-INDEX(Bet,VLOOKUP(S6,Bet,5),1)) -> 0.8442449646 | T18: 0.8289863494 | U18: 0.4875672479
D19: n | E19: 3 | L19: 2 | O19: 0.836073505 | P19: 1 | Q19: 1 | S19: 1 | T19: 1 | U19: 0.836073505
D20: Q-maks | E20: =MAX(312*LOG10(8*$E$17+1)*EXP(-1.9*0*$E$18/SQRT($E$17))*SIN(PI()/2-0*$E$18/SQRT($E$17)),0.0001) -> 930.6098098 | G20: ecu | L20: 3 | O20: 0.8554684857 | P20: 1 | Q20: 1 | S20: 1 | T20: 1 | U20: 0.8554684857
D21: z-M / e1 | E21: =R21 -> 1 | F21: =INDEX(Bet,VLOOKUP(R9,Bet,5),3)+(INDEX(Bet,VLOOKUP(R9,Bet,5)+1,3)-INDEX(Bet,VLOOKUP(R9,Bet,5),3))*(R9-INDEX(Bet,VLOOKUP(R9,Bet,5),1))/(INDEX(Bet,VLOOKUP(R9,Bet,5)+1,1)-INDEX(Bet,VLOOKUP(R9,Bet,5),1)) -> 0.0025 | G21: =INDEX(Bet,VLOOKUP(R9,Bet,5),4)+(INDEX(Bet,VLOOKUP(R9,Bet,5)+1,4)-INDEX(Bet,VLOOKUP(R9,Bet,5),4))*(R9-INDEX(Bet,VLOOKUP(R9,Bet,5),1))/(INDEX(Bet,VLOOKUP(R9,Bet,5)+1,1)-INDEX(Bet,VLOOKUP(R9,Bet,5),1)) -> 0.02 | L21: Midte | R21: =INDEX(Bet,VLOOKUP(R9,Bet,5),2)+(INDEX(Bet,VLOOKUP(R9,Bet,5)+1,2)-INDEX(Bet,VLOOKUP(R9,Bet,5),2))*(R9-INDEX(Bet,VLOOKUP(R9,Bet,5),1))/(INDEX(Bet,VLOOKUP(R9,Bet,5)+1,1)-INDEX(Bet,VLOOKUP(R9,Bet,5),1)) -> 1
D22: z-middel | E22: =((1-0.2/E19)/(2*E19)^2)*IF(AND(D2=1,D11=0),2*SUM(O18:U20),IF(AND(D11=1,D2=0),2*SUM(O22:U24),SUM(O18:U20)+SUM(O22:U24))) -> 0.814316798 | L22: 4 | O22: =INDEX(Bet,VLOOKUP(O10,Bet,5),2)+(INDEX(Bet,VLOOKUP(O10,Bet,5)+1,2)-INDEX(Bet,VLOOKUP(O10,Bet,5),2))*(O10-INDEX(Bet,VLOOKUP(O10,Bet,5),1))/(INDEX(Bet,VLOOKUP(O10,Bet,5)+1,1)-INDEX(Bet,VLOOKUP(O10,Bet,5),1)) -> 0.8554684857 | P22: 1 | Q22: 1 | S22: =INDEX(Bet,VLOOKUP(S10,Bet,5),2)+(INDEX(Bet,VLOOKUP(S10,Bet,5)+1,2)-INDEX(Bet,VLOOKUP(S10,Bet,5),2))*(S10-INDEX(Bet,VLOOKUP(S10,Bet,5),1))/(INDEX(Bet,VLOOKUP(S10,Bet,5)+1,1)-INDEX(Bet,VLOOKUP(S10,Bet,5),1)) -> 1 | T22: 1 | U22: 0.8554684857
D23: a (bjælke) | E23: =IF(D11+B6+D2+F6=0,0,0.5*IF(B6=0,E15,MIN(E15,E16))*(1-E22/E21)) -> 0.03939756064 | F23: m | L23: 5 | O23: 0.836073505 | P23: 1 | Q23: 1 | S23: 1 | T23: 1 | U23: 0.836073505
D24: a (instabilitet) | E24: =IF(D11+B6+D2+F6=0,0,0.5*IF(B6=0,E15,MIN(E15,E16))*(1-(E22/E21)^1.3)) -> 0.04972307729 | F24: m | L24: 6 | O24: 0.4875672479 | P24: 0.8289863494 | Q24: 0.8442449646 | S24: 0.8442449646 | T24: 0.8289863494 | U24: 0.4875672479
B25: Randzoner | D25: atop | E25: =E24*D2 -> 0.04972307729 | F25: m
D26: aside | E26: =E24*MAX(B6,F6) -> 0.04972307729 | F26: m
D27: abund | E27: =E24*D11 -> 0.04972307729 | F27: m
B28: Stål-gen | C28: type | D28: =IF($E$28="Q",1,IF($E$28="AC",3,5)) -> 1 | E28: =Brand!AS18 -> Q | K28: Trykarmering | M28: =M85 -> 0.06 | N28: 0.3843808442 | O28: 0.3843808442 | P28: 0.3843808442 | Q28: 0.3843808442 | R28: 0.3843808442 | S28: 0.3843808442 | T28: 0.3843808442 | U28: 0.3843808442 | V28: 0.3843808442
C29: side-"dæklag" | E29: =E38 -> 0.06 | F29: m | M29: =MAX(312*LOG10(8*$E$17+1)*EXP(-1.9*M28*$E$18/SQRT($E$17))*SIN(PI()/2-M28*$E$18/SQRT($E$17)),0)*$B$6 -> 232.7244959 | N29: =IF(N28=M28,0,MAX(312*LOG10(8*$E$17+1)*EXP(-1.9*N28*$E$18/SQRT($E$17))*SIN(PI()/2-N28*$E$18/SQRT($E$17)),0))*$B$6 -> 0 | O29: =IF(O28=N28,0,MAX(312*LOG10(8*$E$17+1)*EXP(-1.9*O28*$E$18/SQRT($E$17))*SIN(PI()/2-O28*$E$18/SQRT($E$17)),0))*$B$6 -> 0 | P29: 0 | Q29: 0 | R29: 0 | S29: 0 | T29: 0 | U29: 0 | V29: 0
B30: Trykarmering | D30: nc | E30: =Brand!BK26 -> 2 | K30: =-M88 -> 0.06 | L30: =MAX(312*LOG10(8*$E$17+1)*EXP(-1.9*K30*$E$18/SQRT($E$17))*SIN(PI()/2-K30*$E$18/SQRT($E$17)),0)*$D$2 -> 232.7244959 | M30: =MAX(((M$29+M$31)*$E$20/($E$20+$V$5))*(1-($L30+$W30)/$E$20)+$L30+$W30,20) -> 407.2498514 | N30: =IF(N28=M28,0,MAX(((N$29+N$31)*$E$20/($E$20+$V$5))*(1-($L30+$W30)/$E$20)+$L30+$W30,20)) -> 407.2498514 | O30: =IF(O28=N28,0,MAX(((O$29+O$31)*$E$20/($E$20+$V$5))*(1-($L30+$W30)/$E$20)+$L30+$W30,20)) -> 0 | P30: 0 | Q30: 0 | R30: 0 | S30: 0 | T30: 0 | U30: 0 | V30: 0 | W30: =MAX(312*LOG10(8*$E$17+1)*EXP(-1.9*($E$15-K30)*$E$18/SQRT($E$17))*SIN(PI()/2-($E$15-K30)*$E$18/SQRT($E$17)),0)*$D$11 -> 0
D31: reduc nc | E31: =MIN(FLOOR(E30,1),10) -> 2 | M31: =MAX(312*LOG10(8*$E$17+1)*EXP(-1.9*($E$16-M28)*$E$18/SQRT($E$17))*SIN(PI()/2-($E$16-M28)*$E$18/SQRT($E$17)),0)*$F$6 -> 0 | N31: =IF(N28=M28,0,MAX(312*LOG10(8*$E$17+1)*EXP(-1.9*($E$16-N28)*$E$18/SQRT($E$17))*SIN(PI()/2-($E$16-N28)*$E$18/SQRT($E$17)),0))*$F$6 -> 232.7244959 | O31: =IF(O28=N28,0,MAX(312*LOG10(8*$E$17+1)*EXP(-1.9*($E$16-O28)*$E$18/SQRT($E$17))*SIN(PI()/2-($E$16-O28)*$E$18/SQRT($E$17)),0))*$F$6 -> 0 | P31: 0 | Q31: 0 | R31: 0 | S31: 0 | T31: 0 | U31: 0 | V31: 0
D32: ac | E32: =Brand!BK24/1000 -> 0.06 | F32: m | K32: Trækarmering | M32: =W85 -> 0.06 | N32: 0.3843808442 | O32: 0.3843808442 | P32: 0.3843808442 | Q32: 0.3843808442 | R32: 0.3843808442 | S32: 0.3843808442 | T32: 0.3843808442 | U32: 0.3843808442 | V32: 0.3843808442
D33: dc | E33: =(E16-2*E29)/(E31-1) -> 0.3243808442 | F33: m | M33: =MAX(312*LOG10(8*$E$17+1)*EXP(-1.9*M32*$E$18/SQRT($E$17))*SIN(PI()/2-M32*$E$18/SQRT($E$17)),0)*$B$6 -> 232.7244959 | N33: =IF(N32=M32,0,MAX(312*LOG10(8*$E$17+1)*EXP(-1.9*N32*$E$18/SQRT($E$17))*SIN(PI()/2-N32*$E$18/SQRT($E$17)),0))*$B$6 -> 0 | O33: =IF(O32=N32,0,MAX(312*LOG10(8*$E$17+1)*EXP(-1.9*O32*$E$18/SQRT($E$17))*SIN(PI()/2-O32*$E$18/SQRT($E$17)),0))*$B$6 -> 0 | P33: 0 | Q33: 0 | R33: 0 | S33: 0 | T33: 0 | U33: 0 | V33: 0
D34: E/Ek | E34: =(SUM(E44:E53)+0.5*(E30-E31)*(E48+E49))/E30 -> 0.6927501486 | K34: =-W89 -> 0.3643524479 | L34: =MAX(312*LOG10(8*$E$17+1)*EXP(-1.9*K34*$E$18/SQRT($E$17))*SIN(PI()/2-K34*$E$18/SQRT($E$17)),0)*$D$2 -> 0 | M34: =MAX(((M$33+M$35)*$E$20/($E$20+$V$5))*(1-($L34+$W34)/$E$20)+$L34+$W34,20) -> 407.2498514 | N34: =IF(N32=M32,0,MAX(((N$33+N$35)*$E$20/($E$20+$V$5))*(1-($L34+$W34)/$E$20)+$L34+$W34,20)) -> 407.2498514 | O34: =IF(O32=N32,0,MAX(((O$33+O$35)*$E$20/($E$20+$V$5))*(1-($L34+$W34)/$E$20)+$L34+$W34,20)) -> 0 | P34: 0 | Q34: 0 | R34: 0 | S34: 0 | T34: 0 | U34: 0 | V34: 0 | W34: =MAX(312*LOG10(8*$E$17+1)*EXP(-1.9*($E$15-K34)*$E$18/SQRT($E$17))*SIN(PI()/2-($E$15-K34)*$E$18/SQRT($E$17)),0)*$D$11 -> 232.7244959 | X34: =(SUM(D54:D63)+0.5*(E36-E37)*(D58+D59))/E36-20 -> 387.2498514
D35: fy/fyk | E35: =(SUM(F44:F53)+0.5*(E30-E31)*(F48+F49))/E30 -> 0.6369502676 | M35: =MAX(312*LOG10(8*$E$17+1)*EXP(-1.9*($E$16-M32)*$E$18/SQRT($E$17))*SIN(PI()/2-($E$16-M32)*$E$18/SQRT($E$17)),0)*$F$6 -> 0 | N35: =IF(N32=M32,0,MAX(312*LOG10(8*$E$17+1)*EXP(-1.9*($E$16-N32)*$E$18/SQRT($E$17))*SIN(PI()/2-($E$16-N32)*$E$18/SQRT($E$17)),0))*$F$6 -> 232.7244959 | O35: =IF(O32=N32,0,MAX(312*LOG10(8*$E$17+1)*EXP(-1.9*($E$16-O32)*$E$18/SQRT($E$17))*SIN(PI()/2-($E$16-O32)*$E$18/SQRT($E$17)),0))*$F$6 -> 0 | P35: 0 | Q35: 0 | R35: 0 | S35: 0 | T35: 0 | U35: 0 | V35: 0
B36: Trækarmering | D36: nt | E36: =Brand!BK28 -> 2
D37: reduc nt | E37: =MIN(FLOOR(E36,1),10) -> 2
D38: at | E38: =Brand!BK24/1000 -> 0.06 | F38: m | K38: Trykarmering | R38: Trækarmering
D39: dt | E39: =(E16-2*E29)/(E37-1) -> 0.3243808442 | F39: m | K39: Tabel | L39: type (+Q) | N39: type (+AC) | P39: type (+C) | R39: Tabel | S39: type (+Q) | U39: type (+AC) | W39: type (+C)
D40: E/Ek | E40: =(SUM(E54:E63)+0.5*(E36-E37)*(E58+E59))/E36 -> 0.6927501486 | K40: Q-stål | L40: E/Ek | M40: fy/fyk | N40: E/Ek | O40: fy/fyk | P40: E/Ek | Q40: fy/fyk | R40: Q-stål | S40: E/Ek | T40: fy/fyk | U40: E/Ek | V40: fy/fyk | W40: E/Ek | X40: fy/fyk
D41: fy/fyk | E41: =(SUM(F54:F63)+0.5*(E36-E37)*(F58+F59))/E36 -> 0.6369502676 | K41: Temp-1 | R41: Temp-11
K42: =D44 -> 407.2498514 | L42: =IF(K42=K44,L44,L44+(L43-L44)*(K42-K44)/(K43-K44)) -> 0.6927501486 | M42: =IF(K42=K44,M44,M44+(M43-M44)*(K42-K44)/(K43-K44)) -> 0.6369502676 | N42: =IF(K42=K44,N44,N44+(N43-N44)*(K42-K44)/(K43-K44)) -> 0.9476752527 | O42: =IF(K42=K44,O44,O44+(O43-O44)*(K42-K44)/(K43-K44)) -> 0.7633253419 | P42: =IF(K42=K44,P44,P44+(P43-P44)*(K42-K44)/(K43-K44)) -> 0.5484002378 | Q42: =IF(K42=K44,Q44,Q44+(Q43-Q44)*(K42-K44)/(K43-K44)) -> 0.7647753121 | R42: =D54 -> 407.2498514 | S42: =IF(R42=R44,S44,S44+(S43-S44)*(R42-R44)/(R43-R44)) -> 0.6927501486 | T42: =IF(R42=R44,T44,T44+(T43-T44)*(R42-R44)/(R43-R44)) -> 0.6369502676 | U42: =IF(R42=R44,U44,U44+(U43-U44)*(R42-R44)/(R43-R44)) -> 0.9476752527 | V42: =IF(R42=R44,V44,V44+(V43-V44)*(R42-R44)/(R43-R44)) -> 0.7633253419 | W42: =IF(R42=R44,W44,W44+(W43-W44)*(R42-R44)/(R43-R44)) -> 0.5484002378 | X42: =IF(R42=R44,X44,X44+(X43-X44)*(R42-R44)/(R43-R44)) -> 0.7647753121
D43: Temp | E43: E/Ek | F43: fy/fyk | K43: =CEILING(K42,100) -> 500 | L43: =VLOOKUP(K43,$B$68:$H$80,2,TRUE) -> 0.6 | M43: =VLOOKUP(K43,$B$68:$H$80,3,TRUE) -> 0.47 | N43: =VLOOKUP(K43,$B$68:$H$80,4,TRUE) -> 0.79 | O43: =VLOOKUP(K43,$B$68:$H$80,5,TRUE) -> 0.55 | P43: =VLOOKUP(K43,$B$68:$H$80,6,TRUE) -> 0.4 | Q43: =VLOOKUP(K43,$B$68:$H$80,7,TRUE) -> 0.57 | R43: =CEILING(R42,100) -> 500 | S43: =VLOOKUP(R43,$B$68:$H$80,2,TRUE) -> 0.6 | T43: =VLOOKUP(R43,$B$68:$H$80,3,TRUE) -> 0.47 | U43: =VLOOKUP(R43,$B$68:$H$80,4,TRUE) -> 0.79 | V43: =VLOOKUP(R43,$B$68:$H$80,5,TRUE) -> 0.55 | W43: =VLOOKUP(R43,$B$68:$H$80,6,TRUE) -> 0.4 | X43: =VLOOKUP(R43,$B$68:$H$80,7,TRUE) -> 0.57
B44: Trykarm. | C44: 1 | D44: =M30 -> 407.2498514 | E44: =IF(D44=0,0,INDEX($L$41:$Q$80,2+(C44-1)*4,$D$28)) -> 0.6927501486 | F44: =IF(D44=0,0,INDEX($L$41:$Q$80,2+(C44-1)*4,$D$28+1)) -> 0.6369502676 | K44: =MAX(FLOOR(K42,100),20) -> 400 | L44: =VLOOKUP(K44,$B$68:$H$80,2,TRUE) -> 0.7 | M44: =VLOOKUP(K44,$B$68:$H$80,3,TRUE) -> 0.65 | N44: =VLOOKUP(K44,$B$68:$H$80,4,TRUE) -> 0.96 | O44: =VLOOKUP(K44,$B$68:$H$80,5,TRUE) -> 0.78 | P44: =VLOOKUP(K44,$B$68:$H$80,6,TRUE) -> 0.56 | Q44: =VLOOKUP(K44,$B$68:$H$80,7,TRUE) -> 0.78 | R44: =MAX(FLOOR(R42,100),20) -> 400 | S44: =VLOOKUP(R44,$B$68:$H$80,2,TRUE) -> 0.7 | T44: =VLOOKUP(R44,$B$68:$H$80,3,TRUE) -> 0.65 | U44: =VLOOKUP(R44,$B$68:$H$80,4,TRUE) -> 0.96 | V44: =VLOOKUP(R44,$B$68:$H$80,5,TRUE) -> 0.78 | W44: =VLOOKUP(R44,$B$68:$H$80,6,TRUE) -> 0.56 | X44: =VLOOKUP(R44,$B$68:$H$80,7,TRUE) -> 0.78
C45: 2 | D45: =N30 -> 407.2498514 | E45: 0.6927501486 | F45: 0.6369502676 | K45: Temp-2 | R45: Temp-12
C46: 3 | D46: =O30 -> 0 | E46: 0 | F46: 0 | K46: =D45 -> 407.2498514 | L46: =IF(K46=K48,L48,L48+(L47-L48)*(K46-K48)/(K47-K48)) -> 0.6927501486 | M46: =IF(K46=K48,M48,M48+(M47-M48)*(K46-K48)/(K47-K48)) -> 0.6369502676 | N46: =IF(K46=K48,N48,N48+(N47-N48)*(K46-K48)/(K47-K48)) -> 0.9476752527 | O46: =IF(K46=K48,O48,O48+(O47-O48)*(K46-K48)/(K47-K48)) -> 0.7633253419 | P46: =IF(K46=K48,P48,P48+(P47-P48)*(K46-K48)/(K47-K48)) -> 0.5484002378 | Q46: =IF(K46=K48,Q48,Q48+(Q47-Q48)*(K46-K48)/(K47-K48)) -> 0.7647753121 | R46: =D55 -> 407.2498514 | S46: =IF(R46=R48,S48,S48+(S47-S48)*(R46-R48)/(R47-R48)) -> 0.6927501486 | T46: =IF(R46=R48,T48,T48+(T47-T48)*(R46-R48)/(R47-R48)) -> 0.6369502676 | U46: =IF(R46=R48,U48,U48+(U47-U48)*(R46-R48)/(R47-R48)) -> 0.9476752527 | V46: =IF(R46=R48,V48,V48+(V47-V48)*(R46-R48)/(R47-R48)) -> 0.7633253419 | W46: =IF(R46=R48,W48,W48+(W47-W48)*(R46-R48)/(R47-R48)) -> 0.5484002378 | X46: =IF(R46=R48,X48,X48+(X47-X48)*(R46-R48)/(R47-R48)) -> 0.7647753121
C47: 4 | D47: =P30 -> 0 | E47: 0 | F47: 0 | K47: =CEILING(K46,100) -> 500 | L47: =VLOOKUP(K47,$B$68:$H$80,2,TRUE) -> 0.6 | M47: =VLOOKUP(K47,$B$68:$H$80,3,TRUE) -> 0.47 | N47: =VLOOKUP(K47,$B$68:$H$80,4,TRUE) -> 0.79 | O47: =VLOOKUP(K47,$B$68:$H$80,5,TRUE) -> 0.55 | P47: =VLOOKUP(K47,$B$68:$H$80,6,TRUE) -> 0.4 | Q47: =VLOOKUP(K47,$B$68:$H$80,7,TRUE) -> 0.57 | R47: =CEILING(R46,100) -> 500 | S47: =VLOOKUP(R47,$B$68:$H$80,2,TRUE) -> 0.6 | T47: =VLOOKUP(R47,$B$68:$H$80,3,TRUE) -> 0.47 | U47: =VLOOKUP(R47,$B$68:$H$80,4,TRUE) -> 0.79 | V47: =VLOOKUP(R47,$B$68:$H$80,5,TRUE) -> 0.55 | W47: =VLOOKUP(R47,$B$68:$H$80,6,TRUE) -> 0.4 | X47: =VLOOKUP(R47,$B$68:$H$80,7,TRUE) -> 0.57
C48: 5 | D48: =Q30 -> 0 | E48: 0 | F48: 0 | K48: =MAX(FLOOR(K46,100),20) -> 400 | L48: =VLOOKUP(K48,$B$68:$H$80,2,TRUE) -> 0.7 | M48: =VLOOKUP(K48,$B$68:$H$80,3,TRUE) -> 0.65 | N48: =VLOOKUP(K48,$B$68:$H$80,4,TRUE) -> 0.96 | O48: =VLOOKUP(K48,$B$68:$H$80,5,TRUE) -> 0.78 | P48: =VLOOKUP(K48,$B$68:$H$80,6,TRUE) -> 0.56 | Q48: =VLOOKUP(K48,$B$68:$H$80,7,TRUE) -> 0.78 | R48: =MAX(FLOOR(R46,100),20) -> 400 | S48: =VLOOKUP(R48,$B$68:$H$80,2,TRUE) -> 0.7 | T48: =VLOOKUP(R48,$B$68:$H$80,3,TRUE) -> 0.65 | U48: =VLOOKUP(R48,$B$68:$H$80,4,TRUE) -> 0.96 | V48: =VLOOKUP(R48,$B$68:$H$80,5,TRUE) -> 0.78 | W48: =VLOOKUP(R48,$B$68:$H$80,6,TRUE) -> 0.56 | X48: =VLOOKUP(R48,$B$68:$H$80,7,TRUE) -> 0.78
C49: 6 | D49: =R30 -> 0 | E49: 0 | F49: 0 | K49: Temp-3 | R49: Temp-13
C50: 7 | D50: =S30 -> 0 | E50: 0 | F50: 0 | K50: =D46 -> 0 | L50: =IF(K50=K52,L52,L52+(L51-L52)*(K50-K52)/(K51-K52)) ->  | M50: =IF(K50=K52,M52,M52+(M51-M52)*(K50-K52)/(K51-K52)) ->  | N50: =IF(K50=K52,N52,N52+(N51-N52)*(K50-K52)/(K51-K52)) ->  | O50: =IF(K50=K52,O52,O52+(O51-O52)*(K50-K52)/(K51-K52)) ->  | P50: =IF(K50=K52,P52,P52+(P51-P52)*(K50-K52)/(K51-K52)) ->  | Q50: =IF(K50=K52,Q52,Q52+(Q51-Q52)*(K50-K52)/(K51-K52)) ->  | R50: =D56 -> 0 | S50: =IF(R50=R52,S52,S52+(S51-S52)*(R50-R52)/(R51-R52)) ->  | T50: =IF(R50=R52,T52,T52+(T51-T52)*(R50-R52)/(R51-R52)) ->  | U50: =IF(R50=R52,U52,U52+(U51-U52)*(R50-R52)/(R51-R52)) ->  | V50: =IF(R50=R52,V52,V52+(V51-V52)*(R50-R52)/(R51-R52)) ->  | W50: =IF(R50=R52,W52,W52+(W51-W52)*(R50-R52)/(R51-R52)) ->  | X50: =IF(R50=R52,X52,X52+(X51-X52)*(R50-R52)/(R51-R52)) -> 
C51: 8 | D51: =T30 -> 0 | E51: 0 | F51: 0 | K51: =CEILING(K50,100) -> 0 | L51: =VLOOKUP(K51,$B$68:$H$80,2,TRUE) ->  | M51: =VLOOKUP(K51,$B$68:$H$80,3,TRUE) ->  | N51: =VLOOKUP(K51,$B$68:$H$80,4,TRUE) ->  | O51: =VLOOKUP(K51,$B$68:$H$80,5,TRUE) ->  | P51: =VLOOKUP(K51,$B$68:$H$80,6,TRUE) ->  | Q51: =VLOOKUP(K51,$B$68:$H$80,7,TRUE) ->  | R51: =CEILING(R50,100) -> 0 | S51: =VLOOKUP(R51,$B$68:$H$80,2,TRUE) ->  | T51: =VLOOKUP(R51,$B$68:$H$80,3,TRUE) ->  | U51: =VLOOKUP(R51,$B$68:$H$80,4,TRUE) ->  | V51: =VLOOKUP(R51,$B$68:$H$80,5,TRUE) ->  | W51: =VLOOKUP(R51,$B$68:$H$80,6,TRUE) ->  | X51: =VLOOKUP(R51,$B$68:$H$80,7,TRUE) -> 
C52: 9 | D52: =U30 -> 0 | E52: 0 | F52: 0 | K52: =MAX(FLOOR(K50,100),20) -> 20 | L52: =VLOOKUP(K52,$B$68:$H$80,2,TRUE) -> 1 | M52: =VLOOKUP(K52,$B$68:$H$80,3,TRUE) -> 1 | N52: =VLOOKUP(K52,$B$68:$H$80,4,TRUE) -> 1 | O52: =VLOOKUP(K52,$B$68:$H$80,5,TRUE) -> 1 | P52: =VLOOKUP(K52,$B$68:$H$80,6,TRUE) -> 1 | Q52: =VLOOKUP(K52,$B$68:$H$80,7,TRUE) -> 1 | R52: =MAX(FLOOR(R50,100),20) -> 20 | S52: =VLOOKUP(R52,$B$68:$H$80,2,TRUE) -> 1 | T52: =VLOOKUP(R52,$B$68:$H$80,3,TRUE) -> 1 | U52: =VLOOKUP(R52,$B$68:$H$80,4,TRUE) -> 1 | V52: =VLOOKUP(R52,$B$68:$H$80,5,TRUE) -> 1 | W52: =VLOOKUP(R52,$B$68:$H$80,6,TRUE) -> 1 | X52: =VLOOKUP(R52,$B$68:$H$80,7,TRUE) -> 1
C53: 10 | D53: =V30 -> 0 | E53: 0 | F53: 0 | K53: Temp-4 | R53: Temp-14
B54: trækarm | C54: 11 | D54: =M34 -> 407.2498514 | E54: =IF(D54=0,0,INDEX($S$41:$X$80,2+(C54-11)*4,$D$28)) -> 0.6927501486 | F54: =IF(D54=0,0,INDEX($S$41:$X$80,2+(C54-11)*4,$D$28+1)) -> 0.6369502676 | K54: =D47 -> 0 | L54: =IF(K54=K56,L56,L56+(L55-L56)*(K54-K56)/(K55-K56)) ->  | M54: =IF(K54=K56,M56,M56+(M55-M56)*(K54-K56)/(K55-K56)) ->  | N54: =IF(K54=K56,N56,N56+(N55-N56)*(K54-K56)/(K55-K56)) ->  | O54: =IF(K54=K56,O56,O56+(O55-O56)*(K54-K56)/(K55-K56)) ->  | P54: =IF(K54=K56,P56,P56+(P55-P56)*(K54-K56)/(K55-K56)) ->  | Q54: =IF(K54=K56,Q56,Q56+(Q55-Q56)*(K54-K56)/(K55-K56)) ->  | R54: =D57 -> 0 | S54: =IF(R54=R56,S56,S56+(S55-S56)*(R54-R56)/(R55-R56)) ->  | T54: =IF(R54=R56,T56,T56+(T55-T56)*(R54-R56)/(R55-R56)) ->  | U54: =IF(R54=R56,U56,U56+(U55-U56)*(R54-R56)/(R55-R56)) ->  | V54: =IF(R54=R56,V56,V56+(V55-V56)*(R54-R56)/(R55-R56)) ->  | W54: =IF(R54=R56,W56,W56+(W55-W56)*(R54-R56)/(R55-R56)) ->  | X54: =IF(R54=R56,X56,X56+(X55-X56)*(R54-R56)/(R55-R56)) -> 
C55: 12 | D55: =N34 -> 407.2498514 | E55: 0.6927501486 | F55: 0.6369502676 | K55: =CEILING(K54,100) -> 0 | L55: =VLOOKUP(K55,$B$68:$H$80,2,TRUE) ->  | M55: =VLOOKUP(K55,$B$68:$H$80,3,TRUE) ->  | N55: =VLOOKUP(K55,$B$68:$H$80,4,TRUE) ->  | O55: =VLOOKUP(K55,$B$68:$H$80,5,TRUE) ->  | P55: =VLOOKUP(K55,$B$68:$H$80,6,TRUE) ->  | Q55: =VLOOKUP(K55,$B$68:$H$80,7,TRUE) ->  | R55: =CEILING(R54,100) -> 0 | S55: =VLOOKUP(R55,$B$68:$H$80,2,TRUE) ->  | T55: =VLOOKUP(R55,$B$68:$H$80,3,TRUE) ->  | U55: =VLOOKUP(R55,$B$68:$H$80,4,TRUE) ->  | V55: =VLOOKUP(R55,$B$68:$H$80,5,TRUE) ->  | W55: =VLOOKUP(R55,$B$68:$H$80,6,TRUE) ->  | X55: =VLOOKUP(R55,$B$68:$H$80,7,TRUE) -> 
C56: 13 | D56: =O34 -> 0 | E56: 0 | F56: 0 | K56: =MAX(FLOOR(K54,100),20) -> 20 | L56: =VLOOKUP(K56,$B$68:$H$80,2,TRUE) -> 1 | M56: =VLOOKUP(K56,$B$68:$H$80,3,TRUE) -> 1 | N56: =VLOOKUP(K56,$B$68:$H$80,4,TRUE) -> 1 | O56: =VLOOKUP(K56,$B$68:$H$80,5,TRUE) -> 1 | P56: =VLOOKUP(K56,$B$68:$H$80,6,TRUE) -> 1 | Q56: =VLOOKUP(K56,$B$68:$H$80,7,TRUE) -> 1 | R56: =MAX(FLOOR(R54,100),20) -> 20 | S56: =VLOOKUP(R56,$B$68:$H$80,2,TRUE) -> 1 | T56: =VLOOKUP(R56,$B$68:$H$80,3,TRUE) -> 1 | U56: =VLOOKUP(R56,$B$68:$H$80,4,TRUE) -> 1 | V56: =VLOOKUP(R56,$B$68:$H$80,5,TRUE) -> 1 | W56: =VLOOKUP(R56,$B$68:$H$80,6,TRUE) -> 1 | X56: =VLOOKUP(R56,$B$68:$H$80,7,TRUE) -> 1
C57: 14 | D57: =P34 -> 0 | E57: 0 | F57: 0 | K57: Temp-5 | R57: Temp-15
C58: 15 | D58: =Q34 -> 0 | E58: 0 | F58: 0 | K58: =D48 -> 0 | L58: =IF(K58=K60,L60,L60+(L59-L60)*(K58-K60)/(K59-K60)) ->  | M58: =IF(K58=K60,M60,M60+(M59-M60)*(K58-K60)/(K59-K60)) ->  | N58: =IF(K58=K60,N60,N60+(N59-N60)*(K58-K60)/(K59-K60)) ->  | O58: =IF(K58=K60,O60,O60+(O59-O60)*(K58-K60)/(K59-K60)) ->  | P58: =IF(K58=K60,P60,P60+(P59-P60)*(K58-K60)/(K59-K60)) ->  | Q58: =IF(K58=K60,Q60,Q60+(Q59-Q60)*(K58-K60)/(K59-K60)) ->  | R58: =D58 -> 0 | S58: =IF(R58=R60,S60,S60+(S59-S60)*(R58-R60)/(R59-R60)) ->  | T58: =IF(R58=R60,T60,T60+(T59-T60)*(R58-R60)/(R59-R60)) ->  | U58: =IF(R58=R60,U60,U60+(U59-U60)*(R58-R60)/(R59-R60)) ->  | V58: =IF(R58=R60,V60,V60+(V59-V60)*(R58-R60)/(R59-R60)) ->  | W58: =IF(R58=R60,W60,W60+(W59-W60)*(R58-R60)/(R59-R60)) ->  | X58: =IF(R58=R60,X60,X60+(X59-X60)*(R58-R60)/(R59-R60)) -> 
C59: 16 | D59: =R34 -> 0 | E59: 0 | F59: 0 | K59: =CEILING(K58,100) -> 0 | L59: =VLOOKUP(K59,$B$68:$H$80,2,TRUE) ->  | M59: =VLOOKUP(K59,$B$68:$H$80,3,TRUE) ->  | N59: =VLOOKUP(K59,$B$68:$H$80,4,TRUE) ->  | O59: =VLOOKUP(K59,$B$68:$H$80,5,TRUE) ->  | P59: =VLOOKUP(K59,$B$68:$H$80,6,TRUE) ->  | Q59: =VLOOKUP(K59,$B$68:$H$80,7,TRUE) ->  | R59: =CEILING(R58,100) -> 0 | S59: =VLOOKUP(R59,$B$68:$H$80,2,TRUE) ->  | T59: =VLOOKUP(R59,$B$68:$H$80,3,TRUE) ->  | U59: =VLOOKUP(R59,$B$68:$H$80,4,TRUE) ->  | V59: =VLOOKUP(R59,$B$68:$H$80,5,TRUE) ->  | W59: =VLOOKUP(R59,$B$68:$H$80,6,TRUE) ->  | X59: =VLOOKUP(R59,$B$68:$H$80,7,TRUE) -> 
C60: 17 | D60: =S34 -> 0 | E60: 0 | F60: 0 | K60: =MAX(FLOOR(K58,100),20) -> 20 | L60: =VLOOKUP(K60,$B$68:$H$80,2,TRUE) -> 1 | M60: =VLOOKUP(K60,$B$68:$H$80,3,TRUE) -> 1 | N60: =VLOOKUP(K60,$B$68:$H$80,4,TRUE) -> 1 | O60: =VLOOKUP(K60,$B$68:$H$80,5,TRUE) -> 1 | P60: =VLOOKUP(K60,$B$68:$H$80,6,TRUE) -> 1 | Q60: =VLOOKUP(K60,$B$68:$H$80,7,TRUE) -> 1 | R60: =MAX(FLOOR(R58,100),20) -> 20 | S60: =VLOOKUP(R60,$B$68:$H$80,2,TRUE) -> 1 | T60: =VLOOKUP(R60,$B$68:$H$80,3,TRUE) -> 1 | U60: =VLOOKUP(R60,$B$68:$H$80,4,TRUE) -> 1 | V60: =VLOOKUP(R60,$B$68:$H$80,5,TRUE) -> 1 | W60: =VLOOKUP(R60,$B$68:$H$80,6,TRUE) -> 1 | X60: =VLOOKUP(R60,$B$68:$H$80,7,TRUE) -> 1
C61: 18 | D61: =T34 -> 0 | E61: 0 | F61: 0 | K61: Temp-6 | R61: Temp-16
C62: 19 | D62: =U34 -> 0 | E62: 0 | F62: 0 | K62: =D49 -> 0 | L62: =IF(K62=K64,L64,L64+(L63-L64)*(K62-K64)/(K63-K64)) ->  | M62: =IF(K62=K64,M64,M64+(M63-M64)*(K62-K64)/(K63-K64)) ->  | N62: =IF(K62=K64,N64,N64+(N63-N64)*(K62-K64)/(K63-K64)) ->  | O62: =IF(K62=K64,O64,O64+(O63-O64)*(K62-K64)/(K63-K64)) ->  | P62: =IF(K62=K64,P64,P64+(P63-P64)*(K62-K64)/(K63-K64)) ->  | Q62: =IF(K62=K64,Q64,Q64+(Q63-Q64)*(K62-K64)/(K63-K64)) ->  | R62: =D59 -> 0 | S62: =IF(R62=R64,S64,S64+(S63-S64)*(R62-R64)/(R63-R64)) ->  | T62: =IF(R62=R64,T64,T64+(T63-T64)*(R62-R64)/(R63-R64)) ->  | U62: =IF(R62=R64,U64,U64+(U63-U64)*(R62-R64)/(R63-R64)) ->  | V62: =IF(R62=R64,V64,V64+(V63-V64)*(R62-R64)/(R63-R64)) ->  | W62: =IF(R62=R64,W64,W64+(W63-W64)*(R62-R64)/(R63-R64)) ->  | X62: =IF(R62=R64,X64,X64+(X63-X64)*(R62-R64)/(R63-R64)) -> 
C63: 20 | D63: =V34 -> 0 | E63: 0 | F63: 0 | K63: =CEILING(K62,100) -> 0 | L63: =VLOOKUP(K63,$B$68:$H$80,2,TRUE) ->  | M63: =VLOOKUP(K63,$B$68:$H$80,3,TRUE) ->  | N63: =VLOOKUP(K63,$B$68:$H$80,4,TRUE) ->  | O63: =VLOOKUP(K63,$B$68:$H$80,5,TRUE) ->  | P63: =VLOOKUP(K63,$B$68:$H$80,6,TRUE) ->  | Q63: =VLOOKUP(K63,$B$68:$H$80,7,TRUE) ->  | R63: =CEILING(R62,100) -> 0 | S63: =VLOOKUP(R63,$B$68:$H$80,2,TRUE) ->  | T63: =VLOOKUP(R63,$B$68:$H$80,3,TRUE) ->  | U63: =VLOOKUP(R63,$B$68:$H$80,4,TRUE) ->  | V63: =VLOOKUP(R63,$B$68:$H$80,5,TRUE) ->  | W63: =VLOOKUP(R63,$B$68:$H$80,6,TRUE) ->  | X63: =VLOOKUP(R63,$B$68:$H$80,7,TRUE) -> 
K64: =MAX(FLOOR(K62,100),20) -> 20 | L64: =VLOOKUP(K64,$B$68:$H$80,2,TRUE) -> 1 | M64: =VLOOKUP(K64,$B$68:$H$80,3,TRUE) -> 1 | N64: =VLOOKUP(K64,$B$68:$H$80,4,TRUE) -> 1 | O64: =VLOOKUP(K64,$B$68:$H$80,5,TRUE) -> 1 | P64: =VLOOKUP(K64,$B$68:$H$80,6,TRUE) -> 1 | Q64: =VLOOKUP(K64,$B$68:$H$80,7,TRUE) -> 1 | R64: =MAX(FLOOR(R62,100),20) -> 20 | S64: =VLOOKUP(R64,$B$68:$H$80,2,TRUE) -> 1 | T64: =VLOOKUP(R64,$B$68:$H$80,3,TRUE) -> 1 | U64: =VLOOKUP(R64,$B$68:$H$80,4,TRUE) -> 1 | V64: =VLOOKUP(R64,$B$68:$H$80,5,TRUE) -> 1 | W64: =VLOOKUP(R64,$B$68:$H$80,6,TRUE) -> 1 | X64: =VLOOKUP(R64,$B$68:$H$80,7,TRUE) -> 1
K65: Temp-7 | R65: Temp-17
B66: Tabel | C66: type (+Q) | E66: type (+AC) | G66: type (+C) | K66: =D50 -> 0 | L66: =IF(K66=K68,L68,L68+(L67-L68)*(K66-K68)/(K67-K68)) ->  | M66: =IF(K66=K68,M68,M68+(M67-M68)*(K66-K68)/(K67-K68)) ->  | N66: =IF(K66=K68,N68,N68+(N67-N68)*(K66-K68)/(K67-K68)) ->  | O66: =IF(K66=K68,O68,O68+(O67-O68)*(K66-K68)/(K67-K68)) ->  | P66: =IF(K66=K68,P68,P68+(P67-P68)*(K66-K68)/(K67-K68)) ->  | Q66: =IF(K66=K68,Q68,Q68+(Q67-Q68)*(K66-K68)/(K67-K68)) ->  | R66: =D60 -> 0 | S66: =IF(R66=R68,S68,S68+(S67-S68)*(R66-R68)/(R67-R68)) ->  | T66: =IF(R66=R68,T68,T68+(T67-T68)*(R66-R68)/(R67-R68)) ->  | U66: =IF(R66=R68,U68,U68+(U67-U68)*(R66-R68)/(R67-R68)) ->  | V66: =IF(R66=R68,V68,V68+(V67-V68)*(R66-R68)/(R67-R68)) ->  | W66: =IF(R66=R68,W68,W68+(W67-W68)*(R66-R68)/(R67-R68)) ->  | X66: =IF(R66=R68,X68,X68+(X67-X68)*(R66-R68)/(R67-R68)) -> 
B67: Q-stål | C67: E/Ek | D67: fy/fyk | E67: E/Ek | F67: fy/fyk | G67: E/Ek | H67: fy/fyk | K67: =CEILING(K66,100) -> 0 | L67: =VLOOKUP(K67,$B$68:$H$80,2,TRUE) ->  | M67: =VLOOKUP(K67,$B$68:$H$80,3,TRUE) ->  | N67: =VLOOKUP(K67,$B$68:$H$80,4,TRUE) ->  | O67: =VLOOKUP(K67,$B$68:$H$80,5,TRUE) ->  | P67: =VLOOKUP(K67,$B$68:$H$80,6,TRUE) ->  | Q67: =VLOOKUP(K67,$B$68:$H$80,7,TRUE) ->  | R67: =CEILING(R66,100) -> 0 | S67: =VLOOKUP(R67,$B$68:$H$80,2,TRUE) ->  | T67: =VLOOKUP(R67,$B$68:$H$80,3,TRUE) ->  | U67: =VLOOKUP(R67,$B$68:$H$80,4,TRUE) ->  | V67: =VLOOKUP(R67,$B$68:$H$80,5,TRUE) ->  | W67: =VLOOKUP(R67,$B$68:$H$80,6,TRUE) ->  | X67: =VLOOKUP(R67,$B$68:$H$80,7,TRUE) -> 
B68: 20 | C68: 1 | D68: 1 | E68: 1 | F68: 1 | G68: 1 | H68: 1 | K68: =MAX(FLOOR(K66,100),20) -> 20 | L68: =VLOOKUP(K68,$B$68:$H$80,2,TRUE) -> 1 | M68: =VLOOKUP(K68,$B$68:$H$80,3,TRUE) -> 1 | N68: =VLOOKUP(K68,$B$68:$H$80,4,TRUE) -> 1 | O68: =VLOOKUP(K68,$B$68:$H$80,5,TRUE) -> 1 | P68: =VLOOKUP(K68,$B$68:$H$80,6,TRUE) -> 1 | Q68: =VLOOKUP(K68,$B$68:$H$80,7,TRUE) -> 1 | R68: =MAX(FLOOR(R66,100),20) -> 20 | S68: =VLOOKUP(R68,$B$68:$H$80,2,TRUE) -> 1 | T68: =VLOOKUP(R68,$B$68:$H$80,3,TRUE) -> 1 | U68: =VLOOKUP(R68,$B$68:$H$80,4,TRUE) -> 1 | V68: =VLOOKUP(R68,$B$68:$H$80,5,TRUE) -> 1 | W68: =VLOOKUP(R68,$B$68:$H$80,6,TRUE) -> 1 | X68: =VLOOKUP(R68,$B$68:$H$80,7,TRUE) -> 1
B69: 100 | C69: 1 | D69: 0.96 | E69: 1 | F69: 0.98 | G69: 1 | H69: 0.99 | K69: Temp-8 | R69: Temp-18
B70: 200 | C70: 0.9 | D70: 0.88 | E70: 1 | F70: 0.94 | G70: 0.87 | H70: 0.95 | K70: =D51 -> 0 | L70: =IF(K70=K72,L72,L72+(L71-L72)*(K70-K72)/(K71-K72)) ->  | M70: =IF(K70=K72,M72,M72+(M71-M72)*(K70-K72)/(K71-K72)) ->  | N70: =IF(K70=K72,N72,N72+(N71-N72)*(K70-K72)/(K71-K72)) ->  | O70: =IF(K70=K72,O72,O72+(O71-O72)*(K70-K72)/(K71-K72)) ->  | P70: =IF(K70=K72,P72,P72+(P71-P72)*(K70-K72)/(K71-K72)) ->  | Q70: =IF(K70=K72,Q72,Q72+(Q71-Q72)*(K70-K72)/(K71-K72)) ->  | R70: =D61 -> 0 | S70: =IF(R70=R72,S72,S72+(S71-S72)*(R70-R72)/(R71-R72)) ->  | T70: =IF(R70=R72,T72,T72+(T71-T72)*(R70-R72)/(R71-R72)) ->  | U70: =IF(R70=R72,U72,U72+(U71-U72)*(R70-R72)/(R71-R72)) ->  | V70: =IF(R70=R72,V72,V72+(V71-V72)*(R70-R72)/(R71-R72)) ->  | W70: =IF(R70=R72,W72,W72+(W71-W72)*(R70-R72)/(R71-R72)) ->  | X70: =IF(R70=R72,X72,X72+(X71-X72)*(R70-R72)/(R71-R72)) -> 
B71: 300 | C71: 0.8 | D71: 0.77 | E71: 0.99 | F71: 0.89 | G71: 0.72 | H71: 0.89 | K71: =CEILING(K70,100) -> 0 | L71: =VLOOKUP(K71,$B$68:$H$80,2,TRUE) ->  | M71: =VLOOKUP(K71,$B$68:$H$80,3,TRUE) ->  | N71: =VLOOKUP(K71,$B$68:$H$80,4,TRUE) ->  | O71: =VLOOKUP(K71,$B$68:$H$80,5,TRUE) ->  | P71: =VLOOKUP(K71,$B$68:$H$80,6,TRUE) ->  | Q71: =VLOOKUP(K71,$B$68:$H$80,7,TRUE) ->  | R71: =CEILING(R70,100) -> 0 | S71: =VLOOKUP(R71,$B$68:$H$80,2,TRUE) ->  | T71: =VLOOKUP(R71,$B$68:$H$80,3,TRUE) ->  | U71: =VLOOKUP(R71,$B$68:$H$80,4,TRUE) ->  | V71: =VLOOKUP(R71,$B$68:$H$80,5,TRUE) ->  | W71: =VLOOKUP(R71,$B$68:$H$80,6,TRUE) ->  | X71: =VLOOKUP(R71,$B$68:$H$80,7,TRUE) -> 
B72: 400 | C72: 0.7 | D72: 0.65 | E72: 0.96 | F72: 0.78 | G72: 0.56 | H72: 0.78 | K72: =MAX(FLOOR(K70,100),20) -> 20 | L72: =VLOOKUP(K72,$B$68:$H$80,2,TRUE) -> 1 | M72: =VLOOKUP(K72,$B$68:$H$80,3,TRUE) -> 1 | N72: =VLOOKUP(K72,$B$68:$H$80,4,TRUE) -> 1 | O72: =VLOOKUP(K72,$B$68:$H$80,5,TRUE) -> 1 | P72: =VLOOKUP(K72,$B$68:$H$80,6,TRUE) -> 1 | Q72: =VLOOKUP(K72,$B$68:$H$80,7,TRUE) -> 1 | R72: =MAX(FLOOR(R70,100),20) -> 20 | S72: =VLOOKUP(R72,$B$68:$H$80,2,TRUE) -> 1 | T72: =VLOOKUP(R72,$B$68:$H$80,3,TRUE) -> 1 | U72: =VLOOKUP(R72,$B$68:$H$80,4,TRUE) -> 1 | V72: =VLOOKUP(R72,$B$68:$H$80,5,TRUE) -> 1 | W72: =VLOOKUP(R72,$B$68:$H$80,6,TRUE) -> 1 | X72: =VLOOKUP(R72,$B$68:$H$80,7,TRUE) -> 1
B73: 500 | C73: 0.6 | D73: 0.47 | E73: 0.79 | F73: 0.55 | G73: 0.4 | H73: 0.57 | K73: Temp-9 | R73: Temp-19
B74: 600 | C74: 0.31 | D74: 0.27 | E74: 0.48 | F74: 0.27 | G74: 0.24 | H74: 0.3 | K74: =D52 -> 0 | L74: =IF(K74=K76,L76,L76+(L75-L76)*(K74-K76)/(K75-K76)) ->  | M74: =IF(K74=K76,M76,M76+(M75-M76)*(K74-K76)/(K75-K76)) ->  | N74: =IF(K74=K76,N76,N76+(N75-N76)*(K74-K76)/(K75-K76)) ->  | O74: =IF(K74=K76,O76,O76+(O75-O76)*(K74-K76)/(K75-K76)) ->  | P74: =IF(K74=K76,P76,P76+(P75-P76)*(K74-K76)/(K75-K76)) ->  | Q74: =IF(K74=K76,Q76,Q76+(Q75-Q76)*(K74-K76)/(K75-K76)) ->  | R74: =D62 -> 0 | S74: =IF(R74=R76,S76,S76+(S75-S76)*(R74-R76)/(R75-R76)) ->  | T74: =IF(R74=R76,T76,T76+(T75-T76)*(R74-R76)/(R75-R76)) ->  | U74: =IF(R74=R76,U76,U76+(U75-U76)*(R74-R76)/(R75-R76)) ->  | V74: =IF(R74=R76,V76,V76+(V75-V76)*(R74-R76)/(R75-R76)) ->  | W74: =IF(R74=R76,W76,W76+(W75-W76)*(R74-R76)/(R75-R76)) ->  | X74: =IF(R74=R76,X76,X76+(X75-X76)*(R74-R76)/(R75-R76)) -> 
B75: 700 | C75: 0.13 | D75: 0.13 | E75: 0.21 | F75: 0.1 | G75: 0.08 | H75: 0.12 | K75: =CEILING(K74,100) -> 0 | L75: =VLOOKUP(K75,$B$68:$H$80,2,TRUE) ->  | M75: =VLOOKUP(K75,$B$68:$H$80,3,TRUE) ->  | N75: =VLOOKUP(K75,$B$68:$H$80,4,TRUE) ->  | O75: =VLOOKUP(K75,$B$68:$H$80,5,TRUE) ->  | P75: =VLOOKUP(K75,$B$68:$H$80,6,TRUE) ->  | Q75: =VLOOKUP(K75,$B$68:$H$80,7,TRUE) ->  | R75: =CEILING(R74,100) -> 0 | S75: =VLOOKUP(R75,$B$68:$H$80,2,TRUE) ->  | T75: =VLOOKUP(R75,$B$68:$H$80,3,TRUE) ->  | U75: =VLOOKUP(R75,$B$68:$H$80,4,TRUE) ->  | V75: =VLOOKUP(R75,$B$68:$H$80,5,TRUE) ->  | W75: =VLOOKUP(R75,$B$68:$H$80,6,TRUE) ->  | X75: =VLOOKUP(R75,$B$68:$H$80,7,TRUE) -> 
B76: 800 | C76: 0.09 | D76: 0.05 | E76: 0.08 | F76: 0 | G76: 0.06 | H76: 0.05 | K76: =MAX(FLOOR(K74,100),20) -> 20 | L76: =VLOOKUP(K76,$B$68:$H$80,2,TRUE) -> 1 | M76: =VLOOKUP(K76,$B$68:$H$80,3,TRUE) -> 1 | N76: =VLOOKUP(K76,$B$68:$H$80,4,TRUE) -> 1 | O76: =VLOOKUP(K76,$B$68:$H$80,5,TRUE) -> 1 | P76: =VLOOKUP(K76,$B$68:$H$80,6,TRUE) -> 1 | Q76: =VLOOKUP(K76,$B$68:$H$80,7,TRUE) -> 1 | R76: =MAX(FLOOR(R74,100),20) -> 20 | S76: =VLOOKUP(R76,$B$68:$H$80,2,TRUE) -> 1 | T76: =VLOOKUP(R76,$B$68:$H$80,3,TRUE) -> 1 | U76: =VLOOKUP(R76,$B$68:$H$80,4,TRUE) -> 1 | V76: =VLOOKUP(R76,$B$68:$H$80,5,TRUE) -> 1 | W76: =VLOOKUP(R76,$B$68:$H$80,6,TRUE) -> 1 | X76: =VLOOKUP(R76,$B$68:$H$80,7,TRUE) -> 1
B77: 900 | C77: 0.07 | D77: 0.02 | E77: 0.03 | F77: 0 | G77: 0.05 | H77: 0.02 | K77: Temp-10 | R77: Temp-20
B78: 1000 | C78: 0.04 | D78: 0.01 | E78: 0 | F78: 0 | G78: 0.03 | H78: 0.01 | K78: =D53 -> 0 | L78: =IF(K78=K80,L80,L80+(L79-L80)*(K78-K80)/(K79-K80)) ->  | M78: =IF(K78=K80,M80,M80+(M79-M80)*(K78-K80)/(K79-K80)) ->  | N78: =IF(K78=K80,N80,N80+(N79-N80)*(K78-K80)/(K79-K80)) ->  | O78: =IF(K78=K80,O80,O80+(O79-O80)*(K78-K80)/(K79-K80)) ->  | P78: =IF(K78=K80,P80,P80+(P79-P80)*(K78-K80)/(K79-K80)) ->  | Q78: =IF(K78=K80,Q80,Q80+(Q79-Q80)*(K78-K80)/(K79-K80)) ->  | R78: =D63 -> 0 | S78: =IF(R78=R80,S80,S80+(S79-S80)*(R78-R80)/(R79-R80)) ->  | T78: =IF(R78=R80,T80,T80+(T79-T80)*(R78-R80)/(R79-R80)) ->  | U78: =IF(R78=R80,U80,U80+(U79-U80)*(R78-R80)/(R79-R80)) ->  | V78: =IF(R78=R80,V80,V80+(V79-V80)*(R78-R80)/(R79-R80)) ->  | W78: =IF(R78=R80,W80,W80+(W79-W80)*(R78-R80)/(R79-R80)) ->  | X78: =IF(R78=R80,X80,X80+(X79-X80)*(R78-R80)/(R79-R80)) -> 
B79: 1100 | C79: 0.02 | D79: 0.01 | E79: 0 | F79: 0 | G79: 0.02 | H79: 0 | K79: =CEILING(K78,100) -> 0 | L79: =VLOOKUP(K79,$B$68:$H$80,2,TRUE) ->  | M79: =VLOOKUP(K79,$B$68:$H$80,3,TRUE) ->  | N79: =VLOOKUP(K79,$B$68:$H$80,4,TRUE) ->  | O79: =VLOOKUP(K79,$B$68:$H$80,5,TRUE) ->  | P79: =VLOOKUP(K79,$B$68:$H$80,6,TRUE) ->  | Q79: =VLOOKUP(K79,$B$68:$H$80,7,TRUE) ->  | R79: =CEILING(R78,100) -> 0 | S79: =VLOOKUP(R79,$B$68:$H$80,2,TRUE) ->  | T79: =VLOOKUP(R79,$B$68:$H$80,3,TRUE) ->  | U79: =VLOOKUP(R79,$B$68:$H$80,4,TRUE) ->  | V79: =VLOOKUP(R79,$B$68:$H$80,5,TRUE) ->  | W79: =VLOOKUP(R79,$B$68:$H$80,6,TRUE) ->  | X79: =VLOOKUP(R79,$B$68:$H$80,7,TRUE) -> 
B80: 1200 | C80: 0 | D80: 0 | E80: 0 | F80: 0 | G80: 0 | H80: 0 | K80: =MAX(FLOOR(K78,100),20) -> 20 | L80: =VLOOKUP(K80,$B$68:$H$80,2,TRUE) -> 1 | M80: =VLOOKUP(K80,$B$68:$H$80,3,TRUE) -> 1 | N80: =VLOOKUP(K80,$B$68:$H$80,4,TRUE) -> 1 | O80: =VLOOKUP(K80,$B$68:$H$80,5,TRUE) -> 1 | P80: =VLOOKUP(K80,$B$68:$H$80,6,TRUE) -> 1 | Q80: =VLOOKUP(K80,$B$68:$H$80,7,TRUE) -> 1 | R80: =MAX(FLOOR(R78,100),20) -> 20 | S80: =VLOOKUP(R80,$B$68:$H$80,2,TRUE) -> 1 | T80: =VLOOKUP(R80,$B$68:$H$80,3,TRUE) -> 1 | U80: =VLOOKUP(R80,$B$68:$H$80,4,TRUE) -> 1 | V80: =VLOOKUP(R80,$B$68:$H$80,5,TRUE) -> 1 | W80: =VLOOKUP(R80,$B$68:$H$80,6,TRUE) -> 1 | X80: =VLOOKUP(R80,$B$68:$H$80,7,TRUE) -> 1
B84: GRAF | M84: 1 | N84: 2 | O84: 3 | P84: 4 | Q84: 5 | R84: 6 | S84: 7 | T84: 8 | U84: 9 | V84: 10 | W84: 1 | X84: 2 | Y84: 3 | Z84: 4 | AA84: 5 | AB84: 6 | AC84: 7 | AD84: 8 | AE84: 9 | AF84: 10
B85: x | C85: 0 | D85: =E16 -> 0.4443808442 | E85: =E16 -> 0.4443808442 | F85: 0 | G85: 0 | H85: =E26 -> 0.04972307729 | I85: =D85-E26 -> 0.394657767 | J85: =E85-E26 -> 0.394657767 | K85: =E26 -> 0.04972307729 | L85: =E26 -> 0.04972307729 | M85: =E29 -> 0.06 | N85: =IF(N84>$E$31,M85,M85+$E$33) -> 0.3843808442 | O85: 0.3843808442 | P85: 0.3843808442 | Q85: 0.3843808442 | R85: 0.3843808442 | S85: 0.3843808442 | T85: 0.3843808442 | U85: 0.3843808442 | V85: 0.3843808442 | W85: =E29 -> 0.06 | X85: =IF(X84>$E$37,W85,W85+$E$39) -> 0.3843808442 | Y85: 0.3843808442 | Z85: 0.3843808442 | AA85: 0.3843808442 | AB85: 0.3843808442 | AC85: 0.3843808442 | AD85: 0.3843808442 | AE85: 0.3843808442 | AF85: 0.3843808442 | AG85: =IF(E15>E16,E15,E16) -> 0.4443808442
B86: Opr rand | C86: 0 | D86: 0 | E86: =-E15 -> -0.4243524479 | F86: =-E15 -> -0.4243524479 | G86: 0
B87: Reduc rand | H87: =-E25 -> -0.04972307729 | I87: =-E25 -> -0.04972307729 | J87: =E86+E27 -> -0.3746293706 | K87: =F86+E27 -> -0.3746293706 | L87: =-E25 -> -0.04972307729
B88: Trykarm | M88: =-$E$32 -> -0.06 | N88: -0.06 | O88: -0.06 | P88: -0.06 | Q88: -0.06 | R88: -0.06 | S88: -0.06 | T88: -0.06 | U88: -0.06 | V88: -0.06
B89: Trækarm | W89: =-$E$15+$E$38 -> -0.3643524479 | X89: -0.3643524479 | Y89: -0.3643524479 | Z89: -0.3643524479 | AA89: -0.3643524479 | AB89: -0.3643524479 | AC89: -0.3643524479 | AD89: -0.3643524479 | AE89: -0.3643524479 | AF89: -0.3643524479
B90: Skala | AG90: =IF(E15>E16,-E15,-E16) -> -0.4443808442
B92: Betontype | C92: =Brand!AS3 -> 2
B93: Reduktionsparametre, beton | G93: Betontype, fc,t/fck
B94: q | C94: fc,t/fck | D94: ec1 | E94: ecu1,t | F94: Indeks | G94: 1 | H94: 2
B95: 20 | C95: =IF($C$92=1,G95,H95) -> 1 | D95: 0.0025 | E95: 0.02 | F95: 1 | G95: 1 | H95: 1
B96: 100 | C96: =IF($C$92=1,G96,H96) -> 1 | D96: 0.004 | E96: 0.0225 | F96: 2 | G96: 1 | H96: 1
B97: 200 | C97: 1 | D97: 0.0055 | E97: 0.025 | F97: 3 | G97: 0.95 | H97: 1
B98: 300 | C98: 0.9333333 | D98: 0.007 | E98: 0.0275 | F98: 4 | G98: 0.85 | H98: =H97-0.0666667 -> 0.9333333
B99: 400 | C99: 0.8666666 | D99: 0.01 | E99: 0.03 | F99: 5 | G99: 0.75 | H99: =H98-0.0666667 -> 0.8666666
B100: 500 | C100: 0.8 | D100: 0.015 | E100: 0.0325 | F100: 6 | G100: 0.6 | H100: 0.8
B101: 600 | C101: 0.6 | D101: 0.025 | E101: 0.035 | F101: 7 | G101: 0.45 | H101: =H100-0.2 -> 0.6
B102: 700 | C102: 0.4 | D102: 0.025 | E102: 0.0375 | F102: 8 | G102: 0.3 | H102: =H101-0.2 -> 0.4
B103: 800 | C103: 0.2 | D103: 0.025 | E103: 0.04 | F103: 9 | G103: 0.15 | H103: =H102-0.2 -> 0.2
B104: 900 | C104: 0 | D104: 0.025 | E104: 0.0425 | F104: 10 | G104: 0.08 | H104: 0
B105: 1000 | C105: 0 | D105: 0.025 | E105: 0.045 | F105: 11 | G105: 0.04 | H105: 0
B106: 1100 | C106: 0.002042648973 | D106: 0.025 | E106: 0.0475 | F106: 12 | G106: 0.01 | H106: =0+(1-0)/(1+(B106/100000)+(B106/1080)^2+(B106/690)^8+(B106/1000)^64) -> 0.002042648973
B107: 1200 | C107: 8.552261303e-06 | F107: 13 | G107: 0 | H107: =0+(1-0)/(1+(B107/100000)+(B107/1080)^2+(B107/690)^8+(B107/1000)^64) -> 8.552261303e-06

Sheet Data
B2: INDDATA | F2: Korrektion for 12-kantet polygon: | J2: R' = | K2: =(PI()/3)^0.5 -> 1.023326708 | L2: R
B4: Ls | D4: =Kold!N12/1000 -> 4.2 | E4: m | F4: Betontværsnit | I4: Armeringstværsnit | AB4: =G6/D15 -> 1.023326708 | AC4: =H6/D15 -> 0 | AL4: LASTSÆT | AN4: UDDATA
B5: L/i | D5: =D4/D17 -> 33.6 | F5: pkt. | G5: x | H5: y | I5: jern nr. | J5: A | K5: Nf | L5: x | M5: y | AB5: =G8/D15 -> 1.534990062 | AC5: =H8/D15 -> 0.1370997825 | AL5: Nr | AM5: N | AN5: N | AO5: M0 | AP5: y0 | AQ5: xres | AR5: yres | AS5: z | AT5: v | AU5: e0 | AV5: sa,max | AW5: sa,min | AX5: u | AY5: fejlchek
B6: Beton | F6: 1 | G6: =($D$15+$D$15*SIN(2*PI()*(F6-1)/12))*$K$2 -> 0.255831677 | H6: =$D$15*(1-COS(2*PI()*(F6-1)/12))*$K$2 -> 0 | I6: 1 | J6: =IF(I6<=$D$29,$D$31,0) -> 0.0003141592654 | K6: 0 | L6: =G6 -> 0.255831677 | M6: =D30/1000 -> 0.06 | AB6: =G10/D15 -> 1.909553633 | AC6: =H10/D15 -> 0.511663354 | AL6: 1 | AM6: 0 | AN6: ='P1'!$F$4 -> -7.111200517e-12 | AO6: ='P1'!$H$4 -> 0.1388674253 | AP6: ='P1'!$I$4 -> 0.3319307752 | AQ6: ='P1'!$J$4 -> 0.2558316766 | AR6: ='P1'!$K$4 -> 0.4317657668 | AS6: ='P1'!$L$4 -> 0.3319307752 | AT6: ='P1'!$M$4 -> 0 | AU6: ='P1'!$N$4 -> 0.0005856431519 | AV6: ='P1'!$O$4 -> 456.1063837 | AW6: ='P1'!$P$4 -> 181.2632767 | AX6: ='P1'!$Q$4 -> 0.01479368527
B7: gc | D7: =Kold!N9 -> 1.4 | F7: 1' | I7: 2 | J7: 0.0003141592654 | K7: 0 | L7: =IF(I7<=$D$29,$D$15+$D$32*SIN(2*PI()*(I7-1)/$D$29),L6) -> 0.3843502884 | M7: =IF(I7<=$D$29,$D$32*(1-COS(2*PI()*(I7-1)/$D$29))+$D$30/1000,M6) -> 0.1156497116 | AB7: =G12/D15 -> 2.046653416 | AC7: =H12/D15 -> 1.023326708 | AL7: 2 | AM7: =AM6+($AM$15-$AM$6)/10 -> 0.6839801149 | AN7: ='P2'!$F$4 -> 0.6839801149 | AO7: ='P2'!$H$4 -> 0.2065394356 | AP7: ='P2'!$I$4 -> 0.2740034892 | AQ7: ='P2'!$J$4 -> 0.255831677 | AR7: ='P2'!$K$4 -> 0.4068814128 | AS7: ='P2'!$L$4 -> 0.2740034892 | AT7: ='P2'!$M$4 -> 0 | AU7: ='P2'!$N$4 -> 0.0009766779079 | AV7: ='P2'!$O$4 -> 452.7077188 | AW7: ='P2'!$P$4 -> 351.1526937 | AX7: ='P2'!$Q$4 -> 0.01865802326
B8: fck | D8: =Kold!N7 -> 40 | E8: MPa | F8: 2 | G8: =($D$15+$D$15*SIN(2*PI()*(F8-1)/12))*$K$2 -> 0.3837475155 | H8: =$D$15*(1-COS(2*PI()*(F8-1)/12))*$K$2 -> 0.03427494562 | I8: 3 | J8: 0.0003141592654 | K8: 0 | L8: =IF(I8<=$D$29,$D$15+$D$32*SIN(2*PI()*(I8-1)/$D$29),L7) -> 0.44 | M8: 0.25 | AB8: =G14/D15 -> 1.909553633 | AC8: =H14/D15 -> 1.534990062 | AL8: 3 | AM8: 1.36796023 | AN8: =IF(AY8=1,'P3'!$F$4,AN7) -> 1.36796023 | AO8: =IF(AY8=1,'P3'!$H$4,AO7) -> 0.2567758179 | AP8: ='P3'!$I$4 -> 0.2371498738 | AQ8: ='P3'!$J$4 -> 0.255831677 | AR8: ='P3'!$K$4 -> 0.3902195098 | AS8: ='P3'!$L$4 -> 0.2371498738 | AT8: ='P3'!$M$4 -> 0 | AU8: ='P3'!$N$4 -> 0.001370199085 | AV8: ='P3'!$O$4 -> 455.1582 | AW8: ='P3'!$P$4 -> 458.3333333 | AX8: ='P3'!$Q$4 -> 0.02266157597 | AY8: =IF(MIN(AZ8:BB8)=-1000000,0,1) -> 1 | AZ8: =IFERROR('P3'!$F$4,-1000000) -> 1.36796023 | BA8: =IFERROR('P3'!$H$4,-1000000) -> 0.2567758179 | BB8: =IF(MIN(AZ8:BA8)=-1000000,-1000000,IF(ABS('P3'!$F$4-AM8)>0.02*AM8,-1000000,0)) -> 0
B9: fcm | D9: =D8+8 -> 48 | E9: MPa | F9: 2' | I9: 4 | J9: 0.0003141592654 | K9: 0 | L9: 0.3843502884 | M9: 0.3843502884 | AB9: =G16/D15 -> 1.534990062 | AC9: =H16/D15 -> 1.909553633 | AL9: 4 | AM9: 2.051940345 | AN9: =IF(AY9=1,'P4'!$F$4,AN8) -> 2.051940345 | AO9: =IF(AY9=1,'P4'!$H$4,AO8) -> 0.2814279769 | AP9: ='P4'!$I$4 -> 0.2065958125 | AQ9: ='P4'!$J$4 -> 0.255831677 | AR9: ='P4'!$K$4 -> 0.3754005583 | AS9: ='P4'!$L$4 -> 0.2065958125 | AT9: ='P4'!$M$4 -> 0 | AU9: ='P4'!$N$4 -> 0.001826932114 | AV9: ='P4'!$O$4 -> 451.9074478 | AW9: ='P4'!$P$4 -> 458.3333333 | AX9: ='P4'!$Q$4 -> 0.02718920563 | AY9: =IF(MIN(AZ9:BB9)=-1000000,0,1) -> 1 | AZ9: =IFERROR('P4'!$F$4,-1000000) -> 2.051940345 | BA9: =IFERROR('P4'!$H$4,-1000000) -> 0.2814279769 | BB9: =IF(MIN(AZ9:BA9)=-1000000,-1000000,IF(ABS('P4'!$F$4-AM9)>0.02*AM9,-1000000,0)) -> 0 | HD9: Bruger skal registreres | HE9: 1
B10: fcd | D10: =D8/D7 -> 28.57142857 | E10: MPa | F10: 3 | G10: =($D$15+$D$15*SIN(2*PI()*(F10-1)/12))*$K$2 -> 0.4773884083 | H10: =$D$15*(1-COS(2*PI()*(F10-1)/12))*$K$2 -> 0.1279158385 | I10: 5 | J10: 0.0003141592654 | K10: 0 | L10: 0.25 | M10: 0.44 | AB10: =G18/D15 -> 1.023326708 | AC10: =H18/D15 -> 2.046653416 | AL10: 5 | AM10: 2.73592046 | AN10: =IF(AY10=1,'P5'!$F$4,AN9) -> 2.73592046 | AO10: =IF(AY10=1,'P5'!$H$4,AO9) -> 0.2783512264 | AP10: ='P5'!$I$4 -> 0.1808445137 | AQ10: ='P5'!$J$4 -> 0.255831677 | AR10: ='P5'!$K$4 -> 0.3611867628 | AS10: ='P5'!$L$4 -> 0.1808445137 | AT10: ='P5'!$M$4 -> 0 | AU10: ='P5'!$N$4 -> 0.002401355453 | AV10: ='P5'!$O$4 -> 451.5383898 | AW10: ='P5'!$P$4 -> 458.3333333 | AX10: ='P5'!$Q$4 -> 0.03295613905 | AY10: 1 | AZ10: =IFERROR('P5'!$F$4,-1000000) -> 2.73592046 | BA10: =IFERROR('P5'!$H$4,-1000000) -> 0.2783512264 | BB10: =IF(MIN(AZ10:BA10)=-1000000,-1000000,IF(ABS('P5'!$F$4-AM10)>0.02*AM10,-1000000,0)) -> 0
B11: 1+f | D11: =1+Kold!Q16 -> 2.573780645 | F11: 3' | I11: 6 | J11: 0.0003141592654 | K11: 0 | L11: =IF(I11<=$D$29,$D$15+$D$32*SIN(2*PI()*(I11-1)/$D$29),L10) -> 0.1156497116 | M11: 0.3843502884 | AB11: =G20/D15 -> 0.511663354 | AC11: =H20/D15 -> 1.909553633 | AL11: 6 | AM11: 3.419900575 | AN11: =IF(AY11=1,'P6'!$F$4,AN10) -> 3.419900575 | AO11: =IF(AY11=1,'P6'!$H$4,AO10) -> 0.2394616592 | AP11: ='P6'!$I$4 -> 0.1498593955 | AQ11: ='P6'!$J$4 -> 0.255831677 | AR11: ='P6'!$K$4 -> 0.3455097944 | AS11: ='P6'!$L$4 -> 0.1498593955 | AT11: ='P6'!$M$4 -> 0 | AU11: ='P6'!$N$4 -> 0.002791146285 | AV11: ='P6'!$O$4 -> 356.8406352 | AW11: ='P6'!$P$4 -> 458.3333333 | AX11: ='P6'!$Q$4 -> 0.03502510097 | AY11: 1 | AZ11: =IFERROR('P6'!$F$4,-1000000) -> 3.419900575 | BA11: =IFERROR('P6'!$H$4,-1000000) -> 0.2394616592 | BB11: =IF(MIN(AZ11:BA11)=-1000000,-1000000,IF(ABS('P6'!$F$4-AM11)>0.02*AM11,-1000000,0)) -> 0
B12: ec1 | D12: =0.7*(D8+8)^0.31/1000 -> 0.002324249914 | F12: 4 | G12: =($D$15+$D$15*SIN(2*PI()*(F12-1)/12))*$K$2 -> 0.511663354 | H12: =$D$15*(1-COS(2*PI()*(F12-1)/12))*$K$2 -> 0.255831677 | I12: 7 | J12: 0.0003141592654 | K12: 0 | L12: 0.06 | M12: 0.25 | AB12: =G22/D15 -> 0.1370997825 | AC12: =H22/D15 -> 1.534990062 | AL12: 7 | AM12: 4.10388069 | AN12: =IF(AY12=1,'P7'!$F$4,AN11) -> 4.10388069 | AO12: =IF(AY12=1,'P7'!$H$4,AO11) -> 0.1827883193 | AP12: ='P7'!$I$4 -> 0.09680891867 | AQ12: ='P7'!$J$4 -> 0.255831677 | AR12: ='P7'!$K$4 -> 0.3262300861 | AS12: ='P7'!$L$4 -> 0.09680891867 | AT12: ='P7'!$M$4 -> 0 | AU12: ='P7'!$N$4 -> 0.002654352345 | AV12: ='P7'!$O$4 -> 121.2320418 | AW12: ='P7'!$P$4 -> 458.3333333 | AX12: ='P7'!$Q$4 -> 0.02904911765 | AY12: 1 | AZ12: =IFERROR('P7'!$F$4,-1000000) -> 4.10388069 | BA12: =IFERROR('P7'!$H$4,-1000000) -> 0.1827883193 | BB12: =IF(MIN(AZ12:BA12)=-1000000,-1000000,IF(ABS('P7'!$F$4-AM12)>0.02*AM12,-1000000,0)) -> 0
B13: Ecm | D13: =1000*22*((D8+8)/10)^0.3/D7 -> 25157.47306 | E13: MPa | F13: 4' | I13: 8 | J13: 0.0003141592654 | K13: 0 | L13: 0.1156497116 | M13: 0.1156497116 | AB13: =G24/D15 -> 0 | AC13: =H24/D15 -> 1.023326708 | AL13: 8 | AM13: 4.787860804 | AN13: =IF(AY13=1,'P8'!$F$4,AN12) -> 4.787860804 | AO13: =IF(AY13=1,'P8'!$H$4,AO12) -> 0.1120059606 | AP13: ='P8'!$I$4 -> 0.03813585062 | AQ13: ='P8'!$J$4 -> 0.255831677 | AR13: ='P8'!$K$4 -> 0.3058852771 | AS13: ='P8'!$L$4 -> 0.03813585062 | AT13: ='P8'!$M$4 -> 0 | AU13: ='P8'!$N$4 -> 0.002654352345 | AV13: ='P8'!$O$4 -> -63.08810391 | AW13: ='P8'!$P$4 -> 458.3333333 | AX13: ='P8'!$Q$4 -> 0.0254497473 | AY13: 1 | AZ13: =IFERROR('P8'!$F$4,-1000000) -> 4.787860804 | BA13: =IFERROR('P8'!$H$4,-1000000) -> 0.1120059606 | BB13: =IF(MIN(AZ13:BA13)=-1000000,-1000000,IF(ABS('P8'!$F$4-AM13)>0.02*AM13,-1000000,0)) -> 0
B14: k | D14: =1.05*D13*D12/D10 -> 2.148855357 | F14: 5 | G14: =($D$15+$D$15*SIN(2*PI()*(F14-1)/12))*$K$2 -> 0.4773884083 | H14: =$D$15*(1-COS(2*PI()*(F14-1)/12))*$K$2 -> 0.3837475155 | I14: 9 | J14: 0 | K14: 0 | L14: 0.1156497116 | M14: 0.1156497116 | AB14: =G26/D15 -> 0.1370997825 | AC14: =H26/D15 -> 0.511663354 | AL14: 9 | AM14: 5.471840919 | AN14: =IF(AY14=1,'P9'!$F$4,AN13) -> 5.471840919 | AO14: =IF(AY14=1,'P9'!$H$4,AO13) -> 0.03318609227 | AP14: ='P9'!$I$4 -> -0.07368208528 | AQ14: ='P9'!$J$4 -> 0.255831677 | AR14: ='P9'!$K$4 -> 0.2841608101 | AS14: ='P9'!$L$4 -> -0.07368208528 | AT14: ='P9'!$M$4 -> 0 | AU14: ='P9'!$N$4 -> 0.00238891711 | AV14: ='P9'!$O$4 -> -280.8429847 | AW14: ='P9'!$P$4 -> 458.3333333 | AX14: ='P9'!$Q$4 -> 0.01852929747 | AY14: 1 | AZ14: =IFERROR('P9'!$F$4,-1000000) -> 5.471840919 | BA14: =IFERROR('P9'!$H$4,-1000000) -> 0.03318609227 | BB14: =IF(MIN(AZ14:BA14)=-1000000,-1000000,IF(ABS('P9'!$F$4-AM14)>0.02*AM14,-1000000,0)) -> 0
B15: R' | D15: =0.5*Kold!N14/1000 -> 0.25 | E15: m | F15: 5' | I15: 10 | J15: 0 | K15: 0 | L15: 0.1156497116 | M15: 0.1156497116 | AB15: =G28/D15 -> 0.511663354 | AC15: =H28/D15 -> 0.1370997825 | AL15: 10 | AM15: =$D$18 -> 6.839801149 | AN15: =IF(AY15=1,'P10'!$F$4,AN14) -> 5.471840919 | AO15: =IF(AY15=1,'P10'!$H$4,AO14) -> 0.03318609227 | AP15: ='P10'!$I$4 ->  | AQ15: ='P10'!$J$4 ->  | AR15: ='P10'!$K$4 ->  | AS15: ='P10'!$L$4 ->  | AT15: ='P10'!$M$4 -> 0 | AU15: ='P10'!$N$4 ->  | AV15: ='P10'!$O$4 ->  | AW15: ='P10'!$P$4 ->  | AX15: ='P10'!$Q$4 ->  | AY15: 0 | AZ15: =IFERROR('P10'!$F$4,-1000000) -> -1000000 | BA15: =IFERROR('P10'!$H$4,-1000000) -> -1000000 | BB15: =IF(MIN(AZ15:BA15)=-1000000,-1000000,IF(ABS('P10'!$F$4-AM15)>0.02*AM15,-1000000,0)) -> -1000000
B16: Ac | D16: =PI()*D15^2 -> 0.1963495408 | E16: m2 | F16: 6 | G16: =($D$15+$D$15*SIN(2*PI()*(F16-1)/12))*$K$2 -> 0.3837475155 | H16: =$D$15*(1-COS(2*PI()*(F16-1)/12))*$K$2 -> 0.4773884083 | I16: 11 | J16: 0 | K16: 0 | L16: 0.1156497116 | M16: 0.1156497116 | AB16: =G30/D15 -> 1.023326708 | AC16: =H30/D15 -> 0
B17: i | D17: =2*D15/4 -> 0.125 | E17: m | F17: 6' | I17: 12 | J17: 0 | K17: 0 | L17: 0.1156497116 | M17: 0.1156497116 | AB17: =G32/D15 -> 1.023326708 | AC17: =H32/D15 -> 0
B18: Ncr | D18: =D10/(1+D10/(PI()^2*0.7*D13/D7)*D5^2)*(D16+D31*D29*D11*D23/(D10/D12)) -> 6.839801149 | E18: MN | F18: 7 | G18: =($D$15+$D$15*SIN(2*PI()*(F18-1)/12))*$K$2 -> 0.255831677 | H18: =$D$15*(1-COS(2*PI()*(F18-1)/12))*$K$2 -> 0.511663354 | I18: 13 | J18: 0 | K18: 0 | L18: 0.1156497116 | M18: 0.1156497116 | AB18: =L6/$D$15 -> 1.023326708 | AD18: =M6/$D$15 -> 0.24
B19: Armering | F19: 7' | I19: 14 | J19: 0 | K19: 0 | L19: 0.1156497116 | M19: 0.1156497116 | AB19: =L7/$D$15 -> 1.537401154 | AD19: 0.4625988463 | AN19: 1 | AO19: 2 | AP19: 3 | AQ19: 4 | AR19: 5 | AS19: 6 | AT19: 7 | AU19: 8 | AV19: 9 | AW19: 10 | AX19: 11
B20: gs | D20: =Kold!N10 -> 1.2 | F20: 8 | G20: =($D$15+$D$15*SIN(2*PI()*(F20-1)/12))*$K$2 -> 0.1279158385 | H20: =$D$15*(1-COS(2*PI()*(F20-1)/12))*$K$2 -> 0.4773884083 | I20: 15 | J20: 0 | K20: 0 | L20: 0.1156497116 | M20: 0.1156497116 | AB20: 1.76 | AD20: 1 | AL20: N1 | AM20: =1+ROUNDDOWN(10*AL22/$AM$15,0) -> 1 | AN20: =INDEX(AN$6:AN$15,$AM20) -> -7.111200517e-12 | AO20: 0.1388674253 | AP20: 0.3319307752 | AQ20: 0.2558316766 | AR20: 0.4317657668 | AS20: 0.3319307752 | AT20: 0 | AU20: 0.0005856431519 | AV20: 456.1063837 | AW20: 181.2632767 | AX20: 0.01479368527
B21: fyk | D21: =Kold!N8 -> 550 | E21: MPa | F21: 8' | I21: 16 | J21: 0 | K21: 0 | L21: 0.1156497116 | M21: 0.1156497116 | AB21: 1.537401154 | AD21: 1.537401154 | AM21: =1+ROUNDUP(10*AL22/$AM$15,0) -> 2 | AN21: 0.6839801149 | AO21: 0.2065394356 | AP21: 0.2740034892 | AQ21: 0.255831677 | AR21: 0.4068814128 | AS21: 0.2740034892 | AT21: 0 | AU21: 0.0009766779079 | AV21: 452.7077188 | AW21: 351.1526937 | AX21: 0.01865802326
B22: fyd | D22: =D21/D20 -> 458.3333333 | E22: MPa | F22: 9 | G22: =($D$15+$D$15*SIN(2*PI()*(F22-1)/12))*$K$2 -> 0.03427494562 | H22: =$D$15*(1-COS(2*PI()*(F22-1)/12))*$K$2 -> 0.3837475155 | I22: 17 | J22: 0 | K22: 0 | L22: 0.1156497116 | M22: 0.1156497116 | AB22: 1 | AD22: 1.76 | AL22: =Kold!BE12/1000 -> 0.5 | AM22: =1+10*AL22/$AM$15-AM20 -> 0.7310154039 | AN22: =AN20+$AM22*(AN21-AN20) -> 0.5 | AO22: 0.1883367072 | AP22: 0.2895850368 | AQ22: 0.2558316769 | AR22: 0.4135749207 | AS22: 0.2895850368 | AT22: 0 | AU22: 0.000871495582 | AV22: 453.6219073 | AW22: 305.4550575 | AX22: 0.01761857587
B23: E | D23: 200000 | E23: MPa | F23: 9' | I23: 18 | J23: 0 | K23: 0 | L23: 0.1156497116 | M23: 0.1156497116 | AB23: 0.4625988463 | AD23: 1.537401154 | AL23: N1 | AM23: =1+ROUNDDOWN(10*AL25/$AM$15,0) -> 6 | AN23: =INDEX(AN$6:AN$15,$AM23) -> 3.419900575 | AO23: 0.2394616592 | AP23: 0.1498593955 | AQ23: 0.255831677 | AR23: 0.3455097944 | AS23: 0.1498593955 | AT23: 0 | AU23: 0.002791146285 | AV23: 356.8406352 | AW23: 458.3333333 | AX23: 0.03502510097
B24: ey | D24: =D22/D23 -> 0.002291666667 | F24: 10 | G24: =($D$15+$D$15*SIN(2*PI()*(F24-1)/12))*$K$2 -> 0 | H24: =$D$15*(1-COS(2*PI()*(F24-1)/12))*$K$2 -> 0.255831677 | I24: 19 | J24: 0 | K24: 0 | L24: 0.1156497116 | M24: 0.1156497116 | AB24: 0.24 | AD24: 1 | AM24: =1+ROUNDUP(10*AL25/$AM$15,0) -> 7 | AN24: 4.10388069 | AO24: 0.1827883193 | AP24: 0.09680891867 | AQ24: 0.255831677 | AR24: 0.3262300861 | AS24: 0.09680891867 | AT24: 0 | AU24: 0.002654352345 | AV24: 121.2320418 | AW24: 458.3333333 | AX24: 0.02904911765
B25: fud | D25: =D22 -> 458.3333333 | E25: MPa | F25: 10' | I25: 20 | J25: 0 | K25: 0 | L25: 0.1156497116 | M25: 0.1156497116 | AB25: 0.4625988463 | AD25: 0.4625988463 | AL25: =Kold!BF12/1000 -> 3.8 | AM25: =1+10*AL25/$AM$15-AM23 -> 0.5557170699 | AN25: =AN23+$AM25*(AN24-AN23) -> 3.8 | AO25: 0.2079673168 | AP25: 0.12037834 | AQ25: 0.255831677 | AR25: 0.3347957314 | AS25: 0.12037834 | AT25: 0 | AU25: 0.002715127557 | AV25: 225.908918 | AW25: 458.3333333 | AX25: 0.03170414503
B26: eud | D26: 1 | F26: 11 | G26: =($D$15+$D$15*SIN(2*PI()*(F26-1)/12))*$K$2 -> 0.03427494562 | H26: =$D$15*(1-COS(2*PI()*(F26-1)/12))*$K$2 -> 0.1279158385 | I26: 21 | J26: 0 | K26: 0 | L26: 0.1156497116 | M26: 0.1156497116 | AB26: 0.4625988463 | AD26: 0.4625988463 | AL26: N1 | AM26: =1+ROUNDDOWN(10*AL28/$AM$15,0) -> 6 | AN26: =INDEX(AN$6:AN$15,$AM26) -> 3.419900575 | AO26: 0.2394616592 | AP26: 0.1498593955 | AQ26: 0.255831677 | AR26: 0.3455097944 | AS26: 0.1498593955 | AT26: 0 | AU26: 0.002791146285 | AV26: 356.8406352 | AW26: 458.3333333 | AX26: 0.03502510097
B27: (fud-fyd)/(eud-ey) | D27: 0 | E27: MPa | F27: 11' | I27: 22 | J27: 0 | K27: 0 | L27: 0.1156497116 | M27: 0.1156497116 | AB27: 0.4625988463 | AD27: 0.4625988463 | AM27: =1+ROUNDUP(10*AL28/$AM$15,0) -> 7 | AN27: 4.10388069 | AO27: 0.1827883193 | AP27: 0.09680891867 | AQ27: 0.255831677 | AR27: 0.3262300861 | AS27: 0.09680891867 | AT27: 0 | AU27: 0.002654352345 | AV27: 121.2320418 | AW27: 458.3333333 | AX27: 0.02904911765
B28: d | D28: =Kold!N17 -> 20 | E28: mm | F28: 12 | G28: =($D$15+$D$15*SIN(2*PI()*(F28-1)/12))*$K$2 -> 0.1279158385 | H28: =$D$15*(1-COS(2*PI()*(F28-1)/12))*$K$2 -> 0.03427494562 | I28: 23 | J28: 0 | K28: 0 | L28: 0.1156497116 | M28: 0.1156497116 | AB28: 0.4625988463 | AD28: 0.4625988463 | AL28: =Kold!BG12/1000 -> 4.1 | AM28: =1+10*AL28/$AM$15-AM26 -> 0.9943263123 | AN28: =AN26+$AM28*(AN27-AN26) -> 4.1 | AO28: 0.1831098661 | AP28: 0.0971099105 | AQ28: 0.255831677 | AR28: 0.3263394731 | AS28: 0.0971099105 | AT28: 0 | AU28: 0.002655128471 | AV28: 122.5688114 | AW28: 458.3333333 | AX28: 0.02908302351
B29: n | D29: =Kold!N18 -> 8 | F29: 12' | I29: 24 | J29: 0 | K29: 0 | L29: 0.1156497116 | M29: 0.1156497116 | AB29: 0.4625988463 | AD29: 0.4625988463
B30: a | D30: =Kold!N15 -> 60 | E30: mm | F30: 13 | G30: =($D$15+$D$15*SIN(2*PI()*(F30-1)/12))*$K$2 -> 0.255831677 | H30: =$D$15*(1-COS(2*PI()*(F30-1)/12))*$K$2 -> 0 | I30: 25 | J30: 0 | K30: 0 | L30: 0.1156497116 | M30: 0.1156497116 | AB30: 0.4625988463 | AD30: 0.4625988463
B31: Aa | D31: =PI()*(D28/1000)^2/4 -> 0.0003141592654 | E31: m2 | F31: 13' | AB31: 0.4625988463 | AD31: 0.4625988463
B32: Ra | D32: =D15-D30/1000 -> 0.19 | E32: m | F32: 27 | G32: =G30 -> 0.255831677 | H32: =H30 -> 0 | AB32: 0.4625988463 | AD32: 0.4625988463
AB33: 0.4625988463 | AD33: 0.4625988463
B34: LASTSÆT | D34: UDDATA | AB34: 0.4625988463 | AD34: 0.4625988463
B35: Nr | C35: N | D35: N | E35: M0 | F35: y0 | G35: xres | H35: yres | I35: z | J35: v | K35: e0 | L35: sa,max | M35: u | AB35: 0.4625988463 | AD35: 0.4625988463
B36: 1 | C36: =AM6*1000 -> 0 | D36: =AN6*1000 -> -7.111200517e-09 | E36: 138.8674253 | F36: =AP6 -> 0.3319307752 | G36: =AQ6 -> 0.2558316766 | H36: 0.4317657668 | I36: 0.3319307752 | J36: 0 | K36: 0.0005856431519 | L36: 456.1063837 | M36: =AX6 -> 0.01479368527 | AB36: 0.4625988463 | AD36: 0.4625988463
B37: 2 | C37: =AM7*1000 -> 683.9801149 | D37: 683.9801149 | E37: 206.5394356 | F37: =AP7 -> 0.2740034892 | G37: 0.255831677 | H37: 0.4068814128 | I37: 0.2740034892 | J37: 0 | K37: 0.0009766779079 | L37: 452.7077188 | M37: =AX7 -> 0.01865802326 | AB37: 0.4625988463 | AD37: 0.4625988463
B38: 3 | C38: 1367.96023 | D38: =IF(E37<0,D37,AN8)*1000 -> 1367.96023 | E38: =AO8*1000 -> 256.7758179 | F38: =IF($E37/$D37<0.02,F37,AP8) -> 0.2371498738 | G38: =IF($E37/$D37<0.02,G37,AQ8) -> 0.255831677 | H38: 0.3902195098 | I38: 0.2371498738 | J38: 0 | K38: 0.001370199085 | L38: 455.1582 | M38: =IF($E37/$D37<0.02,M37,AX8) -> 0.02266157597 | AB38: 0.4625988463 | AD38: 0.4625988463
B39: 4 | C39: 2051.940345 | D39: =AN9*1000 -> 2051.940345 | E39: 281.4279769 | F39: =IF($E38/$D38<0.02,F38,AP9) -> 0.2065958125 | G39: 0.255831677 | H39: 0.3754005583 | I39: 0.2065958125 | J39: 0 | K39: 0.001826932114 | L39: 451.9074478 | M39: 0.02718920563 | AB39: 0.4625988463 | AD39: 0.4625988463
B40: 5 | C40: 2735.92046 | D40: 2735.92046 | E40: 278.3512264 | F40: 0.1808445137 | G40: 0.255831677 | H40: 0.3611867628 | I40: 0.1808445137 | J40: 0 | K40: 0.002401355453 | L40: 451.5383898 | M40: 0.03295613905 | AB40: 0.4625988463 | AD40: 0.4625988463
B41: 6 | C41: 3419.900575 | D41: 3419.900575 | E41: 239.4616592 | F41: 0.1498593955 | G41: 0.255831677 | H41: 0.3455097944 | I41: 0.1498593955 | J41: 0 | K41: 0.002791146285 | L41: 356.8406352 | M41: 0.03502510097 | AB41: 0.4625988463 | AD41: 0.4625988463
B42: 7 | C42: 4103.88069 | D42: 4103.88069 | E42: 182.7883193 | F42: 0.09680891867 | G42: 0.255831677 | H42: 0.3262300861 | I42: 0.09680891867 | J42: 0 | K42: 0.002654352345 | L42: 121.2320418 | M42: 0.02904911765 | AB42: 0.4625988463 | AD42: 0.4625988463
B43: 8 | C43: 4787.860804 | D43: 4787.860804 | E43: 112.0059606 | F43: 0.03813585062 | G43: 0.255831677 | H43: 0.3058852771 | I43: 0.03813585062 | J43: 0 | K43: 0.002654352345 | L43: -63.08810391 | M43: 0.0254497473
B44: 9 | C44: 5471.840919 | D44: 5471.840919 | E44: 33.18609227 | F44: -0.07368208528 | G44: 0.255831677 | H44: 0.2841608101 | I44: -0.07368208528 | J44: 0 | K44: 0.00238891711 | L44: -280.8429847 | M44: 0.01852929747
B45: 10 | C45: 6839.801149 | D45: 5471.840919 | E45: 33.18609227 | F45: -0.07368208528 | G45: 0.255831677 | H45: 0.2841608101 | I45: -0.07368208528 | J45: 0 | K45: 0.00238891711 | L45: -280.8429847 | M45: 0.01852929747
B47: KONTROL | D47: N | E47: M0
B48: ækvivalent rektan- | D48: =1000*'Ark1'!M10 -> 0.1 | E48: =1000*'Ark1'!N10 -> 128.249515
B49: gulær søjle | D49: =1000*'Ark1'!M11 -> 141.9981543 | E49: =1000*'Ark1'!N11 -> 147.0690428
D50: =1000*'Ark1'!M12 -> 279.4099443 | E50: =1000*'Ark1'!N12 -> 164.1827595
D51: =1000*'Ark1'!M13 -> 545.9809219 | E51: =1000*'Ark1'!N13 -> 195.3718376
D52: =1000*'Ark1'!M14 -> 779.3699004 | E52: =1000*'Ark1'!N14 -> 219.4295424
D53: =1000*'Ark1'!M15 -> 1149.780154 | E53: =1000*'Ark1'!N15 -> 252.7113538
D54: =1000*'Ark1'!M16 -> 1333.620896 | E54: =1000*'Ark1'!N16 -> 264.7813151
D55: =1000*'Ark1'!M17 -> 1711.512362 | E55: =1000*'Ark1'!N17 -> 281.2316212
D56: =1000*'Ark1'!M18 -> 2090.381975 | E56: =1000*'Ark1'!N18 -> 287.2757772
D57: =1000*'Ark1'!M19 -> 2553.456959 | E57: =1000*'Ark1'!N19 -> 271.877528
D58: =1000*'Ark1'!M20 -> 2953.549071 | E58: =1000*'Ark1'!N20 -> 240.8662568
D59: =1000*'Ark1'!M21 -> 3409.215289 | E59: =1000*'Ark1'!N21 -> 202.8030315
D60: =1000*'Ark1'!M22 -> 3856.429861 | E60: =1000*'Ark1'!N22 -> 161.2716719
D61: =1000*'Ark1'!M23 -> 4335.849317 | E61: =1000*'Ark1'!N23 -> 107.5872668
D62: =1000*'Ark1'!M24 -> 4725.41711 | E62: =1000*'Ark1'!N24 -> 61.77739081
D63: =1000*'Ark1'!M25 -> 5000.522629 | E63: =1000*'Ark1'!N25 -> 32.22123791
D64: =1000*'Ark1'!M26 -> 5000.522629 | E64: =1000*'Ark1'!N26 -> 32.22123791
D65: =1000*'Ark1'!M27 -> 5000.522629 | E65: =1000*'Ark1'!N27 -> 32.22123791
D66: =1000*'Ark1'!M28 -> 5000.522629 | E66: =1000*'Ark1'!N28 -> 32.22123791

Sheet P1
B2: INDDATA | F2: UDDATA | S2: Armering
B3: gc | C3: =Data!D7 -> 1.4 | F3: N | G3: My | H3: Mx | I3: y0 | J3: xres | K3: yres | L3: z | M3: v | N3: e0 | O3: sa,max | P3: sa,min | Q3: u | S3: gs | U3: =Data!D20 -> 1.2
B4: fck | C4: =Data!D8 -> 40 | D4: MPa | F4: =CT242-CX242 -> -7.111200517e-12 | G4: =CO242 -> 0.001274322122 | H4: =CV592 -> 0.1388674253 | I4: =CL592 -> 0.3319307752 | J4: =CP594 -> 0.2558316766 | K4: =CQ594 -> 0.4317657668 | L4: =CM592 -> 0.3319307752 | M4: =CJ592 -> 0 | N4: =CI592 -> 0.0005856431519 | O4: =DB594*U6 -> 456.1063837 | P4: =-MIN(DB596:DB620)/CX596 -> 181.2632767 | Q4: =0.1*($C$7*CI592/($G$10-CL592))*$C$12^2 -> 0.01479368527 | S4: fyk | U4: =Data!D21 -> 550 | V4: MPa
B5: fcm | C5: =Data!D9 -> 48 | D5: MPa | S5: fyd | U5: =Data!D22 -> 458.3333333 | V5: MPa
B6: fcd | C6: =Data!D10 -> 28.57142857 | D6: MPa | F6: M/u | G6: =H4/Q4 -> 9.386939272 | S6: E | U6: =Data!D23 -> 200000 | V6: MPa
B7: 1+f | C7: =Data!D11 -> 2.573780645 | S7: ey | U7: =Data!D24 -> 0.002291666667
B8: ec1 | C8: =Data!D12 -> 0.002324249914 | F8: xkrop | G8: =C20 -> 0.255831677 | S8: fud | U8: =Data!D25 -> 458.3333333 | V8: MPa
B9: Ecm | C9: =Data!D13 -> 25157.47306 | D9: MPa | F9: xmax-xmin | G9: =MAX(C20:C46)-MIN(C20:C46) -> 0.511663354 | S9: eud | U9: =Data!D26 -> 1
B10: k | C10: =Data!D14 -> 2.148855357 | F10: y_max | G10: =MAX(D20:D46) -> 0.511663354 | S10: (fud-fyd)/(eud-ey) = | U10: =Data!D27 -> 0 | V10: MPa
B11: N | C11: =Data!AM6 -> 0 | D11: MN | F11: y_center | G11: =0.5*G10 -> 0.255831677
B12: Ls | C12: =Data!D4 -> 4.2 | D12: m
B15: STEP 1 | C15: e0 | D15: v (rad) | E15: x0 | F15: y0 | G15: z0 | N15: Nc-Na-N | P15: M0 | V15: e0_flydn | W15: =B15 -> STEP 1 | X15: e0 | Y15: v (rad) | Z15: x0 | AA15: y0 | AB15: z0 | AI15: Nc-Na-N | AK15: M0 | AR15: =W15 -> STEP 1 | AS15: e0 | AT15: v (rad) | AU15: x0 | AV15: y0 | AW15: z0 | BD15: Nc-Na-N | BF15: M0 | BM15: =AR15 -> STEP 1 | BN15: e0 | BO15: v (rad) | BP15: x0 | BQ15: y0 | BR15: z0 | BY15: Nc-Na-N | CA15: M0 | CH15: =BM15 -> STEP 1 | CI15: e0 | CJ15: v (rad) | CK15: x0 | CL15: y0 | CM15: z0 | CT15: Nc-Na-N | CV15: M0 | CW15: Iterationsstyring
C16: =C8 -> 0.002324249914 | D16: 0 | E16: =C20 -> 0.255831677 | F16: =G10-($U$7*$G$10+$C$7*C8*MIN(U20:U44))/($U$7+$C$7*C8) -> 0.3265618478 | G16: =F16 -> 0.3265618478 | N16: =SUM(N20:N46)-R18-$C$11 -> 0.7290245761 | P16: =R18*($G$11-T18)+N18*(K18-$G$11)-0.1*($C$7*C16/($G$10-F16))*$C$12^2*$C$11 -> 0.3067571259 | V16: =(U5/U6)*F18/(-G18*(MIN(U20:U44)-F16)*$C$7) -> 0.0006182895115 | X16: =C16 -> 0.002324249914 | Y16: 0 | Z16: =X20 -> 0.255831677 | AA16: =F16-0.5*($G$10-F16) -> 0.2340110948 | AB16: =AA16 -> 0.2340110948 | AI16: =SUM(AI20:AI46)-AM18-$C$11 -> 1.939294431 | AK16: =AM18*($G$11-AO18)+AI18*(AF18-$G$11)-0.1*($C$7*X16/($G$10-AA16))*$C$12^2*$C$11 -> 0.3744374935 | AS16: =X16 -> 0.002324249914 | AT16: 0 | AU16: =AS20 -> 0.255831677 | AV16: =IF(AI16=N16,AA16,MIN(AA16-(AA16-F16)*AI16/(AI16-N16),0.99*$G$10)) -> 0.3823112109 | AW16: =AV16 -> 0.3823112109 | BD16: =SUM(BD20:BD46)-BH18-$C$11 -> 0.06050013577 | BF16: =BH18*($G$11-BJ18)+BD18*(BA18-$G$11)-0.1*($C$7*AS16/($G$10-AV16))*$C$12^2*$C$11 -> 0.2190136493 | BN16: =AS16 -> 0.002324249914 | BO16: 0 | BP16: =BN20 -> 0.255831677 | BQ16: =IF(BD16=AI16,AV16,MIN(AV16-(AV16-AA16)*BD16/(BD16-AI16),0.99*$G$10)) -> 0.3870867082 | BR16: =BQ16 -> 0.3870867082 | BY16: =SUM(BY20:BY46)-CC18-$C$11 -> -0.002936673379 | CA16: =CC18*($G$11-CE18)+BY18*(BV18-$G$11)-0.1*($C$7*BN16/($G$10-BQ16))*$C$12^2*$C$11 -> 0.2098846639 | CI16: =BN16 -> 0.002324249914 | CJ16: 0 | CK16: =CI20 -> 0.255831677 | CL16: =IF(BY16=BD16,BQ16,MIN(BQ16-(BQ16-AV16)*BY16/(BY16-BD16),0.99*$G$10)) -> 0.3868656366 | CM16: =CL16 -> 0.3868656366 | CT16: =SUM(CT20:CT46)-CX18-$C$11 -> 3.294649412e-05 | CV16: =CX18*($G$11-CZ18)+CT18*(CQ18-$G$11)-0.1*($C$7*CI16/($G$10-CL16))*$C$12^2*$C$11 -> 0.2103139955 | CW16: 0 | CX16: 0 | CY16: 0 | DB16: =IF(DB18>2*$U$7,0.6,0.8) -> 0.6
B17: Beton | C17: A | D17: B | E17: D | F17: tmax | G17: cosv | H17: sinv | I17: My | J17: xres | K17: yres | L17: sres | M17: tres | N17: Nc | O17: sNc | P17: tNc | Q17: Armering | R17: Na | S17: x_a | T17: y_a | V17: e_a_max | W17: Beton | X17: A | Y17: B | Z17: D | AA17: tmax | AB17: cosv | AC17: sinv | AD17: My | AE17: xres | AF17: yres | AG17: sres | AH17: tres | AI17: Nc | AJ17: sNc | AK17: tNc | AL17: Armering | AM17: Na | AN17: x_a | AO17: y_a | AQ17: e_a_max | AR17: Beton | AS17: A | AT17: B | AU17: D | AV17: tmax | AW17: cosv | AX17: sinv | AY17: My | AZ17: xres | BA17: yres | BB17: sres | BC17: tres | BD17: Nc | BE17: sNc | BF17: tNc | BG17: Armering | BH17: Na | BI17: x_a | BJ17: y_a | BL17: e_a_max | BM17: Beton | BN17: A | BO17: B | BP17: D | BQ17: tmax | BR17: cosv | BS17: sinv | BT17: My | BU17: xres | BV17: yres | BW17: sres | BX17: tres | BY17: Nc | BZ17: sNc | CA17: tNc | CB17: Armering | CC17: Na | CD17: x_a | CE17: y_a | CG17: e_a_max | CH17: Beton | CI17: A | CJ17: B | CK17: D | CL17: tmax | CM17: cosv | CN17: sinv | CO17: My | CP17: xres | CQ17: yres | CR17: sres | CS17: tres | CT17: Nc | CU17: sNc | CV17: tNc | CW17: Armering | CX17: Na | CY17: x_a | CZ17: y_a | DB17: e_a_max
C18: =C16/($C$10*$C$8*F18) -> 2.51410183 | D18: =(2-$C$10)*C16/($C$8*F18) -> -0.8041823107 | E18: =$C$10*C16*$C$6/($C$8*F18) -> 331.6875623 | F18: =MAX(H20:H46) -> 0.1851015061 | G18: =COS(D16) -> 1 | H18: =SIN(D16) -> 0 | I18: =(J18-$G$8)*N18-(S18-$G$8)*R18 -> 0.001150465275 | J18: =E16+L18*G18-M18*H18 -> 0.255831677 | K18: =F16+L18*H18+M18*G18 -> 0.4238511688 | L18: =O18/N18 -> -2.433493035e-12 | M18: =P18/N18 -> 0.09728932097 | N18: =SUM(N20:N46) -> 1.070292875 | O18: =SUM(O20:O46) -> -2.604550256e-12 | P18: =SUM(P20:P46) -> 0.104128067 | R18: =SUM(V20:V44) -> 0.3412682986 | S18: =SUMPRODUCT(T20:T44,V20:V44)/R18 -> 0.2524605309 | T18: =SUMPRODUCT(U20:U44,V20:V44)/R18 -> -0.1160958107 | V18: =-(-H18*(T20-E16)+G18*(MIN(U20:U44)-F16))*$C$7*C16/F18 -> 0.008614744314 | X18: =X16/($C$10*$C$8*AA18) -> 1.676067886 | Y18: =(2-$C$10)*X16/($C$8*AA18) -> -0.5361215404 | Z18: =$C$10*X16*$C$6/($C$8*AA18) -> 221.1250415 | AA18: =MAX(AC20:AC46) -> 0.2776522592 | AB18: =COS(Y16) -> 1 | AC18: =SIN(Y16) -> 0 | AD18: =(AE18-$G$8)*AI18-(AN18-$G$8)*AM18 -> -0.001092151109 | AE18: =Z16+AG18*AB18-AH18*AC18 -> 0.255831677 | AF18: =AA16+AG18*AC18+AH18*AB18 -> 0.3837815813 | AG18: =AJ18/AI18 -> -3.888999577e-12 | AH18: =AK18/AI18 -> 0.1497704865 | AI18: =SUM(AI20:AI46) -> 1.896005014 | AJ18: =SUM(AJ20:AJ46) -> -7.373562698e-12 | AK18: =SUM(AK20:AK46) -> 0.2839655934 | AM18: =SUM(AQ20:AQ44) -> -0.04328941678 | AN18: =SUMPRODUCT(AO20:AO44,AQ20:AQ44)/AM18 -> 0.2306026214 | AO18: =SUMPRODUCT(AP20:AP44,AQ20:AQ44)/AM18 -> 3.301468304 | AQ18: =-(-AC18*(AO20-Z16)+AB18*(MIN(AP20:AP44)-AA16))*$C$7*X16/AA18 -> 0.003749126395 | AS18: =AS16/($C$10*$C$8*AV18) -> 3.597652301 | AT18: =(2-$C$10)*AS16/($C$8*AV18) -> -1.150776117 | AU18: =$C$10*AS16*$C$6/($C$8*AV18) -> 474.6412845 | AV18: =MAX(AX20:AX46) -> 0.1293521431 | AW18: =COS(AT16) -> 1 | AX18: =SIN(AT16) -> 0 | AY18: =(AZ18-$G$8)*BD18-(BI18-$G$8)*BH18 -> 0.002449997294 | AZ18: =AU16+BB18*AW18-BC18*AX18 -> 0.255831677 | BA18: =AV16+BB18*AX18+BC18*AW18 -> 0.4491138306 | BB18: =BE18/BD18 -> 1.544852383e-12 | BC18: =BF18/BD18 -> 0.06680261968 | BD18: =SUM(BD20:BD46) -> 0.6246086258 | BE18: =SUM(BE20:BE46) -> 9.649281242e-13 | BF18: =SUM(BF20:BF46) -> 0.04172549248 | BH18: =SUM(BL20:BL44) -> 0.56410849 | BI18: =SUMPRODUCT(BJ20:BJ44,BL20:BL44)/BH18 -> 0.2514885456 | BJ18: =SUMPRODUCT(BK20:BK44,BL20:BL44)/BH18 -> 0.08159577961 | BL18: =-(-AX18*(BJ20-AU16)+AW18*(MIN(BK20:BK44)-AV16))*$C$7*AS16/AV18 -> 0.0149058291 | BN18: =BN16/($C$10*$C$8*BQ18) -> 3.735564017 | BO18: =(2-$C$10)*BN16/($C$8*BQ18) -> -1.194889749 | BP18: =$C$10*BN16*$C$6/($C$8*BQ18) -> 492.8360928 | BQ18: =MAX(BS20:BS46) -> 0.1245766457 | BR18: =COS(BO16) -> 1 | BS18: =SIN(BO16) -> 0 | BT18: =(BU18-$G$8)*BY18-(CD18-$G$8)*CC18 -> 0.002615398626 | BU18: =BP16+BW18*BR18-BX18*BS18 -> 0.255831677 | BV18: =BQ16+BW18*BS18+BX18*BR18 -> 0.4513110855 | BW18: =BZ18/BY18 -> 2.444231419e-12 | BX18: =CA18/BY18 -> 0.0642243773 | BY18: =SUM(BY20:BY46) -> 0.5895343839 | BZ18: =SUM(BZ20:BZ46) -> 1.440958464e-12 | CA18: =SUM(CA20:CA46) -> 0.03786247871 | CC18: =SUM(CG20:CG44) -> 0.5924710573 | CD18: =SUMPRODUCT(CE20:CE44,CG20:CG44)/CC18 -> 0.2514172865 | CE18: =SUMPRODUCT(CF20:CF44,CG20:CG44)/CC18 -> 0.09608913761 | CG18: =-(-BS18*(CE20-BP16)+BR18*(MIN(CF20:CF44)-BQ16))*$C$7*BN16/BQ18 -> 0.01570654335 | CI18: =CI16/($C$10*$C$8*CL18) -> 3.728946692 | CJ18: =(2-$C$10)*CI16/($C$8*CL18) -> -1.192773074 | CK18: =$C$10*CI16*$C$6/($C$8*CL18) -> 491.9630635 | CL18: =MAX(CN20:CN46) -> 0.1247977173 | CM18: =COS(CJ16) -> 1 | CN18: =SIN(CJ16) -> 0 | CO18: =(CP18-$G$8)*CT18-(CY18-$G$8)*CX18 -> 0.002607462285 | CP18: =CK16+CR18*CM18-CS18*CN18 -> 0.255831677 | CQ18: =CL16+CR18*CN18+CS18*CM18 -> 0.4512095182 | CR18: =CU18/CT18 -> 1.5715079e-12 | CS18: =CV18/CT18 -> 0.06434388159 | CT18: =SUM(CT20:CT46) -> 0.5911431018 | CU18: =SUM(CU20:CU46) -> 9.289860547e-13 | CV18: =SUM(CV20:CV46) -> 0.03803644175 | CX18: =SUM(DB20:DB44) -> 0.5911101554 | CY18: =SUMPRODUCT(CZ20:CZ44,DB20:DB44)/CX18 -> 0.2514205494 | CZ18: =SUMPRODUCT(DA20:DA44,DB20:DB44)/CX18 -> 0.0954254793 | DB18: =-(-CN18*(CZ20-CK16)+CM18*(MIN(DA20:DA44)-CL16))*$C$7*CI16/CL18 -> 0.01566812321
B19: pkt. | C19: x | D19: y | E19: s1 | F19: t1 | G19: s | H19: t | I19: s' | J19: s'' | K19: I1 | L19: I2 | M19: I3 | N19: DNc | O19: DsNc | P19: DtNc | Q19: line: | R19: A | S19: Nf | T19: x | U19: y | V19: Na | W19: pkt. | X19: x | Y19: y | Z19: s1 | AA19: t1 | AB19: s | AC19: t | AD19: s' | AE19: s'' | AF19: I1 | AG19: I2 | AH19: I3 | AI19: DNc | AJ19: DsNc | AK19: DtNc | AL19: line: | AM19: A | AN19: Nf | AO19: x | AP19: y | AQ19: Na | AR19: pkt. | AS19: x | AT19: y | AU19: s1 | AV19: t1 | AW19: s | AX19: t | AY19: s' | AZ19: s'' | BA19: I1 | BB19: I2 | BC19: I3 | BD19: DNc | BE19: DsNc | BF19: DtNc | BG19: line: | BH19: A | BI19: Nf | BJ19: x | BK19: y | BL19: Na | BM19: pkt. | BN19: x | BO19: y | BP19: s1 | BQ19: t1 | BR19: s | BS19: t | BT19: s' | BU19: s'' | BV19: I1 | BW19: I2 | BX19: I3 | BY19: DNc | BZ19: DsNc | CA19: DtNc | CB19: line: | CC19: A | CD19: Nf | CE19: x | CF19: y | CG19: Na | CH19: pkt. | CI19: x | CJ19: y | CK19: s1 | CL19: t1 | CM19: s | CN19: t | CO19: s' | CP19: s'' | CQ19: I1 | CR19: I2 | CS19: I3 | CT19: DNc | CU19: DsNc | CV19: DtNc | CW19: line: | CX19: A | CY19: Nf | CZ19: x | DA19: y | DB19: Na
B20: 1 | C20: =Data!G6 -> 0.255831677 | D20: =Data!H6 -> 0 | E20: =G18*(C20-E16)+H18*(D20-F16) -> 0 | F20: =-H18*(C20-E16)+G18*(D20-F16) -> -0.3265618478 | G20: =E20 -> 0 | H20: =MAX(F20,0) -> 0 | I20: =IF(ABS((H21-H20)/F18)<0.001,0,(G20*H21-G21*H20)/(H21-H20)) -> 0 | J20: =IF(ABS((H21-H20)/F18)<0.001,0,(G21-G20)/(H21-H20)) -> 0 | K20: =IF(H21=H20,0,-((C18-D18)*E18/(2*D18^3))*(2*D18*(H21-H20)+D18^2*(H21^2-H20^2)+2*LN((1-D18*H21)/(1-D18*H20)))) -> 0 | L20: =-(C18-D18)*E18*(H21^3-H20^3)/(3*D18)+K20/D18 -> 0 | M20: =-(C18-D18)*E18*(H21^4-H20^4)/(4*D18)+L20/D18 -> 0 | N20: =IF(ABS((H21-H20)/F18)<0.001,0,0.5*E18*I20*(H21^2-H20^2)+E18*J20*(H21^3-H20^3)/3-I20*K20-J20*L20) -> 0 | O20: =IF(ABS((H21-H20)/F18)<0.001,0,0.5*E18*(I20^2*(H21^2-H20^2)/2+2*I20*J20*(H21^3-H20^3)/3+J20^2*(H21^4-H20^4)/4)-0.5*I20^2*K20-I20*J20*L20-0.5*J20^2*M20) -> 0 | P20: =IF(ABS((H21-H20)/F18)<0.001,0,E18*(I20*(H21^3-H20^3)/3+J20*(H21^4-H20^4)/4)-I20*L20-J20*M20) -> 0 | Q20: 1 | R20: =Data!J6 -> 0.0003141592654 | S20: =Data!K6 -> 0 | T20: =Data!L6 -> 0.255831677 | U20: =Data!M6 -> 0.06 | V20: =MAX(IF(-(-H18*(T20-E16)+G18*(U20-F16))*$C$7*C16/F18+IF(R20>0,S20/(R20*$U$6),0)>$U$7,IF(-(-H18*(T20-E16)+G18*(U20-F16))*$C$7*C16/F18+IF(R20>0,S20/(R20*$U$6),0)>$U$9,0,$U$5+$U$10*(-(-H18*(T20-E16)+G18*(U20-F16))*$C$7*C16/F18+IF(R20>0,S20/(R20*$U$6),0)-$U$7)),$U$6*(-(-H18*(T20-E16)+G18*(U20-F16))*$C$7*C16/F18+IF(R20>0,S20/(R20*$U$6),0)))*R20,-R20*$U$5) -> 0.1439896633 | W20: 1 | X20: =$C$20 -> 0.255831677 | Y20: =$D$20 -> 0 | Z20: =AB18*(X20-Z16)+AC18*(Y20-AA16) -> 0 | AA20: =-AC18*(X20-Z16)+AB18*(Y20-AA16) -> -0.2340110948 | AB20: =Z20 -> 0 | AC20: =MAX(AA20,0) -> 0 | AD20: =IF(ABS((AC21-AC20)/AA18)<0.001,0,(AB20*AC21-AB21*AC20)/(AC21-AC20)) -> 0 | AE20: =IF(ABS((AC21-AC20)/AA18)<0.001,0,(AB21-AB20)/(AC21-AC20)) -> 0 | AF20: =IF(AC21=AC20,0,-((X18-Y18)*Z18/(2*Y18^3))*(2*Y18*(AC21-AC20)+Y18^2*(AC21^2-AC20^2)+2*LN((1-Y18*AC21)/(1-Y18*AC20)))) -> 0 | AG20: =-(X18-Y18)*Z18*(AC21^3-AC20^3)/(3*Y18)+AF20/Y18 -> 0 | AH20: =-(X18-Y18)*Z18*(AC21^4-AC20^4)/(4*Y18)+AG20/Y18 -> 0 | AI20: =IF(ABS((AC21-AC20)/AA18)<0.001,0,0.5*Z18*AD20*(AC21^2-AC20^2)+Z18*AE20*(AC21^3-AC20^3)/3-AD20*AF20-AE20*AG20) -> 0 | AJ20: =IF(ABS((AC21-AC20)/AA18)<0.001,0,0.5*Z18*(AD20^2*(AC21^2-AC20^2)/2+2*AD20*AE20*(AC21^3-AC20^3)/3+AE20^2*(AC21^4-AC20^4)/4)-0.5*AD20^2*AF20-AD20*AE20*AG20-0.5*AE20^2*AH20) -> 0 | AK20: =IF(ABS((AC21-AC20)/AA18)<0.001,0,Z18*(AD20*(AC21^3-AC20^3)/3+AE20*(AC21^4-AC20^4)/4)-AD20*AG20-AE20*AH20) -> 0 | AL20: 1 | AM20: =$R$20 -> 0.0003141592654 | AN20: =$S$20 -> 0 | AO20: =$T$20 -> 0.255831677 | AP20: =$U$20 -> 0.06 | AQ20: =MAX(IF(-(-AC18*(AO20-Z16)+AB18*(AP20-AA16))*$C$7*X16/AA18+IF(AM20>0,AN20/(AM20*$U$6),0)>$U$7,IF(-(-AC18*(AO20-Z16)+AB18*(AP20-AA16))*$C$7*X16/AA18+IF(AM20>0,AN20/(AM20*$U$6),0)>$U$9,0,$U$5+$U$10*(-(-AC18*(AO20-Z16)+AB18*(AP20-AA16))*$C$7*X16/AA18+IF(AM20>0,AN20/(AM20*$U$6),0)-$U$7)),$U$6*(-(-AC18*(AO20-Z16)+AB18*(AP20-AA16))*$C$7*X16/AA18+IF(AM20>0,AN20/(AM20*$U$6),0)))*AM20,-AM20*$U$5) -> 0.1439896633 | AR20: 1 | AS20: =$C$20 -> 0.255831677 | AT20: =$D$20 -> 0 | AU20: =AW18*(AS20-AU16)+AX18*(AT20-AV16) -> 0 | AV20: =-AX18*(AS20-AU16)+AW18*(AT20-AV16) -> -0.3823112109 | AW20: =AU20 -> 0 | AX20: =MAX(AV20,0) -> 0 | AY20: =IF(ABS((AX21-AX20)/AV18)<0.001,0,(AW20*AX21-AW21*AX20)/(AX21-AX20)) -> 0 | AZ20: =IF(ABS((AX21-AX20)/AV18)<0.001,0,(AW21-AW20)/(AX21-AX20)) -> 0 | BA20: =IF(AX21=AX20,0,-((AS18-AT18)*AU18/(2*AT18^3))*(2*AT18*(AX21-AX20)+AT18^2*(AX21^2-AX20^2)+2*LN((1-AT18*AX21)/(1-AT18*AX20)))) -> 0 | BB20: =-(AS18-AT18)*AU18*(AX21^3-AX20^3)/(3*AT18)+BA20/AT18 -> 0 | BC20: =-(AS18-AT18)*AU18*(AX21^4-AX20^4)/(4*AT18)+BB20/AT18 -> 0 | BD20: =IF(ABS((AX21-AX20)/AV18)<0.001,0,0.5*AU18*AY20*(AX21^2-AX20^2)+AU18*AZ20*(AX21^3-AX20^3)/3-AY20*BA20-AZ20*BB20) -> 0 | BE20: =IF(ABS((AX21-AX20)/AV18)<0.001,0,0.5*AU18*(AY20^2*(AX21^2-AX20^2)/2+2*AY20*AZ20*(AX21^3-AX20^3)/3+AZ20^2*(AX21^4-AX20^4)/4)-0.5*AY20^2*BA20-AY20*AZ20*BB20-0.5*AZ20^2*BC20) -> 0 | BF20: =IF(ABS((AX21-AX20)/AV18)<0.001,0,AU18*(AY20*(AX21^3-AX20^3)/3+AZ20*(AX21^4-AX20^4)/4)-AY20*BB20-AZ20*BC20) -> 0 | BG20: 1 | BH20: =$R$20 -> 0.0003141592654 | BI20: =$S$20 -> 0 | BJ20: =$T$20 -> 0.255831677 | BK20: =$U$20 -> 0.06 | BL20: =MAX(IF(-(-AX18*(BJ20-AU16)+AW18*(BK20-AV16))*$C$7*AS16/AV18+IF(BH20>0,BI20/(BH20*$U$6),0)>$U$7,IF(-(-AX18*(BJ20-AU16)+AW18*(BK20-AV16))*$C$7*AS16/AV18+IF(BH20>0,BI20/(BH20*$U$6),0)>$U$9,0,$U$5+$U$10*(-(-AX18*(BJ20-AU16)+AW18*(BK20-AV16))*$C$7*AS16/AV18+IF(BH20>0,BI20/(BH20*$U$6),0)-$U$7)),$U$6*(-(-AX18*(BJ20-AU16)+AW18*(BK20-AV16))*$C$7*AS16/AV18+IF(BH20>0,BI20/(BH20*$U$6),0)))*BH20,-BH20*$U$5) -> 0.1439896633 | BM20: 1 | BN20: =$C$20 -> 0.255831677 | BO20: =$D$20 -> 0 | BP20: =BR18*(BN20-BP16)+BS18*(BO20-BQ16) -> 0 | BQ20: =-BS18*(BN20-BP16)+BR18*(BO20-BQ16) -> -0.3870867082 | BR20: =BP20 -> 0 | BS20: =MAX(BQ20,0) -> 0 | BT20: =IF(ABS((BS21-BS20)/BQ18)<0.001,0,(BR20*BS21-BR21*BS20)/(BS21-BS20)) -> 0 | BU20: =IF(ABS((BS21-BS20)/BQ18)<0.001,0,(BR21-BR20)/(BS21-BS20)) -> 0 | BV20: =IF(BS21=BS20,0,-((BN18-BO18)*BP18/(2*BO18^3))*(2*BO18*(BS21-BS20)+BO18^2*(BS21^2-BS20^2)+2*LN((1-BO18*BS21)/(1-BO18*BS20)))) -> 0 | BW20: =-(BN18-BO18)*BP18*(BS21^3-BS20^3)/(3*BO18)+BV20/BO18 -> 0 | BX20: =-(BN18-BO18)*BP18*(BS21^4-BS20^4)/(4*BO18)+BW20/BO18 -> 0 | BY20: =IF(ABS((BS21-BS20)/BQ18)<0.001,0,0.5*BP18*BT20*(BS21^2-BS20^2)+BP18*BU20*(BS21^3-BS20^3)/3-BT20*BV20-BU20*BW20) -> 0 | BZ20: =IF(ABS((BS21-BS20)/BQ18)<0.001,0,0.5*BP18*(BT20^2*(BS21^2-BS20^2)/2+2*BT20*BU20*(BS21^3-BS20^3)/3+BU20^2*(BS21^4-BS20^4)/4)-0.5*BT20^2*BV20-BT20*BU20*BW20-0.5*BU20^2*BX20) -> 0 | CA20: =IF(ABS((BS21-BS20)/BQ18)<0.001,0,BP18*(BT20*(BS21^3-BS20^3)/3+BU20*(BS21^4-BS20^4)/4)-BT20*BW20-BU20*BX20) -> 0 | CB20: 1 | CC20: =$R$20 -> 0.0003141592654 | CD20: =$S$20 -> 0 | CE20: =$T$20 -> 0.255831677 | CF20: =$U$20 -> 0.06 | CG20: =MAX(IF(-(-BS18*(CE20-BP16)+BR18*(CF20-BQ16))*$C$7*BN16/BQ18+IF(CC20>0,CD20/(CC20*$U$6),0)>$U$7,IF(-(-BS18*(CE20-BP16)+BR18*(CF20-BQ16))*$C$7*BN16/BQ18+IF(CC20>0,CD20/(CC20*$U$6),0)>$U$9,0,$U$5+$U$10*(-(-BS18*(CE20-BP16)+BR18*(CF20-BQ16))*$C$7*BN16/BQ18+IF(CC20>0,CD20/(CC20*$U$6),0)-$U$7)),$U$6*(-(-BS18*(CE20-BP16)+BR18*(CF20-BQ16))*$C$7*BN16/BQ18+IF(CC20>0,CD20/(CC20*$U$6),0)))*CC20,-CC20*$U$5) -> 0.1439896633 | CH20: 1 | CI20: =$C$20 -> 0.255831677 | CJ20: =$D$20 -> 0 | CK20: =CM18*(CI20-CK16)+CN18*(CJ20-CL16) -> 0 | CL20: =-CN18*(CI20-CK16)+CM18*(CJ20-CL16) -> -0.3868656366 | CM20: =CK20 -> 0 | CN20: =MAX(CL20,0) -> 0 | CO20: =IF(ABS((CN21-CN20)/CL18)<0.001,0,(CM20*CN21-CM21*CN20)/(CN21-CN20)) -> 0 | CP20: =IF(ABS((CN21-CN20)/CL18)<0.001,0,(CM21-CM20)/(CN21-CN20)) -> 0 | CQ20: =IF(CN21=CN20,0,-((CI18-CJ18)*CK18/(2*CJ18^3))*(2*CJ18*(CN21-CN20)+CJ18^2*(CN21^2-CN20^2)+2*LN((1-CJ18*CN21)/(1-CJ18*CN20)))) -> 0 | CR20: =-(CI18-CJ18)*CK18*(CN21^3-CN20^3)/(3*CJ18)+CQ20/CJ18 -> 0 | CS20: =-(CI18-CJ18)*CK18*(CN21^4-CN20^4)/(4*CJ18)+CR20/CJ18 -> 0 | CT20: =IF(ABS((CN21-CN20)/CL18)<0.001,0,0.5*CK18*CO20*(CN21^2-CN20^2)+CK18*CP20*(CN21^3-CN20^3)/3-CO20*CQ20-CP20*CR20) -> 0 | CU20: =IF(ABS((CN21-CN20)/CL18)<0.001,0,0.5*CK18*(CO20^2*(CN21^2-CN20^2)/2+2*CO20*CP20*(CN21^3-CN20^3)/3+CP20^2*(CN21^4-CN20^4)/4)-0.5*CO20^2*CQ20-CO20*CP20*CR20-0.5*CP20^2*CS20) -> 0 | CV20: =IF(ABS((CN21-CN20)/CL18)<0.001,0,CK18*(CO20*(CN21^3-CN20^3)/3+CP20*(CN21^4-CN20^4)/4)-CO20*CR20-CP20*CS20) -> 0 | CW20: 1 | CX20: =$R$20 -> 0.0003141592654 | CY20: =$S$20 -> 0 | CZ20: =$T$20 -> 0.255831677 | DA20: =$U$20 -> 0.06 | DB20: =MAX(IF(-(-CN18*(CZ20-CK16)+CM18*(DA20-CL16))*$C$7*CI16/CL18+IF(CX20>0,CY20/(CX20*$U$6),0)>$U$7,IF(-(-CN18*(CZ20-CK16)+CM18*(DA20-CL16))*$C$7*CI16/CL18+IF(CX20>0,CY20/(CX20*$U$6),0)>$U$9,0,$U$5+$U$10*(-(-CN18*(CZ20-CK16)+CM18*(DA20-CL16))*$C$7*CI16/CL18+IF(CX20>0,CY20/(CX20*$U$6),0)-$U$7)),$U$6*(-(-CN18*(CZ20-CK16)+CM18*(DA20-CL16))*$C$7*CI16/CL18+IF(CX20>0,CY20/(CX20*$U$6),0)))*CX20,-CX20*$U$5) -> 0.1439896633
B21: 1' | E21: =IF(F22*F20<0,E20-(E22-E20)*F20/(F22-F20),E20) -> 0 | F21: =IF(E22=E20,F20,F20+(F22-F20)*(E21-E20)/(E22-E20)) -> -0.3265618478 | G21: 0 | H21: =MAX(F21,0) -> 0 | I21: =IF(ABS((H22-H21)/F18)<0.001,0,(G21*H22-G22*H21)/(H22-H21)) -> 0 | J21: =IF(ABS((H22-H21)/F18)<0.001,0,(G22-G21)/(H22-H21)) -> 0 | K21: =-((C18-D18)*E18/(2*D18^3))*(2*D18*(H22-H21)+D18^2*(H22^2-H21^2)+2*LN((1-D18*H22)/(1-D18*H21))) -> 0 | L21: =-(C18-D18)*E18*(H22^3-H21^3)/(3*D18)+K21/D18 -> 0 | M21: =-(C18-D18)*E18*(H22^4-H21^4)/(4*D18)+L21/D18 -> 0 | N21: =IF(ABS((H22-H21)/F18)<0.001,0,0.5*E18*I21*(H22^2-H21^2)+E18*J21*(H22^3-H21^3)/3-I21*K21-J21*L21) -> 0 | O21: =IF(ABS((H22-H21)/F18)<0.001,0,0.5*E18*(I21^2*(H22^2-H21^2)/2+2*I21*J21*(H22^3-H21^3)/3+J21^2*(H22^4-H21^4)/4)-0.5*I21^2*K21-I21*J21*L21-0.5*J21^2*M21) -> 0 | P21: =IF(ABS((H22-H21)/F18)<0.001,0,E18*(I21*(H22^3-H21^3)/3+J21*(H22^4-H21^4)/4)-I21*L21-J21*M21) -> 0 | Q21: 2 | R21: =Data!J7 -> 0.0003141592654 | S21: =Data!K7 -> 0 | T21: =Data!L7 -> 0.3843502884 | U21: =Data!M7 -> 0.1156497116 | V21: =MAX(IF(-(-H18*(T21-E16)+G18*(U21-F16))*$C$7*C16/F18+IF(R21>0,S21/(R21*$U$6),0)>$U$7,IF(-(-H18*(T21-E16)+G18*(U21-F16))*$C$7*C16/F18+IF(R21>0,S21/(R21*$U$6),0)>$U$9,0,$U$5+$U$10*(-(-H18*(T21-E16)+G18*(U21-F16))*$C$7*C16/F18+IF(R21>0,S21/(R21*$U$6),0)-$U$7)),$U$6*(-(-H18*(T21-E16)+G18*(U21-F16))*$C$7*C16/F18+IF(R21>0,S21/(R21*$U$6),0)))*R21,-R21*$U$5) -> 0.1439896633 | W21: 1' | Z21: =IF(AA22*AA20<0,Z20-(Z22-Z20)*AA20/(AA22-AA20),Z20) -> 0 | AA21: =IF(Z22=Z20,AA20,AA20+(AA22-AA20)*(Z21-Z20)/(Z22-Z20)) -> -0.2340110948 | AB21: 0 | AC21: =MAX(AA21,0) -> 0 | AD21: =IF(ABS((AC22-AC21)/AA18)<0.001,0,(AB21*AC22-AB22*AC21)/(AC22-AC21)) -> 0 | AE21: =IF(ABS((AC22-AC21)/AA18)<0.001,0,(AB22-AB21)/(AC22-AC21)) -> 0 | AF21: =-((X18-Y18)*Z18/(2*Y18^3))*(2*Y18*(AC22-AC21)+Y18^2*(AC22^2-AC21^2)+2*LN((1-Y18*AC22)/(1-Y18*AC21))) -> 0 | AG21: =-(X18-Y18)*Z18*(AC22^3-AC21^3)/(3*Y18)+AF21/Y18 -> 0 | AH21: =-(X18-Y18)*Z18*(AC22^4-AC21^4)/(4*Y18)+AG21/Y18 -> 0 | AI21: =IF(ABS((AC22-AC21)/AA18)<0.001,0,0.5*Z18*AD21*(AC22^2-AC21^2)+Z18*AE21*(AC22^3-AC21^3)/3-AD21*AF21-AE21*AG21) -> 0 | AJ21: =IF(ABS((AC22-AC21)/AA18)<0.001,0,0.5*Z18*(AD21^2*(AC22^2-AC21^2)/2+2*AD21*AE21*(AC22^3-AC21^3)/3+AE21^2*(AC22^4-AC21^4)/4)-0.5*AD21^2*AF21-AD21*AE21*AG21-0.5*AE21^2*AH21) -> 0 | AK21: =IF(ABS((AC22-AC21)/AA18)<0.001,0,Z18*(AD21*(AC22^3-AC21^3)/3+AE21*(AC22^4-AC21^4)/4)-AD21*AG21-AE21*AH21) -> 0 | AL21: 2 | AM21: =$R$21 -> 0.0003141592654 | AN21: =$S$21 -> 0 | AO21: =$T$21 -> 0.3843502884 | AP21: =$U$21 -> 0.1156497116 | AQ21: =MAX(IF(-(-AC18*(AO21-Z16)+AB18*(AP21-AA16))*$C$7*X16/AA18+IF(AM21>0,AN21/(AM21*$U$6),0)>$U$7,IF(-(-AC18*(AO21-Z16)+AB18*(AP21-AA16))*$C$7*X16/AA18+IF(AM21>0,AN21/(AM21*$U$6),0)>$U$9,0,$U$5+$U$10*(-(-AC18*(AO21-Z16)+AB18*(AP21-AA16))*$C$7*X16/AA18+IF(AM21>0,AN21/(AM21*$U$6),0)-$U$7)),$U$6*(-(-AC18*(AO21-Z16)+AB18*(AP21-AA16))*$C$7*X16/AA18+IF(AM21>0,AN21/(AM21*$U$6),0)))*AM21,-AM21*$U$5) -> 0.1439896633 | AR21: 1' | AU21: =IF(AV22*AV20<0,AU20-(AU22-AU20)*AV20/(AV22-AV20),AU20) -> 0 | AV21: =IF(AU22=AU20,AV20,AV20+(AV22-AV20)*(AU21-AU20)/(AU22-AU20)) -> -0.3823112109 | AW21: 0 | AX21: =MAX(AV21,0) -> 0 | AY21: =IF(ABS((AX22-AX21)/AV18)<0.001,0,(AW21*AX22-AW22*AX21)/(AX22-AX21)) -> 0 | AZ21: =IF(ABS((AX22-AX21)/AV18)<0.001,0,(AW22-AW21)/(AX22-AX21)) -> 0 | BA21: =-((AS18-AT18)*AU18/(2*AT18^3))*(2*AT18*(AX22-AX21)+AT18^2*(AX22^2-AX21^2)+2*LN((1-AT18*AX22)/(1-AT18*AX21))) -> 0 | BB21: =-(AS18-AT18)*AU18*(AX22^3-AX21^3)/(3*AT18)+BA21/AT18 -> 0 | BC21: =-(AS18-AT18)*AU18*(AX22^4-AX21^4)/(4*AT18)+BB21/AT18 -> 0 | BD21: =IF(ABS((AX22-AX21)/AV18)<0.001,0,0.5*AU18*AY21*(AX22^2-AX21^2)+AU18*AZ21*(AX22^3-AX21^3)/3-AY21*BA21-AZ21*BB21) -> 0 | BE21: =IF(ABS((AX22-AX21)/AV18)<0.001,0,0.5*AU18*(AY21^2*(AX22^2-AX21^2)/2+2*AY21*AZ21*(AX22^3-AX21^3)/3+AZ21^2*(AX22^4-AX21^4)/4)-0.5*AY21^2*BA21-AY21*AZ21*BB21-0.5*AZ21^2*BC21) -> 0 | BF21: =IF(ABS((AX22-AX21)/AV18)<0.001,0,AU18*(AY21*(AX22^3-AX21^3)/3+AZ21*(AX22^4-AX21^4)/4)-AY21*BB21-AZ21*BC21) -> 0 | BG21: 2 | BH21: =$R$21 -> 0.0003141592654 | BI21: =$S$21 -> 0 | BJ21: =$T$21 -> 0.3843502884 | BK21: =$U$21 -> 0.1156497116 | BL21: =MAX(IF(-(-AX18*(BJ21-AU16)+AW18*(BK21-AV16))*$C$7*AS16/AV18+IF(BH21>0,BI21/(BH21*$U$6),0)>$U$7,IF(-(-AX18*(BJ21-AU16)+AW18*(BK21-AV16))*$C$7*AS16/AV18+IF(BH21>0,BI21/(BH21*$U$6),0)>$U$9,0,$U$5+$U$10*(-(-AX18*(BJ21-AU16)+AW18*(BK21-AV16))*$C$7*AS16/AV18+IF(BH21>0,BI21/(BH21*$U$6),0)-$U$7)),$U$6*(-(-AX18*(BJ21-AU16)+AW18*(BK21-AV16))*$C$7*AS16/AV18+IF(BH21>0,BI21/(BH21*$U$6),0)))*BH21,-BH21*$U$5) -> 0.1439896633 | BM21: 1' | BP21: =IF(BQ22*BQ20<0,BP20-(BP22-BP20)*BQ20/(BQ22-BQ20),BP20) -> 0 | BQ21: =IF(BP22=BP20,BQ20,BQ20+(BQ22-BQ20)*(BP21-BP20)/(BP22-BP20)) -> -0.3870867082 | BR21: 0 | BS21: =MAX(BQ21,0) -> 0 | BT21: =IF(ABS((BS22-BS21)/BQ18)<0.001,0,(BR21*BS22-BR22*BS21)/(BS22-BS21)) -> 0 | BU21: =IF(ABS((BS22-BS21)/BQ18)<0.001,0,(BR22-BR21)/(BS22-BS21)) -> 0 | BV21: =-((BN18-BO18)*BP18/(2*BO18^3))*(2*BO18*(BS22-BS21)+BO18^2*(BS22^2-BS21^2)+2*LN((1-BO18*BS22)/(1-BO18*BS21))) -> 0 | BW21: =-(BN18-BO18)*BP18*(BS22^3-BS21^3)/(3*BO18)+BV21/BO18 -> 0 | BX21: =-(BN18-BO18)*BP18*(BS22^4-BS21^4)/(4*BO18)+BW21/BO18 -> 0 | BY21: =IF(ABS((BS22-BS21)/BQ18)<0.001,0,0.5*BP18*BT21*(BS22^2-BS21^2)+BP18*BU21*(BS22^3-BS21^3)/3-BT21*BV21-BU21*BW21) -> 0 | BZ21: =IF(ABS((BS22-BS21)/BQ18)<0.001,0,0.5*BP18*(BT21^2*(BS22^2-BS21^2)/2+2*BT21*BU21*(BS22^3-BS21^3)/3+BU21^2*(BS22^4-BS21^4)/4)-0.5*BT21^2*BV21-BT21*BU21*BW21-0.5*BU21^2*BX21) -> 0 | CA21: =IF(ABS((BS22-BS21)/BQ18)<0.001,0,BP18*(BT21*(BS22^3-BS21^3)/3+BU21*(BS22^4-BS21^4)/4)-BT21*BW21-BU21*BX21) -> 0 | CB21: 2 | CC21: =$R$21 -> 0.0003141592654 | CD21: =$S$21 -> 0 | CE21: =$T$21 -> 0.3843502884 | CF21: =$U$21 -> 0.1156497116 | CG21: =MAX(IF(-(-BS18*(CE21-BP16)+BR18*(CF21-BQ16))*$C$7*BN16/BQ18+IF(CC21>0,CD21/(CC21*$U$6),0)>$U$7,IF(-(-BS18*(CE21-BP16)+BR18*(CF21-BQ16))*$C$7*BN16/BQ18+IF(CC21>0,CD21/(CC21*$U$6),0)>$U$9,0,$U$5+$U$10*(-(-BS18*(CE21-BP16)+BR18*(CF21-BQ16))*$C$7*BN16/BQ18+IF(CC21>0,CD21/(CC21*$U$6),0)-$U$7)),$U$6*(-(-BS18*(CE21-BP16)+BR18*(CF21-BQ16))*$C$7*BN16/BQ18+IF(CC21>0,CD21/(CC21*$U$6),0)))*CC21,-CC21*$U$5) -> 0.1439896633 | CH21: 1' | CK21: =IF(CL22*CL20<0,CK20-(CK22-CK20)*CL20/(CL22-CL20),CK20) -> 0 | CL21: =IF(CK22=CK20,CL20,CL20+(CL22-CL20)*(CK21-CK20)/(CK22-CK20)) -> -0.3868656366 | CM21: 0 | CN21: =MAX(CL21,0) -> 0 | CO21: =IF(ABS((CN22-CN21)/CL18)<0.001,0,(CM21*CN22-CM22*CN21)/(CN22-CN21)) -> 0 | CP21: =IF(ABS((CN22-CN21)/CL18)<0.001,0,(CM22-CM21)/(CN22-CN21)) -> 0 | CQ21: =-((CI18-CJ18)*CK18/(2*CJ18^3))*(2*CJ18*(CN22-CN21)+CJ18^2*(CN22^2-CN21^2)+2*LN((1-CJ18*CN22)/(1-CJ18*CN21))) -> 0 | CR21: =-(CI18-CJ18)*CK18*(CN22^3-CN21^3)/(3*CJ18)+CQ21/CJ18 -> 0 | CS21: =-(CI18-CJ18)*CK18*(CN22^4-CN21^4)/(4*CJ18)+CR21/CJ18 -> 0 | CT21: =IF(ABS((CN22-CN21)/CL18)<0.001,0,0.5*CK18*CO21*(CN22^2-CN21^2)+CK18*CP21*(CN22^3-CN21^3)/3-CO21*CQ21-CP21*CR21) -> 0 | CU21: =IF(ABS((CN22-CN21)/CL18)<0.001,0,0.5*CK18*(CO21^2*(CN22^2-CN21^2)/2+2*CO21*CP21*(CN22^3-CN21^3)/3+CP21^2*(CN22^4-CN21^4)/4)-0.5*CO21^2*CQ21-CO21*CP21*CR21-0.5*CP21^2*CS21) -> 0 | CV21: =IF(ABS((CN22-CN21)/CL18)<0.001,0,CK18*(CO21*(CN22^3-CN21^3)/3+CP21*(CN22^4-CN21^4)/4)-CO21*CR21-CP21*CS21) -> 0 | CW21: 2 | CX21: =$R$21 -> 0.0003141592654 | CY21: =$S$21 -> 0 | CZ21: =$T$21 -> 0.3843502884 | DA21: =$U$21 -> 0.1156497116 | DB21: =MAX(IF(-(-CN18*(CZ21-CK16)+CM18*(DA21-CL16))*$C$7*CI16/CL18+IF(CX21>0,CY21/(CX21*$U$6),0)>$U$7,IF(-(-CN18*(CZ21-CK16)+CM18*(DA21-CL16))*$C$7*CI16/CL18+IF(CX21>0,CY21/(CX21*$U$6),0)>$U$9,0,$U$5+$U$10*(-(-CN18*(CZ21-CK16)+CM18*(DA21-CL16))*$C$7*CI16/CL18+IF(CX21>0,CY21/(CX21*$U$6),0)-$U$7)),$U$6*(-(-CN18*(CZ21-CK16)+CM18*(DA21-CL16))*$C$7*CI16/CL18+IF(CX21>0,CY21/(CX21*$U$6),0)))*CX21,-CX21*$U$5) -> 0.1439896633
B22: 2 | C22: =Data!G8 -> 0.3837475155 | D22: =Data!H8 -> 0.03427494562 | E22: =G18*(C22-E16)+H18*(D22-F16) -> 0.1279158385 | F22: =-H18*(C22-E16)+G18*(D22-F16) -> -0.2922869022 | G22: 0.1279158385 | H22: 0 | I22: =IF(ABS((H23-H22)/F18)<0.001,0,(G22*H23-G23*H22)/(H23-H22)) -> 0 | J22: =IF(ABS((H23-H22)/F18)<0.001,0,(G23-G22)/(H23-H22)) -> 0 | K22: =-((C18-D18)*E18/(2*D18^3))*(2*D18*(H23-H22)+D18^2*(H23^2-H22^2)+2*LN((1-D18*H23)/(1-D18*H22))) -> 0 | L22: =-(C18-D18)*E18*(H23^3-H22^3)/(3*D18)+K22/D18 -> 0 | M22: =-(C18-D18)*E18*(H23^4-H22^4)/(4*D18)+L22/D18 -> 0 | N22: =IF(ABS((H23-H22)/F18)<0.001,0,0.5*E18*I22*(H23^2-H22^2)+E18*J22*(H23^3-H22^3)/3-I22*K22-J22*L22) -> 0 | O22: =IF(ABS((H23-H22)/F18)<0.001,0,0.5*E18*(I22^2*(H23^2-H22^2)/2+2*I22*J22*(H23^3-H22^3)/3+J22^2*(H23^4-H22^4)/4)-0.5*I22^2*K22-I22*J22*L22-0.5*J22^2*M22) -> 0 | P22: =IF(ABS((H23-H22)/F18)<0.001,0,E18*(I22*(H23^3-H22^3)/3+J22*(H23^4-H22^4)/4)-I22*L22-J22*M22) -> 0 | Q22: 3 | R22: =Data!J8 -> 0.0003141592654 | S22: =Data!K8 -> 0 | T22: =Data!L8 -> 0.44 | U22: =Data!M8 -> 0.25 | V22: =MAX(IF(-(-H18*(T22-E16)+G18*(U22-F16))*$C$7*C16/F18+IF(R22>0,S22/(R22*$U$6),0)>$U$7,IF(-(-H18*(T22-E16)+G18*(U22-F16))*$C$7*C16/F18+IF(R22>0,S22/(R22*$U$6),0)>$U$9,0,$U$5+$U$10*(-(-H18*(T22-E16)+G18*(U22-F16))*$C$7*C16/F18+IF(R22>0,S22/(R22*$U$6),0)-$U$7)),$U$6*(-(-H18*(T22-E16)+G18*(U22-F16))*$C$7*C16/F18+IF(R22>0,S22/(R22*$U$6),0)))*R22,-R22*$U$5) -> 0.1439896633 | W22: 2 | X22: =$C$22 -> 0.3837475155 | Y22: =$D$22 -> 0.03427494562 | Z22: =AB18*(X22-Z16)+AC18*(Y22-AA16) -> 0.1279158385 | AA22: =-AC18*(X22-Z16)+AB18*(Y22-AA16) -> -0.1997361492 | AB22: 0.1279158385 | AC22: 0 | AD22: =IF(ABS((AC23-AC22)/AA18)<0.001,0,(AB22*AC23-AB23*AC22)/(AC23-AC22)) -> 0 | AE22: =IF(ABS((AC23-AC22)/AA18)<0.001,0,(AB23-AB22)/(AC23-AC22)) -> 0 | AF22: =-((X18-Y18)*Z18/(2*Y18^3))*(2*Y18*(AC23-AC22)+Y18^2*(AC23^2-AC22^2)+2*LN((1-Y18*AC23)/(1-Y18*AC22))) -> 0 | AG22: =-(X18-Y18)*Z18*(AC23^3-AC22^3)/(3*Y18)+AF22/Y18 -> 0 | AH22: =-(X18-Y18)*Z18*(AC23^4-AC22^4)/(4*Y18)+AG22/Y18 -> 0 | AI22: =IF(ABS((AC23-AC22)/AA18)<0.001,0,0.5*Z18*AD22*(AC23^2-AC22^2)+Z18*AE22*(AC23^3-AC22^3)/3-AD22*AF22-AE22*AG22) -> 0 | AJ22: =IF(ABS((AC23-AC22)/AA18)<0.001,0,0.5*Z18*(AD22^2*(AC23^2-AC22^2)/2+2*AD22*AE22*(AC23^3-AC22^3)/3+AE22^2*(AC23^4-AC22^4)/4)-0.5*AD22^2*AF22-AD22*AE22*AG22-0.5*AE22^2*AH22) -> 0 | AK22: =IF(ABS((AC23-AC22)/AA18)<0.001,0,Z18*(AD22*(AC23^3-AC22^3)/3+AE22*(AC23^4-AC22^4)/4)-AD22*AG22-AE22*AH22) -> 0 | AL22: 3 | AM22: =$R$22 -> 0.0003141592654 | AN22: =$S$22 -> 0 | AO22: =$T$22 -> 0.44 | AP22: =$U$22 -> 0.25 | AQ22: =MAX(IF(-(-AC18*(AO22-Z16)+AB18*(AP22-AA16))*$C$7*X16/AA18+IF(AM22>0,AN22/(AM22*$U$6),0)>$U$7,IF(-(-AC18*(AO22-Z16)+AB18*(AP22-AA16))*$C$7*X16/AA18+IF(AM22>0,AN22/(AM22*$U$6),0)>$U$9,0,$U$5+$U$10*(-(-AC18*(AO22-Z16)+AB18*(AP22-AA16))*$C$7*X16/AA18+IF(AM22>0,AN22/(AM22*$U$6),0)-$U$7)),$U$6*(-(-AC18*(AO22-Z16)+AB18*(AP22-AA16))*$C$7*X16/AA18+IF(AM22>0,AN22/(AM22*$U$6),0)))*AM22,-AM22*$U$5) -> -0.02164470839 | AR22: 2 | AS22: =$C$22 -> 0.3837475155 | AT22: =$D$22 -> 0.03427494562 | AU22: =AW18*(AS22-AU16)+AX18*(AT22-AV16) -> 0.1279158385 | AV22: =-AX18*(AS22-AU16)+AW18*(AT22-AV16) -> -0.3480362653 | AW22: 0.1279158385 | AX22: 0 | AY22: =IF(ABS((AX23-AX22)/AV18)<0.001,0,(AW22*AX23-AW23*AX22)/(AX23-AX22)) -> 0 | AZ22: =IF(ABS((AX23-AX22)/AV18)<0.001,0,(AW23-AW22)/(AX23-AX22)) -> 0 | BA22: =-((AS18-AT18)*AU18/(2*AT18^3))*(2*AT18*(AX23-AX22)+AT18^2*(AX23^2-AX22^2)+2*LN((1-AT18*AX23)/(1-AT18*AX22))) -> 0 | BB22: =-(AS18-AT18)*AU18*(AX23^3-AX22^3)/(3*AT18)+BA22/AT18 -> 0 | BC22: =-(AS18-AT18)*AU18*(AX23^4-AX22^4)/(4*AT18)+BB22/AT18 -> 0 | BD22: =IF(ABS((AX23-AX22)/AV18)<0.001,0,0.5*AU18*AY22*(AX23^2-AX22^2)+AU18*AZ22*(AX23^3-AX22^3)/3-AY22*BA22-AZ22*BB22) -> 0 | BE22: =IF(ABS((AX23-AX22)/AV18)<0.001,0,0.5*AU18*(AY22^2*(AX23^2-AX22^2)/2+2*AY22*AZ22*(AX23^3-AX22^3)/3+AZ22^2*(AX23^4-AX22^4)/4)-0.5*AY22^2*BA22-AY22*AZ22*BB22-0.5*AZ22^2*BC22) -> 0 | BF22: =IF(ABS((AX23-AX22)/AV18)<0.001,0,AU18*(AY22*(AX23^3-AX22^3)/3+AZ22*(AX23^4-AX22^4)/4)-AY22*BB22-AZ22*BC22) -> 0 | BG22: 3 | BH22: =$R$22 -> 0.0003141592654 | BI22: =$S$22 -> 0 | BJ22: =$T$22 -> 0.44 | BK22: =$U$22 -> 0.25 | BL22: =MAX(IF(-(-AX18*(BJ22-AU16)+AW18*(BK22-AV16))*$C$7*AS16/AV18+IF(BH22>0,BI22/(BH22*$U$6),0)>$U$7,IF(-(-AX18*(BJ22-AU16)+AW18*(BK22-AV16))*$C$7*AS16/AV18+IF(BH22>0,BI22/(BH22*$U$6),0)>$U$9,0,$U$5+$U$10*(-(-AX18*(BJ22-AU16)+AW18*(BK22-AV16))*$C$7*AS16/AV18+IF(BH22>0,BI22/(BH22*$U$6),0)-$U$7)),$U$6*(-(-AX18*(BJ22-AU16)+AW18*(BK22-AV16))*$C$7*AS16/AV18+IF(BH22>0,BI22/(BH22*$U$6),0)))*BH22,-BH22*$U$5) -> 0.1439896633 | BM22: 2 | BN22: =$C$22 -> 0.3837475155 | BO22: =$D$22 -> 0.03427494562 | BP22: =BR18*(BN22-BP16)+BS18*(BO22-BQ16) -> 0.1279158385 | BQ22: =-BS18*(BN22-BP16)+BR18*(BO22-BQ16) -> -0.3528117626 | BR22: 0.1279158385 | BS22: 0 | BT22: =IF(ABS((BS23-BS22)/BQ18)<0.001,0,(BR22*BS23-BR23*BS22)/(BS23-BS22)) -> 0 | BU22: =IF(ABS((BS23-BS22)/BQ18)<0.001,0,(BR23-BR22)/(BS23-BS22)) -> 0 | BV22: =-((BN18-BO18)*BP18/(2*BO18^3))*(2*BO18*(BS23-BS22)+BO18^2*(BS23^2-BS22^2)+2*LN((1-BO18*BS23)/(1-BO18*BS22))) -> 0 | BW22: =-(BN18-BO18)*BP18*(BS23^3-BS22^3)/(3*BO18)+BV22/BO18 -> 0 | BX22: =-(BN18-BO18)*BP18*(BS23^4-BS22^4)/(4*BO18)+BW22/BO18 -> 0 | BY22: =IF(ABS((BS23-BS22)/BQ18)<0.001,0,0.5*BP18*BT22*(BS23^2-BS22^2)+BP18*BU22*(BS23^3-BS22^3)/3-BT22*BV22-BU22*BW22) -> 0 | BZ22: =IF(ABS((BS23-BS22)/BQ18)<0.001,0,0.5*BP18*(BT22^2*(BS23^2-BS22^2)/2+2*BT22*BU22*(BS23^3-BS22^3)/3+BU22^2*(BS23^4-BS22^4)/4)-0.5*BT22^2*BV22-BT22*BU22*BW22-0.5*BU22^2*BX22) -> 0 | CA22: =IF(ABS((BS23-BS22)/BQ18)<0.001,0,BP18*(BT22*(BS23^3-BS22^3)/3+BU22*(BS23^4-BS22^4)/4)-BT22*BW22-BU22*BX22) -> 0 | CB22: 3 | CC22: =$R$22 -> 0.0003141592654 | CD22: =$S$22 -> 0 | CE22: =$T$22 -> 0.44 | CF22: =$U$22 -> 0.25 | CG22: =MAX(IF(-(-BS18*(CE22-BP16)+BR18*(CF22-BQ16))*$C$7*BN16/BQ18+IF(CC22>0,CD22/(CC22*$U$6),0)>$U$7,IF(-(-BS18*(CE22-BP16)+BR18*(CF22-BQ16))*$C$7*BN16/BQ18+IF(CC22>0,CD22/(CC22*$U$6),0)>$U$9,0,$U$5+$U$10*(-(-BS18*(CE22-BP16)+BR18*(CF22-BQ16))*$C$7*BN16/BQ18+IF(CC22>0,CD22/(CC22*$U$6),0)-$U$7)),$U$6*(-(-BS18*(CE22-BP16)+BR18*(CF22-BQ16))*$C$7*BN16/BQ18+IF(CC22>0,CD22/(CC22*$U$6),0)))*CC22,-CC22*$U$5) -> 0.1439896633 | CH22: 2 | CI22: =$C$22 -> 0.3837475155 | CJ22: =$D$22 -> 0.03427494562 | CK22: =CM18*(CI22-CK16)+CN18*(CJ22-CL16) -> 0.1279158385 | CL22: =-CN18*(CI22-CK16)+CM18*(CJ22-CL16) -> -0.352590691 | CM22: 0.1279158385 | CN22: 0 | CO22: =IF(ABS((CN23-CN22)/CL18)<0.001,0,(CM22*CN23-CM23*CN22)/(CN23-CN22)) -> 0 | CP22: =IF(ABS((CN23-CN22)/CL18)<0.001,0,(CM23-CM22)/(CN23-CN22)) -> 0 | CQ22: =-((CI18-CJ18)*CK18/(2*CJ18^3))*(2*CJ18*(CN23-CN22)+CJ18^2*(CN23^2-CN22^2)+2*LN((1-CJ18*CN23)/(1-CJ18*CN22))) -> 0 | CR22: =-(CI18-CJ18)*CK18*(CN23^3-CN22^3)/(3*CJ18)+CQ22/CJ18 -> 0 | CS22: =-(CI18-CJ18)*CK18*(CN23^4-CN22^4)/(4*CJ18)+CR22/CJ18 -> 0 | CT22: =IF(ABS((CN23-CN22)/CL18)<0.001,0,0.5*CK18*CO22*(CN23^2-CN22^2)+CK18*CP22*(CN23^3-CN22^3)/3-CO22*CQ22-CP22*CR22) -> 0 | CU22: =IF(ABS((CN23-CN22)/CL18)<0.001,0,0.5*CK18*(CO22^2*(CN23^2-CN22^2)/2+2*CO22*CP22*(CN23^3-CN22^3)/3+CP22^2*(CN23^4-CN22^4)/4)-0.5*CO22^2*CQ22-CO22*CP22*CR22-0.5*CP22^2*CS22) -> 0 | CV22: =IF(ABS((CN23-CN22)/CL18)<0.001,0,CK18*(CO22*(CN23^3-CN22^3)/3+CP22*(CN23^4-CN22^4)/4)-CO22*CR22-CP22*CS22) -> 0 | CW22: 3 | CX22: =$R$22 -> 0.0003141592654 | CY22: =$S$22 -> 0 | CZ22: =$T$22 -> 0.44 | DA22: =$U$22 -> 0.25 | DB22: =MAX(IF(-(-CN18*(CZ22-CK16)+CM18*(DA22-CL16))*$C$7*CI16/CL18+IF(CX22>0,CY22/(CX22*$U$6),0)>$U$7,IF(-(-CN18*(CZ22-CK16)+CM18*(DA22-CL16))*$C$7*CI16/CL18+IF(CX22>0,CY22/(CX22*$U$6),0)>$U$9,0,$U$5+$U$10*(-(-CN18*(CZ22-CK16)+CM18*(DA22-CL16))*$C$7*CI16/CL18+IF(CX22>0,CY22/(CX22*$U$6),0)-$U$7)),$U$6*(-(-CN18*(CZ22-CK16)+CM18*(DA22-CL16))*$C$7*CI16/CL18+IF(CX22>0,CY22/(CX22*$U$6),0)))*CX22,-CX22*$U$5) -> 0.1439896633
B23: 2' | E23: =IF(F24*F22<0,E22-(E24-E22)*F22/(F24-F22),E22) -> 0.1279158385 | F23: =IF(E24=E22,F22,F22+(F24-F22)*(E23-E22)/(E24-E22)) -> -0.2922869022 | G23: 0.1279158385 | H23: =MAX(F23,0) -> 0 | I23: =IF(ABS((H24-H23)/F18)<0.001,0,(G23*H24-G24*H23)/(H24-H23)) -> 0 | J23: =IF(ABS((H24-H23)/F18)<0.001,0,(G24-G23)/(H24-H23)) -> 0 | K23: =-((C18-D18)*E18/(2*D18^3))*(2*D18*(H24-H23)+D18^2*(H24^2-H23^2)+2*LN((1-D18*H24)/(1-D18*H23))) -> 0 | L23: =-(C18-D18)*E18*(H24^3-H23^3)/(3*D18)+K23/D18 -> 0 | M23: =-(C18-D18)*E18*(H24^4-H23^4)/(4*D18)+L23/D18 -> 0 | N23: =IF(ABS((H24-H23)/F18)<0.001,0,0.5*E18*I23*(H24^2-H23^2)+E18*J23*(H24^3-H23^3)/3-I23*K23-J23*L23) -> 0 | O23: =IF(ABS((H24-H23)/F18)<0.001,0,0.5*E18*(I23^2*(H24^2-H23^2)/2+2*I23*J23*(H24^3-H23^3)/3+J23^2*(H24^4-H23^4)/4)-0.5*I23^2*K23-I23*J23*L23-0.5*J23^2*M23) -> 0 | P23: =IF(ABS((H24-H23)/F18)<0.001,0,E18*(I23*(H24^3-H23^3)/3+J23*(H24^4-H23^4)/4)-I23*L23-J23*M23) -> 0 | Q23: 4 | R23: =Data!J9 -> 0.0003141592654 | S23: =Data!K9 -> 0 | T23: =Data!L9 -> 0.3843502884 | U23: =Data!M9 -> 0.3843502884 | V23: =MAX(IF(-(-H18*(T23-E16)+G18*(U23-F16))*$C$7*C16/F18+IF(R23>0,S23/(R23*$U$6),0)>$U$7,IF(-(-H18*(T23-E16)+G18*(U23-F16))*$C$7*C16/F18+IF(R23>0,S23/(R23*$U$6),0)>$U$9,0,$U$5+$U$10*(-(-H18*(T23-E16)+G18*(U23-F16))*$C$7*C16/F18+IF(R23>0,S23/(R23*$U$6),0)-$U$7)),$U$6*(-(-H18*(T23-E16)+G18*(U23-F16))*$C$7*C16/F18+IF(R23>0,S23/(R23*$U$6),0)))*R23,-R23*$U$5) -> -0.1173451773 | W23: 2' | Z23: =IF(AA24*AA22<0,Z22-(Z24-Z22)*AA22/(AA24-AA22),Z22) -> 0.1279158385 | AA23: =IF(Z24=Z22,AA22,AA22+(AA24-AA22)*(Z23-Z22)/(Z24-Z22)) -> -0.1997361492 | AB23: 0.1279158385 | AC23: =MAX(AA23,0) -> 0 | AD23: =IF(ABS((AC24-AC23)/AA18)<0.001,0,(AB23*AC24-AB24*AC23)/(AC24-AC23)) -> 0 | AE23: =IF(ABS((AC24-AC23)/AA18)<0.001,0,(AB24-AB23)/(AC24-AC23)) -> 0 | AF23: =-((X18-Y18)*Z18/(2*Y18^3))*(2*Y18*(AC24-AC23)+Y18^2*(AC24^2-AC23^2)+2*LN((1-Y18*AC24)/(1-Y18*AC23))) -> 0 | AG23: =-(X18-Y18)*Z18*(AC24^3-AC23^3)/(3*Y18)+AF23/Y18 -> 0 | AH23: =-(X18-Y18)*Z18*(AC24^4-AC23^4)/(4*Y18)+AG23/Y18 -> 0 | AI23: =IF(ABS((AC24-AC23)/AA18)<0.001,0,0.5*Z18*AD23*(AC24^2-AC23^2)+Z18*AE23*(AC24^3-AC23^3)/3-AD23*AF23-AE23*AG23) -> 0 | AJ23: =IF(ABS((AC24-AC23)/AA18)<0.001,0,0.5*Z18*(AD23^2*(AC24^2-AC23^2)/2+2*AD23*AE23*(AC24^3-AC23^3)/3+AE23^2*(AC24^4-AC23^4)/4)-0.5*AD23^2*AF23-AD23*AE23*AG23-0.5*AE23^2*AH23) -> 0 | AK23: =IF(ABS((AC24-AC23)/AA18)<0.001,0,Z18*(AD23*(AC24^3-AC23^3)/3+AE23*(AC24^4-AC23^4)/4)-AD23*AG23-AE23*AH23) -> 0 | AL23: 4 | AM23: =$R$23 -> 0.0003141592654 | AN23: =$S$23 -> 0 | AO23: =$T$23 -> 0.3843502884 | AP23: =$U$23 -> 0.3843502884 | AQ23: =MAX(IF(-(-AC18*(AO23-Z16)+AB18*(AP23-AA16))*$C$7*X16/AA18+IF(AM23>0,AN23/(AM23*$U$6),0)>$U$7,IF(-(-AC18*(AO23-Z16)+AB18*(AP23-AA16))*$C$7*X16/AA18+IF(AM23>0,AN23/(AM23*$U$6),0)>$U$9,0,$U$5+$U$10*(-(-AC18*(AO23-Z16)+AB18*(AP23-AA16))*$C$7*X16/AA18+IF(AM23>0,AN23/(AM23*$U$6),0)-$U$7)),$U$6*(-(-AC18*(AO23-Z16)+AB18*(AP23-AA16))*$C$7*X16/AA18+IF(AM23>0,AN23/(AM23*$U$6),0)))*AM23,-AM23*$U$5) -> -0.1439896633 | AR23: 2' | AU23: =IF(AV24*AV22<0,AU22-(AU24-AU22)*AV22/(AV24-AV22),AU22) -> 0.1279158385 | AV23: =IF(AU24=AU22,AV22,AV22+(AV24-AV22)*(AU23-AU22)/(AU24-AU22)) -> -0.3480362653 | AW23: 0.1279158385 | AX23: =MAX(AV23,0) -> 0 | AY23: =IF(ABS((AX24-AX23)/AV18)<0.001,0,(AW23*AX24-AW24*AX23)/(AX24-AX23)) -> 0 | AZ23: =IF(ABS((AX24-AX23)/AV18)<0.001,0,(AW24-AW23)/(AX24-AX23)) -> 0 | BA23: =-((AS18-AT18)*AU18/(2*AT18^3))*(2*AT18*(AX24-AX23)+AT18^2*(AX24^2-AX23^2)+2*LN((1-AT18*AX24)/(1-AT18*AX23))) -> 0 | BB23: =-(AS18-AT18)*AU18*(AX24^3-AX23^3)/(3*AT18)+BA23/AT18 -> 0 | BC23: =-(AS18-AT18)*AU18*(AX24^4-AX23^4)/(4*AT18)+BB23/AT18 -> 0 | BD23: =IF(ABS((AX24-AX23)/AV18)<0.001,0,0.5*AU18*AY23*(AX24^2-AX23^2)+AU18*AZ23*(AX24^3-AX23^3)/3-AY23*BA23-AZ23*BB23) -> 0 | BE23: =IF(ABS((AX24-AX23)/AV18)<0.001,0,0.5*AU18*(AY23^2*(AX24^2-AX23^2)/2+2*AY23*AZ23*(AX24^3-AX23^3)/3+AZ23^2*(AX24^4-AX23^4)/4)-0.5*AY23^2*BA23-AY23*AZ23*BB23-0.5*AZ23^2*BC23) -> 0 | BF23: =IF(ABS((AX24-AX23)/AV18)<0.001,0,AU18*(AY23*(AX24^3-AX23^3)/3+AZ23*(AX24^4-AX23^4)/4)-AY23*BB23-AZ23*BC23) -> 0 | BG23: 4 | BH23: =$R$23 -> 0.0003141592654 | BI23: =$S$23 -> 0 | BJ23: =$T$23 -> 0.3843502884 | BK23: =$U$23 -> 0.3843502884 | BL23: =MAX(IF(-(-AX18*(BJ23-AU16)+AW18*(BK23-AV16))*$C$7*AS16/AV18+IF(BH23>0,BI23/(BH23*$U$6),0)>$U$7,IF(-(-AX18*(BJ23-AU16)+AW18*(BK23-AV16))*$C$7*AS16/AV18+IF(BH23>0,BI23/(BH23*$U$6),0)>$U$9,0,$U$5+$U$10*(-(-AX18*(BJ23-AU16)+AW18*(BK23-AV16))*$C$7*AS16/AV18+IF(BH23>0,BI23/(BH23*$U$6),0)-$U$7)),$U$6*(-(-AX18*(BJ23-AU16)+AW18*(BK23-AV16))*$C$7*AS16/AV18+IF(BH23>0,BI23/(BH23*$U$6),0)))*BH23,-BH23*$U$5) -> -0.005925081579 | BM23: 2' | BP23: =IF(BQ24*BQ22<0,BP22-(BP24-BP22)*BQ22/(BQ24-BQ22),BP22) -> 0.1279158385 | BQ23: =IF(BP24=BP22,BQ22,BQ22+(BQ24-BQ22)*(BP23-BP22)/(BP24-BP22)) -> -0.3528117626 | BR23: 0.1279158385 | BS23: =MAX(BQ23,0) -> 0 | BT23: =IF(ABS((BS24-BS23)/BQ18)<0.001,0,(BR23*BS24-BR24*BS23)/(BS24-BS23)) -> 0 | BU23: =IF(ABS((BS24-BS23)/BQ18)<0.001,0,(BR24-BR23)/(BS24-BS23)) -> 0 | BV23: =-((BN18-BO18)*BP18/(2*BO18^3))*(2*BO18*(BS24-BS23)+BO18^2*(BS24^2-BS23^2)+2*LN((1-BO18*BS24)/(1-BO18*BS23))) -> 0 | BW23: =-(BN18-BO18)*BP18*(BS24^3-BS23^3)/(3*BO18)+BV23/BO18 -> 0 | BX23: =-(BN18-BO18)*BP18*(BS24^4-BS23^4)/(4*BO18)+BW23/BO18 -> 0 | BY23: =IF(ABS((BS24-BS23)/BQ18)<0.001,0,0.5*BP18*BT23*(BS24^2-BS23^2)+BP18*BU23*(BS24^3-BS23^3)/3-BT23*BV23-BU23*BW23) -> 0 | BZ23: =IF(ABS((BS24-BS23)/BQ18)<0.001,0,0.5*BP18*(BT23^2*(BS24^2-BS23^2)/2+2*BT23*BU23*(BS24^3-BS23^3)/3+BU23^2*(BS24^4-BS23^4)/4)-0.5*BT23^2*BV23-BT23*BU23*BW23-0.5*BU23^2*BX23) -> 0 | CA23: =IF(ABS((BS24-BS23)/BQ18)<0.001,0,BP18*(BT23*(BS24^3-BS23^3)/3+BU23*(BS24^4-BS23^4)/4)-BT23*BW23-BU23*BX23) -> 0 | CB23: 4 | CC23: =$R$23 -> 0.0003141592654 | CD23: =$S$23 -> 0 | CE23: =$T$23 -> 0.3843502884 | CF23: =$U$23 -> 0.3843502884 | CG23: =MAX(IF(-(-BS18*(CE23-BP16)+BR18*(CF23-BQ16))*$C$7*BN16/BQ18+IF(CC23>0,CD23/(CC23*$U$6),0)>$U$7,IF(-(-BS18*(CE23-BP16)+BR18*(CF23-BQ16))*$C$7*BN16/BQ18+IF(CC23>0,CD23/(CC23*$U$6),0)>$U$9,0,$U$5+$U$10*(-(-BS18*(CE23-BP16)+BR18*(CF23-BQ16))*$C$7*BN16/BQ18+IF(CC23>0,CD23/(CC23*$U$6),0)-$U$7)),$U$6*(-(-BS18*(CE23-BP16)+BR18*(CF23-BQ16))*$C$7*BN16/BQ18+IF(CC23>0,CD23/(CC23*$U$6),0)))*CC23,-CC23*$U$5) -> 0.008256202084 | CH23: 2' | CK23: =IF(CL24*CL22<0,CK22-(CK24-CK22)*CL22/(CL24-CL22),CK22) -> 0.1279158385 | CL23: =IF(CK24=CK22,CL22,CL22+(CL24-CL22)*(CK23-CK22)/(CK24-CK22)) -> -0.352590691 | CM23: 0.1279158385 | CN23: =MAX(CL23,0) -> 0 | CO23: =IF(ABS((CN24-CN23)/CL18)<0.001,0,(CM23*CN24-CM24*CN23)/(CN24-CN23)) -> 0 | CP23: =IF(ABS((CN24-CN23)/CL18)<0.001,0,(CM24-CM23)/(CN24-CN23)) -> 0 | CQ23: =-((CI18-CJ18)*CK18/(2*CJ18^3))*(2*CJ18*(CN24-CN23)+CJ18^2*(CN24^2-CN23^2)+2*LN((1-CJ18*CN24)/(1-CJ18*CN23))) -> 0 | CR23: =-(CI18-CJ18)*CK18*(CN24^3-CN23^3)/(3*CJ18)+CQ23/CJ18 -> 0 | CS23: =-(CI18-CJ18)*CK18*(CN24^4-CN23^4)/(4*CJ18)+CR23/CJ18 -> 0 | CT23: =IF(ABS((CN24-CN23)/CL18)<0.001,0,0.5*CK18*CO23*(CN24^2-CN23^2)+CK18*CP23*(CN24^3-CN23^3)/3-CO23*CQ23-CP23*CR23) -> 0 | CU23: =IF(ABS((CN24-CN23)/CL18)<0.001,0,0.5*CK18*(CO23^2*(CN24^2-CN23^2)/2+2*CO23*CP23*(CN24^3-CN23^3)/3+CP23^2*(CN24^4-CN23^4)/4)-0.5*CO23^2*CQ23-CO23*CP23*CR23-0.5*CP23^2*CS23) -> 0 | CV23: =IF(ABS((CN24-CN23)/CL18)<0.001,0,CK18*(CO23*(CN24^3-CN23^3)/3+CP23*(CN24^4-CN23^4)/4)-CO23*CR23-CP23*CS23) -> 0 | CW23: 4 | CX23: =$R$23 -> 0.0003141592654 | CY23: =$S$23 -> 0 | CZ23: =$T$23 -> 0.3843502884 | DA23: =$U$23 -> 0.3843502884 | DB23: =MAX(IF(-(-CN18*(CZ23-CK16)+CM18*(DA23-CL16))*$C$7*CI16/CL18+IF(CX23>0,CY23/(CX23*$U$6),0)>$U$7,IF(-(-CN18*(CZ23-CK16)+CM18*(DA23-CL16))*$C$7*CI16/CL18+IF(CX23>0,CY23/(CX23*$U$6),0)>$U$9,0,$U$5+$U$10*(-(-CN18*(CZ23-CK16)+CM18*(DA23-CL16))*$C$7*CI16/CL18+IF(CX23>0,CY23/(CX23*$U$6),0)-$U$7)),$U$6*(-(-CN18*(CZ23-CK16)+CM18*(DA23-CL16))*$C$7*CI16/CL18+IF(CX23>0,CY23/(CX23*$U$6),0)))*CX23,-CX23*$U$5) -> 0.007575751098
B24: 3 | C24: =Data!G10 -> 0.4773884083 | D24: =Data!H10 -> 0.1279158385 | E24: =G18*(C24-E16)+H18*(D24-F16) -> 0.2215567314 | F24: =-H18*(C24-E16)+G18*(D24-F16) -> -0.1986460094 | G24: 0.2215567314 | H24: 0 | I24: =IF(ABS((H25-H24)/F18)<0.001,0,(G24*H25-G25*H24)/(H25-H24)) -> 0 | J24: =IF(ABS((H25-H24)/F18)<0.001,0,(G25-G24)/(H25-H24)) -> 0 | K24: =-((C18-D18)*E18/(2*D18^3))*(2*D18*(H25-H24)+D18^2*(H25^2-H24^2)+2*LN((1-D18*H25)/(1-D18*H24))) -> 0 | L24: =-(C18-D18)*E18*(H25^3-H24^3)/(3*D18)+K24/D18 -> 0 | M24: =-(C18-D18)*E18*(H25^4-H24^4)/(4*D18)+L24/D18 -> 0 | N24: =IF(ABS((H25-H24)/F18)<0.001,0,0.5*E18*I24*(H25^2-H24^2)+E18*J24*(H25^3-H24^3)/3-I24*K24-J24*L24) -> 0 | O24: =IF(ABS((H25-H24)/F18)<0.001,0,0.5*E18*(I24^2*(H25^2-H24^2)/2+2*I24*J24*(H25^3-H24^3)/3+J24^2*(H25^4-H24^4)/4)-0.5*I24^2*K24-I24*J24*L24-0.5*J24^2*M24) -> 0 | P24: =IF(ABS((H25-H24)/F18)<0.001,0,E18*(I24*(H25^3-H24^3)/3+J24*(H25^4-H24^4)/4)-I24*L24-J24*M24) -> 0 | Q24: 5 | R24: =Data!J10 -> 0.0003141592654 | S24: =Data!K10 -> 0 | T24: =Data!L10 -> 0.25 | U24: =Data!M10 -> 0.44 | V24: =MAX(IF(-(-H18*(T24-E16)+G18*(U24-F16))*$C$7*C16/F18+IF(R24>0,S24/(R24*$U$6),0)>$U$7,IF(-(-H18*(T24-E16)+G18*(U24-F16))*$C$7*C16/F18+IF(R24>0,S24/(R24*$U$6),0)>$U$9,0,$U$5+$U$10*(-(-H18*(T24-E16)+G18*(U24-F16))*$C$7*C16/F18+IF(R24>0,S24/(R24*$U$6),0)-$U$7)),$U$6*(-(-H18*(T24-E16)+G18*(U24-F16))*$C$7*C16/F18+IF(R24>0,S24/(R24*$U$6),0)))*R24,-R24*$U$5) -> -0.1439896633 | W24: 3 | X24: =$C$24 -> 0.4773884083 | Y24: =$D$24 -> 0.1279158385 | Z24: =AB18*(X24-Z16)+AC18*(Y24-AA16) -> 0.2215567314 | AA24: =-AC18*(X24-Z16)+AB18*(Y24-AA16) -> -0.1060952563 | AB24: 0.2215567314 | AC24: =MAX(AA24,0) -> 0 | AD24: =IF(ABS((AC25-AC24)/AA18)<0.001,0,(AB24*AC25-AB25*AC24)/(AC25-AC24)) -> 0 | AE24: =IF(ABS((AC25-AC24)/AA18)<0.001,0,(AB25-AB24)/(AC25-AC24)) -> 0 | AF24: =-((X18-Y18)*Z18/(2*Y18^3))*(2*Y18*(AC25-AC24)+Y18^2*(AC25^2-AC24^2)+2*LN((1-Y18*AC25)/(1-Y18*AC24))) -> -4.723718019e-14 | AG24: =-(X18-Y18)*Z18*(AC25^3-AC24^3)/(3*Y18)+AF24/Y18 -> 8.810908839e-14 | AH24: =-(X18-Y18)*Z18*(AC25^4-AC24^4)/(4*Y18)+AG24/Y18 -> -1.643453615e-13 | AI24: =IF(ABS((AC25-AC24)/AA18)<0.001,0,0.5*Z18*AD24*(AC25^2-AC24^2)+Z18*AE24*(AC25^3-AC24^3)/3-AD24*AF24-AE24*AG24) -> 0 | AJ24: =IF(ABS((AC25-AC24)/AA18)<0.001,0,0.5*Z18*(AD24^2*(AC25^2-AC24^2)/2+2*AD24*AE24*(AC25^3-AC24^3)/3+AE24^2*(AC25^4-AC24^4)/4)-0.5*AD24^2*AF24-AD24*AE24*AG24-0.5*AE24^2*AH24) -> 0 | AK24: =IF(ABS((AC25-AC24)/AA18)<0.001,0,Z18*(AD24*(AC25^3-AC24^3)/3+AE24*(AC25^4-AC24^4)/4)-AD24*AG24-AE24*AH24) -> 0 | AL24: 5 | AM24: =$R$24 -> 0.0003141592654 | AN24: =$S$24 -> 0 | AO24: =$T$24 -> 0.25 | AP24: =$U$24 -> 0.44 | AQ24: =MAX(IF(-(-AC18*(AO24-Z16)+AB18*(AP24-AA16))*$C$7*X16/AA18+IF(AM24>0,AN24/(AM24*$U$6),0)>$U$7,IF(-(-AC18*(AO24-Z16)+AB18*(AP24-AA16))*$C$7*X16/AA18+IF(AM24>0,AN24/(AM24*$U$6),0)>$U$9,0,$U$5+$U$10*(-(-AC18*(AO24-Z16)+AB18*(AP24-AA16))*$C$7*X16/AA18+IF(AM24>0,AN24/(AM24*$U$6),0)-$U$7)),$U$6*(-(-AC18*(AO24-Z16)+AB18*(AP24-AA16))*$C$7*X16/AA18+IF(AM24>0,AN24/(AM24*$U$6),0)))*AM24,-AM24*$U$5) -> -0.1439896633 | AR24: 3 | AS24: =$C$24 -> 0.4773884083 | AT24: =$D$24 -> 0.1279158385 | AU24: =AW18*(AS24-AU16)+AX18*(AT24-AV16) -> 0.2215567314 | AV24: =-AX18*(AS24-AU16)+AW18*(AT24-AV16) -> -0.2543953724 | AW24: 0.2215567314 | AX24: =MAX(AV24,0) -> 0 | AY24: =IF(ABS((AX25-AX24)/AV18)<0.001,0,(AW24*AX25-AW25*AX24)/(AX25-AX24)) -> 0 | AZ24: =IF(ABS((AX25-AX24)/AV18)<0.001,0,(AW25-AW24)/(AX25-AX24)) -> 0 | BA24: =-((AS18-AT18)*AU18/(2*AT18^3))*(2*AT18*(AX25-AX24)+AT18^2*(AX25^2-AX24^2)+2*LN((1-AT18*AX25)/(1-AT18*AX24))) -> 0 | BB24: =-(AS18-AT18)*AU18*(AX25^3-AX24^3)/(3*AT18)+BA24/AT18 -> 0 | BC24: =-(AS18-AT18)*AU18*(AX25^4-AX24^4)/(4*AT18)+BB24/AT18 -> 0 | BD24: =IF(ABS((AX25-AX24)/AV18)<0.001,0,0.5*AU18*AY24*(AX25^2-AX24^2)+AU18*AZ24*(AX25^3-AX24^3)/3-AY24*BA24-AZ24*BB24) -> 0 | BE24: =IF(ABS((AX25-AX24)/AV18)<0.001,0,0.5*AU18*(AY24^2*(AX25^2-AX24^2)/2+2*AY24*AZ24*(AX25^3-AX24^3)/3+AZ24^2*(AX25^4-AX24^4)/4)-0.5*AY24^2*BA24-AY24*AZ24*BB24-0.5*AZ24^2*BC24) -> 0 | BF24: =IF(ABS((AX25-AX24)/AV18)<0.001,0,AU18*(AY24*(AX25^3-AX24^3)/3+AZ24*(AX25^4-AX24^4)/4)-AY24*BB24-AZ24*BC24) -> 0 | BG24: 5 | BH24: =$R$24 -> 0.0003141592654 | BI24: =$S$24 -> 0 | BJ24: =$T$24 -> 0.25 | BK24: =$U$24 -> 0.44 | BL24: =MAX(IF(-(-AX18*(BJ24-AU16)+AW18*(BK24-AV16))*$C$7*AS16/AV18+IF(BH24>0,BI24/(BH24*$U$6),0)>$U$7,IF(-(-AX18*(BJ24-AU16)+AW18*(BK24-AV16))*$C$7*AS16/AV18+IF(BH24>0,BI24/(BH24*$U$6),0)>$U$9,0,$U$5+$U$10*(-(-AX18*(BJ24-AU16)+AW18*(BK24-AV16))*$C$7*AS16/AV18+IF(BH24>0,BI24/(BH24*$U$6),0)-$U$7)),$U$6*(-(-AX18*(BJ24-AU16)+AW18*(BK24-AV16))*$C$7*AS16/AV18+IF(BH24>0,BI24/(BH24*$U$6),0)))*BH24,-BH24*$U$5) -> -0.1439896633 | BM24: 3 | BN24: =$C$24 -> 0.4773884083 | BO24: =$D$24 -> 0.1279158385 | BP24: =BR18*(BN24-BP16)+BS18*(BO24-BQ16) -> 0.2215567314 | BQ24: =-BS18*(BN24-BP16)+BR18*(BO24-BQ16) -> -0.2591708697 | BR24: 0.2215567314 | BS24: =MAX(BQ24,0) -> 0 | BT24: =IF(ABS((BS25-BS24)/BQ18)<0.001,0,(BR24*BS25-BR25*BS24)/(BS25-BS24)) -> 0 | BU24: =IF(ABS((BS25-BS24)/BQ18)<0.001,0,(BR25-BR24)/(BS25-BS24)) -> 0 | BV24: =-((BN18-BO18)*BP18/(2*BO18^3))*(2*BO18*(BS25-BS24)+BO18^2*(BS25^2-BS24^2)+2*LN((1-BO18*BS25)/(1-BO18*BS24))) -> 0 | BW24: =-(BN18-BO18)*BP18*(BS25^3-BS24^3)/(3*BO18)+BV24/BO18 -> 0 | BX24: =-(BN18-BO18)*BP18*(BS25^4-BS24^4)/(4*BO18)+BW24/BO18 -> 0 | BY24: =IF(ABS((BS25-BS24)/BQ18)<0.001,0,0.5*BP18*BT24*(BS25^2-BS24^2)+BP18*BU24*(BS25^3-BS24^3)/3-BT24*BV24-BU24*BW24) -> 0 | BZ24: =IF(ABS((BS25-BS24)/BQ18)<0.001,0,0.5*BP18*(BT24^2*(BS25^2-BS24^2)/2+2*BT24*BU24*(BS25^3-BS24^3)/3+BU24^2*(BS25^4-BS24^4)/4)-0.5*BT24^2*BV24-BT24*BU24*BW24-0.5*BU24^2*BX24) -> 0 | CA24: =IF(ABS((BS25-BS24)/BQ18)<0.001,0,BP18*(BT24*(BS25^3-BS24^3)/3+BU24*(BS25^4-BS24^4)/4)-BT24*BW24-BU24*BX24) -> 0 | CB24: 5 | CC24: =$R$24 -> 0.0003141592654 | CD24: =$S$24 -> 0 | CE24: =$T$24 -> 0.25 | CF24: =$U$24 -> 0.44 | CG24: =MAX(IF(-(-BS18*(CE24-BP16)+BR18*(CF24-BQ16))*$C$7*BN16/BQ18+IF(CC24>0,CD24/(CC24*$U$6),0)>$U$7,IF(-(-BS18*(CE24-BP16)+BR18*(CF24-BQ16))*$C$7*BN16/BQ18+IF(CC24>0,CD24/(CC24*$U$6),0)>$U$9,0,$U$5+$U$10*(-(-BS18*(CE24-BP16)+BR18*(CF24-BQ16))*$C$7*BN16/BQ18+IF(CC24>0,CD24/(CC24*$U$6),0)-$U$7)),$U$6*(-(-BS18*(CE24-BP16)+BR18*(CF24-BQ16))*$C$7*BN16/BQ18+IF(CC24>0,CD24/(CC24*$U$6),0)))*CC24,-CC24*$U$5) -> -0.1439896633 | CH24: 3 | CI24: =$C$24 -> 0.4773884083 | CJ24: =$D$24 -> 0.1279158385 | CK24: =CM18*(CI24-CK16)+CN18*(CJ24-CL16) -> 0.2215567314 | CL24: =-CN18*(CI24-CK16)+CM18*(CJ24-CL16) -> -0.2589497982 | CM24: 0.2215567314 | CN24: =MAX(CL24,0) -> 0 | CO24: =IF(ABS((CN25-CN24)/CL18)<0.001,0,(CM24*CN25-CM25*CN24)/(CN25-CN24)) -> 0 | CP24: =IF(ABS((CN25-CN24)/CL18)<0.001,0,(CM25-CM24)/(CN25-CN24)) -> 0 | CQ24: =-((CI18-CJ18)*CK18/(2*CJ18^3))*(2*CJ18*(CN25-CN24)+CJ18^2*(CN25^2-CN24^2)+2*LN((1-CJ18*CN25)/(1-CJ18*CN24))) -> 0 | CR24: =-(CI18-CJ18)*CK18*(CN25^3-CN24^3)/(3*CJ18)+CQ24/CJ18 -> 0 | CS24: =-(CI18-CJ18)*CK18*(CN25^4-CN24^4)/(4*CJ18)+CR24/CJ18 -> 0 | CT24: =IF(ABS((CN25-CN24)/CL18)<0.001,0,0.5*CK18*CO24*(CN25^2-CN24^2)+CK18*CP24*(CN25^3-CN24^3)/3-CO24*CQ24-CP24*CR24) -> 0 | CU24: =IF(ABS((CN25-CN24)/CL18)<0.001,0,0.5*CK18*(CO24^2*(CN25^2-CN24^2)/2+2*CO24*CP24*(CN25^3-CN24^3)/3+CP24^2*(CN25^4-CN24^4)/4)-0.5*CO24^2*CQ24-CO24*CP24*CR24-0.5*CP24^2*CS24) -> 0 | CV24: =IF(ABS((CN25-CN24)/CL18)<0.001,0,CK18*(CO24*(CN25^3-CN24^3)/3+CP24*(CN25^4-CN24^4)/4)-CO24*CR24-CP24*CS24) -> 0 | CW24: 5 | CX24: =$R$24 -> 0.0003141592654 | CY24: =$S$24 -> 0 | CZ24: =$T$24 -> 0.25 | DA24: =$U$24 -> 0.44 | DB24: =MAX(IF(-(-CN18*(CZ24-CK16)+CM18*(DA24-CL16))*$C$7*CI16/CL18+IF(CX24>0,CY24/(CX24*$U$6),0)>$U$7,IF(-(-CN18*(CZ24-CK16)+CM18*(DA24-CL16))*$C$7*CI16/CL18+IF(CX24>0,CY24/(CX24*$U$6),0)>$U$9,0,$U$5+$U$10*(-(-CN18*(CZ24-CK16)+CM18*(DA24-CL16))*$C$7*CI16/CL18+IF(CX24>0,CY24/(CX24*$U$6),0)-$U$7)),$U$6*(-(-CN18*(CZ24-CK16)+CM18*(DA24-CL16))*$C$7*CI16/CL18+IF(CX24>0,CY24/(CX24*$U$6),0)))*CX24,-CX24*$U$5) -> -0.1439896633
B25: 3' | E25: =IF(F26*F24<0,E24-(E26-E24)*F24/(F26-F24),E24) -> 0.2215567314 | F25: =IF(E26=E24,F24,F24+(F26-F24)*(E25-E24)/(E26-E24)) -> -0.1986460094 | G25: 0.2215567314 | H25: 0 | I25: =IF(ABS((H26-H25)/F18)<0.001,0,(G25*H26-G26*H25)/(H26-H25)) -> 0 | J25: =IF(ABS((H26-H25)/F18)<0.001,0,(G26-G25)/(H26-H25)) -> 0 | K25: =-((C18-D18)*E18/(2*D18^3))*(2*D18*(H26-H25)+D18^2*(H26^2-H25^2)+2*LN((1-D18*H26)/(1-D18*H25))) -> 0 | L25: =-(C18-D18)*E18*(H26^3-H25^3)/(3*D18)+K25/D18 -> 0 | M25: =-(C18-D18)*E18*(H26^4-H25^4)/(4*D18)+L25/D18 -> 0 | N25: =IF(ABS((H26-H25)/F18)<0.001,0,0.5*E18*I25*(H26^2-H25^2)+E18*J25*(H26^3-H25^3)/3-I25*K25-J25*L25) -> 0 | O25: =IF(ABS((H26-H25)/F18)<0.001,0,0.5*E18*(I25^2*(H26^2-H25^2)/2+2*I25*J25*(H26^3-H25^3)/3+J25^2*(H26^4-H25^4)/4)-0.5*I25^2*K25-I25*J25*L25-0.5*J25^2*M25) -> 0 | P25: =IF(ABS((H26-H25)/F18)<0.001,0,E18*(I25*(H26^3-H25^3)/3+J25*(H26^4-H25^4)/4)-I25*L25-J25*M25) -> 0 | Q25: 6 | R25: =Data!J11 -> 0.0003141592654 | S25: =Data!K11 -> 0 | T25: =Data!L11 -> 0.1156497116 | U25: =Data!M11 -> 0.3843502884 | V25: =MAX(IF(-(-H18*(T25-E16)+G18*(U25-F16))*$C$7*C16/F18+IF(R25>0,S25/(R25*$U$6),0)>$U$7,IF(-(-H18*(T25-E16)+G18*(U25-F16))*$C$7*C16/F18+IF(R25>0,S25/(R25*$U$6),0)>$U$9,0,$U$5+$U$10*(-(-H18*(T25-E16)+G18*(U25-F16))*$C$7*C16/F18+IF(R25>0,S25/(R25*$U$6),0)-$U$7)),$U$6*(-(-H18*(T25-E16)+G18*(U25-F16))*$C$7*C16/F18+IF(R25>0,S25/(R25*$U$6),0)))*R25,-R25*$U$5) -> -0.1173451773 | W25: 3' | Z25: =IF(AA26*AA24<0,Z24-(Z26-Z24)*AA24/(AA26-AA24),Z24) -> 0.2499848696 | AA25: =IF(Z26=Z24,AA24,AA24+(AA26-AA24)*(Z25-Z24)/(Z26-Z24)) -> 2.775557562e-17 | AB25: 0.2499848696 | AC25: 2.775557562e-17 | AD25: =IF(ABS((AC26-AC25)/AA18)<0.001,0,(AB25*AC26-AB26*AC25)/(AC26-AC25)) -> 0.2499848696 | AE25: =IF(ABS((AC26-AC25)/AA18)<0.001,0,(AB26-AB25)/(AC26-AC25)) -> 0.2679491924 | AF25: =-((X18-Y18)*Z18/(2*Y18^3))*(2*Y18*(AC26-AC25)+Y18^2*(AC26^2-AC25^2)+2*LN((1-Y18*AC26)/(1-Y18*AC25))) -> 0.001679369882 | AG25: =-(X18-Y18)*Z18*(AC26^3-AC25^3)/(3*Y18)+AF25/Y18 -> 2.746765418e-05 | AH25: =-(X18-Y18)*Z18*(AC26^4-AC25^4)/(4*Y18)+AG25/Y18 -> 4.793030459e-07 | AI25: =IF(ABS((AC26-AC25)/AA18)<0.001,0,0.5*Z18*AD25*(AC26^2-AC25^2)+Z18*AE25*(AC26^3-AC25^3)/3-AD25*AF25-AE25*AG25) -> 0.0129379712 | AJ25: =IF(ABS((AC26-AC25)/AA18)<0.001,0,0.5*Z18*(AD25^2*(AC26^2-AC25^2)/2+2*AD25*AE25*(AC26^3-AC25^3)/3+AE25^2*(AC26^4-AC25^4)/4)-0.5*AD25^2*AF25-AD25*AE25*AG25-0.5*AE25^2*AH25) -> 0.001642309184 | AK25: =IF(ABS((AC26-AC25)/AA18)<0.001,0,Z18*(AD25*(AC26^3-AC25^3)/3+AE25*(AC26^4-AC25^4)/4)-AD25*AG25-AE25*AH25) -> 0.0001878017405 | AL25: 6 | AM25: =$R$25 -> 0.0003141592654 | AN25: =$S$25 -> 0 | AO25: =$T$25 -> 0.1156497116 | AP25: =$U$25 -> 0.3843502884 | AQ25: =MAX(IF(-(-AC18*(AO25-Z16)+AB18*(AP25-AA16))*$C$7*X16/AA18+IF(AM25>0,AN25/(AM25*$U$6),0)>$U$7,IF(-(-AC18*(AO25-Z16)+AB18*(AP25-AA16))*$C$7*X16/AA18+IF(AM25>0,AN25/(AM25*$U$6),0)>$U$9,0,$U$5+$U$10*(-(-AC18*(AO25-Z16)+AB18*(AP25-AA16))*$C$7*X16/AA18+IF(AM25>0,AN25/(AM25*$U$6),0)-$U$7)),$U$6*(-(-AC18*(AO25-Z16)+AB18*(AP25-AA16))*$C$7*X16/AA18+IF(AM25>0,AN25/(AM25*$U$6),0)))*AM25,-AM25*$U$5) -> -0.1439896633 | AR25: 3' | AU25: =IF(AV26*AV24<0,AU24-(AU26-AU24)*AV24/(AV26-AV24),AU24) -> 0.2215567314 | AV25: =IF(AU26=AU24,AV24,AV24+(AV26-AV24)*(AU25-AU24)/(AU26-AU24)) -> -0.2543953724 | AW25: 0.2215567314 | AX25: 0 | AY25: =IF(ABS((AX26-AX25)/AV18)<0.001,0,(AW25*AX26-AW26*AX25)/(AX26-AX25)) -> 0 | AZ25: =IF(ABS((AX26-AX25)/AV18)<0.001,0,(AW26-AW25)/(AX26-AX25)) -> 0 | BA25: =-((AS18-AT18)*AU18/(2*AT18^3))*(2*AT18*(AX26-AX25)+AT18^2*(AX26^2-AX25^2)+2*LN((1-AT18*AX26)/(1-AT18*AX25))) -> 0 | BB25: =-(AS18-AT18)*AU18*(AX26^3-AX25^3)/(3*AT18)+BA25/AT18 -> 0 | BC25: =-(AS18-AT18)*AU18*(AX26^4-AX25^4)/(4*AT18)+BB25/AT18 -> 0 | BD25: =IF(ABS((AX26-AX25)/AV18)<0.001,0,0.5*AU18*AY25*(AX26^2-AX25^2)+AU18*AZ25*(AX26^3-AX25^3)/3-AY25*BA25-AZ25*BB25) -> 0 | BE25: =IF(ABS((AX26-AX25)/AV18)<0.001,0,0.5*AU18*(AY25^2*(AX26^2-AX25^2)/2+2*AY25*AZ25*(AX26^3-AX25^3)/3+AZ25^2*(AX26^4-AX25^4)/4)-0.5*AY25^2*BA25-AY25*AZ25*BB25-0.5*AZ25^2*BC25) -> 0 | BF25: =IF(ABS((AX26-AX25)/AV18)<0.001,0,AU18*(AY25*(AX26^3-AX25^3)/3+AZ25*(AX26^4-AX25^4)/4)-AY25*BB25-AZ25*BC25) -> 0 | BG25: 6 | BH25: =$R$25 -> 0.0003141592654 | BI25: =$S$25 -> 0 | BJ25: =$T$25 -> 0.1156497116 | BK25: =$U$25 -> 0.3843502884 | BL25: =MAX(IF(-(-AX18*(BJ25-AU16)+AW18*(BK25-AV16))*$C$7*AS16/AV18+IF(BH25>0,BI25/(BH25*$U$6),0)>$U$7,IF(-(-AX18*(BJ25-AU16)+AW18*(BK25-AV16))*$C$7*AS16/AV18+IF(BH25>0,BI25/(BH25*$U$6),0)>$U$9,0,$U$5+$U$10*(-(-AX18*(BJ25-AU16)+AW18*(BK25-AV16))*$C$7*AS16/AV18+IF(BH25>0,BI25/(BH25*$U$6),0)-$U$7)),$U$6*(-(-AX18*(BJ25-AU16)+AW18*(BK25-AV16))*$C$7*AS16/AV18+IF(BH25>0,BI25/(BH25*$U$6),0)))*BH25,-BH25*$U$5) -> -0.005925081579 | BM25: 3' | BP25: =IF(BQ26*BQ24<0,BP24-(BP26-BP24)*BQ24/(BQ26-BQ24),BP24) -> 0.2215567314 | BQ25: =IF(BP26=BP24,BQ24,BQ24+(BQ26-BQ24)*(BP25-BP24)/(BP26-BP24)) -> -0.2591708697 | BR25: 0.2215567314 | BS25: 0 | BT25: =IF(ABS((BS26-BS25)/BQ18)<0.001,0,(BR25*BS26-BR26*BS25)/(BS26-BS25)) -> 0 | BU25: =IF(ABS((BS26-BS25)/BQ18)<0.001,0,(BR26-BR25)/(BS26-BS25)) -> 0 | BV25: =-((BN18-BO18)*BP18/(2*BO18^3))*(2*BO18*(BS26-BS25)+BO18^2*(BS26^2-BS25^2)+2*LN((1-BO18*BS26)/(1-BO18*BS25))) -> 0 | BW25: =-(BN18-BO18)*BP18*(BS26^3-BS25^3)/(3*BO18)+BV25/BO18 -> 0 | BX25: =-(BN18-BO18)*BP18*(BS26^4-BS25^4)/(4*BO18)+BW25/BO18 -> 0 | BY25: =IF(ABS((BS26-BS25)/BQ18)<0.001,0,0.5*BP18*BT25*(BS26^2-BS25^2)+BP18*BU25*(BS26^3-BS25^3)/3-BT25*BV25-BU25*BW25) -> 0 | BZ25: =IF(ABS((BS26-BS25)/BQ18)<0.001,0,0.5*BP18*(BT25^2*(BS26^2-BS25^2)/2+2*BT25*BU25*(BS26^3-BS25^3)/3+BU25^2*(BS26^4-BS25^4)/4)-0.5*BT25^2*BV25-BT25*BU25*BW25-0.5*BU25^2*BX25) -> 0 | CA25: =IF(ABS((BS26-BS25)/BQ18)<0.001,0,BP18*(BT25*(BS26^3-BS25^3)/3+BU25*(BS26^4-BS25^4)/4)-BT25*BW25-BU25*BX25) -> 0 | CB25: 6 | CC25: =$R$25 -> 0.0003141592654 | CD25: =$S$25 -> 0 | CE25: =$T$25 -> 0.1156497116 | CF25: =$U$25 -> 0.3843502884 | CG25: =MAX(IF(-(-BS18*(CE25-BP16)+BR18*(CF25-BQ16))*$C$7*BN16/BQ18+IF(CC25>0,CD25/(CC25*$U$6),0)>$U$7,IF(-(-BS18*(CE25-BP16)+BR18*(CF25-BQ16))*$C$7*BN16/BQ18+IF(CC25>0,CD25/(CC25*$U$6),0)>$U$9,0,$U$5+$U$10*(-(-BS18*(CE25-BP16)+BR18*(CF25-BQ16))*$C$7*BN16/BQ18+IF(CC25>0,CD25/(CC25*$U$6),0)-$U$7)),$U$6*(-(-BS18*(CE25-BP16)+BR18*(CF25-BQ16))*$C$7*BN16/BQ18+IF(CC25>0,CD25/(CC25*$U$6),0)))*CC25,-CC25*$U$5) -> 0.008256202084 | CH25: 3' | CK25: =IF(CL26*CL24<0,CK24-(CK26-CK24)*CL24/(CL26-CL24),CK24) -> 0.2215567314 | CL25: =IF(CK26=CK24,CL24,CL24+(CL26-CL24)*(CK25-CK24)/(CK26-CK24)) -> -0.2589497982 | CM25: 0.2215567314 | CN25: 0 | CO25: =IF(ABS((CN26-CN25)/CL18)<0.001,0,(CM25*CN26-CM26*CN25)/(CN26-CN25)) -> 0 | CP25: =IF(ABS((CN26-CN25)/CL18)<0.001,0,(CM26-CM25)/(CN26-CN25)) -> 0 | CQ25: =-((CI18-CJ18)*CK18/(2*CJ18^3))*(2*CJ18*(CN26-CN25)+CJ18^2*(CN26^2-CN25^2)+2*LN((1-CJ18*CN26)/(1-CJ18*CN25))) -> 0 | CR25: =-(CI18-CJ18)*CK18*(CN26^3-CN25^3)/(3*CJ18)+CQ25/CJ18 -> 0 | CS25: =-(CI18-CJ18)*CK18*(CN26^4-CN25^4)/(4*CJ18)+CR25/CJ18 -> 0 | CT25: =IF(ABS((CN26-CN25)/CL18)<0.001,0,0.5*CK18*CO25*(CN26^2-CN25^2)+CK18*CP25*(CN26^3-CN25^3)/3-CO25*CQ25-CP25*CR25) -> 0 | CU25: =IF(ABS((CN26-CN25)/CL18)<0.001,0,0.5*CK18*(CO25^2*(CN26^2-CN25^2)/2+2*CO25*CP25*(CN26^3-CN25^3)/3+CP25^2*(CN26^4-CN25^4)/4)-0.5*CO25^2*CQ25-CO25*CP25*CR25-0.5*CP25^2*CS25) -> 0 | CV25: =IF(ABS((CN26-CN25)/CL18)<0.001,0,CK18*(CO25*(CN26^3-CN25^3)/3+CP25*(CN26^4-CN25^4)/4)-CO25*CR25-CP25*CS25) -> 0 | CW25: 6 | CX25: =$R$25 -> 0.0003141592654 | CY25: =$S$25 -> 0 | CZ25: =$T$25 -> 0.1156497116 | DA25: =$U$25 -> 0.3843502884 | DB25: =MAX(IF(-(-CN18*(CZ25-CK16)+CM18*(DA25-CL16))*$C$7*CI16/CL18+IF(CX25>0,CY25/(CX25*$U$6),0)>$U$7,IF(-(-CN18*(CZ25-CK16)+CM18*(DA25-CL16))*$C$7*CI16/CL18+IF(CX25>0,CY25/(CX25*$U$6),0)>$U$9,0,$U$5+$U$10*(-(-CN18*(CZ25-CK16)+CM18*(DA25-CL16))*$C$7*CI16/CL18+IF(CX25>0,CY25/(CX25*$U$6),0)-$U$7)),$U$6*(-(-CN18*(CZ25-CK16)+CM18*(DA25-CL16))*$C$7*CI16/CL18+IF(CX25>0,CY25/(CX25*$U$6),0)))*CX25,-CX25*$U$5) -> 0.007575751098
